Workbook

Sheet Calculator
B2: Aditya Birla Sun Life Insurance
B3: ABSLI Guaranteed Annuity Plus
B5: Your Policy Illustration
B8: Annuitant 1: | C8: Age | D8: 60 | E8: Gender: | F8: Male
B9: Annuitant 2: | C9: Age | D9: 60 | E9: Gender: | F9: Male
B11: Policy Details | E11: UIN: 109N132V15
B13: Frequency of Annuity payment | E13: Annual
B14: Would you like to choose Premium or the Annuity | E14: Premium | G14: excl. GST | H14: ="Annuity will be calculated on " & IF(G14="incl. GST", E16 & " - 1.8% GST", E16) -> Annuity will be calculated on 5000000
B16: Purchase Price | E16: 5000000
B18: =IF($E$14="Premium","Premium Amount (excl. GST)","") -> Premium Amount (excl. GST) | E18: =IF(G14="incl. GST", E16/(1+1.8%),E16) -> 5000000
B19: =IF($E$14="Premium","GST","") -> GST | E19: =IF(E14="Premium",E18*1.8%,"") -> 90000
B20: =IF($E$14="Premium","Premium Amount (incl. GST)","") -> Premium Amount (incl. GST) | E20: =IF($E$14="Premium",E18+E19,"") -> 5090000
B21: =IF(E14="Annuity","Annuity Amount","") ->  | E21: 32344.2
B22: =IF(OR(Annuity_Option=1,Annuity_Option=5,Annuity_Option=9,Annuity_Option=10),"Single Life/ Joint Life Annuity","") -> Single Life/ Joint Life Annuity | E22: Joint Life
B23: Individual/ Group | E23: Group
B24: Sale without Agent | E24: Yes
B26: Annuity Amount in (Rs.) | M26: Purchase Price in (Rs.)
B27: Option 1 | D27: Option 5 | F27: Option 10 | M27: Option 1 | O27: Option 5 | Q27: Option 10
B28: Life Annuity | D28: Life Annuity with Return of Purchase Price | F28: NPS - Family Income | M28: Life Annuity - Level | O28: Life Annuity with Return of Purchase Price - 100% ROP | Q28: NPS - Family Income
B29: Level | C29: =IF(Check!BH3<>"","NA",IF(Check!BJ3<>"","NA",Check!AY3)) -> 391844.544 | D29: 100% ROP | E29: =IF(Check!BH14<>"","NA",IF(Check!BJ14<>"","NA",Check!AY14)) -> 358900.101 | F29: 100% ROP | G29: =IF(Check!BH74<>"","NA",IF(Check!BJ74<>"","NA",Check!AY74)) -> 360376.0395 | M29: Purchase Price (Before GST) | N29: =IF(Check!BH3<>"","NA",IF(Check!BI3<>"","NA",Check!BB3)) -> 5000000 | O29: Purchase Price (Before GST) | P29: =IF(Check!BH14<>"","NA",IF(Check!BI14<>"","NA",Check!BB14)) -> 5000000 | Q29: Purchase Price (Before GST) | R29: =IF(Check!BH74<>"","NA",IF(Check!BI74<>"","NA",Check!BB74)) -> 5000000
M30: GST | N30: =N29*1.8% -> 90000 | O30: GST | P30: =P29*1.8% -> 90000 | Q30: GST | R30: =R29*0% -> 0
B31: =E13&" Annuity as % of Purchase Price" -> Annual Annuity as % of Purchase Price | M31: Purchase Price (With GST) | N31: =N29+N30 -> 5090000 | O31: Purchase Price (With GST) | P31: =P29+P30 -> 5090000 | Q31: Purchase Price (With GST) | R31: =R29+R30 -> 5000000
B32: Option 1 | D32: Option 5 | F32: Option 10
B33: Level | C33: =IFERROR(C29/$E$18,"NA") -> 0.0783689088 | D33: 100% ROP | E33: =IFERROR(E29/$E$18,"NA") -> 0.0717800202 | F33: 100% ROP | G33: =IFERROR(G29/$E$18,"NA") -> 0.0720752079 | M33: =E13&" Annuity as % of purchase price" -> Annual Annuity as % of purchase price
F34: 100% ROP | G34: 31749.66567 | M34: Option 1 | Q34: Option 5
B35: * Mentioned above is Annuity payable in first year. Annuity will enhance each year as per chosen escalation rate | M35: Level | N35: =N29/$E$18 -> 1 | Q35: Life Annuity with Return of Purchase Price | R35: =P29/$E$18 -> 1
M36: Option 1 | O36: Option 5 | Q36: Option 10
B37: Annual Annuity as % of Purchase Price | M37: Level | N37: =N29/$E$18 -> 1 | O37: Life Annuity with Return of Purchase Price | P37: =P29/$E$18 -> 1 | Q37: NPS - Family Income
B38: Option 1 | D38: Option 5 | F38: Option 10 | M38: Level | N38: =IFERROR($E$21/N29,"NA") -> 0.00646884 | O38: 100% ROP | P38: =IFERROR($E$21/P29,"NA") -> 0.00646884 | Q38: 100% ROP | R38: =IFERROR($E$21/R29,"NA") -> 0.00646884
B39: Level | C39: =IF(E13="Monthly",C33*12, IF(E13="Quarterly",C33*4, IF(E13="Semi-Annual",C33*2,C33))) -> 0.0783689088 | D39: 100% ROP | E39: =IF(E13="Monthly",E33*12, IF(E13="Quarterly",E33*4, IF(E13="Semi-Annual",E33*2,E33))) -> 0.0717800202 | F39: 100% ROP | G39: =IF(E13="Monthly",G33*12, IF(E13="Quarterly",G33*4, IF(E13="Semi-Annual",G33*2,G33))) -> 0.0720752079
M40: Annual Annuity as % of purchase price
M41: Option 1 | O41: Option 5 | Q41: Option 10
M42: Level | N42: =N34/$E$18 -> 0 | O42: Life Annuity with Return of Purchase Price | P42: =R34/$E$18 -> 0 | Q42: NPS - Family Income
M43: Level | N43: =IF($E$13="Monthly",N38*12, IF($E$13="Quarterly",N38*4, IF($E$13="Semi-Annual",N38*2,N38))) -> 0.00646884 | O43: 100% ROP | P43: =IF($E$13="Monthly",P38*12, IF($E$13="Quarterly",P38*4, IF($E$13="Semi-Annual",P38*2,P38))) -> 0.00646884 | Q43: 100% ROP | R43: =IF($E$13="Monthly",R38*12, IF($E$13="Quarterly",R38*4, IF($E$13="Semi-Annual",R38*2,R38))) -> 0.00646884
B45: <<Below values should be static as mentioned below>> Please refer BI for the same.
B46: ABG Employee | D46: No
B47: Sale without Agent | D47: Yes
B48: =IF(Annuity_Option<>10,"<<Whether purchased through QROPs/ NPS proceeds>>","") -> <<Whether purchased through QROPs/ NPS proceeds>> | D48: None

Sheet Check (hidden)
A2: Input Parameters | L2: Min | M2: Max | N2: ERR | O2: CODE | P2: =IF(SUM(N3:N10)=0,0,VLOOKUP(1,N3:O10,2,0)) -> 0 | Q2: =IF(P2=0,"BSLI Immediate Annuity Plan",OFFSET(P2,P2,1)) -> BSLI Immediate Annuity Plan | T2: Annuity Option | W2: Annuity Pay Mode | Y2: Factor | AB2: Requirement | AF2: Annuity Options | AH2: Annuity Option | AJ2: Increasing/Level | AK2: Increasing % | AL2: Annuity Certain | AM2: ROP% | AN2: PPT | AO2: Deferment years | AQ2: Rate 1 | AT2: Rate 2 | AV2: Joint Life factor | AW2: Annuity 1 | AX2: Annnuity 2 | AY2: Modal Annuity Payable | AZ2: Premium Payable 1 | BA2: Premium Payable 2 | BB2: Final Premium Payable | BC2: Minimum premium 1 | BD2: Minimum premium 2 | BE2: Minimum premium payable | BF2: Minimum Annuity Amount | BG2: Minimum entry age for primary annuitant is 0 | BH2: Maximum entry age for primary annuitant is 90 | BI2: =Q7 -> Please enter a minimum Annuity of Rs. 12000 | BJ2: =Q8 -> Please input minimum premium of Rs. 159066 (to fulfil minimum annuity amount requirement) | BK2: Please select a lower Deferment period.
A3: Age - Annuitant 1 | B3: =Calculator!D8 -> 60 | L3: =IF(Output!G14="QROPs",55,IF(Input!G11="Yes",45,IF(Annuity_Option<>6,0,45))) -> 0 | M3: =IF(AND(Input!G11="No",Annuity_Option=5),100,IF(OR(Annuity_Option=6,Annuity_Option=7),65,IF(Annuity_Option=9,75,90))) -> 90 | N3: =IF(ISERROR(O3),0,IF(O3=0,0,1)) -> 0 | O3: =IF($B$3<$L$3,1,IF($B$3>$M$3,2,0)) -> 0 | P3: 1 | Q3: =IF(Output!G14="QROPs","Minimum entry age for QROPs is "&L3,"Minimum entry age for primary annuitant is "&L3) -> Minimum entry age for primary annuitant is 0 | T3: Option 1 - Life Annuity | U3: 1 | W3: Annual | X3: 1 | Y3: 1 | Z3: 1 | AA3: 12000 | AB3: Annuity | AC3: 2 | AE3: 1 | AF3: Option 1 - Life Annuity | AH3: 1 | AI3: Option 1 - Life Annuity | AJ3: Level | AN3: 1 | AP3: 1 | AQ3: 'Single Life'!$B$9:$E$110 | AS3: 4 | AT3: 'Single Life'!$B$116:$E$217 | AV3: =IF($B$12=0,0,VLOOKUP(Age_1,'Joint Life Factors'!$A$9:$L$12,4,TRUE)) -> -0.09 | AW3: =IF(JointLife_Ind=0,VLOOKUP(IF(AND(Gender=2,Annuity_Option<>6,Annuity_Option<>7),MAX(Age_1-3,0),Age_1),IF(AND(Gender=2,OR(Annuity_Option=6,Annuity_Option=7)),INDIRECT($AR3),INDIRECT($AQ3)),$AS3,0),VLOOKUP(IF(Age_1=Age_2,IF(OR(Gender=2,$B$6=2),MAX(Age_1-3,0),Age_1),IF(Age_1<Age_2,IF(Gender=2,MAX(Age_1-3,0),Age_1),IF($B$6=2,MAX(Age_2-3,0),Age_2))),INDIRECT($AQ3),$AS3,0)) -> 8088 | AX3: =IF(JointLife_Ind=0,VLOOKUP(IF(AND(Gender=2,Annuity_Option<>6,Annuity_Option<>7),MAX(Age_1-3,0),Age_1),IF(AND(Gender=2,OR(Annuity_Option=6,Annuity_Option=7)),INDIRECT($AU3),INDIRECT($AT3)),$AS3,0),VLOOKUP(IF(Age_1=Age_2,IF(OR(Gender=2,$B$6=2),MAX(Age_1-3,0),Age_1),IF(Age_1<Age_2,IF(Gender=2,MAX(Age_1-3,0),Age_1),IF($B$6=2,MAX(Age_2-3,0),Age_2))),INDIRECT($AT3),$AS3,0)) -> 8415 | AY3: =IF(Request=2,Annuity_Input,((AW3*MIN(200000,Premium_Input)/100000)+AX3*IF(Premium_Input>200000,(Premium_Input-200000)/100000,0))*IF(JointLife_Ind=1,(1+AV3),1)*(VLOOKUP(Payout_Mode,'Modal Factors'!$C$4:$D$7,2,0))*IF(OR(Input!$D$22="Yes",Input!$D$23="Yes"),Bonus_SP,1)/VLOOKUP(Payout_Mode,$X$3:$Z$6,3,0)) -> 391844.544 | AZ3: =IF(Request=1,Premium_Input,((((AY3*VLOOKUP(Payout_Mode,$X$3:$Z$6,3,0))/(VLOOKUP(Payout_Mode,'Modal Factors'!$C$4:$D$7,2,0))/(IF(OR(Input!$D$22="Yes",Input!$D$23="Yes"),Bonus_SP,1)))/IF(JointLife_Ind=0,1,(1+$AV3)))-(200000*AW3)/100000)/(AX3/100000)+200000) -> 5000000 | BA3: =IF(Request=1,Premium_Input,((((AY3*VLOOKUP(Payout_Mode,$X$3:$Z$6,3,0))/(VLOOKUP(Payout_Mode,'Modal Factors'!$C$4:$D$7,2,0))/(IF(OR(Input!$D$22="Yes",Input!$D$23="Yes"),Bonus_SP,1)))/IF(JointLife_Ind=0,1,(1+$AV3)))/(AW3/100000))) -> 5000000 | BB3: =IF(AZ3>200000,AZ3,BA3) -> 5000000 | BC3: =(((($L$14*VLOOKUP(Payout_Mode,$X$3:$Z$6,3,0))/(VLOOKUP(Payout_Mode,'Modal Factors'!$C$4:$D$7,2,0))/(IF(OR(Input!$D$22="Yes",Input!$D$23="Yes"),Bonus_SP,1)))/IF(JointLife_Ind=0,1,(1+AV3)))-(200000*AW3)/100000)/(AX3/100000)+200000 -> 160655.7766 | BD3: =(((($L$14*VLOOKUP(Payout_Mode,$X$3:$Z$6,3,0))/(VLOOKUP(Payout_Mode,'Modal Factors'!$C$4:$D$7,2,0))/(IF(OR(Input!$D$22="Yes",Input!$D$23="Yes"),Bonus_SP,1)))/IF(JointLife_Ind=0,1,(1+AV3)))/(AW3/100000)) -> 159065.0791 | BE3: =MAX(150000,0,IF(BC3>200000,BC3,BD3)) -> 159065.0791 | BF3: =MAX((AW3*150000/100000)*IF(JointLife_Ind=1,(1+AV3),1)*(VLOOKUP(Payout_Mode,'Modal Factors'!$C$4:$D$7,2,0))*IF(OR(Input!$D$22="Yes",Input!$D$23="Yes"),Bonus_SP,1)/VLOOKUP(Payout_Mode,$X$3:$Z$6,3,0), IF(Payout_Mode=1,12000,IF(Payout_Mode=2,6000,IF(Payout_Mode=3,3000,1000)))) -> 12000 | BH3: =IF(OR(Age_1>90,AND(Calculator!$E$22="Joint Life", Age_2>90)),"Maximum entry age is 90 years","") ->  | BI3: =IF(Request=2, IF(Annuity_Input<Check!BF3,"Minimum Annuity amount should be "&ROUNDUP(BF3,0),""),"") ->  | BJ3: =IF(Request=1,IF($B$10<BE3,"Minimum premium should be Rs. "&ROUNDUP(BE3,0),IF(AND($B$10<100000,$AH3=9,OR($AN3=8,$AN3=9,$AN3=10)),"Minimum premium should be Rs. 1,00,000","")),"") ->  | BK3: =IF(AND(OR($AN3=8,$AN3=9),AO3>10),"Deferment Period not allowed",IF(AND($AN3=10,AO3>11),"Deferment Period not allowed","")) -> 
A4: Age - Annuitant 2 | B4: =IF(OR(Annuity_Option=4,Annuity_Option=8),Calculator!D9,IF(AND(OR(Annuity_Option=1,Annuity_Option=5,Annuity_Option=9,Annuity_Option=10),Input!D16="Joint Life"),Calculator!D9,"NA")) -> 60 | C4: =IF(OR(C7=4,C7=8),Calculator!$D$9,IF(AND(OR(C7=1,C7=5,C7=9,C7=10),Input!$D$16="Joint Life"),Calculator!$D$9,"NA")) -> NA | D4: =IF(OR(D7=4,D7=8),Calculator!$D$9,IF(AND(OR(D7=1,D7=5,D7=9,D7=10),Input!$D$16="Joint Life"),Calculator!$D$9,"NA")) -> NA | E4: =IF(OR(E7=4,E7=8),Calculator!$D$9,IF(AND(OR(E7=1,E7=5,E7=9,E7=10),Input!$D$16="Joint Life"),Calculator!$D$9,"NA")) -> 60 | F4: =IF(OR(F7=4,F7=8),Calculator!$D$9,IF(AND(OR(F7=1,F7=5,F7=9,F7=10),Input!$D$16="Joint Life"),Calculator!$D$9,"NA")) -> 60 | G4: =IF(OR(G7=4,G7=8),Calculator!$D$9,IF(AND(OR(G7=1,G7=5,G7=9,G7=10),Input!$D$16="Joint Life"),Calculator!$D$9,"NA")) -> NA | H4: =IF(OR(H7=4,H7=8),Calculator!$D$9,IF(AND(OR(H7=1,H7=5,H7=9,H7=10),Input!$D$16="Joint Life"),Calculator!$D$9,"NA")) -> NA | I4: =IF(OR(I7=4,I7=8),Calculator!$D$9,IF(AND(OR(I7=1,I7=5,I7=9,I7=10),Input!$D$16="Joint Life"),Calculator!$D$9,"NA")) -> 60 | J4: =IF(OR(J7=4,J7=8),Calculator!$D$9,IF(AND(OR(J7=1,J7=5,J7=9,J7=10),Input!$D$16="Joint Life"),Calculator!$D$9,"NA")) -> 60 | L4: =IF(Output!G14="QROPs",55,IF(Input!G11="Yes",45,IF(Annuity_Option<>6,0,45))) -> 0 | M4: =IF(AND(Input!G11="No",Annuity_Option=5),100,IF(OR(Annuity_Option=6,Annuity_Option=7),65,IF(Annuity_Option=9,75,90))) -> 90 | N4: =IF(SUM(N$2:N3)>0,0,IF(ISERROR(O4),0,IF(O4=0,0,1))) -> 0 | O4: =IF(JointLife_Ind=1,IF($B$4<$L$4,3,IF($B$4>$M$4,4,0)),0) -> 0 | P4: 2 | Q4: ="Maximum entry age for primary annuitant is "&M3 -> Maximum entry age for primary annuitant is 90 | T4: Option 2 - Annuity Certain for a specified period and thereafter for life | U4: 2 | W4: Semi-Annual | X4: 2 | Y4: 0.98 | Z4: 2 | AA4: 6000 | AB4: Premium | AC4: 1 | AE4: =AE3+1 -> 2 | AF4: Option 2 - Annuity Certain for a specified period and thereafter for life | AH4: 1 | AI4: Option 1 - Life Annuity | AJ4: Increasing | AK4: 0.03 | AN4: 1 | AP4: 1 | AQ4: 'Single Life'!$B$9:$F$110 | AS4: 5 | AT4: 'Single Life'!$B$116:$F$217 | AV4: =IF($B$12=0,0,VLOOKUP(Age_1,'Joint Life Factors'!$A$9:$L$12,5,TRUE)) -> -0.11 | AW4: =IF(JointLife_Ind=0,VLOOKUP(IF(AND(Gender=2,Annuity_Option<>6,Annuity_Option<>7),MAX(Age_1-3,0),Age_1),IF(AND(Gender=2,OR(Annuity_Option=6,Annuity_Option=7)),INDIRECT($AR4),INDIRECT($AQ4)),$AS4,0),VLOOKUP(IF(Age_1=Age_2,IF(OR(Gender=2,$B$6=2),MAX(Age_1-3,0),Age_1),IF(Age_1<Age_2,IF(Gender=2,MAX(Age_1-3,0),Age_1),IF($B$6=2,MAX(Age_2-3,0),Age_2))),INDIRECT($AQ4),$AS4,0)) -> 6172 | AX4: =IF(JointLife_Ind=0,VLOOKUP(IF(AND(Gender=2,Annuity_Option<>6,Annuity_Option<>7),MAX(Age_1-3,0),Age_1),IF(AND(Gender=2,OR(Annuity_Option=6,Annuity_Option=7)),INDIRECT($AU4),INDIRECT($AT4)),$AS4,0),VLOOKUP(IF(Age_1=Age_2,IF(OR(Gender=2,$B$6=2),MAX(Age_1-3,0),Age_1),IF(Age_1<Age_2,IF(Gender=2,MAX(Age_1-3,0),Age_1),IF($B$6=2,MAX(Age_2-3,0),Age_2))),INDIRECT($AT4),$AS4,0)) -> 6421 | AY4: =IF(Request=2,Annuity_Input,((AW4*MIN(200000,Premium_Input)/100000)+AX4*IF(Premium_Input>200000,(Premium_Input-200000)/100000,0))*IF(JointLife_Ind=1,(1+AV4),1)*(VLOOKUP(Payout_Mode,'Modal Factors'!$C$4:$D$7,2,0))*IF(OR(Input!$D$22="Yes",Input!$D$23="Yes"),Bonus_SP,1)/VLOOKUP(Payout_Mode,$X$3:$Z$6,3,0)) -> 292423.562 | BC4: =(((($L$14*VLOOKUP(Payout_Mode,$X$3:$Z$6,3,0))/(VLOOKUP(Payout_Mode,'Modal Factors'!$C$4:$D$7,2,0))/(IF(OR(Input!$D$22="Yes",Input!$D$23="Yes"),Bonus_SP,1)))/IF(JointLife_Ind=0,1,(1+AV4)))-(200000*AW4)/100000)/(AX4/100000)+200000 -> 212619.356 | BD4: =(((($L$14*VLOOKUP(Payout_Mode,$X$3:$Z$6,3,0))/(VLOOKUP(Payout_Mode,'Modal Factors'!$C$4:$D$7,2,0))/(IF(OR(Input!$D$22="Yes",Input!$D$23="Yes"),Bonus_SP,1)))/IF(JointLife_Ind=0,1,(1+AV4)))/(AW4/100000)) -> 213128.4648 | BE4: =MAX(150000,0,IF(BC4>200000,BC4,BD4)) -> 212619.356 | BF4: =MAX((AW4*150000/100000)*IF(JointLife_Ind=1,(1+AV4),1)*(VLOOKUP(Payout_Mode,'Modal Factors'!$C$4:$D$7,2,0))*IF(OR(Input!$D$22="Yes",Input!$D$23="Yes"),Bonus_SP,1)/VLOOKUP(Payout_Mode,$X$3:$Z$6,3,0), IF(Payout_Mode=1,12000,IF(Payout_Mode=2,6000,IF(Payout_Mode=3,3000,1000)))) -> 12000 | BH4: =IF(OR(Age_1>90,AND(Calculator!$E$22="Joint Life", Age_2>90)),"Maximum entry age is 90 years","") ->  | BI4: =IF(Request=2, IF(Annuity_Input<Check!BF4,"Minimum Annuity amount should be "&ROUNDUP(BF4,0),""),"") ->  | BK4: =IF(AND(OR($AN4=8,$AN4=9),AO4>10),"Deferment Period not allowed",IF(AND($AN4=10,AO4>11),"Deferment Period not allowed","")) -> 
A5: Gender - Annuitant 1 | B5: =IF(OR(Input!$H$7="Male",Input!$H$7="Transgender"),1,2) -> 1 | N5: =IF(SUM(N$2:N4)>0,0,IF(ISERROR(O5),0,IF(O5=0,0,1))) -> 0 | O5: =IF(Request=2,IF(Annuity_Input<L11,5,0),0) -> 0 | P5: 3 | Q5: =IF(Output!G14="QROPs","Minimum entry age for QROPs is "&L4,"Minimum entry age for primary annuitant is "&L4) -> Minimum entry age for primary annuitant is 0 | T5: Option 3 - Life Annuity with return of Balance of Purchase Price | U5: 3 | W5: Quarterly | X5: 3 | Y5: 0.97 | Z5: 4 | AA5: 3000 | AE5: =AE4+1 -> 3 | AF5: Option 3 - Life Annuity with return of Balance of Purchase Price | AH5: 1 | AI5: Option 1 - Life Annuity | AJ5: Increasing | AK5: 0.05 | AN5: 1 | AP5: 1 | AQ5: 'Single Life'!$B$9:$G$110 | AS5: 6 | AT5: 'Single Life'!$B$116:$G$217 | AV5: =IF($B$12=0,0,VLOOKUP(Age_1,'Joint Life Factors'!$A$9:$L$12,6,TRUE)) -> -0.12 | AW5: =IF(JointLife_Ind=0,VLOOKUP(IF(AND(Gender=2,Annuity_Option<>6,Annuity_Option<>7),MAX(Age_1-3,0),Age_1),IF(AND(Gender=2,OR(Annuity_Option=6,Annuity_Option=7)),INDIRECT($AR5),INDIRECT($AQ5)),$AS5,0),VLOOKUP(IF(Age_1=Age_2,IF(OR(Gender=2,$B$6=2),MAX(Age_1-3,0),Age_1),IF(Age_1<Age_2,IF(Gender=2,MAX(Age_1-3,0),Age_1),IF($B$6=2,MAX(Age_2-3,0),Age_2))),INDIRECT($AQ5),$AS5,0)) -> 5333 | AX5: =IF(JointLife_Ind=0,VLOOKUP(IF(AND(Gender=2,Annuity_Option<>6,Annuity_Option<>7),MAX(Age_1-3,0),Age_1),IF(AND(Gender=2,OR(Annuity_Option=6,Annuity_Option=7)),INDIRECT($AU5),INDIRECT($AT5)),$AS5,0),VLOOKUP(IF(Age_1=Age_2,IF(OR(Gender=2,$B$6=2),MAX(Age_1-3,0),Age_1),IF(Age_1<Age_2,IF(Gender=2,MAX(Age_1-3,0),Age_1),IF($B$6=2,MAX(Age_2-3,0),Age_2))),INDIRECT($AT5),$AS5,0)) -> 5549 | AY5: =IF(Request=2,Annuity_Input,((AW5*MIN(200000,Premium_Input)/100000)+AX5*IF(Premium_Input>200000,(Premium_Input-200000)/100000,0))*IF(JointLife_Ind=1,(1+AV5),1)*(VLOOKUP(Payout_Mode,'Modal Factors'!$C$4:$D$7,2,0))*IF(OR(Input!$D$22="Yes",Input!$D$23="Yes"),Bonus_SP,1)/VLOOKUP(Payout_Mode,$X$3:$Z$6,3,0)) -> 249870.236 | BC5: =(((($L$14*VLOOKUP(Payout_Mode,$X$3:$Z$6,3,0))/(VLOOKUP(Payout_Mode,'Modal Factors'!$C$4:$D$7,2,0))/(IF(OR(Input!$D$22="Yes",Input!$D$23="Yes"),Bonus_SP,1)))/IF(JointLife_Ind=0,1,(1+AV5)))-(200000*AW5)/100000)/(AX5/100000)+200000 -> 247535.9416 | BD5: =(((($L$14*VLOOKUP(Payout_Mode,$X$3:$Z$6,3,0))/(VLOOKUP(Payout_Mode,'Modal Factors'!$C$4:$D$7,2,0))/(IF(OR(Input!$D$22="Yes",Input!$D$23="Yes"),Bonus_SP,1)))/IF(JointLife_Ind=0,1,(1+AV5)))/(AW5/100000)) -> 249461.2676 | BE5: =MAX(150000,0,IF(BC5>200000,BC5,BD5)) -> 247535.9416 | BF5: =MAX((AW5*150000/100000)*IF(JointLife_Ind=1,(1+AV5),1)*(VLOOKUP(Payout_Mode,'Modal Factors'!$C$4:$D$7,2,0))*IF(OR(Input!$D$22="Yes",Input!$D$23="Yes"),Bonus_SP,1)/VLOOKUP(Payout_Mode,$X$3:$Z$6,3,0), IF(Payout_Mode=1,12000,IF(Payout_Mode=2,6000,IF(Payout_Mode=3,3000,1000)))) -> 12000 | BH5: =IF(OR(Age_1>90,AND(Calculator!$E$22="Joint Life", Age_2>90)),"Maximum entry age is 90 years","") ->  | BI5: =IF(Request=2, IF(Annuity_Input<Check!BF5,"Minimum Annuity amount should be "&ROUNDUP(BF5,0),""),"") -> 
A6: Gender - Annuitant 2 | B6: =IF(OR(Annuity_Option=4,Annuity_Option=8,AND(OR(Annuity_Option=1,Annuity_Option=5,Annuity_Option=9,Annuity_Option=10),Input!D16="Joint Life")),IF(OR(Input!$H$8="Male",Input!$H$8="Transgender"),1,2),"NA") -> 1 | C6: =IF(OR(C7=4,C7=8,AND(OR(C7=1,C7=5,C7=9,C7=10),Input!$D$16="Joint Life")),IF(OR(Input!$H$8="Male",Input!$H$8="Transgender"),1,2),"NA") -> NA | D6: =IF(OR(D7=4,D7=8,AND(OR(D7=1,D7=5,D7=9,D7=10),Input!$D$16="Joint Life")),IF(OR(Input!$H$8="Male",Input!$H$8="Transgender"),1,2),"NA") -> NA | E6: =IF(OR(E7=4,E7=8,AND(OR(E7=1,E7=5,E7=9,E7=10),Input!$D$16="Joint Life")),IF(OR(Input!$H$8="Male",Input!$H$8="Transgender"),1,2),"NA") -> 1 | F6: =IF(OR(F7=4,F7=8,AND(OR(F7=1,F7=5,F7=9,F7=10),Input!$D$16="Joint Life")),IF(OR(Input!$H$8="Male",Input!$H$8="Transgender"),1,2),"NA") -> 1 | G6: =IF(OR(G7=4,G7=8,AND(OR(G7=1,G7=5,G7=9,G7=10),Input!$D$16="Joint Life")),IF(OR(Input!$H$8="Male",Input!$H$8="Transgender"),1,2),"NA") -> NA | H6: =IF(OR(H7=4,H7=8,AND(OR(H7=1,H7=5,H7=9,H7=10),Input!$D$16="Joint Life")),IF(OR(Input!$H$8="Male",Input!$H$8="Transgender"),1,2),"NA") -> NA | I6: =IF(OR(I7=4,I7=8,AND(OR(I7=1,I7=5,I7=9,I7=10),Input!$D$16="Joint Life")),IF(OR(Input!$H$8="Male",Input!$H$8="Transgender"),1,2),"NA") -> 1 | J6: =IF(OR(J7=4,J7=8,AND(OR(J7=1,J7=5,J7=9,J7=10),Input!$D$16="Joint Life")),IF(OR(Input!$H$8="Male",Input!$H$8="Transgender"),1,2),"NA") -> 1 | N6: =IF(SUM(N$2:N5)>0,0,IF(ISERROR(O6),0,IF(O6=0,0,1))) -> 0 | O6: =IF(Request=1,IF($B$10<$L$10,6,0),0) -> 0 | P6: 4 | Q6: ="Maximum entry age for secondary annuitant is "&M4 -> Maximum entry age for secondary annuitant is 90 | T6: Option 4 - Life Annuity with 50% Annuity payable to Secondary Annuitant on death of Primary Annuitant | U6: 4 | W6: Monthly | X6: 4 | Y6: 0.96 | Z6: 12 | AA6: 1000 | AE6: 4 | AF6: Option 4 - Life Annuity with 50% Annuity payable to Secondary Annuitant on death of Primary Annuitant | AH6: 2 | AI6: Option 2 - Annuity Certain for a specified period and thereafter for life | AL6: 5 | AN6: 1 | AP6: 1 | AQ6: 'Single Life'!$B$9:$H$110 | AS6: 7 | AT6: 'Single Life'!$B$116:$H$217 | AV6: =IF($C$12=0,0,VLOOKUP(Age_1,'Joint Life Factors'!$A$9:$L$12,MATCH(1,'Joint Life Factors'!$D$5:$L$5,0)+3,TRUE)) -> 0 | AW6: =IF($C$12=0,VLOOKUP(IF(AND(Gender=2,$C$7<>6,$C$7<>7),MAX(Age_1-3,0),Age_1),IF(AND(Gender=2,OR($C$7=6,$C$7=7)),INDIRECT($AR6),INDIRECT($AQ6)),$AS6,0),VLOOKUP(IF(Age_1=$C$4,IF(OR(Gender=2,$C$6=2),MAX(Age_1-3,0),Age_1),IF(Age_1<Age_2,IF(Gender=2,MAX(Age_1-3,0),Age_1),IF($C$6=2,MAX(Age_2-3,0),Age_2))),INDIRECT($AQ6),$AS6,0)) -> 8060 | AX6: =IF($C$12=0,VLOOKUP(IF(AND(Gender=2,$C$7<>6,$C$7<>7),MAX(Age_1-3,0),Age_1),IF(AND(Gender=2,OR($C$7=6,$C$7=7)),INDIRECT($AU6),INDIRECT($AT6)),$AS6,0),VLOOKUP(IF(Age_1=$C$4,IF(OR(Gender=2,$C$6=2),MAX(Age_1-3,0),Age_1),IF(Age_1<Age_2,IF(Gender=2,MAX(Age_1-3,0),Age_1),IF($C$6=2,MAX(Age_2-3,0),Age_2))),INDIRECT($AT6),$AS6,0)) -> 8385 | AY6: =IF(Request=2,Annuity_Input,((AW6*MIN(200000,Premium_Input)/100000)+AX6*IF(Premium_Input>200000,(Premium_Input-200000)/100000,0))*IF(JointLife_Ind=1,(1+AV6),1)*(VLOOKUP(Payout_Mode,'Modal Factors'!$C$4:$D$7,2,0))*IF(OR(Input!$D$22="Yes",Input!$D$23="Yes"),Bonus_SP,1)/VLOOKUP(Payout_Mode,$X$3:$Z$6,3,0)) -> 429065 | AZ6: =IF(Request=1,Premium_Input,((((AY6*VLOOKUP(Payout_Mode,$X$3:$Z$6,3,0))/(VLOOKUP(Payout_Mode,'Modal Factors'!$C$4:$D$7,2,0))/(IF(OR(Input!$D$22="Yes",Input!$D$23="Yes"),Bonus_SP,1)))/IF(JointLife_Ind=0,1,(1+$AV6)))-(200000*AW6)/100000)/(AX6/100000)+200000) -> 5000000 | BA6: =IF(Request=1,Premium_Input,((((AY6*VLOOKUP(Payout_Mode,$X$3:$Z$6,3,0))/(VLOOKUP(Payout_Mode,'Modal Factors'!$C$4:$D$7,2,0))/(IF(OR(Input!$D$22="Yes",Input!$D$23="Yes"),Bonus_SP,1)))/IF(JointLife_Ind=0,1,(1+$AV6)))/(AW6/100000))) -> 5000000 | BB6: =IF(AZ6>200000,AZ6,BA6) -> 5000000 | BC6: =(((($L$14*VLOOKUP(Payout_Mode,$X$3:$Z$6,3,0))/(VLOOKUP(Payout_Mode,'Modal Factors'!$C$4:$D$7,2,0))/(IF(OR(Input!$D$22="Yes",Input!$D$23="Yes"),Bonus_SP,1)))/IF(JointLife_Ind=0,1,(1+AV6)))-(200000*AW6)/100000)/(AX6/100000)+200000 -> 147374.0855 | BD6: =(((($L$14*VLOOKUP(Payout_Mode,$X$3:$Z$6,3,0))/(VLOOKUP(Payout_Mode,'Modal Factors'!$C$4:$D$7,2,0))/(IF(OR(Input!$D$22="Yes",Input!$D$23="Yes"),Bonus_SP,1)))/IF(JointLife_Ind=0,1,(1+AV6)))/(AW6/100000)) -> 145252.0729 | BE6: 150000 | BF6: =MAX((AW6*150000/100000)*IF(JointLife_Ind=1,(1+AV6),1)*(VLOOKUP(Payout_Mode,'Modal Factors'!$C$4:$D$7,2,0))*IF(OR(Input!$D$22="Yes",Input!$D$23="Yes"),Bonus_SP,1)/VLOOKUP(Payout_Mode,$X$3:$Z$6,3,0), IF(Payout_Mode=1,12000,IF(Payout_Mode=2,6000,IF(Payout_Mode=3,3000,1000)))) -> 12392.25 | BH6: =IF(OR(Age_1>90,AND(Calculator!$E$22="Joint Life", Age_2>90)),"Maximum entry age is 90 years","") ->  | BI6: =IF(Request=2, IF(Annuity_Input<Check!BF6,"Minimum Annuity amount should be "&ROUNDUP(BF6,0),""),"") -> 
A7: Annuity Option | B7: 1 | C7: 2 | D7: 3 | E7: 4 | F7: 5 | G7: 6 | H7: 7 | I7: 8 | J7: 9 | L7: 1 | M7: 2 | P7: 5 | Q7: ="Please enter a minimum Annuity of Rs. "&ROUNDUP(L11,0) -> Please enter a minimum Annuity of Rs. 12000 | T7: Option 5 - Life Annuity with Return of Purchase Price | U7: 5 | AE7: 5 | AF7: Option 5 - Life Annuity with Return of Purchase Price | AH7: 2 | AI7: Option 2 - Annuity Certain for a specified period and thereafter for life | AL7: 10 | AN7: 1 | AP7: 1 | AQ7: 'Single Life'!$B$9:$I$110 | AS7: 8 | AT7: 'Single Life'!$B$116:$I$217 | AV7: =IF($C$12=0,0,VLOOKUP(Age_1,'Joint Life Factors'!$A$9:$L$12,MATCH(1,'Joint Life Factors'!$D$5:$L$5,0)+3,TRUE)) -> 0 | AW7: =IF($C$12=0,VLOOKUP(IF(AND(Gender=2,$C$7<>6,$C$7<>7),MAX(Age_1-3,0),Age_1),IF(AND(Gender=2,OR($C$7=6,$C$7=7)),INDIRECT($AR7),INDIRECT($AQ7)),$AS7,0),VLOOKUP(IF(Age_1=$C$4,IF(OR(Gender=2,$C$6=2),MAX(Age_1-3,0),Age_1),IF(Age_1<Age_2,IF(Gender=2,MAX(Age_1-3,0),Age_1),IF($C$6=2,MAX(Age_2-3,0),Age_2))),INDIRECT($AQ7),$AS7,0)) -> 7972 | AX7: =IF($C$12=0,VLOOKUP(IF(AND(Gender=2,$C$7<>6,$C$7<>7),MAX(Age_1-3,0),Age_1),IF(AND(Gender=2,OR($C$7=6,$C$7=7)),INDIRECT($AU7),INDIRECT($AT7)),$AS7,0),VLOOKUP(IF(Age_1=$C$4,IF(OR(Gender=2,$C$6=2),MAX(Age_1-3,0),Age_1),IF(Age_1<Age_2,IF(Gender=2,MAX(Age_1-3,0),Age_1),IF($C$6=2,MAX(Age_2-3,0),Age_2))),INDIRECT($AT7),$AS7,0)) -> 8296 | AY7: =IF(Request=2,Annuity_Input,((AW7*MIN(200000,Premium_Input)/100000)+AX7*IF(Premium_Input>200000,(Premium_Input-200000)/100000,0))*IF(JointLife_Ind=1,(1+AV7),1)*(VLOOKUP(Payout_Mode,'Modal Factors'!$C$4:$D$7,2,0))*IF(OR(Input!$D$22="Yes",Input!$D$23="Yes"),Bonus_SP,1)/VLOOKUP(Payout_Mode,$X$3:$Z$6,3,0)) -> 424505.8 | BC7: =(((($L$14*VLOOKUP(Payout_Mode,$X$3:$Z$6,3,0))/(VLOOKUP(Payout_Mode,'Modal Factors'!$C$4:$D$7,2,0))/(IF(OR(Input!$D$22="Yes",Input!$D$23="Yes"),Bonus_SP,1)))/IF(JointLife_Ind=0,1,(1+AV7)))-(200000*AW7)/100000)/(AX7/100000)+200000 -> 148931.0158 | BD7: =(((($L$14*VLOOKUP(Payout_Mode,$X$3:$Z$6,3,0))/(VLOOKUP(Payout_Mode,'Modal Factors'!$C$4:$D$7,2,0))/(IF(OR(Input!$D$22="Yes",Input!$D$23="Yes"),Bonus_SP,1)))/IF(JointLife_Ind=0,1,(1+AV7)))/(AW7/100000)) -> 146855.4575 | BE7: 150000 | BF7: =MAX((AW7*150000/100000)*IF(JointLife_Ind=1,(1+AV7),1)*(VLOOKUP(Payout_Mode,'Modal Factors'!$C$4:$D$7,2,0))*IF(OR(Input!$D$22="Yes",Input!$D$23="Yes"),Bonus_SP,1)/VLOOKUP(Payout_Mode,$X$3:$Z$6,3,0), IF(Payout_Mode=1,12000,IF(Payout_Mode=2,6000,IF(Payout_Mode=3,3000,1000)))) -> 12256.95 | BH7: =IF(OR(Age_1>90,AND(Calculator!$E$22="Joint Life", Age_2>90)),"Maximum entry age is 90 years","") ->  | BI7: =IF(Request=2, IF(Annuity_Input<Check!BF7,"Minimum Annuity amount should be "&ROUNDUP(BF7,0),""),"") -> 
A8: Payout Mode | B8: =VLOOKUP(Input!$D$12,Check!$W$3:$X$6,2,0) -> 1 | L8: 1 | M8: 4 | P8: 6 | Q8: ="Please input minimum premium of Rs. "&ROUNDUP(L10,0)&" (to fulfil minimum annuity amount requirement)" -> Please input minimum premium of Rs. 159066 (to fulfil minimum annuity amount requirement) | T8: Option 6 - Life Annuity with enhanced Annuity on Critical Illness/ Accidental Permanent Disability and with Return of Purchase Price | U8: 6 | AE8: 6 | AF8: Option 6 - Life Annuity with enhanced Annuity on Critical Illness/ Accidental Permanent Disability and with Return of Purchase Price | AH8: 2 | AI8: Option 2 - Annuity Certain for a specified period and thereafter for life | AL8: 15 | AN8: 1 | AP8: 1 | AQ8: 'Single Life'!$B$9:$J$110 | AS8: 9 | AT8: 'Single Life'!$B$116:$J$217 | AV8: =IF($C$12=0,0,VLOOKUP(Age_1,'Joint Life Factors'!$A$9:$L$12,MATCH(1,'Joint Life Factors'!$D$5:$L$5,0)+3,TRUE)) -> 0 | AW8: =IF($C$12=0,VLOOKUP(IF(AND(Gender=2,$C$7<>6,$C$7<>7),MAX(Age_1-3,0),Age_1),IF(AND(Gender=2,OR($C$7=6,$C$7=7)),INDIRECT($AR8),INDIRECT($AQ8)),$AS8,0),VLOOKUP(IF(Age_1=$C$4,IF(OR(Gender=2,$C$6=2),MAX(Age_1-3,0),Age_1),IF(Age_1<Age_2,IF(Gender=2,MAX(Age_1-3,0),Age_1),IF($C$6=2,MAX(Age_2-3,0),Age_2))),INDIRECT($AQ8),$AS8,0)) -> 7848 | AX8: =IF($C$12=0,VLOOKUP(IF(AND(Gender=2,$C$7<>6,$C$7<>7),MAX(Age_1-3,0),Age_1),IF(AND(Gender=2,OR($C$7=6,$C$7=7)),INDIRECT($AU8),INDIRECT($AT8)),$AS8,0),VLOOKUP(IF(Age_1=$C$4,IF(OR(Gender=2,$C$6=2),MAX(Age_1-3,0),Age_1),IF(Age_1<Age_2,IF(Gender=2,MAX(Age_1-3,0),Age_1),IF($C$6=2,MAX(Age_2-3,0),Age_2))),INDIRECT($AT8),$AS8,0)) -> 8162 | AY8: =IF(Request=2,Annuity_Input,((AW8*MIN(200000,Premium_Input)/100000)+AX8*IF(Premium_Input>200000,(Premium_Input-200000)/100000,0))*IF(JointLife_Ind=1,(1+AV8),1)*(VLOOKUP(Payout_Mode,'Modal Factors'!$C$4:$D$7,2,0))*IF(OR(Input!$D$22="Yes",Input!$D$23="Yes"),Bonus_SP,1)/VLOOKUP(Payout_Mode,$X$3:$Z$6,3,0)) -> 417658.8 | BC8: =(((($L$14*VLOOKUP(Payout_Mode,$X$3:$Z$6,3,0))/(VLOOKUP(Payout_Mode,'Modal Factors'!$C$4:$D$7,2,0))/(IF(OR(Input!$D$22="Yes",Input!$D$23="Yes"),Bonus_SP,1)))/IF(JointLife_Ind=0,1,(1+AV8)))-(200000*AW8)/100000)/(AX8/100000)+200000 -> 151131.0595 | BD8: =(((($L$14*VLOOKUP(Payout_Mode,$X$3:$Z$6,3,0))/(VLOOKUP(Payout_Mode,'Modal Factors'!$C$4:$D$7,2,0))/(IF(OR(Input!$D$22="Yes",Input!$D$23="Yes"),Bonus_SP,1)))/IF(JointLife_Ind=0,1,(1+AV8)))/(AW8/100000)) -> 149175.8037 | BE8: 150000 | BF8: =MAX((AW8*150000/100000)*IF(JointLife_Ind=1,(1+AV8),1)*(VLOOKUP(Payout_Mode,'Modal Factors'!$C$4:$D$7,2,0))*IF(OR(Input!$D$22="Yes",Input!$D$23="Yes"),Bonus_SP,1)/VLOOKUP(Payout_Mode,$X$3:$Z$6,3,0), IF(Payout_Mode=1,12000,IF(Payout_Mode=2,6000,IF(Payout_Mode=3,3000,1000)))) -> 12066.3 | BH8: =IF(OR(Age_1>90,AND(Calculator!$E$22="Joint Life", Age_2>90)),"Maximum entry age is 90 years","") ->  | BI8: =IF(Request=2, IF(Annuity_Input<Check!BF8,"Minimum Annuity amount should be "&ROUNDUP(BF8,0),""),"") -> 
A9: Request | B9: =VLOOKUP(Input!$D$13,Check!$AB$3:$AC$4,2,0) -> 1 | L9: 1 | M9: 2 | T9: Option 7 - Life Annuity with Return of Purchase Price on attainment of Age 80 years | U9: 7 | AE9: 7 | AF9: Option 7 - Life Annuity with Return of Purchase Price on attainment of Age 80 years | AH9: 2 | AI9: Option 2 - Annuity Certain for a specified period and thereafter for life | AL9: 20 | AN9: 1 | AP9: 1 | AQ9: 'Single Life'!$B$9:$K$110 | AS9: 10 | AT9: 'Single Life'!$B$116:$K$217 | AV9: =IF($C$12=0,0,VLOOKUP(Age_1,'Joint Life Factors'!$A$9:$L$12,MATCH(1,'Joint Life Factors'!$D$5:$L$5,0)+3,TRUE)) -> 0 | AW9: =IF($C$12=0,VLOOKUP(IF(AND(Gender=2,$C$7<>6,$C$7<>7),MAX(Age_1-3,0),Age_1),IF(AND(Gender=2,OR($C$7=6,$C$7=7)),INDIRECT($AR9),INDIRECT($AQ9)),$AS9,0),VLOOKUP(IF(Age_1=$C$4,IF(OR(Gender=2,$C$6=2),MAX(Age_1-3,0),Age_1),IF(Age_1<Age_2,IF(Gender=2,MAX(Age_1-3,0),Age_1),IF($C$6=2,MAX(Age_2-3,0),Age_2))),INDIRECT($AQ9),$AS9,0)) -> 7687 | AX9: =IF($C$12=0,VLOOKUP(IF(AND(Gender=2,$C$7<>6,$C$7<>7),MAX(Age_1-3,0),Age_1),IF(AND(Gender=2,OR($C$7=6,$C$7=7)),INDIRECT($AU9),INDIRECT($AT9)),$AS9,0),VLOOKUP(IF(Age_1=$C$4,IF(OR(Gender=2,$C$6=2),MAX(Age_1-3,0),Age_1),IF(Age_1<Age_2,IF(Gender=2,MAX(Age_1-3,0),Age_1),IF($C$6=2,MAX(Age_2-3,0),Age_2))),INDIRECT($AT9),$AS9,0)) -> 7996 | AY9: =IF(Request=2,Annuity_Input,((AW9*MIN(200000,Premium_Input)/100000)+AX9*IF(Premium_Input>200000,(Premium_Input-200000)/100000,0))*IF(JointLife_Ind=1,(1+AV9),1)*(VLOOKUP(Payout_Mode,'Modal Factors'!$C$4:$D$7,2,0))*IF(OR(Input!$D$22="Yes",Input!$D$23="Yes"),Bonus_SP,1)/VLOOKUP(Payout_Mode,$X$3:$Z$6,3,0)) -> 409161.55 | BC9: =(((($L$14*VLOOKUP(Payout_Mode,$X$3:$Z$6,3,0))/(VLOOKUP(Payout_Mode,'Modal Factors'!$C$4:$D$7,2,0))/(IF(OR(Input!$D$22="Yes",Input!$D$23="Yes"),Bonus_SP,1)))/IF(JointLife_Ind=0,1,(1+AV9)))-(200000*AW9)/100000)/(AX9/100000)+200000 -> 154143.5352 | BD9: =(((($L$14*VLOOKUP(Payout_Mode,$X$3:$Z$6,3,0))/(VLOOKUP(Payout_Mode,'Modal Factors'!$C$4:$D$7,2,0))/(IF(OR(Input!$D$22="Yes",Input!$D$23="Yes"),Bonus_SP,1)))/IF(JointLife_Ind=0,1,(1+AV9)))/(AW9/100000)) -> 152300.2091 | BE9: 152300.2091 | BF9: =MAX((AW9*150000/100000)*IF(JointLife_Ind=1,(1+AV9),1)*(VLOOKUP(Payout_Mode,'Modal Factors'!$C$4:$D$7,2,0))*IF(OR(Input!$D$22="Yes",Input!$D$23="Yes"),Bonus_SP,1)/VLOOKUP(Payout_Mode,$X$3:$Z$6,3,0), IF(Payout_Mode=1,12000,IF(Payout_Mode=2,6000,IF(Payout_Mode=3,3000,1000)))) -> 12000 | BH9: =IF(OR(Age_1>90,AND(Calculator!$E$22="Joint Life", Age_2>90)),"Maximum entry age is 90 years","") ->  | BI9: =IF(Request=2, IF(Annuity_Input<Check!BF9,"Minimum Annuity amount should be "&ROUNDUP(BF9,0),""),"") -> 
A10: Premium Input | B10: =Input!D14 -> 5000000 | L10: =MAX(150000,B28) -> 159065.0791 | M10: No Maximum | N10: =IF(AND(Annuity_Option>7,Gender=B6),1,0) -> 0 | T10: Option 8 - Life Annuity with Partial Return of Purchase Price to survivor and balance to nominee. | U10: 8 | AE10: 8 | AF10: Option 8 - Life Annuity with Partial Return of Purchase Price to survivor and balance to nominee. | AH10: 3 | AI10: Option 3 - Life Annuity with return of Balance of Purchase Price | AJ10: Level | AN10: 1 | AP10: 1 | AQ10: 'Single Life'!$B$9:$L$110 | AS10: 11 | AT10: 'Single Life'!$B$116:$L$217 | AV10: =IF($D$12=0,0,VLOOKUP(Age_1,'Joint Life Factors'!$A$9:$L$12,MATCH(1,'Joint Life Factors'!$D$5:$L$5,0)+3,TRUE)) -> 0 | AW10: =IF($D$12=0,VLOOKUP(IF(AND(Gender=2,$D$7<>6,$D$7<>7),MAX(Age_1-3,0),Age_1),IF(AND(Gender=2,OR($D$7=6,$D$7=7)),INDIRECT($AR10),INDIRECT($AQ10)),$AS10,0),VLOOKUP(IF(Age_1=$D$4,IF(OR(Gender=2,$D$6=2),MAX(Age_1-3,0),Age_1),IF(Age_1<Age_2,IF(Gender=2,MAX(Age_1-3,0),Age_1),IF($D$6=2,MAX(Age_2-3,0),Age_2))),INDIRECT($AQ10),$AS10,0)) -> 7737 | AX10: =IF($D$12=0,VLOOKUP(IF(AND(Gender=2,$D$7<>6,$D$7<>7),MAX(Age_1-3,0),Age_1),IF(AND(Gender=2,OR($D$7=6,$D$7=7)),INDIRECT($AU10),INDIRECT($AT10)),$AS10,0),VLOOKUP(IF(Age_1=$D$4,IF(OR(Gender=2,$D$6=2),MAX(Age_1-3,0),Age_1),IF(Age_1<Age_2,IF(Gender=2,MAX(Age_1-3,0),Age_1),IF($D$6=2,MAX(Age_2-3,0),Age_2))),INDIRECT($AT10),$AS10,0)) -> 8083 | AY10: =IF(Request=2,Annuity_Input,((AW10*MIN(200000,Premium_Input)/100000)+AX10*IF(Premium_Input>200000,(Premium_Input-200000)/100000,0))*IF(JointLife_Ind=1,(1+AV10),1)*(VLOOKUP(Payout_Mode,'Modal Factors'!$C$4:$D$7,2,0))*IF(OR(Input!$D$22="Yes",Input!$D$23="Yes"),Bonus_SP,1)/VLOOKUP(Payout_Mode,$X$3:$Z$6,3,0)) -> 413544.45 | AZ10: =IF(Request=1,Premium_Input,((((AY10*VLOOKUP(Payout_Mode,$X$3:$Z$6,3,0))/(VLOOKUP(Payout_Mode,'Modal Factors'!$C$4:$D$7,2,0))/(IF(OR(Input!$D$22="Yes",Input!$D$23="Yes"),Bonus_SP,1)))/IF(JointLife_Ind=0,1,(1+$AV10)))-(200000*AW10)/100000)/(AX10/100000)+200000) -> 5000000 | BA10: =IF(Request=1,Premium_Input,((((AY10*VLOOKUP(Payout_Mode,$X$3:$Z$6,3,0))/(VLOOKUP(Payout_Mode,'Modal Factors'!$C$4:$D$7,2,0))/(IF(OR(Input!$D$22="Yes",Input!$D$23="Yes"),Bonus_SP,1)))/IF(JointLife_Ind=0,1,(1+$AV10)))/(AW10/100000))) -> 5000000 | BB10: =IF(AZ10>200000,AZ10,BA10) -> 5000000 | BC10: =(((($L$14*VLOOKUP(Payout_Mode,$X$3:$Z$6,3,0))/(VLOOKUP(Payout_Mode,'Modal Factors'!$C$4:$D$7,2,0))/(IF(OR(Input!$D$22="Yes",Input!$D$23="Yes"),Bonus_SP,1)))/IF(JointLife_Ind=0,1,(1+AV10)))-(200000*AW10)/100000)/(AX10/100000)+200000 -> 153399.939 | BD10: =(((($L$14*VLOOKUP(Payout_Mode,$X$3:$Z$6,3,0))/(VLOOKUP(Payout_Mode,'Modal Factors'!$C$4:$D$7,2,0))/(IF(OR(Input!$D$22="Yes",Input!$D$23="Yes"),Bonus_SP,1)))/IF(JointLife_Ind=0,1,(1+AV10)))/(AW10/100000)) -> 151315.9761 | BE10: 151315.9761 | BF10: =MAX((AW10*150000/100000)*IF(JointLife_Ind=1,(1+AV10),1)*(VLOOKUP(Payout_Mode,'Modal Factors'!$C$4:$D$7,2,0))*IF(OR(Input!$D$22="Yes",Input!$D$23="Yes"),Bonus_SP,1)/VLOOKUP(Payout_Mode,$X$3:$Z$6,3,0), IF(Payout_Mode=1,12000,IF(Payout_Mode=2,6000,IF(Payout_Mode=3,3000,1000)))) -> 12000 | BH10: =IF(OR(Age_1>90,AND(Calculator!$E$22="Joint Life", Age_2>90)),"Maximum entry age is 90 years","") ->  | BI10: =IF(Request=2, IF(Annuity_Input<Check!BF10,"Minimum Annuity amount should be "&ROUNDUP(BF10,0),""),"") -> 
A11: Annuity Input | B11: =IF(Request=1,L11,Input!D15) -> 12000 | L11: =MAX(IF(Payout_Mode=1,12000,IF(Payout_Mode=2,6000,IF(Payout_Mode=3,3000,1000))),B41) -> 12000 | M11: No Maximum | P11: 9 | Q11: Under Option 9, 8 Pay, only Deferment 8,9 and 10 are allowed. Please select a lower Deferment period | T11: Option 9 - Deferred Life Annuity with Return of Purchase Price | U11: 9 | AE11: 9 | AF11: Option 9 - Deferred Life Annuity with Return of Purchase Price | AH11: 3 | AI11: Option 3 - Life Annuity with return of Balance of Purchase Price | AJ11: Increasing | AK11: 0.03 | AN11: 1 | AP11: 1 | AQ11: 'Single Life'!$B$9:$M$110 | AS11: 12 | AT11: 'Single Life'!$B$116:$M$217 | AV11: =IF($D$12=0,0,VLOOKUP(Age_1,'Joint Life Factors'!$A$9:$L$12,MATCH(1,'Joint Life Factors'!$D$5:$L$5,0)+3,TRUE)) -> 0 | AW11: =IF($D$12=0,VLOOKUP(IF(AND(Gender=2,$D$7<>6,$D$7<>7),MAX(Age_1-3,0),Age_1),IF(AND(Gender=2,OR($D$7=6,$D$7=7)),INDIRECT($AR11),INDIRECT($AQ11)),$AS11,0),VLOOKUP(IF(Age_1=$D$4,IF(OR(Gender=2,$D$6=2),MAX(Age_1-3,0),Age_1),IF(Age_1<Age_2,IF(Gender=2,MAX(Age_1-3,0),Age_1),IF($D$6=2,MAX(Age_2-3,0),Age_2))),INDIRECT($AQ11),$AS11,0)) -> 5873 | AX11: =IF($D$12=0,VLOOKUP(IF(AND(Gender=2,$D$7<>6,$D$7<>7),MAX(Age_1-3,0),Age_1),IF(AND(Gender=2,OR($D$7=6,$D$7=7)),INDIRECT($AU11),INDIRECT($AT11)),$AS11,0),VLOOKUP(IF(Age_1=$D$4,IF(OR(Gender=2,$D$6=2),MAX(Age_1-3,0),Age_1),IF(Age_1<Age_2,IF(Gender=2,MAX(Age_1-3,0),Age_1),IF($D$6=2,MAX(Age_2-3,0),Age_2))),INDIRECT($AT11),$AS11,0)) -> 6138 | AY11: =IF(Request=2,Annuity_Input,((AW11*MIN(200000,Premium_Input)/100000)+AX11*IF(Premium_Input>200000,(Premium_Input-200000)/100000,0))*IF(JointLife_Ind=1,(1+AV11),1)*(VLOOKUP(Payout_Mode,'Modal Factors'!$C$4:$D$7,2,0))*IF(OR(Input!$D$22="Yes",Input!$D$23="Yes"),Bonus_SP,1)/VLOOKUP(Payout_Mode,$X$3:$Z$6,3,0)) -> 314029.25 | BC11: =(((($L$14*VLOOKUP(Payout_Mode,$X$3:$Z$6,3,0))/(VLOOKUP(Payout_Mode,'Modal Factors'!$C$4:$D$7,2,0))/(IF(OR(Input!$D$22="Yes",Input!$D$23="Yes"),Bonus_SP,1)))/IF(JointLife_Ind=0,1,(1+AV11)))-(200000*AW11)/100000)/(AX11/100000)+200000 -> 199369.7796 | BD11: =(((($L$14*VLOOKUP(Payout_Mode,$X$3:$Z$6,3,0))/(VLOOKUP(Payout_Mode,'Modal Factors'!$C$4:$D$7,2,0))/(IF(OR(Input!$D$22="Yes",Input!$D$23="Yes"),Bonus_SP,1)))/IF(JointLife_Ind=0,1,(1+AV11)))/(AW11/100000)) -> 199341.343 | BE11: 199341.343 | BF11: =MAX((AW11*150000/100000)*IF(JointLife_Ind=1,(1+AV11),1)*(VLOOKUP(Payout_Mode,'Modal Factors'!$C$4:$D$7,2,0))*IF(OR(Input!$D$22="Yes",Input!$D$23="Yes"),Bonus_SP,1)/VLOOKUP(Payout_Mode,$X$3:$Z$6,3,0), IF(Payout_Mode=1,12000,IF(Payout_Mode=2,6000,IF(Payout_Mode=3,3000,1000)))) -> 12000 | BH11: =IF(OR(Age_1>90,AND(Calculator!$E$22="Joint Life", Age_2>90)),"Maximum entry age is 90 years","") ->  | BI11: =IF(Request=2, IF(Annuity_Input<Check!BF11,"Minimum Annuity amount should be "&ROUNDUP(BF11,0),""),"") -> 
A12: Joint Life Indicator | B12: =IF(OR(Annuity_Option=4,Annuity_Option=8),1,IF(AND(OR(Annuity_Option=1,Annuity_Option=5,Annuity_Option=9,Annuity_Option=10),Input!D16="Joint Life"),1,0)) -> 1 | C12: =IF(OR(C7=4,C7=8),1,IF(AND(OR(C7=1,C7=5,C7=9,C7=10),Input!D16="Joint Life"),1,0)) -> 0 | D12: =IF(OR(D7=4,D7=8),1,IF(AND(OR(D7=1,D7=5,D7=9,D7=10),Input!D16="Joint Life"),1,0)) -> 0 | E12: =IF(OR(E7=4,E7=8),1,IF(AND(OR(E7=1,E7=5,E7=9,E7=10),Input!D16="Joint Life"),1,0)) -> 1 | F12: =IF(OR(F7=4,F7=8),1,IF(AND(OR(F7=1,F7=5,F7=9,F7=10),Input!D16="Joint Life"),1,0)) -> 1 | G12: =IF(OR(G7=4,G7=8),1,IF(AND(OR(G7=1,G7=5,G7=9,G7=10),Input!ID6="Joint Life"),1,0)) -> 0 | H12: =IF(OR(H7=4,H7=8),1,IF(AND(OR(H7=1,H7=5,H7=9,H7=10),Input!D16="Joint Life"),1,0)) -> 0 | I12: =IF(OR(I7=4,I7=8),1,IF(AND(OR(I7=1,I7=5,I7=9,I7=10),Input!D16="Joint Life"),1,0)) -> 1 | J12: =IF(OR(J7=4,J7=8),1,IF(AND(OR(J7=1,J7=5,J7=9,J7=10),Input!D16="Joint Life"),1,0)) -> 1 | L12: 1 | M12: 4 | P12: 10 | Q12: Under Option 9, 9 Pay, only Deferment 9 and 10 are allowed. Please select a lower Deferment period | T12: Option 10 - NPS - Family Income | U12: 10 | AE12: 10 | AF12: Option 10 - NPS - Family Income | AH12: 3 | AI12: Option 3 - Life Annuity with return of Balance of Purchase Price | AJ12: Increasing | AK12: 0.05 | AN12: 1 | AP12: 1 | AQ12: 'Single Life'!$B$9:$N$110 | AS12: 13 | AT12: 'Single Life'!$B$116:$N$217 | AV12: =IF($D$12=0,0,VLOOKUP(Age_1,'Joint Life Factors'!$A$9:$L$12,MATCH(1,'Joint Life Factors'!$D$5:$L$5,0)+3,TRUE)) -> 0 | AW12: =IF($D$12=0,VLOOKUP(IF(AND(Gender=2,$D$7<>6,$D$7<>7),MAX(Age_1-3,0),Age_1),IF(AND(Gender=2,OR($D$7=6,$D$7=7)),INDIRECT($AR12),INDIRECT($AQ12)),$AS12,0),VLOOKUP(IF(Age_1=$D$4,IF(OR(Gender=2,$D$6=2),MAX(Age_1-3,0),Age_1),IF(Age_1<Age_2,IF(Gender=2,MAX(Age_1-3,0),Age_1),IF($D$6=2,MAX(Age_2-3,0),Age_2))),INDIRECT($AQ12),$AS12,0)) -> 5059 | AX12: =IF($D$12=0,VLOOKUP(IF(AND(Gender=2,$D$7<>6,$D$7<>7),MAX(Age_1-3,0),Age_1),IF(AND(Gender=2,OR($D$7=6,$D$7=7)),INDIRECT($AU12),INDIRECT($AT12)),$AS12,0),VLOOKUP(IF(Age_1=$D$4,IF(OR(Gender=2,$D$6=2),MAX(Age_1-3,0),Age_1),IF(Age_1<Age_2,IF(Gender=2,MAX(Age_1-3,0),Age_1),IF($D$6=2,MAX(Age_2-3,0),Age_2))),INDIRECT($AT12),$AS12,0)) -> 5288 | AY12: =IF(Request=2,Annuity_Input,((AW12*MIN(200000,Premium_Input)/100000)+AX12*IF(Premium_Input>200000,(Premium_Input-200000)/100000,0))*IF(JointLife_Ind=1,(1+AV12),1)*(VLOOKUP(Payout_Mode,'Modal Factors'!$C$4:$D$7,2,0))*IF(OR(Input!$D$22="Yes",Input!$D$23="Yes"),Bonus_SP,1)/VLOOKUP(Payout_Mode,$X$3:$Z$6,3,0)) -> 270540.55 | BC12: =(((($L$14*VLOOKUP(Payout_Mode,$X$3:$Z$6,3,0))/(VLOOKUP(Payout_Mode,'Modal Factors'!$C$4:$D$7,2,0))/(IF(OR(Input!$D$22="Yes",Input!$D$23="Yes"),Bonus_SP,1)))/IF(JointLife_Ind=0,1,(1+AV12)))-(200000*AW12)/100000)/(AX12/100000)+200000 -> 230055.164 | BD12: =(((($L$14*VLOOKUP(Payout_Mode,$X$3:$Z$6,3,0))/(VLOOKUP(Payout_Mode,'Modal Factors'!$C$4:$D$7,2,0))/(IF(OR(Input!$D$22="Yes",Input!$D$23="Yes"),Bonus_SP,1)))/IF(JointLife_Ind=0,1,(1+AV12)))/(AW12/100000)) -> 231415.6369 | BE12: 230055.164 | BF12: =MAX((AW12*150000/100000)*IF(JointLife_Ind=1,(1+AV12),1)*(VLOOKUP(Payout_Mode,'Modal Factors'!$C$4:$D$7,2,0))*IF(OR(Input!$D$22="Yes",Input!$D$23="Yes"),Bonus_SP,1)/VLOOKUP(Payout_Mode,$X$3:$Z$6,3,0), IF(Payout_Mode=1,12000,IF(Payout_Mode=2,6000,IF(Payout_Mode=3,3000,1000)))) -> 12000 | BH12: =IF(OR(Age_1>90,AND(Calculator!$E$22="Joint Life", Age_2>90)),"Maximum entry age is 90 years","") ->  | BI12: =IF(Request=2, IF(Annuity_Input<Check!BF12,"Minimum Annuity amount should be "&ROUNDUP(BF12,0),""),"") -> 
A13: Enhanced Annuity (SP) | B13: =IF(AND(OR(Input!D22="Yes",Input!D23="Yes"),Input!G12="Individual"),1.02,IF(AND(Input!D23="Yes",Input!G12="Group"),1.025,0)) -> 1.025 | L13: 0 | M13: 1 | P13: 11 | Q13: Under Option 9, 10 Pay, only Deferment 10 and 11 are allowed. Please select a lower Deferment period | AH13: 4 | AI13: Option 4 - Life Annuity with 50% Annuity payable to Secondary Annuitant on death of Primary Annuitant | AN13: 1 | AP13: 1 | AQ13: =AQ3 -> 'Single Life'!$B$9:$E$110 | AS13: =AS3 -> 4 | AT13: =AT3 -> 'Single Life'!$B$116:$E$217 | AV13: =IF($E$12=0,0,VLOOKUP(Age_1,'Joint Life Factors'!$A$9:$L$12,7,TRUE)) -> -0.03 | AW13: =IF($E$12=0,VLOOKUP(IF(AND(Gender=2,$E$7<>6,$E$7<>7),MAX(Age_1-3,0),Age_1),IF(AND(Gender=2,OR($E$7=6,$E$7=7)),INDIRECT($AR13),INDIRECT($AQ13)),$AS13,0),VLOOKUP(IF(Age_1=$E$4,IF(OR(Gender=2,$E$6=2),MAX(Age_1-3,0),Age_1),IF(Age_1<$E$4,IF(Gender=2,MAX(Age_1-3,0),Age_1),IF($E$6=2,MAX($E$4-3,0),$E$4))),INDIRECT($AQ13),$AS13,0)) -> 8088 | AX13: =IF($E$12=0,VLOOKUP(IF(AND(Gender=2,$E$7<>6,$E$7<>7),MAX(Age_1-3,0),Age_1),IF(AND(Gender=2,OR($E$7=6,$E$7=7)),INDIRECT($AU13),INDIRECT($AT13)),$AS13,0),VLOOKUP(IF(Age_1=$E$4,IF(OR(Gender=2,$E$6=2),MAX(Age_1-3,0),Age_1),IF(Age_1<$E$4,IF(Gender=2,MAX(Age_1-3,0),Age_1),IF($E$6=2,MAX($E$4-3,0),$E$4))),INDIRECT($AT13),$AS13,0)) -> 8415 | AY13: =IF(Request=2,Annuity_Input,((AW13*MIN(200000,Premium_Input)/100000)+AX13*IF(Premium_Input>200000,(Premium_Input-200000)/100000,0))*IF(JointLife_Ind=1,(1+AV13),1)*(VLOOKUP(Payout_Mode,'Modal Factors'!$C$4:$D$7,2,0))*IF(OR(Input!$D$22="Yes",Input!$D$23="Yes"),Bonus_SP,1)/VLOOKUP(Payout_Mode,$X$3:$Z$6,3,0)) -> 417680.448 | AZ13: =IF(Request=1,Premium_Input,((((AY13*VLOOKUP(Payout_Mode,$X$3:$Z$6,3,0))/(VLOOKUP(Payout_Mode,'Modal Factors'!$C$4:$D$7,2,0))/(IF(OR(Input!$D$22="Yes",Input!$D$23="Yes"),Bonus_SP,1)))/IF(JointLife_Ind=0,1,(1+$AV13)))-(200000*AW13)/100000)/(AX13/100000)+200000) -> 5000000 | BA13: =IF(Request=1,Premium_Input,((((AY13*VLOOKUP(Payout_Mode,$X$3:$Z$6,3,0))/(VLOOKUP(Payout_Mode,'Modal Factors'!$C$4:$D$7,2,0))/(IF(OR(Input!$D$22="Yes",Input!$D$23="Yes"),Bonus_SP,1)))/IF(JointLife_Ind=0,1,(1+$AV13)))/(AW13/100000))) -> 5000000 | BB13: =IF(AZ13>200000,AZ13,BA13) -> 5000000 | BC13: =(((($L$14*VLOOKUP(Payout_Mode,$X$3:$Z$6,3,0))/(VLOOKUP(Payout_Mode,'Modal Factors'!$C$4:$D$7,2,0))/(IF(OR(Input!$D$22="Yes",Input!$D$23="Yes"),Bonus_SP,1)))/IF(JointLife_Ind=0,1,(1+AV13)))-(200000*AW13)/100000)/(AX13/100000)+200000 -> 151199.038 | BD13: =(((($L$14*VLOOKUP(Payout_Mode,$X$3:$Z$6,3,0))/(VLOOKUP(Payout_Mode,'Modal Factors'!$C$4:$D$7,2,0))/(IF(OR(Input!$D$22="Yes",Input!$D$23="Yes"),Bonus_SP,1)))/IF(JointLife_Ind=0,1,(1+AV13)))/(AW13/100000)) -> 149226.002 | BE13: 150000 | BF13: =MAX((AW13*150000/100000)*IF(JointLife_Ind=1,(1+AV13),1)*(VLOOKUP(Payout_Mode,'Modal Factors'!$C$4:$D$7,2,0))*IF(OR(Input!$D$22="Yes",Input!$D$23="Yes"),Bonus_SP,1)/VLOOKUP(Payout_Mode,$X$3:$Z$6,3,0), IF(Payout_Mode=1,12000,IF(Payout_Mode=2,6000,IF(Payout_Mode=3,3000,1000)))) -> 12062.241 | BH13: =IF(OR(Age_1>90,AND(Calculator!$E$22="Joint Life", Age_2>90)),"Maximum entry age is 90 years","") ->  | BI13: =IF(Request=2, IF(Annuity_Input<Check!BF13,"Minimum Annuity amount should be "&ROUNDUP(BF13,0),""),"") -> 
A14: Enhanced Annuity (LP) | B14: =IF(AND(OR(Input!D22="Yes",Input!D23="Yes"),Input!G12="Individual"),1.03,IF(AND(Input!D23="Yes",Input!G12="Group"),1.035,0)) -> 1.035 | L14: =IF(Payout_Mode=1,12000,IF(Payout_Mode=2,6000,IF(Payout_Mode=3,3000,1000))) -> 12000 | P14: 12 | Q14: =IF(Request=2,"Under Option 9 for Premium Payment Term 8, 9 and 10, Minimum Annual Premium is Rs 1,00,000. Please input a higher Annuity.","Under Option 9 for Premium Payment Term 8, 9 and 10, Minimum Annual Premium is Rs 1,00,000. Please input a higher Annual Premium.") -> Under Option 9 for Premium Payment Term 8, 9 and 10, Minimum Annual Premium is Rs 1,00,000. Please input a higher Annual Premium. | AH14: 5 | AI14: Option 5 - Life Annuity with Return of Purchase Price | AM14: 1 | AN14: 1 | AP14: 1 | AQ14: 'Single Life'!$B$9:$O$110 | AS14: 14 | AT14: 'Single Life'!$B$116:$O$217 | AV14: =IF($F$12=0,0,VLOOKUP(Age_1,'Joint Life Factors'!$A$9:$L$12,8,TRUE)) -> 0.03 | AW14: =IF($F$12=0,VLOOKUP(IF(AND(Gender=2,$F$7<>6,$F$7<>7),MAX(Age_1-3,0),Age_1),IF(AND(Gender=2,OR($F$7=6,$F$7=7)),INDIRECT($AR14),INDIRECT($AQ14)),$AS14,0),VLOOKUP(IF(Age_1=$F$4,IF(OR(Gender=2,$F$6=2),MAX(Age_1-3,0),Age_1),IF(Age_1<Age_2,IF(Gender=2,MAX(Age_1-3,0),Age_1),IF($F$6=2,MAX(Age_2-3,0),Age_2))),INDIRECT($AQ14),$AS14,0)) -> 6486 | AX14: =IF($F$12=0,VLOOKUP(IF(AND(Gender=2,$F$7<>6,$F$7<>7),MAX(Age_1-3,0),Age_1),IF(AND(Gender=2,OR($F$7=6,$F$7=7)),INDIRECT($AU14),INDIRECT($AT14)),$AS14,0),VLOOKUP(IF(Age_1=$F$4,IF(OR(Gender=2,$F$6=2),MAX(Age_1-3,0),Age_1),IF(Age_1<Age_2,IF(Gender=2,MAX(Age_1-3,0),Age_1),IF($F$6=2,MAX(Age_2-3,0),Age_2))),INDIRECT($AT14),$AS14,0)) -> 6812 | AY14: =IF(Request=2,Annuity_Input,((AW14*MIN(200000,Premium_Input)/100000)+AX14*IF(Premium_Input>200000,(Premium_Input-200000)/100000,0))*IF(JointLife_Ind=1,(1+AV14),1)*(VLOOKUP(Payout_Mode,'Modal Factors'!$C$4:$D$7,2,0))*IF(OR(Input!$D$22="Yes",Input!$D$23="Yes"),Bonus_SP,1)/VLOOKUP(Payout_Mode,$X$3:$Z$6,3,0)) -> 358900.101 | AZ14: =IF(Request=1,Premium_Input,((((AY14*VLOOKUP(Payout_Mode,$X$3:$Z$6,3,0))/(VLOOKUP(Payout_Mode,'Modal Factors'!$C$4:$D$7,2,0))/(IF(OR(Input!$D$22="Yes",Input!$D$23="Yes"),Bonus_SP,1)))/IF(JointLife_Ind=0,1,(1+$AV14)))-(200000*AW14)/100000)/(AX14/100000)+200000) -> 5000000 | BA14: =IF(Request=1,Premium_Input,((((AY14*VLOOKUP(Payout_Mode,$X$3:$Z$6,3,0))/(VLOOKUP(Payout_Mode,'Modal Factors'!$C$4:$D$7,2,0))/(IF(OR(Input!$D$22="Yes",Input!$D$23="Yes"),Bonus_SP,1)))/IF(JointLife_Ind=0,1,(1+$AV14)))/(AW14/100000))) -> 5000000 | BB14: =IF(AZ14>200000,AZ14,BA14) -> 5000000 | BC14: =(((($L$14*VLOOKUP(Payout_Mode,$X$3:$Z$6,3,0))/(VLOOKUP(Payout_Mode,'Modal Factors'!$C$4:$D$7,2,0))/(IF(OR(Input!$D$22="Yes",Input!$D$23="Yes"),Bonus_SP,1)))/IF(JointLife_Ind=0,1,(1+AV14)))-(200000*AW14)/100000)/(AX14/100000)+200000 -> 176428.7618 | BD14: =(((($L$14*VLOOKUP(Payout_Mode,$X$3:$Z$6,3,0))/(VLOOKUP(Payout_Mode,'Modal Factors'!$C$4:$D$7,2,0))/(IF(OR(Input!$D$22="Yes",Input!$D$23="Yes"),Bonus_SP,1)))/IF(JointLife_Ind=0,1,(1+AV14)))/(AW14/100000)) -> 175244.0218 | BE14: 175244.0218 | BF14: =MAX((AW14*150000/100000)*IF(JointLife_Ind=1,(1+AV14),1)*(VLOOKUP(Payout_Mode,'Modal Factors'!$C$4:$D$7,2,0))*IF(OR(Input!$D$22="Yes",Input!$D$23="Yes"),Bonus_SP,1)/VLOOKUP(Payout_Mode,$X$3:$Z$6,3,0), IF(Payout_Mode=1,12000,IF(Payout_Mode=2,6000,IF(Payout_Mode=3,3000,1000)))) -> 12000 | BH14: =IF(OR(Age_1>90,AND(Calculator!$E$22="Joint Life", Age_2>90)),"Maximum entry age is 90 years","") ->  | BI14: =IF(Request=2, IF(Annuity_Input<Check!BF14,"Minimum Annuity amount should be "&ROUNDUP(BF14,0),""),"") -> 
A15: Service Tax | B15: =B29*0 -> 0 | AH15: 5 | AI15: Option 5 - Life Annuity with Return of Purchase Price | AM15: 0.75 | AN15: 1 | AP15: 1 | AQ15: 'Single Life'!$B$9:$P$110 | AS15: 15 | AT15: 'Single Life'!$B$116:$P$217 | AV15: =IF($F$12=0,0,VLOOKUP(Age_1,'Joint Life Factors'!$A$9:$L$12,9,TRUE)) -> -0.01 | AW15: =IF($F$12=0,VLOOKUP(IF(AND(Gender=2,$F$7<>6,$F$7<>7),MAX(Age_1-3,0),Age_1),IF(AND(Gender=2,OR($F$7=6,$F$7=7)),INDIRECT($AR15),INDIRECT($AQ15)),$AS15,0),VLOOKUP(IF(Age_1=$F$4,IF(OR(Gender=2,$F$6=2),MAX(Age_1-3,0),Age_1),IF(Age_1<Age_2,IF(Gender=2,MAX(Age_1-3,0),Age_1),IF($F$6=2,MAX(Age_2-3,0),Age_2))),INDIRECT($AQ15),$AS15,0)) -> 6889 | AX15: =IF($F$12=0,VLOOKUP(IF(AND(Gender=2,$F$7<>6,$F$7<>7),MAX(Age_1-3,0),Age_1),IF(AND(Gender=2,OR($F$7=6,$F$7=7)),INDIRECT($AU15),INDIRECT($AT15)),$AS15,0),VLOOKUP(IF(Age_1=$F$4,IF(OR(Gender=2,$F$6=2),MAX(Age_1-3,0),Age_1),IF(Age_1<Age_2,IF(Gender=2,MAX(Age_1-3,0),Age_1),IF($F$6=2,MAX(Age_2-3,0),Age_2))),INDIRECT($AT15),$AS15,0)) -> 7187 | AY15: =IF(Request=2,Annuity_Input,((AW15*MIN(200000,Premium_Input)/100000)+AX15*IF(Premium_Input>200000,(Premium_Input-200000)/100000,0))*IF(JointLife_Ind=1,(1+AV15),1)*(VLOOKUP(Payout_Mode,'Modal Factors'!$C$4:$D$7,2,0))*IF(OR(Input!$D$22="Yes",Input!$D$23="Yes"),Bonus_SP,1)/VLOOKUP(Payout_Mode,$X$3:$Z$6,3,0)) -> 364045.6215 | BC15: =(((($L$14*VLOOKUP(Payout_Mode,$X$3:$Z$6,3,0))/(VLOOKUP(Payout_Mode,'Modal Factors'!$C$4:$D$7,2,0))/(IF(OR(Input!$D$22="Yes",Input!$D$23="Yes"),Bonus_SP,1)))/IF(JointLife_Ind=0,1,(1+AV15)))-(200000*AW15)/100000)/(AX15/100000)+200000 -> 172833.9057 | BD15: =(((($L$14*VLOOKUP(Payout_Mode,$X$3:$Z$6,3,0))/(VLOOKUP(Payout_Mode,'Modal Factors'!$C$4:$D$7,2,0))/(IF(OR(Input!$D$22="Yes",Input!$D$23="Yes"),Bonus_SP,1)))/IF(JointLife_Ind=0,1,(1+AV15)))/(AW15/100000)) -> 171658.772 | BE15: 171658.772 | BF15: =MAX((AW15*150000/100000)*IF(JointLife_Ind=1,(1+AV15),1)*(VLOOKUP(Payout_Mode,'Modal Factors'!$C$4:$D$7,2,0))*IF(OR(Input!$D$22="Yes",Input!$D$23="Yes"),Bonus_SP,1)/VLOOKUP(Payout_Mode,$X$3:$Z$6,3,0), IF(Payout_Mode=1,12000,IF(Payout_Mode=2,6000,IF(Payout_Mode=3,3000,1000)))) -> 12000 | BH15: =IF(OR(Age_1>90,AND(Calculator!$E$22="Joint Life", Age_2>90)),"Maximum entry age is 90 years","") ->  | BI15: =IF(Request=2, IF(Annuity_Input<Check!BF15,"Minimum Annuity amount should be "&ROUNDUP(BF15,0),""),"") -> 
A16: Joint Life Factor | B16: =IF(B12=0,0,VLOOKUP(Age_1,'Joint Life Factors'!$A$9:$L$12,MATCH(1,'Joint Life Factors'!$D$5:$L$5,0)+3,TRUE)) -> -0.09 | AH16: 5 | AI16: Option 5 - Life Annuity with Return of Purchase Price | AM16: 0.5 | AN16: 1 | AP16: 1 | AQ16: 'Single Life'!$B$9:$Q$110 | AS16: 16 | AT16: 'Single Life'!$B$116:$Q$217 | AV16: =IF($F$12=0,0,VLOOKUP(Age_1,'Joint Life Factors'!$A$9:$L$12,10,TRUE)) -> -0.04 | AW16: =IF($F$12=0,VLOOKUP(IF(AND(Gender=2,$F$7<>6,$F$7<>7),MAX(Age_1-3,0),Age_1),IF(AND(Gender=2,OR($F$7=6,$F$7=7)),INDIRECT($AR16),INDIRECT($AQ16)),$AS16,0),VLOOKUP(IF(Age_1=$F$4,IF(OR(Gender=2,$F$6=2),MAX(Age_1-3,0),Age_1),IF(Age_1<Age_2,IF(Gender=2,MAX(Age_1-3,0),Age_1),IF($F$6=2,MAX(Age_2-3,0),Age_2))),INDIRECT($AQ16),$AS16,0)) -> 7521 | AX16: =IF($F$12=0,VLOOKUP(IF(AND(Gender=2,$F$7<>6,$F$7<>7),MAX(Age_1-3,0),Age_1),IF(AND(Gender=2,OR($F$7=6,$F$7=7)),INDIRECT($AU16),INDIRECT($AT16)),$AS16,0),VLOOKUP(IF(Age_1=$F$4,IF(OR(Gender=2,$F$6=2),MAX(Age_1-3,0),Age_1),IF(Age_1<Age_2,IF(Gender=2,MAX(Age_1-3,0),Age_1),IF($F$6=2,MAX(Age_2-3,0),Age_2))),INDIRECT($AT16),$AS16,0)) -> 7840 | AY16: =IF(Request=2,Annuity_Input,((AW16*MIN(200000,Premium_Input)/100000)+AX16*IF(Premium_Input>200000,(Premium_Input-200000)/100000,0))*IF(JointLife_Ind=1,(1+AV16),1)*(VLOOKUP(Payout_Mode,'Modal Factors'!$C$4:$D$7,2,0))*IF(OR(Input!$D$22="Yes",Input!$D$23="Yes"),Bonus_SP,1)/VLOOKUP(Payout_Mode,$X$3:$Z$6,3,0)) -> 385100.208 | BC16: =(((($L$14*VLOOKUP(Payout_Mode,$X$3:$Z$6,3,0))/(VLOOKUP(Payout_Mode,'Modal Factors'!$C$4:$D$7,2,0))/(IF(OR(Input!$D$22="Yes",Input!$D$23="Yes"),Bonus_SP,1)))/IF(JointLife_Ind=0,1,(1+AV16)))-(200000*AW16)/100000)/(AX16/100000)+200000 -> 163687.78 | BD16: =(((($L$14*VLOOKUP(Payout_Mode,$X$3:$Z$6,3,0))/(VLOOKUP(Payout_Mode,'Modal Factors'!$C$4:$D$7,2,0))/(IF(OR(Input!$D$22="Yes",Input!$D$23="Yes"),Bonus_SP,1)))/IF(JointLife_Ind=0,1,(1+AV16)))/(AW16/100000)) -> 162147.6127 | BE16: 162147.6127 | BF16: =MAX((AW16*150000/100000)*IF(JointLife_Ind=1,(1+AV16),1)*(VLOOKUP(Payout_Mode,'Modal Factors'!$C$4:$D$7,2,0))*IF(OR(Input!$D$22="Yes",Input!$D$23="Yes"),Bonus_SP,1)/VLOOKUP(Payout_Mode,$X$3:$Z$6,3,0), IF(Payout_Mode=1,12000,IF(Payout_Mode=2,6000,IF(Payout_Mode=3,3000,1000)))) -> 12000 | BH16: =IF(OR(Age_1>90,AND(Calculator!$E$22="Joint Life", Age_2>90)),"Maximum entry age is 90 years","") ->  | BI16: =IF(Request=2, IF(Annuity_Input<Check!BF16,"Minimum Annuity amount should be "&ROUNDUP(BF16,0),""),"") -> 
A17: Calculations | AH17: 6 | AI17: Option 6 - Life Annuity with enhanced Annuity on Critical Illness/ Accidental Permanent Disability and with Return of Purchase Price | AN17: 1 | AP17: 1 | AQ17: 'Single Life'!$AH$9:$AJ$100 | AR17: 'Single Life'!$AM$9:$AO$100 | AS17: 3 | AT17: 'Single Life'!$AH$116:$AJ$207 | AU17: 'Single Life'!$AM$116:$AO$207 | AV17: =IF($G$12=0,0,VLOOKUP(Age_1,'Joint Life Factors'!$A$9:$L$12,MATCH(G7,'Joint Life Factors'!$D$6:$L$6,0)+3,TRUE)) -> 0 | AW17: =IF($G$12=0,VLOOKUP(IF(AND(Gender=2,$G$7<>6,$G$7<>7),MAX(Age_1-3,0),Age_1),IF(AND(Gender=2,OR($G$7=6,$G$7=7)),INDIRECT($AR17),INDIRECT($AQ17)),$AS17,0),VLOOKUP(IF(Age_1=$G$4,IF(OR(Gender=2,$G$6=2),MAX(Age_1-3,0),Age_1),IF(Age_1<Age_2,IF(Gender=2,MAX(Age_1-3,0),Age_1),IF($G$6=2,MAX(Age_2-3,0),Age_2))),INDIRECT($AQ17),$AS17,0)) -> 4937 | AX17: =IF($G$12=0,VLOOKUP(IF(AND(Gender=2,$G$7<>6,$G$7<>7),MAX(Age_1-3,0),Age_1),IF(AND(Gender=2,OR($G$7=6,$G$7=7)),INDIRECT($AU17),INDIRECT($AT17)),$AS17,0),VLOOKUP(IF(Age_1=$G$4,IF(OR(Gender=2,$G$6=2),MAX(Age_1-3,0),Age_1),IF(Age_1<Age_2,IF(Gender=2,MAX(Age_1-3,0),Age_1),IF($G$6=2,MAX(Age_2-3,0),Age_2))),INDIRECT($AT17),$AS17,0)) -> 5201 | AY17: =IF(Request=2,Annuity_Input,((AW17*MIN(200000,Premium_Input)/100000)+AX17*IF(Premium_Input>200000,(Premium_Input-200000)/100000,0))*IF(JointLife_Ind=1,(1+AV17),1)*(VLOOKUP(Payout_Mode,'Modal Factors'!$C$4:$D$7,2,0))*IF(OR(Input!$D$22="Yes",Input!$D$23="Yes"),Bonus_SP,1)/VLOOKUP(Payout_Mode,$X$3:$Z$6,3,0)) -> 266010.05 | AZ17: =IF(Request=1,Premium_Input,((((AY17*VLOOKUP(Payout_Mode,$X$3:$Z$6,3,0))/(VLOOKUP(Payout_Mode,'Modal Factors'!$C$4:$D$7,2,0))/(IF(OR(Input!$D$22="Yes",Input!$D$23="Yes"),Bonus_SP,1)))/IF(JointLife_Ind=0,1,(1+$AV17)))-(200000*AW17)/100000)/(AX17/100000)+200000) -> 5000000 | BA17: =IF(Request=1,Premium_Input,((((AY17*VLOOKUP(Payout_Mode,$X$3:$Z$6,3,0))/(VLOOKUP(Payout_Mode,'Modal Factors'!$C$4:$D$7,2,0))/(IF(OR(Input!$D$22="Yes",Input!$D$23="Yes"),Bonus_SP,1)))/IF(JointLife_Ind=0,1,(1+$AV17)))/(AW17/100000))) -> 5000000 | BB17: =IF(AZ17>200000,AZ17,BA17) -> 5000000 | BC17: =(((($L$14*VLOOKUP(Payout_Mode,$X$3:$Z$6,3,0))/(VLOOKUP(Payout_Mode,'Modal Factors'!$C$4:$D$7,2,0))/(IF(OR(Input!$D$22="Yes",Input!$D$23="Yes"),Bonus_SP,1)))/IF(JointLife_Ind=0,1,(1+AV17)))-(200000*AW17)/100000)/(AX17/100000)+200000 -> 235249.3188 | BD17: =(((($L$14*VLOOKUP(Payout_Mode,$X$3:$Z$6,3,0))/(VLOOKUP(Payout_Mode,'Modal Factors'!$C$4:$D$7,2,0))/(IF(OR(Input!$D$22="Yes",Input!$D$23="Yes"),Bonus_SP,1)))/IF(JointLife_Ind=0,1,(1+AV17)))/(AW17/100000)) -> 237134.2328 | BE17: 235249.3188 | BF17: =MAX((AW17*150000/100000)*IF(JointLife_Ind=1,(1+AV17),1)*(VLOOKUP(Payout_Mode,'Modal Factors'!$C$4:$D$7,2,0))*IF(OR(Input!$D$22="Yes",Input!$D$23="Yes"),Bonus_SP,1)/VLOOKUP(Payout_Mode,$X$3:$Z$6,3,0), IF(Payout_Mode=1,12000,IF(Payout_Mode=2,6000,IF(Payout_Mode=3,3000,1000)))) -> 12000 | BG17: =IF(OR(Age_1<45, Age_2<45),"Minimum entry age is 45 years","") ->  | BH17: =IF(OR(Age_1>65, AND(Calculator!$E$22="Joint Life",Age_2>65)),"Maximum entry age is 65 years","") ->  | BI17: =IF(Request=2, IF(Annuity_Input<Check!BF17,"Minimum Annuity amount should be "&ROUNDUP(BF17,0),""),"") -> 
A18: Annuity Rate 1 | B18: =IF(JointLife_Ind=0,VLOOKUP(IF(AND(Gender=2,Annuity_Option<>6,Annuity_Option<>7),MAX(Age_1-3,0),Age_1),IF(AND(Gender=2,OR(Annuity_Option=6,Annuity_Option=7)),INDIRECT($AR$75),INDIRECT($AQ$75)),$AS$75,0),VLOOKUP(IF(Age_1=Age_2,IF(OR(Gender=2,B6=2),MAX(Age_1-3,0),Age_1),IF(Age_1<Age_2,IF(Gender=2,MAX(Age_1-3,0),Age_1),IF(B6=2,MAX(Age_2-3,0),Age_2))),INDIRECT($AQ$75),$AS$75,0)) -> 8088 | AH18: 7 | AI18: Option 7 - Life Annuity with Return of Purchase Price on attainment of Age 80 years | AN18: 1 | AP18: 1 | AQ18: 'Single Life'!$AH$9:$AK$100 | AR18: 'Single Life'!$AM$9:$AP$100 | AS18: 4 | AT18: 'Single Life'!$AH$116:$AK$207 | AU18: 'Single Life'!$AM$116:$AP$207 | AV18: =IF($H$12=0,0,VLOOKUP(Age_1,'Joint Life Factors'!$A$9:$L$12,MATCH(H7,'Joint Life Factors'!$D$6:$L$6,0)+3,TRUE)) -> 0 | AW18: =IF($H$12=0,VLOOKUP(IF(AND(Gender=2,$H$7<>6,$H$7<>7),MAX(Age_1-3,0),Age_1),IF(AND(Gender=2,OR($H$7=6,$H$7=7)),INDIRECT($AR18),INDIRECT($AQ18)),$AS18,0),VLOOKUP(IF(Age_1=$H$4,IF(OR(Gender=2,$H$6=2),MAX(Age_1-3,0),Age_1),IF(Age_1<Age_2,IF(Gender=2,MAX(Age_1-3,0),Age_1),IF($H$6=2,MAX(Age_2-3,0),Age_2))),INDIRECT($AQ18),$AS18,0)) -> 4774 | AX18: =IF($H$12=0,VLOOKUP(IF(AND(Gender=2,$H$7<>6,$H$7<>7),MAX(Age_1-3,0),Age_1),IF(AND(Gender=2,OR($H$7=6,$H$7=7)),INDIRECT($AU18),INDIRECT($AT18)),$AS18,0),VLOOKUP(IF(Age_1=$H$4,IF(OR(Gender=2,$H$6=2),MAX(Age_1-3,0),Age_1),IF(Age_1<Age_2,IF(Gender=2,MAX(Age_1-3,0),Age_1),IF($H$6=2,MAX(Age_2-3,0),Age_2))),INDIRECT($AT18),$AS18,0)) -> 5063 | AY18: =IF(Request=2,Annuity_Input,((AW18*MIN(200000,Premium_Input)/100000)+AX18*IF(Premium_Input>200000,(Premium_Input-200000)/100000,0))*IF(JointLife_Ind=1,(1+AV18),1)*(VLOOKUP(Payout_Mode,'Modal Factors'!$C$4:$D$7,2,0))*IF(OR(Input!$D$22="Yes",Input!$D$23="Yes"),Bonus_SP,1)/VLOOKUP(Payout_Mode,$X$3:$Z$6,3,0)) -> 258886.3 | AZ18: =IF(Request=1,Premium_Input,((((AY18*VLOOKUP(Payout_Mode,$X$3:$Z$6,3,0))/(VLOOKUP(Payout_Mode,'Modal Factors'!$C$4:$D$7,2,0))/(IF(OR(Input!$D$22="Yes",Input!$D$23="Yes"),Bonus_SP,1)))/IF(JointLife_Ind=0,1,(1+$AV18)))-(200000*AW18)/100000)/(AX18/100000)+200000) -> 5000000 | BA18: =IF(Request=1,Premium_Input,((((AY18*VLOOKUP(Payout_Mode,$X$3:$Z$6,3,0))/(VLOOKUP(Payout_Mode,'Modal Factors'!$C$4:$D$7,2,0))/(IF(OR(Input!$D$22="Yes",Input!$D$23="Yes"),Bonus_SP,1)))/IF(JointLife_Ind=0,1,(1+$AV18)))/(AW18/100000))) -> 5000000 | BB18: =IF(AZ18>200000,AZ18,BA18) -> 5000000 | BC18: =(((($L$14*VLOOKUP(Payout_Mode,$X$3:$Z$6,3,0))/(VLOOKUP(Payout_Mode,'Modal Factors'!$C$4:$D$7,2,0))/(IF(OR(Input!$D$22="Yes",Input!$D$23="Yes"),Bonus_SP,1)))/IF(JointLife_Ind=0,1,(1+AV18)))-(200000*AW18)/100000)/(AX18/100000)+200000 -> 242648.9645 | BD18: =(((($L$14*VLOOKUP(Payout_Mode,$X$3:$Z$6,3,0))/(VLOOKUP(Payout_Mode,'Modal Factors'!$C$4:$D$7,2,0))/(IF(OR(Input!$D$22="Yes",Input!$D$23="Yes"),Bonus_SP,1)))/IF(JointLife_Ind=0,1,(1+AV18)))/(AW18/100000)) -> 245230.7724 | BE18: 242648.9645 | BF18: =MAX((AW18*150000/100000)*IF(JointLife_Ind=1,(1+AV18),1)*(VLOOKUP(Payout_Mode,'Modal Factors'!$C$4:$D$7,2,0))*IF(OR(Input!$D$22="Yes",Input!$D$23="Yes"),Bonus_SP,1)/VLOOKUP(Payout_Mode,$X$3:$Z$6,3,0), IF(Payout_Mode=1,12000,IF(Payout_Mode=2,6000,IF(Payout_Mode=3,3000,1000)))) -> 12000 | BH18: =IF(OR(Age_1>65, AND(Calculator!$E$22="Joint Life",Age_2>65)),"Maximum entry age is 65 years","") ->  | BI18: =IF(Request=2, IF(Annuity_Input<Check!BF18,"Minimum Annuity amount should be "&ROUNDUP(BF18,0),""),"") -> 
A19: Annuity Rate 2 | B19: =IF(JointLife_Ind=0,VLOOKUP(IF(AND(Gender=2,Annuity_Option<>6,Annuity_Option<>7),MAX(Age_1-3,0),Age_1),IF(AND(Gender=2,OR(Annuity_Option=6,Annuity_Option=7)),INDIRECT($AU$75),INDIRECT($AT$75)),$AS$75,0),VLOOKUP(IF(Age_1=Age_2,IF(OR(Gender=2,B6=2),MAX(Age_1-3,0),Age_1),IF(Age_1<Age_2,IF(Gender=2,MAX(Age_1-3,0),Age_1),IF(B6=2,MAX(Age_2-3,0),Age_2))),INDIRECT($AT$75),$AS$75,0)) -> 8415 | AH19: 8 | AI19: Option 8 - Life Annuity with Partial Return of Purchase Price to survivor and balance to nominee. | AN19: 1 | AP19: 1 | AQ19: =AQ14 -> 'Single Life'!$B$9:$O$110 | AS19: =AS14 -> 14 | AT19: =AT14 -> 'Single Life'!$B$116:$O$217 | AV19: =IF($I$12=0,0,VLOOKUP(Age_1,'Joint Life Factors'!$A$9:$L$12,11,TRUE)) -> -0.1 | AW19: =IF($I$12=0,VLOOKUP(IF(AND(Gender=2,$I$7<>6,$I$7<>7),MAX(Age_1-3,0),Age_1),IF(AND(Gender=2,OR($I$7=6,$I$7=7)),INDIRECT($AR19),INDIRECT($AQ19)),$AS19,0),VLOOKUP(IF(Age_1=$I$4,IF(OR(Gender=2,$I$6=2),MAX(Age_1-3,0),Age_1),IF(Age_1<$I$4,IF(Gender=2,MAX(Age_1-3,0),Age_1),IF($I$6=2,MAX($I$4-3,0),$I$4))),INDIRECT($AQ19),$AS19,0)) -> 6486 | AX19: =IF($I$12=0,VLOOKUP(IF(AND(Gender=2,$I$7<>6,$I$7<>7),MAX(Age_1-3,0),Age_1),IF(AND(Gender=2,OR($I$7=6,$I$7=7)),INDIRECT($AU19),INDIRECT($AT19)),$AS19,0),VLOOKUP(IF(Age_1=$I$4,IF(OR(Gender=2,$I$6=2),MAX(Age_1-3,0),Age_1),IF(Age_1<$I$4,IF(Gender=2,MAX(Age_1-3,0),Age_1),IF($I$6=2,MAX($I$4-3,0),$I$4))),INDIRECT($AT19),$AS19,0)) -> 6812 | AY19: =IF(Request=2,Annuity_Input,((AW19*MIN(200000,Premium_Input)/100000)+AX19*IF(Premium_Input>200000,(Premium_Input-200000)/100000,0))*IF(JointLife_Ind=1,(1+AV19),1)*(VLOOKUP(Payout_Mode,'Modal Factors'!$C$4:$D$7,2,0))*IF(OR(Input!$D$22="Yes",Input!$D$23="Yes"),Bonus_SP,1)/VLOOKUP(Payout_Mode,$X$3:$Z$6,3,0)) -> 313602.03 | AZ19: =IF(Request=1,Premium_Input,((((AY19*VLOOKUP(Payout_Mode,$X$3:$Z$6,3,0))/(VLOOKUP(Payout_Mode,'Modal Factors'!$C$4:$D$7,2,0))/(IF(OR(Input!$D$22="Yes",Input!$D$23="Yes"),Bonus_SP,1)))/IF(JointLife_Ind=0,1,(1+$AV19)))-(200000*AW19)/100000)/(AX19/100000)+200000) -> 5000000 | BA19: =IF(Request=1,Premium_Input,((((AY19*VLOOKUP(Payout_Mode,$X$3:$Z$6,3,0))/(VLOOKUP(Payout_Mode,'Modal Factors'!$C$4:$D$7,2,0))/(IF(OR(Input!$D$22="Yes",Input!$D$23="Yes"),Bonus_SP,1)))/IF(JointLife_Ind=0,1,(1+$AV19)))/(AW19/100000))) -> 5000000 | BB19: =IF(AZ19>200000,AZ19,BA19) -> 5000000 | BC19: =(((($L$14*VLOOKUP(Payout_Mode,$X$3:$Z$6,3,0))/(VLOOKUP(Payout_Mode,'Modal Factors'!$C$4:$D$7,2,0))/(IF(OR(Input!$D$22="Yes",Input!$D$23="Yes"),Bonus_SP,1)))/IF(JointLife_Ind=0,1,(1+AV19)))-(200000*AW19)/100000)/(AX19/100000)+200000 -> 200530.3887 | BD19: =(((($L$14*VLOOKUP(Payout_Mode,$X$3:$Z$6,3,0))/(VLOOKUP(Payout_Mode,'Modal Factors'!$C$4:$D$7,2,0))/(IF(OR(Input!$D$22="Yes",Input!$D$23="Yes"),Bonus_SP,1)))/IF(JointLife_Ind=0,1,(1+AV19)))/(AW19/100000)) -> 200557.0472 | BE19: 200530.3887 | BF19: =MAX((AW19*150000/100000)*IF(JointLife_Ind=1,(1+AV19),1)*(VLOOKUP(Payout_Mode,'Modal Factors'!$C$4:$D$7,2,0))*IF(OR(Input!$D$22="Yes",Input!$D$23="Yes"),Bonus_SP,1)/VLOOKUP(Payout_Mode,$X$3:$Z$6,3,0), IF(Payout_Mode=1,12000,IF(Payout_Mode=2,6000,IF(Payout_Mode=3,3000,1000)))) -> 12000 | BH19: =IF(OR(Age_1>90,AND(Calculator!$E$22="Joint Life", Age_2>90)),"Maximum entry age is 90 years","") ->  | BI19: =IF(Request=2, IF(Annuity_Input<Check!BF19,"Minimum Annuity amount should be "&ROUNDUP(BF19,0),""),"") -> 
AH20: 9 | AI20: Option 9 - Deferred Life Annuity with Return of Purchase Price | AN20: 1 | AO20: 5 | AP20: 1 | AQ20: 'Single Life'!$B$9:$AF$110 | AS20: =16+AO20 -> 21 | AT20: 'Single Life'!$B$116:$AF$217 | AV20: =IF($J$12=0,0,VLOOKUP(Age_1,'Joint Life Factors'!$A$9:$L$12,12,TRUE)) -> 0.015 | AW20: =IF($J$12=0,VLOOKUP(IF(AND(Gender=2,$J$7<>6,$J$7<>7),MAX(Age_1-3,0),Age_1),IF(AND(Gender=2,OR($J$7=6,$J$7=7)),INDIRECT($AR20),INDIRECT($AQ20)),$AS20,0),VLOOKUP(IF(Age_1=$J$4,IF(OR(Gender=2,$J$6=2),MAX(Age_1-3,0),Age_1),IF(Age_1<Age_2,IF(Gender=2,MAX(Age_1-3,0),Age_1),IF($J$6=2,MAX(Age_2-3,0),Age_2))),INDIRECT($AQ20),$AS20,0)) -> 8993 | AX20: =IF($J$12=0,VLOOKUP(IF(AND(Gender=2,$J$7<>6,$J$7<>7),MAX(Age_1-3,0),Age_1),IF(AND(Gender=2,OR($J$7=6,$J$7=7)),INDIRECT($AU20),INDIRECT($AT20)),$AS20,0),VLOOKUP(IF(Age_1=$J$4,IF(OR(Gender=2,$J$6=2),MAX(Age_1-3,0),Age_1),IF(Age_1<Age_2,IF(Gender=2,MAX(Age_1-3,0),Age_1),IF($B$6=2,MAX(Age_2-3,0),Age_2))),INDIRECT($AT20),$AS20,0)) -> 9473 | AY20: =IF(Age_1+AO20>75,"NA",IF(Request=2,Annuity_Input,((AW20*MIN(200000,Premium_Input)/100000)+AX20*IF(Premium_Input>200000,(Premium_Input-200000)/100000,0))*IF(JointLife_Ind=1,(1+AV20),1)*(VLOOKUP(Payout_Mode,'Modal Factors'!$C$4:$D$7,2,0))*IF(OR(Input!$D$22="Yes",Input!$D$23="Yes"),Bonus_SP,1)/VLOOKUP(Payout_Mode,$X$3:$Z$6,3,0))) -> 491774.8587 | AZ20: =IF(Request=1,Premium_Input,((((AY20*VLOOKUP(Payout_Mode,$X$3:$Z$6,3,0))/(VLOOKUP(Payout_Mode,'Modal Factors'!$C$4:$D$7,2,0))/(IF(OR(Input!$D$22="Yes",Input!$D$23="Yes"),Bonus_SP,1)))/IF(JointLife_Ind=0,1,(1+$AV20)))-(200000*AW20)/100000)/(AX20/100000)+200000) -> 5000000 | BA20: =IF(Request=1,Premium_Input,((((AY20*VLOOKUP(Payout_Mode,$X$3:$Z$6,3,0))/(VLOOKUP(Payout_Mode,'Modal Factors'!$C$4:$D$7,2,0))/(IF(OR(Input!$D$22="Yes",Input!$D$23="Yes"),Bonus_SP,1)))/IF(JointLife_Ind=0,1,(1+$AV20)))/(AW20/100000))) -> 5000000 | BB20: =IF(Age_1+AO20>75,"NA",IF(AZ20>200000,AZ20,BA20)) -> 5000000 | BC20: =(((($L$14*VLOOKUP(Payout_Mode,$X$3:$Z$6,3,0))/(VLOOKUP(Payout_Mode,'Modal Factors'!$C$4:$D$7,2,0))/(IF(OR(Input!$D$22="Yes",Input!$D$23="Yes"),Bonus_SP,1)))/IF(JointLife_Ind=0,1,(1+AV20)))-(200000*AW20)/100000)/(AX20/100000)+200000 -> 131893.8302 | BD20: =(((($L$14*VLOOKUP(Payout_Mode,$X$3:$Z$6,3,0))/(VLOOKUP(Payout_Mode,'Modal Factors'!$C$4:$D$7,2,0))/(IF(OR(Input!$D$22="Yes",Input!$D$23="Yes"),Bonus_SP,1)))/IF(JointLife_Ind=0,1,(1+AV20)))/(AW20/100000)) -> 128258.6738 | BE20: 150000 | BF20: =MAX((AW20*150000/100000)*IF(JointLife_Ind=1,(1+AV20),1)*(VLOOKUP(Payout_Mode,'Modal Factors'!$C$4:$D$7,2,0))*IF(OR(Input!$D$22="Yes",Input!$D$23="Yes"),Bonus_SP,1)/VLOOKUP(Payout_Mode,$X$3:$Z$6,3,0), IF(Payout_Mode=1,12000,IF(Payout_Mode=2,6000,IF(Payout_Mode=3,3000,1000)))) -> 14034.13856 | BH20: =IF(OR(Age_1>75,AND(Calculator!$E$22="Joint Life",Age_2>75)),"Maximum entry age is 75 years","") ->  | BI20: =IF(Request=2, IF(Annuity_Input<Check!BF20,"Minimum Annuity amount should be "&ROUNDUP(BF20,0),""),"") -> 
A21: Modal Annuity Payable | B21: =IF(Request=2,Annuity_Input,((Annuity_Base*MIN(200000,Premium_Input)/100000)+B19*IF(Premium_Input>200000,(Premium_Input-200000)/100000,0))*IF(JointLife_Ind=1,(1+$B$16),1)*(VLOOKUP(Payout_Mode,'Modal Factors'!$C$4:$D$7,2,0))*IF(OR(AND(Input!D22="Yes",Input!G12="Individual"),Input!D23="Yes"),Bonus_SP,1)/VLOOKUP(Payout_Mode,$X$3:$Z$6,3,0)) -> 391844.544 | AH21: 9 | AI21: Option 9 - Deferred Life Annuity with Return of Purchase Price | AN21: 1 | AO21: 10 | AP21: 1 | AQ21: 'Single Life'!$B$9:$AF$110 | AS21: =16+AO21 -> 26 | AT21: 'Single Life'!$B$116:$AF$217 | AV21: =IF($J$12=0,0,VLOOKUP(Age_1,'Joint Life Factors'!$A$9:$L$12,12,TRUE)) -> 0.015 | AW21: 12596 | AX21: 13381 | AY21: =IF(Age_1+AO21>75,"NA",IF(Request=2,Annuity_Input,((AW21*MIN(200000,Premium_Input)/100000)+AX21*IF(Premium_Input>200000,(Premium_Input-200000)/100000,0))*IF(JointLife_Ind=1,(1+AV21),1)*(VLOOKUP(Payout_Mode,'Modal Factors'!$C$4:$D$7,2,0))*IF(OR(Input!$D$22="Yes",Input!$D$23="Yes"),Bonus_SP,1)/VLOOKUP(Payout_Mode,$X$3:$Z$6,3,0))) -> 694429.505 | AZ21: =IF(Request=1,Premium_Input,((((AY21*VLOOKUP(Payout_Mode,$X$3:$Z$6,3,0))/(VLOOKUP(Payout_Mode,'Modal Factors'!$C$4:$D$7,2,0))/(IF(OR(Input!$D$22="Yes",Input!$D$23="Yes"),Bonus_SP,1)))/IF(JointLife_Ind=0,1,(1+$AV21)))-(200000*AW21)/100000)/(AX21/100000)+200000) -> 5000000 | BA21: =IF(Request=1,Premium_Input,((((AY21*VLOOKUP(Payout_Mode,$X$3:$Z$6,3,0))/(VLOOKUP(Payout_Mode,'Modal Factors'!$C$4:$D$7,2,0))/(IF(OR(Input!$D$22="Yes",Input!$D$23="Yes"),Bonus_SP,1)))/IF(JointLife_Ind=0,1,(1+$AV21)))/(AW21/100000))) -> 5000000 | BB21: =IF(Age_1+AO21>75,"NA",IF(AZ21>200000,AZ21,BA21)) -> 5000000 | BC21: =(((($L$14*VLOOKUP(Payout_Mode,$X$3:$Z$6,3,0))/(VLOOKUP(Payout_Mode,'Modal Factors'!$C$4:$D$7,2,0))/(IF(OR(Input!$D$22="Yes",Input!$D$23="Yes"),Bonus_SP,1)))/IF(JointLife_Ind=0,1,(1+AV21)))-(200000*AW21)/100000)/(AX21/100000)+200000 -> 97932.16154 | BD21: =(((($L$14*VLOOKUP(Payout_Mode,$X$3:$Z$6,3,0))/(VLOOKUP(Payout_Mode,'Modal Factors'!$C$4:$D$7,2,0))/(IF(OR(Input!$D$22="Yes",Input!$D$23="Yes"),Bonus_SP,1)))/IF(JointLife_Ind=0,1,(1+AV21)))/(AW21/100000)) -> 91571.15382 | BE21: 150000 | BF21: =MAX((AW21*150000/100000)*IF(JointLife_Ind=1,(1+AV21),1)*(VLOOKUP(Payout_Mode,'Modal Factors'!$C$4:$D$7,2,0))*IF(OR(Input!$D$22="Yes",Input!$D$23="Yes"),Bonus_SP,1)/VLOOKUP(Payout_Mode,$X$3:$Z$6,3,0), IF(Payout_Mode=1,12000,IF(Payout_Mode=2,6000,IF(Payout_Mode=3,3000,1000)))) -> 19656.84525 | BH21: =IF(OR(Age_1>75,AND(Calculator!$E$22="Joint Life",Age_2>75)),"Maximum entry age is 75 years","") ->  | BI21: =IF(Request=2, IF(Annuity_Input<Check!BF21,"Minimum Annuity amount should be "&ROUNDUP(BF21,0),""),"") -> 
AH22: 9 | AI22: Option 9 - Deferred Life Annuity with Return of Purchase Price | AN22: 1 | AO22: 15 | AP22: 1 | AQ22: 'Single Life'!$B$9:$AF$110 | AS22: 31 | AT22: 'Single Life'!$B$116:$AF$217 | AV22: =IF($J$12=0,0,VLOOKUP(Age_1,'Joint Life Factors'!$A$9:$L$12,12,TRUE)) -> 0.015 | AW22: 16073 | AX22: 17072 | AY22: =IF(Age_1+AO22>75,"NA",IF(Request=2,Annuity_Input,((AW22*MIN(200000,Premium_Input)/100000)+AX22*IF(Premium_Input>200000,(Premium_Input-200000)/100000,0))*IF(JointLife_Ind=1,(1+AV22),1)*(VLOOKUP(Payout_Mode,'Modal Factors'!$C$4:$D$7,2,0))*IF(OR(Input!$D$22="Yes",Input!$D$23="Yes"),Bonus_SP,1)/VLOOKUP(Payout_Mode,$X$3:$Z$6,3,0))) -> 885985.4307 | AZ22: =IF(Request=1,Premium_Input,((((AY22*VLOOKUP(Payout_Mode,$X$3:$Z$6,3,0))/(VLOOKUP(Payout_Mode,'Modal Factors'!$C$4:$D$7,2,0))/(IF(OR(Input!$D$22="Yes",Input!$D$23="Yes"),Bonus_SP,1)))/IF(JointLife_Ind=0,1,(1+$AV22)))-(200000*AW22)/100000)/(AX22/100000)+200000) -> 5000000 | BA22: =IF(Request=1,Premium_Input,((((AY22*VLOOKUP(Payout_Mode,$X$3:$Z$6,3,0))/(VLOOKUP(Payout_Mode,'Modal Factors'!$C$4:$D$7,2,0))/(IF(OR(Input!$D$22="Yes",Input!$D$23="Yes"),Bonus_SP,1)))/IF(JointLife_Ind=0,1,(1+$AV22)))/(AW22/100000))) -> 5000000 | BB22: =IF(Age_1+AO22>75,"NA",IF(AZ22>200000,AZ22,BA22)) -> 5000000 | BC22: =(((($L$14*VLOOKUP(Payout_Mode,$X$3:$Z$6,3,0))/(VLOOKUP(Payout_Mode,'Modal Factors'!$C$4:$D$7,2,0))/(IF(OR(Input!$D$22="Yes",Input!$D$23="Yes"),Bonus_SP,1)))/IF(JointLife_Ind=0,1,(1+AV22)))-(200000*AW22)/100000)/(AX22/100000)+200000 -> 79266.06452 | BD22: =(((($L$14*VLOOKUP(Payout_Mode,$X$3:$Z$6,3,0))/(VLOOKUP(Payout_Mode,'Modal Factors'!$C$4:$D$7,2,0))/(IF(OR(Input!$D$22="Yes",Input!$D$23="Yes"),Bonus_SP,1)))/IF(JointLife_Ind=0,1,(1+AV22)))/(AW22/100000)) -> 71761.97683 | BE22: 150000 | BF22: =MAX((AW22*150000/100000)*IF(JointLife_Ind=1,(1+AV22),1)*(VLOOKUP(Payout_Mode,'Modal Factors'!$C$4:$D$7,2,0))*IF(OR(Input!$D$22="Yes",Input!$D$23="Yes"),Bonus_SP,1)/VLOOKUP(Payout_Mode,$X$3:$Z$6,3,0), IF(Payout_Mode=1,12000,IF(Payout_Mode=2,6000,IF(Payout_Mode=3,3000,1000)))) -> 25082.92106 | BH22: =IF(OR(Age_1>75,AND(Calculator!$E$22="Joint Life",Age_2>75)),"Maximum entry age is 75 years","") ->  | BI22: =IF(Request=2, IF(Annuity_Input<Check!BF22,"Minimum Annuity amount should be "&ROUNDUP(BF22,0),""),"") -> 
AH23: 9 | AI23: Option 9 - Deferred Life Annuity with Return of Purchase Price | AN23: 5 | AO23: =AN23+0 -> 5 | AP23: 1 | AQ23: 'Limited Pay'!$B$9:$O$85 | AS23: =AO23-1 -> 4 | AT23: 'Limited Pay'!$B$91:$O$167 | AV23: =IF($J$12=0,0,VLOOKUP(Age_1,'Joint Life Factors'!$A$9:$L$12,12,TRUE)) -> 0.015 | AW23: 35852 | AX23: 37444 | AY23: =IF(Age_1+AO23>77,"NA",IF(Request=2,Annuity_Input,((AW23*MIN(50000,Premium_Input)/100000)+AX23*IF(Premium_Input>50000,(Premium_Input-50000)/100000,0))*IF(JointLife_Ind=1,(1+AV23),1)*(VLOOKUP(Payout_Mode,'Modal Factors'!$C$4:$D$7,2,0))*IF(OR(Input!$D$22="Yes",Input!$D$23="Yes"),Bonus_LP,1)/VLOOKUP(Payout_Mode,$X$3:$Z$6,3,0))) -> 1965956.687 | AZ23: =IF(Request=1,Premium_Input,((((AY23*VLOOKUP(Payout_Mode,$X$3:$Z$6,3,0))/(VLOOKUP(Payout_Mode,'Modal Factors'!$C$4:$D$7,2,0))/(IF(OR(Input!$D$22="Yes",Input!$D$23="Yes"),Bonus_SP,1)))/IF(JointLife_Ind=0,1,(1+$AV23)))-(200000*AW23)/100000)/(AX23/100000)+200000) -> 5000000 | BA23: =IF(Request=1,Premium_Input,((((AY23*VLOOKUP(Payout_Mode,$X$3:$Z$6,3,0))/(VLOOKUP(Payout_Mode,'Modal Factors'!$C$4:$D$7,2,0))/(IF(OR(Input!$D$22="Yes",Input!$D$23="Yes"),Bonus_SP,1)))/IF(JointLife_Ind=0,1,(1+$AV23)))/(AW23/100000))) -> 5000000 | BB23: =IF(Age_1+AO23>77,"NA",IF(AZ23>50000,AZ23,BA23)) -> 5000000 | BC23: =(((($L$14*VLOOKUP(Payout_Mode,$X$3:$Z$6,3,0))/(VLOOKUP(Payout_Mode,'Modal Factors'!$C$4:$D$7,2,0))/(IF(OR(Input!$D$22="Yes",Input!$D$23="Yes"),Bonus_LP,1)))/IF(JointLife_Ind=0,1,(1+AV23)))-(50000*AW23)/100000)/(AX23/100000)+50000 -> 32632.35765 | BD23: =(((($L$14*VLOOKUP(Payout_Mode,$X$3:$Z$6,3,0))/(VLOOKUP(Payout_Mode,'Modal Factors'!$C$4:$D$7,2,0))/(IF(OR(Input!$D$22="Yes",Input!$D$23="Yes"),Bonus_LP,1)))/IF(JointLife_Ind=0,1,(1+AV23)))/(AW23/100000)) -> 31861.1514 | BE23: =MAX(0,0,IF(BC23>50000,BC23,BD23)) -> 31861.1514 | BF23: =MAX((AW23*0/100000)*IF(JointLife_Ind=1,(1+AV23),1)*(VLOOKUP(Payout_Mode,'Modal Factors'!$C$4:$D$7,2,0))*IF(OR(Input!$D$22="Yes",Input!$D$23="Yes"),Bonus_LP,1)/VLOOKUP(Payout_Mode,$X$3:$Z$6,3,0),IF(Payout_Mode=1,12000,IF(Payout_Mode=2,6000,IF(Payout_Mode=3,3000,1000)))) -> 12000 | BH23: =IF(OR(Age_1>75,AND(Calculator!$E$22="Joint Life",Age_2>75)),"Maximum entry age is 75 years","") ->  | BI23: =IF(Request=2, IF(Annuity_Input<Check!BF23,"Minimum Annuity amount should be "&ROUNDUP(BF23,0),""),"") -> 
A24: Premium Payable 1 | B24: =IF(Request=1,Premium_Input,((((B21*VLOOKUP(Payout_Mode,$X$3:$Z$6,3,0))/(VLOOKUP(Payout_Mode,'Modal Factors'!$C$4:$D$7,2,0))/(IF(OR(Input!D22="Yes",Input!D23="Yes"),Bonus_SP,1)))/IF(JointLife_Ind=0,1,(1+$B$16)))-(200000*Annuity_Base)/100000)/(B19/100000)+200000) -> 5000000 | AH24: 9 | AI24: Option 9 - Deferred Life Annuity with Return of Purchase Price | AN24: 5 | AO24: =AO23+1 -> 6 | AP24: 1 | AQ24: 'Limited Pay'!$B$9:$O$85 | AS24: =AO24-1 -> 5 | AT24: 'Limited Pay'!$B$91:$O$167 | AV24: =IF($J$12=0,0,VLOOKUP(Age_1,'Joint Life Factors'!$A$9:$L$12,12,TRUE)) -> 0.015 | AW24: 39867 | AX24: 40767 | AY24: =IF(Age_1+AO24>75,"NA",IF(Request=2,Annuity_Input,((AW24*MIN(50000,Premium_Input)/100000)+AX24*IF(Premium_Input>50000,(Premium_Input-50000)/100000,0))*IF(JointLife_Ind=1,(1+AV24),1)*(VLOOKUP(Payout_Mode,'Modal Factors'!$C$4:$D$7,2,0))*IF(OR(Input!$D$22="Yes",Input!$D$23="Yes"),Bonus_LP,1)/VLOOKUP(Payout_Mode,$X$3:$Z$6,3,0))) -> 2140864.897 | AZ24: =IF(Request=1,Premium_Input,((((AY24*VLOOKUP(Payout_Mode,$X$3:$Z$6,3,0))/(VLOOKUP(Payout_Mode,'Modal Factors'!$C$4:$D$7,2,0))/(IF(OR(Input!$D$22="Yes",Input!$D$23="Yes"),Bonus_SP,1)))/IF(JointLife_Ind=0,1,(1+$AV24)))-(200000*AW24)/100000)/(AX24/100000)+200000) -> 5000000 | BA24: =IF(Request=1,Premium_Input,((((AY24*VLOOKUP(Payout_Mode,$X$3:$Z$6,3,0))/(VLOOKUP(Payout_Mode,'Modal Factors'!$C$4:$D$7,2,0))/(IF(OR(Input!$D$22="Yes",Input!$D$23="Yes"),Bonus_SP,1)))/IF(JointLife_Ind=0,1,(1+$AV24)))/(AW24/100000))) -> 5000000 | BB24: =IF(Age_1+AO24>75,"NA",IF(AZ24>50000,AZ24,BA24)) -> 5000000 | BC24: =(((($L$14*VLOOKUP(Payout_Mode,$X$3:$Z$6,3,0))/(VLOOKUP(Payout_Mode,'Modal Factors'!$C$4:$D$7,2,0))/(IF(OR(Input!$D$22="Yes",Input!$D$23="Yes"),Bonus_LP,1)))/IF(JointLife_Ind=0,1,(1+AV24)))-(50000*AW24)/100000)/(AX24/100000)+50000 -> 29123.70299 | BD24: =(((($L$14*VLOOKUP(Payout_Mode,$X$3:$Z$6,3,0))/(VLOOKUP(Payout_Mode,'Modal Factors'!$C$4:$D$7,2,0))/(IF(OR(Input!$D$22="Yes",Input!$D$23="Yes"),Bonus_LP,1)))/IF(JointLife_Ind=0,1,(1+AV24)))/(AW24/100000)) -> 28652.41929 | BE24: =MAX(0,0,IF(BC24>50000,BC24,BD24)) -> 28652.41929 | BF24: =MAX((AW24*0/100000)*IF(JointLife_Ind=1,(1+AV24),1)*(VLOOKUP(Payout_Mode,'Modal Factors'!$C$4:$D$7,2,0))*IF(OR(Input!$D$22="Yes",Input!$D$23="Yes"),Bonus_LP,1)/VLOOKUP(Payout_Mode,$X$3:$Z$6,3,0),IF(Payout_Mode=1,12000,IF(Payout_Mode=2,6000,IF(Payout_Mode=3,3000,1000)))) -> 12000 | BH24: =IF(OR(Age_1>75,AND(Calculator!$E$22="Joint Life",Age_2>75)),"Maximum entry age is 75 years","") ->  | BI24: =IF(Request=2, IF(Annuity_Input<Check!BF24,"Minimum Annuity amount should be "&ROUNDUP(BF24,0),""),"") -> 
A25: Premium Payable 2 | B25: =IF(Request=1,Premium_Input,((((B21*VLOOKUP(Payout_Mode,$X$3:$Z$6,3,0))/(VLOOKUP(Payout_Mode,'Modal Factors'!$C$4:$D$7,2,0))/(IF(OR(Input!D22="Yes",Input!D23="Yes"),Bonus_SP,1)))/IF(JointLife_Ind=0,1,(1+$B$16)))/(Annuity_Base/100000))) -> 5000000 | AH25: 9 | AI25: Option 9 - Deferred Life Annuity with Return of Purchase Price | AN25: 5 | AO25: =AO24+1 -> 7 | AP25: 1 | AQ25: 'Limited Pay'!$B$9:$O$85 | AS25: 6 | AT25: 'Limited Pay'!$B$91:$O$167 | AV25: =IF($J$12=0,0,VLOOKUP(Age_1,'Joint Life Factors'!$A$9:$L$12,12,TRUE)) -> 0.015 | AW25: 43612 | AX25: 44580 | AY25: =IF(Age_1+AO25>75,"NA",IF(Request=2,Annuity_Input,((AW25*MIN(50000,Premium_Input)/100000)+AX25*IF(Premium_Input>50000,(Premium_Input-50000)/100000,0))*IF(JointLife_Ind=1,(1+AV25),1)*(VLOOKUP(Payout_Mode,'Modal Factors'!$C$4:$D$7,2,0))*IF(OR(Input!$D$22="Yes",Input!$D$23="Yes"),Bonus_LP,1)/VLOOKUP(Payout_Mode,$X$3:$Z$6,3,0))) -> 2341111.771 | AZ25: =IF(Request=1,Premium_Input,((((AY25*VLOOKUP(Payout_Mode,$X$3:$Z$6,3,0))/(VLOOKUP(Payout_Mode,'Modal Factors'!$C$4:$D$7,2,0))/(IF(OR(Input!$D$22="Yes",Input!$D$23="Yes"),Bonus_SP,1)))/IF(JointLife_Ind=0,1,(1+$AV25)))-(200000*AW25)/100000)/(AX25/100000)+200000) -> 5000000 | BA25: =IF(Request=1,Premium_Input,((((AY25*VLOOKUP(Payout_Mode,$X$3:$Z$6,3,0))/(VLOOKUP(Payout_Mode,'Modal Factors'!$C$4:$D$7,2,0))/(IF(OR(Input!$D$22="Yes",Input!$D$23="Yes"),Bonus_SP,1)))/IF(JointLife_Ind=0,1,(1+$AV25)))/(AW25/100000))) -> 5000000 | BB25: 5000000 | BC25: =(((($L$14*VLOOKUP(Payout_Mode,$X$3:$Z$6,3,0))/(VLOOKUP(Payout_Mode,'Modal Factors'!$C$4:$D$7,2,0))/(IF(OR(Input!$D$22="Yes",Input!$D$23="Yes"),Bonus_LP,1)))/IF(JointLife_Ind=0,1,(1+AV25)))-(50000*AW25)/100000)/(AX25/100000)+50000 -> 26708.97263 | BD25: =(((($L$14*VLOOKUP(Payout_Mode,$X$3:$Z$6,3,0))/(VLOOKUP(Payout_Mode,'Modal Factors'!$C$4:$D$7,2,0))/(IF(OR(Input!$D$22="Yes",Input!$D$23="Yes"),Bonus_LP,1)))/IF(JointLife_Ind=0,1,(1+AV25)))/(AW25/100000)) -> 26192.01137 | BE25: 26192.01137 | BF25: =MAX((AW25*0/100000)*IF(JointLife_Ind=1,(1+AV25),1)*(VLOOKUP(Payout_Mode,'Modal Factors'!$C$4:$D$7,2,0))*IF(OR(Input!$D$22="Yes",Input!$D$23="Yes"),Bonus_LP,1)/VLOOKUP(Payout_Mode,$X$3:$Z$6,3,0),IF(Payout_Mode=1,12000,IF(Payout_Mode=2,6000,IF(Payout_Mode=3,3000,1000)))) -> 12000 | BH25: =IF(OR(Age_1>75,AND(Calculator!$E$22="Joint Life",Age_2>75)),"Maximum entry age is 75 years","") ->  | BI25: =IF(Request=2, IF(Annuity_Input<Check!BF25,"Minimum Annuity amount should be "&ROUNDUP(BF25,0),""),"") -> 
AH26: 9 | AI26: Option 9 - Deferred Life Annuity with Return of Purchase Price | AN26: 5 | AO26: 8 | AP26: 1 | AQ26: 'Limited Pay'!$B$9:$O$85 | AS26: 7 | AT26: 'Limited Pay'!$B$91:$O$167 | AV26: =IF($J$12=0,0,VLOOKUP(Age_1,'Joint Life Factors'!$A$9:$L$12,12,TRUE)) -> 0.015 | AW26: 46756 | AX26: 47809 | AY26: =IF(Age_1+AO26>75,"NA",IF(Request=2,Annuity_Input,((AW26*MIN(50000,Premium_Input)/100000)+AX26*IF(Premium_Input>50000,(Premium_Input-50000)/100000,0))*IF(JointLife_Ind=1,(1+AV26),1)*(VLOOKUP(Payout_Mode,'Modal Factors'!$C$4:$D$7,2,0))*IF(OR(Input!$D$22="Yes",Input!$D$23="Yes"),Bonus_LP,1)/VLOOKUP(Payout_Mode,$X$3:$Z$6,3,0))) -> 2510674.385 | AZ26: =IF(Request=1,Premium_Input,((((AY26*VLOOKUP(Payout_Mode,$X$3:$Z$6,3,0))/(VLOOKUP(Payout_Mode,'Modal Factors'!$C$4:$D$7,2,0))/(IF(OR(Input!$D$22="Yes",Input!$D$23="Yes"),Bonus_SP,1)))/IF(JointLife_Ind=0,1,(1+$AV26)))-(200000*AW26)/100000)/(AX26/100000)+200000) -> 5000000 | BA26: =IF(Request=1,Premium_Input,((((AY26*VLOOKUP(Payout_Mode,$X$3:$Z$6,3,0))/(VLOOKUP(Payout_Mode,'Modal Factors'!$C$4:$D$7,2,0))/(IF(OR(Input!$D$22="Yes",Input!$D$23="Yes"),Bonus_SP,1)))/IF(JointLife_Ind=0,1,(1+$AV26)))/(AW26/100000))) -> 5000000 | BB26: 5000000 | BC26: =(((($L$14*VLOOKUP(Payout_Mode,$X$3:$Z$6,3,0))/(VLOOKUP(Payout_Mode,'Modal Factors'!$C$4:$D$7,2,0))/(IF(OR(Input!$D$22="Yes",Input!$D$23="Yes"),Bonus_LP,1)))/IF(JointLife_Ind=0,1,(1+AV26)))-(50000*AW26)/100000)/(AX26/100000)+50000 -> 24993.95511 | BD26: =(((($L$14*VLOOKUP(Payout_Mode,$X$3:$Z$6,3,0))/(VLOOKUP(Payout_Mode,'Modal Factors'!$C$4:$D$7,2,0))/(IF(OR(Input!$D$22="Yes",Input!$D$23="Yes"),Bonus_LP,1)))/IF(JointLife_Ind=0,1,(1+AV26)))/(AW26/100000)) -> 24430.78963 | BE26: 24430.78963 | BF26: =MAX((AW26*0/100000)*IF(JointLife_Ind=1,(1+AV26),1)*(VLOOKUP(Payout_Mode,'Modal Factors'!$C$4:$D$7,2,0))*IF(OR(Input!$D$22="Yes",Input!$D$23="Yes"),Bonus_LP,1)/VLOOKUP(Payout_Mode,$X$3:$Z$6,3,0),IF(Payout_Mode=1,12000,IF(Payout_Mode=2,6000,IF(Payout_Mode=3,3000,1000)))) -> 12000 | BH26: =IF(OR(Age_1>75,AND(Calculator!$E$22="Joint Life",Age_2>75)),"Maximum entry age is 75 years","") ->  | BI26: =IF(Request=2, IF(Annuity_Input<Check!BF26,"Minimum Annuity amount should be "&ROUNDUP(BF26,0),""),"") -> 
A27: Final Premium Payable | B27: =IF(B24>200000,B24,B25) -> 5000000 | AH27: 9 | AI27: Option 9 - Deferred Life Annuity with Return of Purchase Price | AN27: 5 | AO27: 9 | AP27: 1 | AQ27: 'Limited Pay'!$B$9:$O$85 | AS27: 8 | AT27: 'Limited Pay'!$B$91:$O$167 | AV27: =IF($J$12=0,0,VLOOKUP(Age_1,'Joint Life Factors'!$A$9:$L$12,12,TRUE)) -> 0.015 | AW27: 50586 | AX27: 51763 | AY27: =IF(Age_1+AO27>75,"NA",IF(Request=2,Annuity_Input,((AW27*MIN(50000,Premium_Input)/100000)+AX27*IF(Premium_Input>50000,(Premium_Input-50000)/100000,0))*IF(JointLife_Ind=1,(1+AV27),1)*(VLOOKUP(Payout_Mode,'Modal Factors'!$C$4:$D$7,2,0))*IF(OR(Input!$D$22="Yes",Input!$D$23="Yes"),Bonus_LP,1)/VLOOKUP(Payout_Mode,$X$3:$Z$6,3,0))) -> 2718298.045 | AZ27: =IF(Request=1,Premium_Input,((((AY27*VLOOKUP(Payout_Mode,$X$3:$Z$6,3,0))/(VLOOKUP(Payout_Mode,'Modal Factors'!$C$4:$D$7,2,0))/(IF(OR(Input!$D$22="Yes",Input!$D$23="Yes"),Bonus_SP,1)))/IF(JointLife_Ind=0,1,(1+$AV27)))-(200000*AW27)/100000)/(AX27/100000)+200000) -> 5000000 | BA27: =IF(Request=1,Premium_Input,((((AY27*VLOOKUP(Payout_Mode,$X$3:$Z$6,3,0))/(VLOOKUP(Payout_Mode,'Modal Factors'!$C$4:$D$7,2,0))/(IF(OR(Input!$D$22="Yes",Input!$D$23="Yes"),Bonus_SP,1)))/IF(JointLife_Ind=0,1,(1+$AV27)))/(AW27/100000))) -> 5000000 | BB27: 5000000 | BC27: =(((($L$14*VLOOKUP(Payout_Mode,$X$3:$Z$6,3,0))/(VLOOKUP(Payout_Mode,'Modal Factors'!$C$4:$D$7,2,0))/(IF(OR(Input!$D$22="Yes",Input!$D$23="Yes"),Bonus_LP,1)))/IF(JointLife_Ind=0,1,(1+AV27)))-(50000*AW27)/100000)/(AX27/100000)+50000 -> 23204.52833 | BD27: =(((($L$14*VLOOKUP(Payout_Mode,$X$3:$Z$6,3,0))/(VLOOKUP(Payout_Mode,'Modal Factors'!$C$4:$D$7,2,0))/(IF(OR(Input!$D$22="Yes",Input!$D$23="Yes"),Bonus_LP,1)))/IF(JointLife_Ind=0,1,(1+AV27)))/(AW27/100000)) -> 22581.06986 | BE27: 22581.06986 | BF27: =MAX((AW27*0/100000)*IF(JointLife_Ind=1,(1+AV27),1)*(VLOOKUP(Payout_Mode,'Modal Factors'!$C$4:$D$7,2,0))*IF(OR(Input!$D$22="Yes",Input!$D$23="Yes"),Bonus_LP,1)/VLOOKUP(Payout_Mode,$X$3:$Z$6,3,0),IF(Payout_Mode=1,12000,IF(Payout_Mode=2,6000,IF(Payout_Mode=3,3000,1000)))) -> 12000 | BH27: =IF(OR(Age_1>75,AND(Calculator!$E$22="Joint Life",Age_2>75)),"Maximum entry age is 75 years","") ->  | BI27: =IF(Request=2, IF(Annuity_Input<Check!BF27,"Minimum Annuity amount should be "&ROUNDUP(BF27,0),""),"") -> 
A28: Minimum Premium Payable | B28: =IF(B37>200000,B37,B38) -> 159065.0791 | AH28: 9 | AI28: Option 9 - Deferred Life Annuity with Return of Purchase Price | AN28: 5 | AO28: 10 | AP28: 1 | AQ28: 'Limited Pay'!$B$9:$O$85 | AS28: 9 | AT28: 'Limited Pay'!$B$91:$O$167 | AV28: =IF($J$12=0,0,VLOOKUP(Age_1,'Joint Life Factors'!$A$9:$L$12,12,TRUE)) -> 0.015 | AW28: 53810 | AX28: 55095 | AY28: =IF(Age_1+AO28>75,"NA",IF(Request=2,Annuity_Input,((AW28*MIN(50000,Premium_Input)/100000)+AX28*IF(Premium_Input>50000,(Premium_Input-50000)/100000,0))*IF(JointLife_Ind=1,(1+AV28),1)*(VLOOKUP(Payout_Mode,'Modal Factors'!$C$4:$D$7,2,0))*IF(OR(Input!$D$22="Yes",Input!$D$23="Yes"),Bonus_LP,1)/VLOOKUP(Payout_Mode,$X$3:$Z$6,3,0))) -> 2893258.781 | AZ28: =IF(Request=1,Premium_Input,((((AY28*VLOOKUP(Payout_Mode,$X$3:$Z$6,3,0))/(VLOOKUP(Payout_Mode,'Modal Factors'!$C$4:$D$7,2,0))/(IF(OR(Input!$D$22="Yes",Input!$D$23="Yes"),Bonus_SP,1)))/IF(JointLife_Ind=0,1,(1+$AV28)))-(200000*AW28)/100000)/(AX28/100000)+200000) -> 5000000 | BA28: =IF(Request=1,Premium_Input,((((AY28*VLOOKUP(Payout_Mode,$X$3:$Z$6,3,0))/(VLOOKUP(Payout_Mode,'Modal Factors'!$C$4:$D$7,2,0))/(IF(OR(Input!$D$22="Yes",Input!$D$23="Yes"),Bonus_SP,1)))/IF(JointLife_Ind=0,1,(1+$AV28)))/(AW28/100000))) -> 5000000 | BB28: 5000000 | BC28: =(((($L$14*VLOOKUP(Payout_Mode,$X$3:$Z$6,3,0))/(VLOOKUP(Payout_Mode,'Modal Factors'!$C$4:$D$7,2,0))/(IF(OR(Input!$D$22="Yes",Input!$D$23="Yes"),Bonus_LP,1)))/IF(JointLife_Ind=0,1,(1+AV28)))-(50000*AW28)/100000)/(AX28/100000)+50000 -> 21899.1923 | BD28: =(((($L$14*VLOOKUP(Payout_Mode,$X$3:$Z$6,3,0))/(VLOOKUP(Payout_Mode,'Modal Factors'!$C$4:$D$7,2,0))/(IF(OR(Input!$D$22="Yes",Input!$D$23="Yes"),Bonus_LP,1)))/IF(JointLife_Ind=0,1,(1+AV28)))/(AW28/100000)) -> 21228.13603 | BE28: 21228.13603 | BF28: =MAX((AW28*0/100000)*IF(JointLife_Ind=1,(1+AV28),1)*(VLOOKUP(Payout_Mode,'Modal Factors'!$C$4:$D$7,2,0))*IF(OR(Input!$D$22="Yes",Input!$D$23="Yes"),Bonus_LP,1)/VLOOKUP(Payout_Mode,$X$3:$Z$6,3,0),IF(Payout_Mode=1,12000,IF(Payout_Mode=2,6000,IF(Payout_Mode=3,3000,1000)))) -> 12000 | BH28: =IF(OR(Age_1>75,AND(Calculator!$E$22="Joint Life",Age_2>75)),"Maximum entry age is 75 years","") ->  | BI28: =IF(Request=2, IF(Annuity_Input<Check!BF28,"Minimum Annuity amount should be "&ROUNDUP(BF28,0),""),"") -> 
A29: Service Tax | B29: =IF(Output!G14="NPS",0,1.8%) -> 0.018 | AH29: 9 | AI29: Option 9 - Deferred Life Annuity with Return of Purchase Price | AN29: 5 | AO29: 11 | AP29: 1 | AQ29: 'Limited Pay'!$B$9:$O$85 | AS29: 10 | AT29: 'Limited Pay'!$B$91:$O$167 | AV29: =IF($J$12=0,0,VLOOKUP(Age_1,'Joint Life Factors'!$A$9:$L$12,12,TRUE)) -> 0.015 | AW29: 57416 | AX29: 58657 | AY29: =IF(Age_1+AO29>75,"NA",IF(Request=2,Annuity_Input,((AW29*MIN(50000,Premium_Input)/100000)+AX29*IF(Premium_Input>50000,(Premium_Input-50000)/100000,0))*IF(JointLife_Ind=1,(1+AV29),1)*(VLOOKUP(Payout_Mode,'Modal Factors'!$C$4:$D$7,2,0))*IF(OR(Input!$D$22="Yes",Input!$D$23="Yes"),Bonus_LP,1)/VLOOKUP(Payout_Mode,$X$3:$Z$6,3,0))) -> 3080380.395 | AZ29: =IF(Request=1,Premium_Input,((((AY29*VLOOKUP(Payout_Mode,$X$3:$Z$6,3,0))/(VLOOKUP(Payout_Mode,'Modal Factors'!$C$4:$D$7,2,0))/(IF(OR(Input!$D$22="Yes",Input!$D$23="Yes"),Bonus_SP,1)))/IF(JointLife_Ind=0,1,(1+$AV29)))-(200000*AW29)/100000)/(AX29/100000)+200000) -> 5000000 | BA29: =IF(Request=1,Premium_Input,((((AY29*VLOOKUP(Payout_Mode,$X$3:$Z$6,3,0))/(VLOOKUP(Payout_Mode,'Modal Factors'!$C$4:$D$7,2,0))/(IF(OR(Input!$D$22="Yes",Input!$D$23="Yes"),Bonus_SP,1)))/IF(JointLife_Ind=0,1,(1+$AV29)))/(AW29/100000))) -> 5000000 | BB29: 5000000 | BC29: =(((($L$14*VLOOKUP(Payout_Mode,$X$3:$Z$6,3,0))/(VLOOKUP(Payout_Mode,'Modal Factors'!$C$4:$D$7,2,0))/(IF(OR(Input!$D$22="Yes",Input!$D$23="Yes"),Bonus_LP,1)))/IF(JointLife_Ind=0,1,(1+AV29)))-(50000*AW29)/100000)/(AX29/100000)+50000 -> 20531.83763 | BD29: =(((($L$14*VLOOKUP(Payout_Mode,$X$3:$Z$6,3,0))/(VLOOKUP(Payout_Mode,'Modal Factors'!$C$4:$D$7,2,0))/(IF(OR(Input!$D$22="Yes",Input!$D$23="Yes"),Bonus_LP,1)))/IF(JointLife_Ind=0,1,(1+AV29)))/(AW29/100000)) -> 19894.90734 | BE29: 19894.90734 | BF29: =MAX((AW29*0/100000)*IF(JointLife_Ind=1,(1+AV29),1)*(VLOOKUP(Payout_Mode,'Modal Factors'!$C$4:$D$7,2,0))*IF(OR(Input!$D$22="Yes",Input!$D$23="Yes"),Bonus_LP,1)/VLOOKUP(Payout_Mode,$X$3:$Z$6,3,0),IF(Payout_Mode=1,12000,IF(Payout_Mode=2,6000,IF(Payout_Mode=3,3000,1000)))) -> 12000 | BH29: =IF(OR(Age_1>75,AND(Calculator!$E$22="Joint Life",Age_2>75)),"Maximum entry age is 75 years","") ->  | BI29: =IF(Request=2, IF(Annuity_Input<Check!BF29,"Minimum Annuity amount should be "&ROUNDUP(BF29,0),""),"") -> 
A30: Education Cess | B30: 0 | AH30: 9 | AI30: Option 9 - Deferred Life Annuity with Return of Purchase Price | AN30: 5 | AO30: 12 | AP30: 1 | AQ30: 'Limited Pay'!$B$9:$O$85 | AS30: 11 | AT30: 'Limited Pay'!$B$91:$O$167 | AV30: =IF($J$12=0,0,VLOOKUP(Age_1,'Joint Life Factors'!$A$9:$L$12,12,TRUE)) -> 0.015 | AW30: 60810 | AX30: 61998 | AY30: =IF(Age_1+AO30>75,"NA",IF(Request=2,Annuity_Input,((AW30*MIN(50000,Premium_Input)/100000)+AX30*IF(Premium_Input>50000,(Premium_Input-50000)/100000,0))*IF(JointLife_Ind=1,(1+AV30),1)*(VLOOKUP(Payout_Mode,'Modal Factors'!$C$4:$D$7,2,0))*IF(OR(Input!$D$22="Yes",Input!$D$23="Yes"),Bonus_LP,1)/VLOOKUP(Payout_Mode,$X$3:$Z$6,3,0))) -> 3255898.436 | AZ30: =IF(Request=1,Premium_Input,((((AY30*VLOOKUP(Payout_Mode,$X$3:$Z$6,3,0))/(VLOOKUP(Payout_Mode,'Modal Factors'!$C$4:$D$7,2,0))/(IF(OR(Input!$D$22="Yes",Input!$D$23="Yes"),Bonus_SP,1)))/IF(JointLife_Ind=0,1,(1+$AV30)))-(200000*AW30)/100000)/(AX30/100000)+200000) -> 5000000 | BA30: =IF(Request=1,Premium_Input,((((AY30*VLOOKUP(Payout_Mode,$X$3:$Z$6,3,0))/(VLOOKUP(Payout_Mode,'Modal Factors'!$C$4:$D$7,2,0))/(IF(OR(Input!$D$22="Yes",Input!$D$23="Yes"),Bonus_SP,1)))/IF(JointLife_Ind=0,1,(1+$AV30)))/(AW30/100000))) -> 5000000 | BB30: 5000000 | BC30: =(((($L$14*VLOOKUP(Payout_Mode,$X$3:$Z$6,3,0))/(VLOOKUP(Payout_Mode,'Modal Factors'!$C$4:$D$7,2,0))/(IF(OR(Input!$D$22="Yes",Input!$D$23="Yes"),Bonus_LP,1)))/IF(JointLife_Ind=0,1,(1+AV30)))-(50000*AW30)/100000)/(AX30/100000)+50000 -> 19382.6575 | BD30: =(((($L$14*VLOOKUP(Payout_Mode,$X$3:$Z$6,3,0))/(VLOOKUP(Payout_Mode,'Modal Factors'!$C$4:$D$7,2,0))/(IF(OR(Input!$D$22="Yes",Input!$D$23="Yes"),Bonus_LP,1)))/IF(JointLife_Ind=0,1,(1+AV30)))/(AW30/100000)) -> 18784.50912 | BE30: 18784.50912 | BF30: =MAX((AW30*0/100000)*IF(JointLife_Ind=1,(1+AV30),1)*(VLOOKUP(Payout_Mode,'Modal Factors'!$C$4:$D$7,2,0))*IF(OR(Input!$D$22="Yes",Input!$D$23="Yes"),Bonus_LP,1)/VLOOKUP(Payout_Mode,$X$3:$Z$6,3,0),IF(Payout_Mode=1,12000,IF(Payout_Mode=2,6000,IF(Payout_Mode=3,3000,1000)))) -> 12000 | BH30: =IF(OR(Age_1>75,AND(Calculator!$E$22="Joint Life",Age_2>75)),"Maximum entry age is 75 years","") ->  | BI30: =IF(Request=2, IF(Annuity_Input<Check!BF30,"Minimum Annuity amount should be "&ROUNDUP(BF30,0),""),"") -> 
A31: Service Tax | B31: =ROUND(IF(Request=1,Premium_Input,B27)*B29,2) -> 90000 | AH31: 9 | AI31: Option 9 - Deferred Life Annuity with Return of Purchase Price | AN31: 5 | AO31: 13 | AP31: 1 | AQ31: 'Limited Pay'!$B$9:$O$85 | AS31: 12 | AT31: 'Limited Pay'!$B$91:$O$167 | AV31: =IF($J$12=0,0,VLOOKUP(Age_1,'Joint Life Factors'!$A$9:$L$12,12,TRUE)) -> 0.015 | AW31: 63808 | AX31: 65376 | AY31: =IF(Age_1+AO31>75,"NA",IF(Request=2,Annuity_Input,((AW31*MIN(50000,Premium_Input)/100000)+AX31*IF(Premium_Input>50000,(Premium_Input-50000)/100000,0))*IF(JointLife_Ind=1,(1+AV31),1)*(VLOOKUP(Payout_Mode,'Modal Factors'!$C$4:$D$7,2,0))*IF(OR(Input!$D$22="Yes",Input!$D$23="Yes"),Bonus_LP,1)/VLOOKUP(Payout_Mode,$X$3:$Z$6,3,0))) -> 3433132.508 | AZ31: =IF(Request=1,Premium_Input,((((AY31*VLOOKUP(Payout_Mode,$X$3:$Z$6,3,0))/(VLOOKUP(Payout_Mode,'Modal Factors'!$C$4:$D$7,2,0))/(IF(OR(Input!$D$22="Yes",Input!$D$23="Yes"),Bonus_SP,1)))/IF(JointLife_Ind=0,1,(1+$AV31)))-(200000*AW31)/100000)/(AX31/100000)+200000) -> 5000000 | BA31: =IF(Request=1,Premium_Input,((((AY31*VLOOKUP(Payout_Mode,$X$3:$Z$6,3,0))/(VLOOKUP(Payout_Mode,'Modal Factors'!$C$4:$D$7,2,0))/(IF(OR(Input!$D$22="Yes",Input!$D$23="Yes"),Bonus_SP,1)))/IF(JointLife_Ind=0,1,(1+$AV31)))/(AW31/100000))) -> 5000000 | BB31: 5000000 | BC31: =(((($L$14*VLOOKUP(Payout_Mode,$X$3:$Z$6,3,0))/(VLOOKUP(Payout_Mode,'Modal Factors'!$C$4:$D$7,2,0))/(IF(OR(Input!$D$22="Yes",Input!$D$23="Yes"),Bonus_LP,1)))/IF(JointLife_Ind=0,1,(1+AV31)))-(50000*AW31)/100000)/(AX31/100000)+50000 -> 18671.77557 | BD31: =(((($L$14*VLOOKUP(Payout_Mode,$X$3:$Z$6,3,0))/(VLOOKUP(Payout_Mode,'Modal Factors'!$C$4:$D$7,2,0))/(IF(OR(Input!$D$22="Yes",Input!$D$23="Yes"),Bonus_LP,1)))/IF(JointLife_Ind=0,1,(1+AV31)))/(AW31/100000)) -> 17901.92452 | BE31: 17901.92452 | BF31: =MAX((AW31*0/100000)*IF(JointLife_Ind=1,(1+AV31),1)*(VLOOKUP(Payout_Mode,'Modal Factors'!$C$4:$D$7,2,0))*IF(OR(Input!$D$22="Yes",Input!$D$23="Yes"),Bonus_LP,1)/VLOOKUP(Payout_Mode,$X$3:$Z$6,3,0),IF(Payout_Mode=1,12000,IF(Payout_Mode=2,6000,IF(Payout_Mode=3,3000,1000)))) -> 12000 | BH31: =IF(OR(Age_1>75,AND(Calculator!$E$22="Joint Life",Age_2>75)),"Maximum entry age is 75 years","") ->  | BI31: =IF(Request=2, IF(Annuity_Input<Check!BF31,"Minimum Annuity amount should be "&ROUNDUP(BF31,0),""),"") -> 
A32: Education Cess | B32: =ROUND(B31*B30,2) -> 0 | AH32: 9 | AI32: Option 9 - Deferred Life Annuity with Return of Purchase Price | AN32: 5 | AO32: 14 | AP32: 1 | AQ32: 'Limited Pay'!$B$9:$O$85 | AS32: 13 | AT32: 'Limited Pay'!$B$91:$O$167 | AV32: =IF($J$12=0,0,VLOOKUP(Age_1,'Joint Life Factors'!$A$9:$L$12,12,TRUE)) -> 0.015 | AW32: 66567 | AX32: 68281 | AY32: =IF(Age_1+AO32>75,"NA",IF(Request=2,Annuity_Input,((AW32*MIN(50000,Premium_Input)/100000)+AX32*IF(Premium_Input>50000,(Premium_Input-50000)/100000,0))*IF(JointLife_Ind=1,(1+AV32),1)*(VLOOKUP(Payout_Mode,'Modal Factors'!$C$4:$D$7,2,0))*IF(OR(Input!$D$22="Yes",Input!$D$23="Yes"),Bonus_LP,1)/VLOOKUP(Payout_Mode,$X$3:$Z$6,3,0))) -> 3585644.576 | AZ32: =IF(Request=1,Premium_Input,((((AY32*VLOOKUP(Payout_Mode,$X$3:$Z$6,3,0))/(VLOOKUP(Payout_Mode,'Modal Factors'!$C$4:$D$7,2,0))/(IF(OR(Input!$D$22="Yes",Input!$D$23="Yes"),Bonus_SP,1)))/IF(JointLife_Ind=0,1,(1+$AV32)))-(200000*AW32)/100000)/(AX32/100000)+200000) -> 5000000 | BA32: =IF(Request=1,Premium_Input,((((AY32*VLOOKUP(Payout_Mode,$X$3:$Z$6,3,0))/(VLOOKUP(Payout_Mode,'Modal Factors'!$C$4:$D$7,2,0))/(IF(OR(Input!$D$22="Yes",Input!$D$23="Yes"),Bonus_SP,1)))/IF(JointLife_Ind=0,1,(1+$AV32)))/(AW32/100000))) -> 5000000 | BB32: 5000000 | BC32: =(((($L$14*VLOOKUP(Payout_Mode,$X$3:$Z$6,3,0))/(VLOOKUP(Payout_Mode,'Modal Factors'!$C$4:$D$7,2,0))/(IF(OR(Input!$D$22="Yes",Input!$D$23="Yes"),Bonus_LP,1)))/IF(JointLife_Ind=0,1,(1+AV32)))-(50000*AW32)/100000)/(AX32/100000)+50000 -> 17984.30017 | BD32: =(((($L$14*VLOOKUP(Payout_Mode,$X$3:$Z$6,3,0))/(VLOOKUP(Payout_Mode,'Modal Factors'!$C$4:$D$7,2,0))/(IF(OR(Input!$D$22="Yes",Input!$D$23="Yes"),Bonus_LP,1)))/IF(JointLife_Ind=0,1,(1+AV32)))/(AW32/100000)) -> 17159.94411 | BE32: 17159.94411 | BF32: =MAX((AW32*0/100000)*IF(JointLife_Ind=1,(1+AV32),1)*(VLOOKUP(Payout_Mode,'Modal Factors'!$C$4:$D$7,2,0))*IF(OR(Input!$D$22="Yes",Input!$D$23="Yes"),Bonus_LP,1)/VLOOKUP(Payout_Mode,$X$3:$Z$6,3,0),IF(Payout_Mode=1,12000,IF(Payout_Mode=2,6000,IF(Payout_Mode=3,3000,1000)))) -> 12000 | BH32: =IF(OR(Age_1>75,AND(Calculator!$E$22="Joint Life",Age_2>75)),"Maximum entry age is 75 years","") ->  | BI32: =IF(Request=2, IF(Annuity_Input<Check!BF32,"Minimum Annuity amount should be "&ROUNDUP(BF32,0),""),"") -> 
A33: Total Service Tax and cess | B33: =B31+B32 -> 90000 | AH33: 9 | AI33: Option 9 - Deferred Life Annuity with Return of Purchase Price | AN33: 5 | AO33: 15 | AP33: 1 | AQ33: 'Limited Pay'!$B$9:$O$85 | AS33: 14 | AT33: 'Limited Pay'!$B$91:$O$167 | AV33: =IF($J$12=0,0,VLOOKUP(Age_1,'Joint Life Factors'!$A$9:$L$12,12,TRUE)) -> 0.015 | AW33: 69257 | AX33: 71012 | AY33: =IF(Age_1+AO33>75,"NA",IF(Request=2,Annuity_Input,((AW33*MIN(50000,Premium_Input)/100000)+AX33*IF(Premium_Input>50000,(Premium_Input-50000)/100000,0))*IF(JointLife_Ind=1,(1+AV33),1)*(VLOOKUP(Payout_Mode,'Modal Factors'!$C$4:$D$7,2,0))*IF(OR(Input!$D$22="Yes",Input!$D$23="Yes"),Bonus_LP,1)/VLOOKUP(Payout_Mode,$X$3:$Z$6,3,0))) -> 3729072.229 | AZ33: =IF(Request=1,Premium_Input,((((AY33*VLOOKUP(Payout_Mode,$X$3:$Z$6,3,0))/(VLOOKUP(Payout_Mode,'Modal Factors'!$C$4:$D$7,2,0))/(IF(OR(Input!$D$22="Yes",Input!$D$23="Yes"),Bonus_SP,1)))/IF(JointLife_Ind=0,1,(1+$AV33)))-(200000*AW33)/100000)/(AX33/100000)+200000) -> 5000000 | BA33: =IF(Request=1,Premium_Input,((((AY33*VLOOKUP(Payout_Mode,$X$3:$Z$6,3,0))/(VLOOKUP(Payout_Mode,'Modal Factors'!$C$4:$D$7,2,0))/(IF(OR(Input!$D$22="Yes",Input!$D$23="Yes"),Bonus_SP,1)))/IF(JointLife_Ind=0,1,(1+$AV33)))/(AW33/100000))) -> 5000000 | BB33: 5000000 | BC33: =(((($L$14*VLOOKUP(Payout_Mode,$X$3:$Z$6,3,0))/(VLOOKUP(Payout_Mode,'Modal Factors'!$C$4:$D$7,2,0))/(IF(OR(Input!$D$22="Yes",Input!$D$23="Yes"),Bonus_LP,1)))/IF(JointLife_Ind=0,1,(1+AV33)))-(50000*AW33)/100000)/(AX33/100000)+50000 -> 17321.52312 | BD33: =(((($L$14*VLOOKUP(Payout_Mode,$X$3:$Z$6,3,0))/(VLOOKUP(Payout_Mode,'Modal Factors'!$C$4:$D$7,2,0))/(IF(OR(Input!$D$22="Yes",Input!$D$23="Yes"),Bonus_LP,1)))/IF(JointLife_Ind=0,1,(1+AV33)))/(AW33/100000)) -> 16493.43748 | BE33: 16493.43748 | BF33: =MAX((AW33*0/100000)*IF(JointLife_Ind=1,(1+AV33),1)*(VLOOKUP(Payout_Mode,'Modal Factors'!$C$4:$D$7,2,0))*IF(OR(Input!$D$22="Yes",Input!$D$23="Yes"),Bonus_LP,1)/VLOOKUP(Payout_Mode,$X$3:$Z$6,3,0),IF(Payout_Mode=1,12000,IF(Payout_Mode=2,6000,IF(Payout_Mode=3,3000,1000)))) -> 12000 | BH33: =IF(OR(Age_1>75,AND(Calculator!$E$22="Joint Life",Age_2>75)),"Maximum entry age is 75 years","") ->  | BI33: =IF(Request=2, IF(Annuity_Input<Check!BF33,"Minimum Annuity amount should be "&ROUNDUP(BF33,0),""),"") -> 
AH34: 9 | AI34: Option 9 - Deferred Life Annuity with Return of Purchase Price | AN34: 6 | AO34: =AN34+0 -> 6 | AP34: 1 | AQ34: 'Limited Pay'!$Q$9:$AC$85 | AS34: =AO34-2 -> 4 | AT34: 'Limited Pay'!$Q$91:$AC$167 | AV34: =IF($J$12=0,0,VLOOKUP(Age_1,'Joint Life Factors'!$A$9:$L$12,12,TRUE)) -> 0.015 | AW34: 45923 | AX34: =IF($J$12=0,VLOOKUP(IF(AND(Gender=2,$J$7<>6,$J$7<>7),MAX(Age_1-3,0),Age_1),IF(AND(Gender=2,OR($J$7=6,$J$7=7)),INDIRECT($AU34),INDIRECT($AT34)),$AS34,0),VLOOKUP(IF(Age_1=$J$4,IF(OR(Gender=2,$J$6=2),MAX(Age_1-3,0),Age_1),IF(Age_1<Age_2,IF(Gender=2,MAX(Age_1-3,0),Age_1),IF($B$6=2,MAX(Age_2-3,0),Age_2))),INDIRECT($AT34),$AS34,0)) -> 47061 | AY34: =IF(Age_1+AO34>77,"NA",IF(Request=2,Annuity_Input,((AW34*MIN(50000,Premium_Input)/100000)+AX34*IF(Premium_Input>50000,(Premium_Input-50000)/100000,0))*IF(JointLife_Ind=1,(1+AV34),1)*(VLOOKUP(Payout_Mode,'Modal Factors'!$C$4:$D$7,2,0))*IF(OR(Input!$D$22="Yes",Input!$D$23="Yes"),Bonus_LP,1)/VLOOKUP(Payout_Mode,$X$3:$Z$6,3,0))) -> 2471340.103 | AZ34: =IF(Request=1,Premium_Input,((((AY34*VLOOKUP(Payout_Mode,$X$3:$Z$6,3,0))/(VLOOKUP(Payout_Mode,'Modal Factors'!$C$4:$D$7,2,0))/(IF(OR(Input!$D$22="Yes",Input!$D$23="Yes"),Bonus_SP,1)))/IF(JointLife_Ind=0,1,(1+$AV34)))-(200000*AW34)/100000)/(AX34/100000)+200000) -> 5000000 | BA34: =IF(Request=1,Premium_Input,((((AY34*VLOOKUP(Payout_Mode,$X$3:$Z$6,3,0))/(VLOOKUP(Payout_Mode,'Modal Factors'!$C$4:$D$7,2,0))/(IF(OR(Input!$D$22="Yes",Input!$D$23="Yes"),Bonus_SP,1)))/IF(JointLife_Ind=0,1,(1+$AV34)))/(AW34/100000))) -> 5000000 | BB34: =IF(Age_1+AO34>77,"NA",IF(AZ34>50000,AZ34,BA34)) -> 5000000 | BC34: =(((($L$14*VLOOKUP(Payout_Mode,$X$3:$Z$6,3,0))/(VLOOKUP(Payout_Mode,'Modal Factors'!$C$4:$D$7,2,0))/(IF(OR(Input!$D$22="Yes",Input!$D$23="Yes"),Bonus_LP,1)))/IF(JointLife_Ind=0,1,(1+AV34)))-(50000*AW34)/100000)/(AX34/100000)+50000 -> 25481.52398 | BD34: =(((($L$14*VLOOKUP(Payout_Mode,$X$3:$Z$6,3,0))/(VLOOKUP(Payout_Mode,'Modal Factors'!$C$4:$D$7,2,0))/(IF(OR(Input!$D$22="Yes",Input!$D$23="Yes"),Bonus_LP,1)))/IF(JointLife_Ind=0,1,(1+AV34)))/(AW34/100000)) -> 24873.94116 | BE34: =MAX(0,0,IF(BC34>50000,BC34,BD34)) -> 24873.94116 | BF34: =MAX((AW34*0/100000)*IF(JointLife_Ind=1,(1+AV34),1)*(VLOOKUP(Payout_Mode,'Modal Factors'!$C$4:$D$7,2,0))*IF(OR(Input!$D$22="Yes",Input!$D$23="Yes"),Bonus_LP,1)/VLOOKUP(Payout_Mode,$X$3:$Z$6,3,0),IF(Payout_Mode=1,12000,IF(Payout_Mode=2,6000,IF(Payout_Mode=3,3000,1000)))) -> 12000 | BH34: =IF(OR(Age_1>75,AND(Calculator!$E$22="Joint Life",Age_2>75)),"Maximum entry age is 75 years","") ->  | BI34: =IF(Request=2, IF(Annuity_Input<Check!BF34,"Minimum Annuity amount should be "&ROUNDUP(BF34,0),""),"") -> 
A35: Annual Annuity Amount | B35: =IF(Request=2,Annuity_Input,B21)*VLOOKUP(Payout_Mode,$X$3:$Z$6,3,0)/VLOOKUP(Payout_Mode,'Modal Factors'!$C$4:$D$7,2,0) -> 391844.544 | AH35: 9 | AI35: Option 9 - Deferred Life Annuity with Return of Purchase Price | AN35: =AN34 -> 6 | AO35: =AO34+1 -> 7 | AP35: 1 | AQ35: 'Limited Pay'!$Q$9:$AC$85 | AS35: =AO35-2 -> 5 | AT35: 'Limited Pay'!$Q$91:$AC$167 | AV35: =IF($J$12=0,0,VLOOKUP(Age_1,'Joint Life Factors'!$A$9:$L$12,12,TRUE)) -> 0.015 | AW35: 50087 | AX35: =IF($J$12=0,VLOOKUP(IF(AND(Gender=2,$J$7<>6,$J$7<>7),MAX(Age_1-3,0),Age_1),IF(AND(Gender=2,OR($J$7=6,$J$7=7)),INDIRECT($AU35),INDIRECT($AT35)),$AS35,0),VLOOKUP(IF(Age_1=$J$4,IF(OR(Gender=2,$J$6=2),MAX(Age_1-3,0),Age_1),IF(Age_1<Age_2,IF(Gender=2,MAX(Age_1-3,0),Age_1),IF($B$6=2,MAX(Age_2-3,0),Age_2))),INDIRECT($AT35),$AS35,0)) -> 51210 | AY35: =IF(Age_1+AO35>75,"NA",IF(Request=2,Annuity_Input,((AW35*MIN(50000,Premium_Input)/100000)+AX35*IF(Premium_Input>50000,(Premium_Input-50000)/100000,0))*IF(JointLife_Ind=1,(1+AV35),1)*(VLOOKUP(Payout_Mode,'Modal Factors'!$C$4:$D$7,2,0))*IF(OR(Input!$D$22="Yes",Input!$D$23="Yes"),Bonus_LP,1)/VLOOKUP(Payout_Mode,$X$3:$Z$6,3,0))) -> 2689279.393 | AZ35: =IF(Request=1,Premium_Input,((((AY35*VLOOKUP(Payout_Mode,$X$3:$Z$6,3,0))/(VLOOKUP(Payout_Mode,'Modal Factors'!$C$4:$D$7,2,0))/(IF(OR(Input!$D$22="Yes",Input!$D$23="Yes"),Bonus_SP,1)))/IF(JointLife_Ind=0,1,(1+$AV35)))-(200000*AW35)/100000)/(AX35/100000)+200000) -> 5000000 | BA35: =IF(Request=1,Premium_Input,((((AY35*VLOOKUP(Payout_Mode,$X$3:$Z$6,3,0))/(VLOOKUP(Payout_Mode,'Modal Factors'!$C$4:$D$7,2,0))/(IF(OR(Input!$D$22="Yes",Input!$D$23="Yes"),Bonus_SP,1)))/IF(JointLife_Ind=0,1,(1+$AV35)))/(AW35/100000))) -> 5000000 | BB35: 5000000 | BC35: =(((($L$14*VLOOKUP(Payout_Mode,$X$3:$Z$6,3,0))/(VLOOKUP(Payout_Mode,'Modal Factors'!$C$4:$D$7,2,0))/(IF(OR(Input!$D$22="Yes",Input!$D$23="Yes"),Bonus_LP,1)))/IF(JointLife_Ind=0,1,(1+AV35)))-(50000*AW35)/100000)/(AX35/100000)+50000 -> 23402.38234 | BD35: =(((($L$14*VLOOKUP(Payout_Mode,$X$3:$Z$6,3,0))/(VLOOKUP(Payout_Mode,'Modal Factors'!$C$4:$D$7,2,0))/(IF(OR(Input!$D$22="Yes",Input!$D$23="Yes"),Bonus_LP,1)))/IF(JointLife_Ind=0,1,(1+AV35)))/(AW35/100000)) -> 22806.03749 | BE35: =MAX(0,0,IF(BC35>50000,BC35,BD35)) -> 22806.03749 | BF35: =MAX((AW35*0/100000)*IF(JointLife_Ind=1,(1+AV35),1)*(VLOOKUP(Payout_Mode,'Modal Factors'!$C$4:$D$7,2,0))*IF(OR(Input!$D$22="Yes",Input!$D$23="Yes"),Bonus_LP,1)/VLOOKUP(Payout_Mode,$X$3:$Z$6,3,0),IF(Payout_Mode=1,12000,IF(Payout_Mode=2,6000,IF(Payout_Mode=3,3000,1000)))) -> 12000 | BH35: =IF(OR(Age_1>75,AND(Calculator!$E$22="Joint Life",Age_2>75)),"Maximum entry age is 75 years","") ->  | BI35: =IF(Request=2, IF(Annuity_Input<Check!BF35,"Minimum Annuity amount should be "&ROUNDUP(BF35,0),""),"") ->  | BJ35: =IF(Request=1,IF($B$10<BE35,"Minimum premium should be Rs. "&ROUNDUP(BE35,0),IF(AND($B$10<100000,$AH35=9,OR($AN35=8,$AN35=9,$AN35=10)),"Minimum premium should be Rs. 1,00,000","")),"") -> 
A36: Annual Annuity with modal adj | B36: =IF(Request=2,Input!D15,Check!B21)*VLOOKUP(Payout_Mode,Check!$X$3:$Z$6,3,0) -> 391844.544 | AH36: 9 | AI36: Option 9 - Deferred Life Annuity with Return of Purchase Price | AN36: =AN35 -> 6 | AO36: =AO35+1 -> 8 | AP36: 1 | AQ36: 'Limited Pay'!$Q$9:$AC$85 | AS36: 6 | AT36: 'Limited Pay'!$Q$91:$AC$167 | AV36: =IF($J$12=0,0,VLOOKUP(Age_1,'Joint Life Factors'!$A$9:$L$12,12,TRUE)) -> 0.015 | AW36: 53323 | AX36: 54512 | AY36: =IF(Age_1+AO36>75,"NA",IF(Request=2,Annuity_Input,((AW36*MIN(50000,Premium_Input)/100000)+AX36*IF(Premium_Input>50000,(Premium_Input-50000)/100000,0))*IF(JointLife_Ind=1,(1+AV36),1)*(VLOOKUP(Payout_Mode,'Modal Factors'!$C$4:$D$7,2,0))*IF(OR(Input!$D$22="Yes",Input!$D$23="Yes"),Bonus_LP,1)/VLOOKUP(Payout_Mode,$X$3:$Z$6,3,0))) -> 2862686.403 | AZ36: =IF(Request=1,Premium_Input,((((AY36*VLOOKUP(Payout_Mode,$X$3:$Z$6,3,0))/(VLOOKUP(Payout_Mode,'Modal Factors'!$C$4:$D$7,2,0))/(IF(OR(Input!$D$22="Yes",Input!$D$23="Yes"),Bonus_SP,1)))/IF(JointLife_Ind=0,1,(1+$AV36)))-(200000*AW36)/100000)/(AX36/100000)+200000) -> 5000000 | BA36: =IF(Request=1,Premium_Input,((((AY36*VLOOKUP(Payout_Mode,$X$3:$Z$6,3,0))/(VLOOKUP(Payout_Mode,'Modal Factors'!$C$4:$D$7,2,0))/(IF(OR(Input!$D$22="Yes",Input!$D$23="Yes"),Bonus_SP,1)))/IF(JointLife_Ind=0,1,(1+$AV36)))/(AW36/100000))) -> 5000000 | BB36: 5000000 | BC36: =(((($L$14*VLOOKUP(Payout_Mode,$X$3:$Z$6,3,0))/(VLOOKUP(Payout_Mode,'Modal Factors'!$C$4:$D$7,2,0))/(IF(OR(Input!$D$22="Yes",Input!$D$23="Yes"),Bonus_LP,1)))/IF(JointLife_Ind=0,1,(1+AV36)))-(50000*AW36)/100000)/(AX36/100000)+50000 -> 22045.34781 | BD36: =(((($L$14*VLOOKUP(Payout_Mode,$X$3:$Z$6,3,0))/(VLOOKUP(Payout_Mode,'Modal Factors'!$C$4:$D$7,2,0))/(IF(OR(Input!$D$22="Yes",Input!$D$23="Yes"),Bonus_LP,1)))/IF(JointLife_Ind=0,1,(1+AV36)))/(AW36/100000)) -> 21422.01301 | BE36: =MAX(0,0,IF(BC36>50000,BC36,BD36)) -> 21422.01301 | BF36: =MAX((AW36*0/100000)*IF(JointLife_Ind=1,(1+AV36),1)*(VLOOKUP(Payout_Mode,'Modal Factors'!$C$4:$D$7,2,0))*IF(OR(Input!$D$22="Yes",Input!$D$23="Yes"),Bonus_LP,1)/VLOOKUP(Payout_Mode,$X$3:$Z$6,3,0),IF(Payout_Mode=1,12000,IF(Payout_Mode=2,6000,IF(Payout_Mode=3,3000,1000)))) -> 12000 | BH36: =IF(OR(Age_1>75,AND(Calculator!$E$22="Joint Life",Age_2>75)),"Maximum entry age is 75 years","") ->  | BI36: =IF(Request=2, IF(Annuity_Input<Check!BF36,"Minimum Annuity amount should be "&ROUNDUP(BF36,0),""),"") -> 
A37: Minimum Premium 1 | B37: =((((L14*VLOOKUP(Payout_Mode,$X$3:$Z$6,3,0))/(VLOOKUP(Payout_Mode,'Modal Factors'!$C$4:$D$7,2,0))/(IF(OR(Input!D22="Yes",Input!D23="Yes"),Bonus_SP,1)))/IF(JointLife_Ind=0,1,(1+$B$16)))-(200000*Annuity_Base)/100000)/(B19/100000)+200000 -> 160655.7766 | AH37: 9 | AI37: Option 9 - Deferred Life Annuity with Return of Purchase Price | AN37: 6 | AO37: 9 | AP37: 1 | AQ37: 'Limited Pay'!$Q$9:$AC$85 | AS37: 7 | AT37: 'Limited Pay'!$Q$91:$AC$167 | AV37: =IF($J$12=0,0,VLOOKUP(Age_1,'Joint Life Factors'!$A$9:$L$12,12,TRUE)) -> 0.015 | AW37: 57171 | AX37: 58355 | AY37: =IF(Age_1+AO37>75,"NA",IF(Request=2,Annuity_Input,((AW37*MIN(50000,Premium_Input)/100000)+AX37*IF(Premium_Input>50000,(Premium_Input-50000)/100000,0))*IF(JointLife_Ind=1,(1+AV37),1)*(VLOOKUP(Payout_Mode,'Modal Factors'!$C$4:$D$7,2,0))*IF(OR(Input!$D$22="Yes",Input!$D$23="Yes"),Bonus_LP,1)/VLOOKUP(Payout_Mode,$X$3:$Z$6,3,0))) -> 3064547.408 | AZ37: =IF(Request=1,Premium_Input,((((AY37*VLOOKUP(Payout_Mode,$X$3:$Z$6,3,0))/(VLOOKUP(Payout_Mode,'Modal Factors'!$C$4:$D$7,2,0))/(IF(OR(Input!$D$22="Yes",Input!$D$23="Yes"),Bonus_SP,1)))/IF(JointLife_Ind=0,1,(1+$AV37)))-(200000*AW37)/100000)/(AX37/100000)+200000) -> 5000000 | BA37: =IF(Request=1,Premium_Input,((((AY37*VLOOKUP(Payout_Mode,$X$3:$Z$6,3,0))/(VLOOKUP(Payout_Mode,'Modal Factors'!$C$4:$D$7,2,0))/(IF(OR(Input!$D$22="Yes",Input!$D$23="Yes"),Bonus_SP,1)))/IF(JointLife_Ind=0,1,(1+$AV37)))/(AW37/100000))) -> 5000000 | BB37: 5000000 | BC37: =(((($L$14*VLOOKUP(Payout_Mode,$X$3:$Z$6,3,0))/(VLOOKUP(Payout_Mode,'Modal Factors'!$C$4:$D$7,2,0))/(IF(OR(Input!$D$22="Yes",Input!$D$23="Yes"),Bonus_LP,1)))/IF(JointLife_Ind=0,1,(1+AV37)))-(50000*AW37)/100000)/(AX37/100000)+50000 -> 20589.25542 | BD37: =(((($L$14*VLOOKUP(Payout_Mode,$X$3:$Z$6,3,0))/(VLOOKUP(Payout_Mode,'Modal Factors'!$C$4:$D$7,2,0))/(IF(OR(Input!$D$22="Yes",Input!$D$23="Yes"),Bonus_LP,1)))/IF(JointLife_Ind=0,1,(1+AV37)))/(AW37/100000)) -> 19980.16477 | BE37: 19980.16477 | BF37: =MAX((AW37*0/100000)*IF(JointLife_Ind=1,(1+AV37),1)*(VLOOKUP(Payout_Mode,'Modal Factors'!$C$4:$D$7,2,0))*IF(OR(Input!$D$22="Yes",Input!$D$23="Yes"),Bonus_LP,1)/VLOOKUP(Payout_Mode,$X$3:$Z$6,3,0),IF(Payout_Mode=1,12000,IF(Payout_Mode=2,6000,IF(Payout_Mode=3,3000,1000)))) -> 12000 | BH37: =IF(OR(Age_1>75,AND(Calculator!$E$22="Joint Life",Age_2>75)),"Maximum entry age is 75 years","") ->  | BI37: =IF(Request=2, IF(Annuity_Input<Check!BF37,"Minimum Annuity amount should be "&ROUNDUP(BF37,0),""),"") -> 
A38: Minimum Premium 2 | B38: =((((L14*VLOOKUP(Payout_Mode,$X$3:$Z$6,3,0))/(VLOOKUP(Payout_Mode,'Modal Factors'!$C$4:$D$7,2,0))/(IF(OR(Input!D22="Yes",Input!D23="Yes"),Bonus_SP,1)))/IF(JointLife_Ind=0,1,(1+$B$16)))/(Annuity_Base/100000)) -> 159065.0791 | AH38: 9 | AI38: Option 9 - Deferred Life Annuity with Return of Purchase Price | AN38: 6 | AO38: 10 | AP38: 1 | AQ38: 'Limited Pay'!$Q$9:$AC$85 | AS38: 8 | AT38: 'Limited Pay'!$Q$91:$AC$167 | AV38: =IF($J$12=0,0,VLOOKUP(Age_1,'Joint Life Factors'!$A$9:$L$12,12,TRUE)) -> 0.015 | AW38: 60181 | AX38: 61664 | AY38: =IF(Age_1+AO38>75,"NA",IF(Request=2,Annuity_Input,((AW38*MIN(50000,Premium_Input)/100000)+AX38*IF(Premium_Input>50000,(Premium_Input-50000)/100000,0))*IF(JointLife_Ind=1,(1+AV38),1)*(VLOOKUP(Payout_Mode,'Modal Factors'!$C$4:$D$7,2,0))*IF(OR(Input!$D$22="Yes",Input!$D$23="Yes"),Bonus_LP,1)/VLOOKUP(Payout_Mode,$X$3:$Z$6,3,0))) -> 3238199.716 | AZ38: =IF(Request=1,Premium_Input,((((AY38*VLOOKUP(Payout_Mode,$X$3:$Z$6,3,0))/(VLOOKUP(Payout_Mode,'Modal Factors'!$C$4:$D$7,2,0))/(IF(OR(Input!$D$22="Yes",Input!$D$23="Yes"),Bonus_SP,1)))/IF(JointLife_Ind=0,1,(1+$AV38)))-(200000*AW38)/100000)/(AX38/100000)+200000) -> 5000000 | BA38: =IF(Request=1,Premium_Input,((((AY38*VLOOKUP(Payout_Mode,$X$3:$Z$6,3,0))/(VLOOKUP(Payout_Mode,'Modal Factors'!$C$4:$D$7,2,0))/(IF(OR(Input!$D$22="Yes",Input!$D$23="Yes"),Bonus_SP,1)))/IF(JointLife_Ind=0,1,(1+$AV38)))/(AW38/100000))) -> 5000000 | BB38: 5000000 | BC38: =(((($L$14*VLOOKUP(Payout_Mode,$X$3:$Z$6,3,0))/(VLOOKUP(Payout_Mode,'Modal Factors'!$C$4:$D$7,2,0))/(IF(OR(Input!$D$22="Yes",Input!$D$23="Yes"),Bonus_LP,1)))/IF(JointLife_Ind=0,1,(1+AV38)))-(50000*AW38)/100000)/(AX38/100000)+50000 -> 19726.84224 | BD38: =(((($L$14*VLOOKUP(Payout_Mode,$X$3:$Z$6,3,0))/(VLOOKUP(Payout_Mode,'Modal Factors'!$C$4:$D$7,2,0))/(IF(OR(Input!$D$22="Yes",Input!$D$23="Yes"),Bonus_LP,1)))/IF(JointLife_Ind=0,1,(1+AV38)))/(AW38/100000)) -> 18980.84113 | BE38: 18980.84113 | BF38: =MAX((AW38*0/100000)*IF(JointLife_Ind=1,(1+AV38),1)*(VLOOKUP(Payout_Mode,'Modal Factors'!$C$4:$D$7,2,0))*IF(OR(Input!$D$22="Yes",Input!$D$23="Yes"),Bonus_LP,1)/VLOOKUP(Payout_Mode,$X$3:$Z$6,3,0),IF(Payout_Mode=1,12000,IF(Payout_Mode=2,6000,IF(Payout_Mode=3,3000,1000)))) -> 12000 | BH38: =IF(OR(Age_1>75,AND(Calculator!$E$22="Joint Life",Age_2>75)),"Maximum entry age is 75 years","") ->  | BI38: =IF(Request=2, IF(Annuity_Input<Check!BF38,"Minimum Annuity amount should be "&ROUNDUP(BF38,0),""),"") -> 
AH39: 9 | AI39: Option 9 - Deferred Life Annuity with Return of Purchase Price | AN39: 6 | AO39: 11 | AP39: 1 | AQ39: 'Limited Pay'!$Q$9:$AC$85 | AS39: 9 | AT39: 'Limited Pay'!$Q$91:$AC$167 | AV39: =IF($J$12=0,0,VLOOKUP(Age_1,'Joint Life Factors'!$A$9:$L$12,12,TRUE)) -> 0.015 | AW39: 65213 | AX39: 66748 | AY39: =IF(Age_1+AO39>75,"NA",IF(Request=2,Annuity_Input,((AW39*MIN(50000,Premium_Input)/100000)+AX39*IF(Premium_Input>50000,(Premium_Input-50000)/100000,0))*IF(JointLife_Ind=1,(1+AV39),1)*(VLOOKUP(Payout_Mode,'Modal Factors'!$C$4:$D$7,2,0))*IF(OR(Input!$D$22="Yes",Input!$D$23="Yes"),Bonus_LP,1)/VLOOKUP(Payout_Mode,$X$3:$Z$6,3,0))) -> 3505215.857 | AZ39: =IF(Request=1,Premium_Input,((((AY39*VLOOKUP(Payout_Mode,$X$3:$Z$6,3,0))/(VLOOKUP(Payout_Mode,'Modal Factors'!$C$4:$D$7,2,0))/(IF(OR(Input!$D$22="Yes",Input!$D$23="Yes"),Bonus_SP,1)))/IF(JointLife_Ind=0,1,(1+$AV39)))-(200000*AW39)/100000)/(AX39/100000)+200000) -> 5000000 | BA39: =IF(Request=1,Premium_Input,((((AY39*VLOOKUP(Payout_Mode,$X$3:$Z$6,3,0))/(VLOOKUP(Payout_Mode,'Modal Factors'!$C$4:$D$7,2,0))/(IF(OR(Input!$D$22="Yes",Input!$D$23="Yes"),Bonus_SP,1)))/IF(JointLife_Ind=0,1,(1+$AV39)))/(AW39/100000))) -> 5000000 | BB39: 5000000 | BC39: =(((($L$14*VLOOKUP(Payout_Mode,$X$3:$Z$6,3,0))/(VLOOKUP(Payout_Mode,'Modal Factors'!$C$4:$D$7,2,0))/(IF(OR(Input!$D$22="Yes",Input!$D$23="Yes"),Bonus_LP,1)))/IF(JointLife_Ind=0,1,(1+AV39)))-(50000*AW39)/100000)/(AX39/100000)+50000 -> 18263.25882 | BD39: =(((($L$14*VLOOKUP(Payout_Mode,$X$3:$Z$6,3,0))/(VLOOKUP(Payout_Mode,'Modal Factors'!$C$4:$D$7,2,0))/(IF(OR(Input!$D$22="Yes",Input!$D$23="Yes"),Bonus_LP,1)))/IF(JointLife_Ind=0,1,(1+AV39)))/(AW39/100000)) -> 17516.23142 | BE39: 17516.23142 | BF39: =MAX((AW39*0/100000)*IF(JointLife_Ind=1,(1+AV39),1)*(VLOOKUP(Payout_Mode,'Modal Factors'!$C$4:$D$7,2,0))*IF(OR(Input!$D$22="Yes",Input!$D$23="Yes"),Bonus_LP,1)/VLOOKUP(Payout_Mode,$X$3:$Z$6,3,0),IF(Payout_Mode=1,12000,IF(Payout_Mode=2,6000,IF(Payout_Mode=3,3000,1000)))) -> 12000 | BH39: =IF(OR(Age_1>75,AND(Calculator!$E$22="Joint Life",Age_2>75)),"Maximum entry age is 75 years","") ->  | BI39: =IF(Request=2, IF(Annuity_Input<Check!BF39,"Minimum Annuity amount should be "&ROUNDUP(BF39,0),""),"") -> 
AH40: 9 | AI40: Option 9 - Deferred Life Annuity with Return of Purchase Price | AN40: 6 | AO40: 12 | AP40: 1 | AQ40: 'Limited Pay'!$Q$9:$AC$85 | AS40: 10 | AT40: 'Limited Pay'!$Q$91:$AC$167 | AV40: =IF($J$12=0,0,VLOOKUP(Age_1,'Joint Life Factors'!$A$9:$L$12,12,TRUE)) -> 0.015 | AW40: 70211 | AX40: 71852 | AY40: =IF(Age_1+AO40>75,"NA",IF(Request=2,Annuity_Input,((AW40*MIN(50000,Premium_Input)/100000)+AX40*IF(Premium_Input>50000,(Premium_Input-50000)/100000,0))*IF(JointLife_Ind=1,(1+AV40),1)*(VLOOKUP(Payout_Mode,'Modal Factors'!$C$4:$D$7,2,0))*IF(OR(Input!$D$22="Yes",Input!$D$23="Yes"),Bonus_LP,1)/VLOOKUP(Payout_Mode,$X$3:$Z$6,3,0))) -> 3773254.159 | AZ40: =IF(Request=1,Premium_Input,((((AY40*VLOOKUP(Payout_Mode,$X$3:$Z$6,3,0))/(VLOOKUP(Payout_Mode,'Modal Factors'!$C$4:$D$7,2,0))/(IF(OR(Input!$D$22="Yes",Input!$D$23="Yes"),Bonus_SP,1)))/IF(JointLife_Ind=0,1,(1+$AV40)))-(200000*AW40)/100000)/(AX40/100000)+200000) -> 5000000 | BA40: =IF(Request=1,Premium_Input,((((AY40*VLOOKUP(Payout_Mode,$X$3:$Z$6,3,0))/(VLOOKUP(Payout_Mode,'Modal Factors'!$C$4:$D$7,2,0))/(IF(OR(Input!$D$22="Yes",Input!$D$23="Yes"),Bonus_SP,1)))/IF(JointLife_Ind=0,1,(1+$AV40)))/(AW40/100000))) -> 5000000 | BB40: 5000000 | BC40: =(((($L$14*VLOOKUP(Payout_Mode,$X$3:$Z$6,3,0))/(VLOOKUP(Payout_Mode,'Modal Factors'!$C$4:$D$7,2,0))/(IF(OR(Input!$D$22="Yes",Input!$D$23="Yes"),Bonus_LP,1)))/IF(JointLife_Ind=0,1,(1+AV40)))-(50000*AW40)/100000)/(AX40/100000)+50000 -> 17039.6927 | BD40: =(((($L$14*VLOOKUP(Payout_Mode,$X$3:$Z$6,3,0))/(VLOOKUP(Payout_Mode,'Modal Factors'!$C$4:$D$7,2,0))/(IF(OR(Input!$D$22="Yes",Input!$D$23="Yes"),Bonus_LP,1)))/IF(JointLife_Ind=0,1,(1+AV40)))/(AW40/100000)) -> 16269.33101 | BE40: 16269.33101 | BF40: =MAX((AW40*0/100000)*IF(JointLife_Ind=1,(1+AV40),1)*(VLOOKUP(Payout_Mode,'Modal Factors'!$C$4:$D$7,2,0))*IF(OR(Input!$D$22="Yes",Input!$D$23="Yes"),Bonus_LP,1)/VLOOKUP(Payout_Mode,$X$3:$Z$6,3,0),IF(Payout_Mode=1,12000,IF(Payout_Mode=2,6000,IF(Payout_Mode=3,3000,1000)))) -> 12000 | BH40: =IF(OR(Age_1>75,AND(Calculator!$E$22="Joint Life",Age_2>75)),"Maximum entry age is 75 years","") ->  | BI40: =IF(Request=2, IF(Annuity_Input<Check!BF40,"Minimum Annuity amount should be "&ROUNDUP(BF40,0),""),"") -> 
A41: Minimum Annuity Amount | B41: =(Annuity_Base*150000/100000)*IF(JointLife_Ind=1,(1+$B$16),1)*(VLOOKUP(Payout_Mode,'Modal Factors'!$C$4:$D$7,2,0))*IF(OR(Input!D22="Yes",Input!D23="Yes"),Bonus_SP,1)/VLOOKUP(Payout_Mode,$X$3:$Z$6,3,0) -> 11316.123 | AH41: 9 | AI41: Option 9 - Deferred Life Annuity with Return of Purchase Price | AN41: 6 | AO41: 13 | AP41: 1 | AQ41: 'Limited Pay'!$Q$9:$AC$85 | AS41: 11 | AT41: 'Limited Pay'!$Q$91:$AC$167 | AV41: =IF($J$12=0,0,VLOOKUP(Age_1,'Joint Life Factors'!$A$9:$L$12,12,TRUE)) -> 0.015 | AW41: 75141 | AX41: 76877 | AY41: =IF(Age_1+AO41>75,"NA",IF(Request=2,Annuity_Input,((AW41*MIN(50000,Premium_Input)/100000)+AX41*IF(Premium_Input>50000,(Premium_Input-50000)/100000,0))*IF(JointLife_Ind=1,(1+AV41),1)*(VLOOKUP(Payout_Mode,'Modal Factors'!$C$4:$D$7,2,0))*IF(OR(Input!$D$22="Yes",Input!$D$23="Yes"),Bonus_LP,1)/VLOOKUP(Payout_Mode,$X$3:$Z$6,3,0))) -> 4037148.666 | AZ41: =IF(Request=1,Premium_Input,((((AY41*VLOOKUP(Payout_Mode,$X$3:$Z$6,3,0))/(VLOOKUP(Payout_Mode,'Modal Factors'!$C$4:$D$7,2,0))/(IF(OR(Input!$D$22="Yes",Input!$D$23="Yes"),Bonus_SP,1)))/IF(JointLife_Ind=0,1,(1+$AV41)))-(200000*AW41)/100000)/(AX41/100000)+200000) -> 5000000 | BA41: =IF(Request=1,Premium_Input,((((AY41*VLOOKUP(Payout_Mode,$X$3:$Z$6,3,0))/(VLOOKUP(Payout_Mode,'Modal Factors'!$C$4:$D$7,2,0))/(IF(OR(Input!$D$22="Yes",Input!$D$23="Yes"),Bonus_SP,1)))/IF(JointLife_Ind=0,1,(1+$AV41)))/(AW41/100000))) -> 5000000 | BB41: 5000000 | BC41: =(((($L$14*VLOOKUP(Payout_Mode,$X$3:$Z$6,3,0))/(VLOOKUP(Payout_Mode,'Modal Factors'!$C$4:$D$7,2,0))/(IF(OR(Input!$D$22="Yes",Input!$D$23="Yes"),Bonus_LP,1)))/IF(JointLife_Ind=0,1,(1+AV41)))-(50000*AW41)/100000)/(AX41/100000)+50000 -> 15987.69463 | BD41: =(((($L$14*VLOOKUP(Payout_Mode,$X$3:$Z$6,3,0))/(VLOOKUP(Payout_Mode,'Modal Factors'!$C$4:$D$7,2,0))/(IF(OR(Input!$D$22="Yes",Input!$D$23="Yes"),Bonus_LP,1)))/IF(JointLife_Ind=0,1,(1+AV41)))/(AW41/100000)) -> 15201.90043 | BE41: 15201.90043 | BF41: =MAX((AW41*0/100000)*IF(JointLife_Ind=1,(1+AV41),1)*(VLOOKUP(Payout_Mode,'Modal Factors'!$C$4:$D$7,2,0))*IF(OR(Input!$D$22="Yes",Input!$D$23="Yes"),Bonus_LP,1)/VLOOKUP(Payout_Mode,$X$3:$Z$6,3,0),IF(Payout_Mode=1,12000,IF(Payout_Mode=2,6000,IF(Payout_Mode=3,3000,1000)))) -> 12000 | BH41: =IF(OR(Age_1>75,AND(Calculator!$E$22="Joint Life",Age_2>75)),"Maximum entry age is 75 years","") ->  | BI41: =IF(Request=2, IF(Annuity_Input<Check!BF41,"Minimum Annuity amount should be "&ROUNDUP(BF41,0),""),"") -> 
AH42: 9 | AI42: Option 9 - Deferred Life Annuity with Return of Purchase Price | AN42: 6 | AO42: 14 | AP42: 1 | AQ42: 'Limited Pay'!$Q$9:$AC$85 | AS42: 12 | AT42: 'Limited Pay'!$Q$91:$AC$167 | AV42: =IF($J$12=0,0,VLOOKUP(Age_1,'Joint Life Factors'!$A$9:$L$12,12,TRUE)) -> 0.015 | AW42: 80132 | AX42: 81726 | AY42: =IF(Age_1+AO42>75,"NA",IF(Request=2,Annuity_Input,((AW42*MIN(50000,Premium_Input)/100000)+AX42*IF(Premium_Input>50000,(Premium_Input-50000)/100000,0))*IF(JointLife_Ind=1,(1+AV42),1)*(VLOOKUP(Payout_Mode,'Modal Factors'!$C$4:$D$7,2,0))*IF(OR(Input!$D$22="Yes",Input!$D$23="Yes"),Bonus_LP,1)/VLOOKUP(Payout_Mode,$X$3:$Z$6,3,0))) -> 4291923.039 | AZ42: =IF(Request=1,Premium_Input,((((AY42*VLOOKUP(Payout_Mode,$X$3:$Z$6,3,0))/(VLOOKUP(Payout_Mode,'Modal Factors'!$C$4:$D$7,2,0))/(IF(OR(Input!$D$22="Yes",Input!$D$23="Yes"),Bonus_SP,1)))/IF(JointLife_Ind=0,1,(1+$AV42)))-(200000*AW42)/100000)/(AX42/100000)+200000) -> 5000000 | BA42: =IF(Request=1,Premium_Input,((((AY42*VLOOKUP(Payout_Mode,$X$3:$Z$6,3,0))/(VLOOKUP(Payout_Mode,'Modal Factors'!$C$4:$D$7,2,0))/(IF(OR(Input!$D$22="Yes",Input!$D$23="Yes"),Bonus_SP,1)))/IF(JointLife_Ind=0,1,(1+$AV42)))/(AW42/100000))) -> 5000000 | BB42: 5000000 | BC42: =(((($L$14*VLOOKUP(Payout_Mode,$X$3:$Z$6,3,0))/(VLOOKUP(Payout_Mode,'Modal Factors'!$C$4:$D$7,2,0))/(IF(OR(Input!$D$22="Yes",Input!$D$23="Yes"),Bonus_LP,1)))/IF(JointLife_Ind=0,1,(1+AV42)))-(50000*AW42)/100000)/(AX42/100000)+50000 -> 14952.23062 | BD42: =(((($L$14*VLOOKUP(Payout_Mode,$X$3:$Z$6,3,0))/(VLOOKUP(Payout_Mode,'Modal Factors'!$C$4:$D$7,2,0))/(IF(OR(Input!$D$22="Yes",Input!$D$23="Yes"),Bonus_LP,1)))/IF(JointLife_Ind=0,1,(1+AV42)))/(AW42/100000)) -> 14255.05416 | BE42: 14255.05416 | BF42: =MAX((AW42*0/100000)*IF(JointLife_Ind=1,(1+AV42),1)*(VLOOKUP(Payout_Mode,'Modal Factors'!$C$4:$D$7,2,0))*IF(OR(Input!$D$22="Yes",Input!$D$23="Yes"),Bonus_LP,1)/VLOOKUP(Payout_Mode,$X$3:$Z$6,3,0),IF(Payout_Mode=1,12000,IF(Payout_Mode=2,6000,IF(Payout_Mode=3,3000,1000)))) -> 12000 | BH42: =IF(OR(Age_1>75,AND(Calculator!$E$22="Joint Life",Age_2>75)),"Maximum entry age is 75 years","") ->  | BI42: =IF(Request=2, IF(Annuity_Input<Check!BF42,"Minimum Annuity amount should be "&ROUNDUP(BF42,0),""),"") -> 
AH43: 9 | AI43: Option 9 - Deferred Life Annuity with Return of Purchase Price | AN43: 6 | AO43: 15 | AP43: 1 | AQ43: 'Limited Pay'!$Q$9:$AC$85 | AS43: 13 | AT43: 'Limited Pay'!$Q$91:$AC$167 | AV43: =IF($J$12=0,0,VLOOKUP(Age_1,'Joint Life Factors'!$A$9:$L$12,12,TRUE)) -> 0.015 | AW43: 84350 | AX43: 86283 | AY43: =IF(Age_1+AO43>75,"NA",IF(Request=2,Annuity_Input,((AW43*MIN(50000,Premium_Input)/100000)+AX43*IF(Premium_Input>50000,(Premium_Input-50000)/100000,0))*IF(JointLife_Ind=1,(1+AV43),1)*(VLOOKUP(Payout_Mode,'Modal Factors'!$C$4:$D$7,2,0))*IF(OR(Input!$D$22="Yes",Input!$D$23="Yes"),Bonus_LP,1)/VLOOKUP(Payout_Mode,$X$3:$Z$6,3,0))) -> 4531107.096 | AZ43: =IF(Request=1,Premium_Input,((((AY43*VLOOKUP(Payout_Mode,$X$3:$Z$6,3,0))/(VLOOKUP(Payout_Mode,'Modal Factors'!$C$4:$D$7,2,0))/(IF(OR(Input!$D$22="Yes",Input!$D$23="Yes"),Bonus_SP,1)))/IF(JointLife_Ind=0,1,(1+$AV43)))-(200000*AW43)/100000)/(AX43/100000)+200000) -> 5000000 | BA43: =IF(Request=1,Premium_Input,((((AY43*VLOOKUP(Payout_Mode,$X$3:$Z$6,3,0))/(VLOOKUP(Payout_Mode,'Modal Factors'!$C$4:$D$7,2,0))/(IF(OR(Input!$D$22="Yes",Input!$D$23="Yes"),Bonus_SP,1)))/IF(JointLife_Ind=0,1,(1+$AV43)))/(AW43/100000))) -> 5000000 | BB43: 5000000 | BC43: =(((($L$14*VLOOKUP(Payout_Mode,$X$3:$Z$6,3,0))/(VLOOKUP(Payout_Mode,'Modal Factors'!$C$4:$D$7,2,0))/(IF(OR(Input!$D$22="Yes",Input!$D$23="Yes"),Bonus_LP,1)))/IF(JointLife_Ind=0,1,(1+AV43)))-(50000*AW43)/100000)/(AX43/100000)+50000 -> 14358.98149 | BD43: =(((($L$14*VLOOKUP(Payout_Mode,$X$3:$Z$6,3,0))/(VLOOKUP(Payout_Mode,'Modal Factors'!$C$4:$D$7,2,0))/(IF(OR(Input!$D$22="Yes",Input!$D$23="Yes"),Bonus_LP,1)))/IF(JointLife_Ind=0,1,(1+AV43)))/(AW43/100000)) -> 13542.21695 | BE43: 13542.21695 | BF43: =MAX((AW43*0/100000)*IF(JointLife_Ind=1,(1+AV43),1)*(VLOOKUP(Payout_Mode,'Modal Factors'!$C$4:$D$7,2,0))*IF(OR(Input!$D$22="Yes",Input!$D$23="Yes"),Bonus_LP,1)/VLOOKUP(Payout_Mode,$X$3:$Z$6,3,0),IF(Payout_Mode=1,12000,IF(Payout_Mode=2,6000,IF(Payout_Mode=3,3000,1000)))) -> 12000 | BH43: =IF(OR(Age_1>75,AND(Calculator!$E$22="Joint Life",Age_2>75)),"Maximum entry age is 75 years","") ->  | BI43: =IF(Request=2, IF(Annuity_Input<Check!BF43,"Minimum Annuity amount should be "&ROUNDUP(BF43,0),""),"") -> 
AH44: 9 | AI44: Option 9 - Deferred Life Annuity with Return of Purchase Price | AN44: 7 | AO44: =AN44+0 -> 7 | AP44: 1 | AQ44: 'Limited Pay'!$AE$9:$AP$85 | AS44: =AO44-3 -> 4 | AT44: 'Limited Pay'!$AE$91:$AP$167 | AV44: =IF($J$12=0,0,VLOOKUP(Age_1,'Joint Life Factors'!$A$9:$L$12,12,TRUE)) -> 0.015 | AW44: 55559 | AX44: 57538 | AY44: =IF(Age_1+AO44>77,"NA",IF(Request=2,Annuity_Input,((AW44*MIN(50000,Premium_Input)/100000)+AX44*IF(Premium_Input>50000,(Premium_Input-50000)/100000,0))*IF(JointLife_Ind=1,(1+AV44),1)*(VLOOKUP(Payout_Mode,'Modal Factors'!$C$4:$D$7,2,0))*IF(OR(Input!$D$22="Yes",Input!$D$23="Yes"),Bonus_LP,1)/VLOOKUP(Payout_Mode,$X$3:$Z$6,3,0))) -> 3021215.878 | AZ44: =IF(Request=1,Premium_Input,((((AY44*VLOOKUP(Payout_Mode,$X$3:$Z$6,3,0))/(VLOOKUP(Payout_Mode,'Modal Factors'!$C$4:$D$7,2,0))/(IF(OR(Input!$D$22="Yes",Input!$D$23="Yes"),Bonus_SP,1)))/IF(JointLife_Ind=0,1,(1+$AV44)))-(200000*AW44)/100000)/(AX44/100000)+200000) -> 5000000 | BA44: =IF(Request=1,Premium_Input,((((AY44*VLOOKUP(Payout_Mode,$X$3:$Z$6,3,0))/(VLOOKUP(Payout_Mode,'Modal Factors'!$C$4:$D$7,2,0))/(IF(OR(Input!$D$22="Yes",Input!$D$23="Yes"),Bonus_SP,1)))/IF(JointLife_Ind=0,1,(1+$AV44)))/(AW44/100000))) -> 5000000 | BB44: =IF(Age_1+AO44>77,"NA",IF(AZ44>50000,AZ44,BA44)) -> 5000000 | BC44: =(((($L$14*VLOOKUP(Payout_Mode,$X$3:$Z$6,3,0))/(VLOOKUP(Payout_Mode,'Modal Factors'!$C$4:$D$7,2,0))/(IF(OR(Input!$D$22="Yes",Input!$D$23="Yes"),Bonus_LP,1)))/IF(JointLife_Ind=0,1,(1+AV44)))-(50000*AW44)/100000)/(AX44/100000)+50000 -> 21572.45646 | BD44: =(((($L$14*VLOOKUP(Payout_Mode,$X$3:$Z$6,3,0))/(VLOOKUP(Payout_Mode,'Modal Factors'!$C$4:$D$7,2,0))/(IF(OR(Input!$D$22="Yes",Input!$D$23="Yes"),Bonus_LP,1)))/IF(JointLife_Ind=0,1,(1+AV44)))/(AW44/100000)) -> 20559.87329 | BE44: 20559.87329 | BF44: =MAX((AW44*0/100000)*IF(JointLife_Ind=1,(1+AV44),1)*(VLOOKUP(Payout_Mode,'Modal Factors'!$C$4:$D$7,2,0))*IF(OR(Input!$D$22="Yes",Input!$D$23="Yes"),Bonus_LP,1)/VLOOKUP(Payout_Mode,$X$3:$Z$6,3,0),IF(Payout_Mode=1,12000,IF(Payout_Mode=2,6000,IF(Payout_Mode=3,3000,1000)))) -> 12000 | BH44: =IF(OR(Age_1>75,AND(Calculator!$E$22="Joint Life",Age_2>75)),"Maximum entry age is 75 years","") ->  | BI44: =IF(Request=2, IF(Annuity_Input<Check!BF44,"Minimum Annuity amount should be "&ROUNDUP(BF44,0),""),"") -> 
AH45: 9 | AI45: Option 9 - Deferred Life Annuity with Return of Purchase Price | AN45: =AN44 -> 7 | AO45: =AO44+1 -> 8 | AP45: 1 | AQ45: 'Limited Pay'!$AE$9:$AP$85 | AS45: =AO45-3 -> 5 | AT45: 'Limited Pay'!$AE$91:$AP$167 | AV45: =IF($J$12=0,0,VLOOKUP(Age_1,'Joint Life Factors'!$A$9:$L$12,12,TRUE)) -> 0.015 | AW45: 60039 | AX45: 62182 | AY45: =IF(Age_1+AO45>75,"NA",IF(Request=2,Annuity_Input,((AW45*MIN(50000,Premium_Input)/100000)+AX45*IF(Premium_Input>50000,(Premium_Input-50000)/100000,0))*IF(JointLife_Ind=1,(1+AV45),1)*(VLOOKUP(Payout_Mode,'Modal Factors'!$C$4:$D$7,2,0))*IF(OR(Input!$D$22="Yes",Input!$D$23="Yes"),Bonus_LP,1)/VLOOKUP(Payout_Mode,$X$3:$Z$6,3,0))) -> 3265061.64 | AZ45: =IF(Request=1,Premium_Input,((((AY45*VLOOKUP(Payout_Mode,$X$3:$Z$6,3,0))/(VLOOKUP(Payout_Mode,'Modal Factors'!$C$4:$D$7,2,0))/(IF(OR(Input!$D$22="Yes",Input!$D$23="Yes"),Bonus_SP,1)))/IF(JointLife_Ind=0,1,(1+$AV45)))-(200000*AW45)/100000)/(AX45/100000)+200000) -> 5000000 | BA45: =IF(Request=1,Premium_Input,((((AY45*VLOOKUP(Payout_Mode,$X$3:$Z$6,3,0))/(VLOOKUP(Payout_Mode,'Modal Factors'!$C$4:$D$7,2,0))/(IF(OR(Input!$D$22="Yes",Input!$D$23="Yes"),Bonus_SP,1)))/IF(JointLife_Ind=0,1,(1+$AV45)))/(AW45/100000))) -> 5000000 | BB45: 5000000 | BC45: =(((($L$14*VLOOKUP(Payout_Mode,$X$3:$Z$6,3,0))/(VLOOKUP(Payout_Mode,'Modal Factors'!$C$4:$D$7,2,0))/(IF(OR(Input!$D$22="Yes",Input!$D$23="Yes"),Bonus_LP,1)))/IF(JointLife_Ind=0,1,(1+AV45)))-(50000*AW45)/100000)/(AX45/100000)+50000 -> 20093.21025 | BD45: =(((($L$14*VLOOKUP(Payout_Mode,$X$3:$Z$6,3,0))/(VLOOKUP(Payout_Mode,'Modal Factors'!$C$4:$D$7,2,0))/(IF(OR(Input!$D$22="Yes",Input!$D$23="Yes"),Bonus_LP,1)))/IF(JointLife_Ind=0,1,(1+AV45)))/(AW45/100000)) -> 19025.73327 | BE45: 19025.73327 | BF45: =MAX((AW45*0/100000)*IF(JointLife_Ind=1,(1+AV45),1)*(VLOOKUP(Payout_Mode,'Modal Factors'!$C$4:$D$7,2,0))*IF(OR(Input!$D$22="Yes",Input!$D$23="Yes"),Bonus_LP,1)/VLOOKUP(Payout_Mode,$X$3:$Z$6,3,0),IF(Payout_Mode=1,12000,IF(Payout_Mode=2,6000,IF(Payout_Mode=3,3000,1000)))) -> 12000 | BH45: =IF(OR(Age_1>75,AND(Calculator!$E$22="Joint Life",Age_2>75)),"Maximum entry age is 75 years","") ->  | BI45: =IF(Request=2, IF(Annuity_Input<Check!BF45,"Minimum Annuity amount should be "&ROUNDUP(BF45,0),""),"") -> 
A46: Guaranteed Addition % (Annual) | B46: =2%*12 -> 0.24 | AH46: 9 | AI46: Option 9 - Deferred Life Annuity with Return of Purchase Price | AN46: =AN45 -> 7 | AO46: =AO45+1 -> 9 | AP46: 1 | AQ46: 'Limited Pay'!$AE$9:$AP$85 | AS46: 6 | AT46: 'Limited Pay'!$AE$91:$AP$167 | AV46: =IF($J$12=0,0,VLOOKUP(Age_1,'Joint Life Factors'!$A$9:$L$12,12,TRUE)) -> 0.015 | AW46: 63858 | AX46: 66220 | AY46: =IF(Age_1+AO46>75,"NA",IF(Request=2,Annuity_Input,((AW46*MIN(50000,Premium_Input)/100000)+AX46*IF(Premium_Input>50000,(Premium_Input-50000)/100000,0))*IF(JointLife_Ind=1,(1+AV46),1)*(VLOOKUP(Payout_Mode,'Modal Factors'!$C$4:$D$7,2,0))*IF(OR(Input!$D$22="Yes",Input!$D$23="Yes"),Bonus_LP,1)/VLOOKUP(Payout_Mode,$X$3:$Z$6,3,0))) -> 3477047.605 | AZ46: =IF(Request=1,Premium_Input,((((AY46*VLOOKUP(Payout_Mode,$X$3:$Z$6,3,0))/(VLOOKUP(Payout_Mode,'Modal Factors'!$C$4:$D$7,2,0))/(IF(OR(Input!$D$22="Yes",Input!$D$23="Yes"),Bonus_SP,1)))/IF(JointLife_Ind=0,1,(1+$AV46)))-(200000*AW46)/100000)/(AX46/100000)+200000) -> 5000000 | BA46: =IF(Request=1,Premium_Input,((((AY46*VLOOKUP(Payout_Mode,$X$3:$Z$6,3,0))/(VLOOKUP(Payout_Mode,'Modal Factors'!$C$4:$D$7,2,0))/(IF(OR(Input!$D$22="Yes",Input!$D$23="Yes"),Bonus_SP,1)))/IF(JointLife_Ind=0,1,(1+$AV46)))/(AW46/100000))) -> 5000000 | BB46: 5000000 | BC46: =(((($L$14*VLOOKUP(Payout_Mode,$X$3:$Z$6,3,0))/(VLOOKUP(Payout_Mode,'Modal Factors'!$C$4:$D$7,2,0))/(IF(OR(Input!$D$22="Yes",Input!$D$23="Yes"),Bonus_LP,1)))/IF(JointLife_Ind=0,1,(1+AV46)))-(50000*AW46)/100000)/(AX46/100000)+50000 -> 19033.3132 | BD46: =(((($L$14*VLOOKUP(Payout_Mode,$X$3:$Z$6,3,0))/(VLOOKUP(Payout_Mode,'Modal Factors'!$C$4:$D$7,2,0))/(IF(OR(Input!$D$22="Yes",Input!$D$23="Yes"),Bonus_LP,1)))/IF(JointLife_Ind=0,1,(1+AV46)))/(AW46/100000)) -> 17887.90754 | BE46: 17887.90754 | BF46: =MAX((AW46*0/100000)*IF(JointLife_Ind=1,(1+AV46),1)*(VLOOKUP(Payout_Mode,'Modal Factors'!$C$4:$D$7,2,0))*IF(OR(Input!$D$22="Yes",Input!$D$23="Yes"),Bonus_LP,1)/VLOOKUP(Payout_Mode,$X$3:$Z$6,3,0),IF(Payout_Mode=1,12000,IF(Payout_Mode=2,6000,IF(Payout_Mode=3,3000,1000)))) -> 12000 | BH46: =IF(OR(Age_1>75,AND(Calculator!$E$22="Joint Life",Age_2>75)),"Maximum entry age is 75 years","") ->  | BI46: =IF(Request=2, IF(Annuity_Input<Check!BF46,"Minimum Annuity amount should be "&ROUNDUP(BF46,0),""),"") -> 
AH47: 9 | AI47: Option 9 - Deferred Life Annuity with Return of Purchase Price | AN47: 7 | AO47: 10 | AP47: 1 | AQ47: 'Limited Pay'!$AE$9:$AP$85 | AS47: 7 | AT47: 'Limited Pay'!$AE$91:$AP$167 | AV47: =IF($J$12=0,0,VLOOKUP(Age_1,'Joint Life Factors'!$A$9:$L$12,12,TRUE)) -> 0.015 | AW47: 68508 | AX47: 70930 | AY47: =IF(Age_1+AO47>75,"NA",IF(Request=2,Annuity_Input,((AW47*MIN(50000,Premium_Input)/100000)+AX47*IF(Premium_Input>50000,(Premium_Input-50000)/100000,0))*IF(JointLife_Ind=1,(1+AV47),1)*(VLOOKUP(Payout_Mode,'Modal Factors'!$C$4:$D$7,2,0))*IF(OR(Input!$D$22="Yes",Input!$D$23="Yes"),Bonus_LP,1)/VLOOKUP(Payout_Mode,$X$3:$Z$6,3,0))) -> 3724414.727 | AZ47: =IF(Request=1,Premium_Input,((((AY47*VLOOKUP(Payout_Mode,$X$3:$Z$6,3,0))/(VLOOKUP(Payout_Mode,'Modal Factors'!$C$4:$D$7,2,0))/(IF(OR(Input!$D$22="Yes",Input!$D$23="Yes"),Bonus_SP,1)))/IF(JointLife_Ind=0,1,(1+$AV47)))-(200000*AW47)/100000)/(AX47/100000)+200000) -> 5000000 | BA47: =IF(Request=1,Premium_Input,((((AY47*VLOOKUP(Payout_Mode,$X$3:$Z$6,3,0))/(VLOOKUP(Payout_Mode,'Modal Factors'!$C$4:$D$7,2,0))/(IF(OR(Input!$D$22="Yes",Input!$D$23="Yes"),Bonus_SP,1)))/IF(JointLife_Ind=0,1,(1+$AV47)))/(AW47/100000))) -> 5000000 | BB47: 5000000 | BC47: =(((($L$14*VLOOKUP(Payout_Mode,$X$3:$Z$6,3,0))/(VLOOKUP(Payout_Mode,'Modal Factors'!$C$4:$D$7,2,0))/(IF(OR(Input!$D$22="Yes",Input!$D$23="Yes"),Bonus_LP,1)))/IF(JointLife_Ind=0,1,(1+AV47)))-(50000*AW47)/100000)/(AX47/100000)+50000 -> 17811.72987 | BD47: =(((($L$14*VLOOKUP(Payout_Mode,$X$3:$Z$6,3,0))/(VLOOKUP(Payout_Mode,'Modal Factors'!$C$4:$D$7,2,0))/(IF(OR(Input!$D$22="Yes",Input!$D$23="Yes"),Bonus_LP,1)))/IF(JointLife_Ind=0,1,(1+AV47)))/(AW47/100000)) -> 16673.76073 | BE47: 16673.76073 | BF47: =MAX((AW47*0/100000)*IF(JointLife_Ind=1,(1+AV47),1)*(VLOOKUP(Payout_Mode,'Modal Factors'!$C$4:$D$7,2,0))*IF(OR(Input!$D$22="Yes",Input!$D$23="Yes"),Bonus_LP,1)/VLOOKUP(Payout_Mode,$X$3:$Z$6,3,0),IF(Payout_Mode=1,12000,IF(Payout_Mode=2,6000,IF(Payout_Mode=3,3000,1000)))) -> 12000 | BH47: =IF(OR(Age_1>75,AND(Calculator!$E$22="Joint Life",Age_2>75)),"Maximum entry age is 75 years","") ->  | BI47: =IF(Request=2, IF(Annuity_Input<Check!BF47,"Minimum Annuity amount should be "&ROUNDUP(BF47,0),""),"") -> 
AH48: 9 | AI48: Option 9 - Deferred Life Annuity with Return of Purchase Price | AN48: 7 | AO48: 11 | AP48: 1 | AQ48: 'Limited Pay'!$AE$9:$AP$85 | AS48: 8 | AT48: 'Limited Pay'!$AE$91:$AP$167 | AV48: =IF($J$12=0,0,VLOOKUP(Age_1,'Joint Life Factors'!$A$9:$L$12,12,TRUE)) -> 0.015 | AW48: 75308 | AX48: 77911 | AY48: =IF(Age_1+AO48>75,"NA",IF(Request=2,Annuity_Input,((AW48*MIN(50000,Premium_Input)/100000)+AX48*IF(Premium_Input>50000,(Premium_Input-50000)/100000,0))*IF(JointLife_Ind=1,(1+AV48),1)*(VLOOKUP(Payout_Mode,'Modal Factors'!$C$4:$D$7,2,0))*IF(OR(Input!$D$22="Yes",Input!$D$23="Yes"),Bonus_LP,1)/VLOOKUP(Payout_Mode,$X$3:$Z$6,3,0))) -> 4091005.405 | AZ48: =IF(Request=1,Premium_Input,((((AY48*VLOOKUP(Payout_Mode,$X$3:$Z$6,3,0))/(VLOOKUP(Payout_Mode,'Modal Factors'!$C$4:$D$7,2,0))/(IF(OR(Input!$D$22="Yes",Input!$D$23="Yes"),Bonus_SP,1)))/IF(JointLife_Ind=0,1,(1+$AV48)))-(200000*AW48)/100000)/(AX48/100000)+200000) -> 5000000 | BA48: =IF(Request=1,Premium_Input,((((AY48*VLOOKUP(Payout_Mode,$X$3:$Z$6,3,0))/(VLOOKUP(Payout_Mode,'Modal Factors'!$C$4:$D$7,2,0))/(IF(OR(Input!$D$22="Yes",Input!$D$23="Yes"),Bonus_SP,1)))/IF(JointLife_Ind=0,1,(1+$AV48)))/(AW48/100000))) -> 5000000 | BB48: 5000000 | BC48: =(((($L$14*VLOOKUP(Payout_Mode,$X$3:$Z$6,3,0))/(VLOOKUP(Payout_Mode,'Modal Factors'!$C$4:$D$7,2,0))/(IF(OR(Input!$D$22="Yes",Input!$D$23="Yes"),Bonus_LP,1)))/IF(JointLife_Ind=0,1,(1+AV48)))-(50000*AW48)/100000)/(AX48/100000)+50000 -> 16331.91719 | BD48: =(((($L$14*VLOOKUP(Payout_Mode,$X$3:$Z$6,3,0))/(VLOOKUP(Payout_Mode,'Modal Factors'!$C$4:$D$7,2,0))/(IF(OR(Input!$D$22="Yes",Input!$D$23="Yes"),Bonus_LP,1)))/IF(JointLife_Ind=0,1,(1+AV48)))/(AW48/100000)) -> 15168.1893 | BE48: 15168.1893 | BF48: =MAX((AW48*0/100000)*IF(JointLife_Ind=1,(1+AV48),1)*(VLOOKUP(Payout_Mode,'Modal Factors'!$C$4:$D$7,2,0))*IF(OR(Input!$D$22="Yes",Input!$D$23="Yes"),Bonus_LP,1)/VLOOKUP(Payout_Mode,$X$3:$Z$6,3,0),IF(Payout_Mode=1,12000,IF(Payout_Mode=2,6000,IF(Payout_Mode=3,3000,1000)))) -> 12000 | BH48: =IF(OR(Age_1>75,AND(Calculator!$E$22="Joint Life",Age_2>75)),"Maximum entry age is 75 years","") ->  | BI48: =IF(Request=2, IF(Annuity_Input<Check!BF48,"Minimum Annuity amount should be "&ROUNDUP(BF48,0),""),"") -> 
AH49: 9 | AI49: Option 9 - Deferred Life Annuity with Return of Purchase Price | AN49: 7 | AO49: 12 | AP49: 1 | AQ49: 'Limited Pay'!$AE$9:$AP$85 | AS49: 9 | AT49: 'Limited Pay'!$AE$91:$AP$167 | AV49: =IF($J$12=0,0,VLOOKUP(Age_1,'Joint Life Factors'!$A$9:$L$12,12,TRUE)) -> 0.015 | AW49: 82395 | AX49: 84957 | AY49: =IF(Age_1+AO49>75,"NA",IF(Request=2,Annuity_Input,((AW49*MIN(50000,Premium_Input)/100000)+AX49*IF(Premium_Input>50000,(Premium_Input-50000)/100000,0))*IF(JointLife_Ind=1,(1+AV49),1)*(VLOOKUP(Payout_Mode,'Modal Factors'!$C$4:$D$7,2,0))*IF(OR(Input!$D$22="Yes",Input!$D$23="Yes"),Bonus_LP,1)/VLOOKUP(Payout_Mode,$X$3:$Z$6,3,0))) -> 4461126.899 | AZ49: =IF(Request=1,Premium_Input,((((AY49*VLOOKUP(Payout_Mode,$X$3:$Z$6,3,0))/(VLOOKUP(Payout_Mode,'Modal Factors'!$C$4:$D$7,2,0))/(IF(OR(Input!$D$22="Yes",Input!$D$23="Yes"),Bonus_SP,1)))/IF(JointLife_Ind=0,1,(1+$AV49)))-(200000*AW49)/100000)/(AX49/100000)+200000) -> 5000000 | BA49: =IF(Request=1,Premium_Input,((((AY49*VLOOKUP(Payout_Mode,$X$3:$Z$6,3,0))/(VLOOKUP(Payout_Mode,'Modal Factors'!$C$4:$D$7,2,0))/(IF(OR(Input!$D$22="Yes",Input!$D$23="Yes"),Bonus_SP,1)))/IF(JointLife_Ind=0,1,(1+$AV49)))/(AW49/100000))) -> 5000000 | BB49: 5000000 | BC49: =(((($L$14*VLOOKUP(Payout_Mode,$X$3:$Z$6,3,0))/(VLOOKUP(Payout_Mode,'Modal Factors'!$C$4:$D$7,2,0))/(IF(OR(Input!$D$22="Yes",Input!$D$23="Yes"),Bonus_LP,1)))/IF(JointLife_Ind=0,1,(1+AV49)))-(50000*AW49)/100000)/(AX49/100000)+50000 -> 14953.28225 | BD49: =(((($L$14*VLOOKUP(Payout_Mode,$X$3:$Z$6,3,0))/(VLOOKUP(Payout_Mode,'Modal Factors'!$C$4:$D$7,2,0))/(IF(OR(Input!$D$22="Yes",Input!$D$23="Yes"),Bonus_LP,1)))/IF(JointLife_Ind=0,1,(1+AV49)))/(AW49/100000)) -> 13863.53541 | BE49: 13863.53541 | BF49: =MAX((AW49*0/100000)*IF(JointLife_Ind=1,(1+AV49),1)*(VLOOKUP(Payout_Mode,'Modal Factors'!$C$4:$D$7,2,0))*IF(OR(Input!$D$22="Yes",Input!$D$23="Yes"),Bonus_LP,1)/VLOOKUP(Payout_Mode,$X$3:$Z$6,3,0),IF(Payout_Mode=1,12000,IF(Payout_Mode=2,6000,IF(Payout_Mode=3,3000,1000)))) -> 12000 | BH49: =IF(OR(Age_1>75,AND(Calculator!$E$22="Joint Life",Age_2>75)),"Maximum entry age is 75 years","") ->  | BI49: =IF(Request=2, IF(Annuity_Input<Check!BF49,"Minimum Annuity amount should be "&ROUNDUP(BF49,0),""),"") -> 
AH50: 9 | AI50: Option 9 - Deferred Life Annuity with Return of Purchase Price | AN50: 7 | AO50: 13 | AP50: 1 | AQ50: 'Limited Pay'!$AE$9:$AP$85 | AS50: 10 | AT50: 'Limited Pay'!$AE$91:$AP$167 | AV50: =IF($J$12=0,0,VLOOKUP(Age_1,'Joint Life Factors'!$A$9:$L$12,12,TRUE)) -> 0.015 | AW50: 89692 | AX50: 92168 | AY50: =IF(Age_1+AO50>75,"NA",IF(Request=2,Annuity_Input,((AW50*MIN(50000,Premium_Input)/100000)+AX50*IF(Premium_Input>50000,(Premium_Input-50000)/100000,0))*IF(JointLife_Ind=1,(1+AV50),1)*(VLOOKUP(Payout_Mode,'Modal Factors'!$C$4:$D$7,2,0))*IF(OR(Input!$D$22="Yes",Input!$D$23="Yes"),Bonus_LP,1)/VLOOKUP(Payout_Mode,$X$3:$Z$6,3,0))) -> 4839938.86 | AZ50: =IF(Request=1,Premium_Input,((((AY50*VLOOKUP(Payout_Mode,$X$3:$Z$6,3,0))/(VLOOKUP(Payout_Mode,'Modal Factors'!$C$4:$D$7,2,0))/(IF(OR(Input!$D$22="Yes",Input!$D$23="Yes"),Bonus_SP,1)))/IF(JointLife_Ind=0,1,(1+$AV50)))-(200000*AW50)/100000)/(AX50/100000)+200000) -> 5000000 | BA50: =IF(Request=1,Premium_Input,((((AY50*VLOOKUP(Payout_Mode,$X$3:$Z$6,3,0))/(VLOOKUP(Payout_Mode,'Modal Factors'!$C$4:$D$7,2,0))/(IF(OR(Input!$D$22="Yes",Input!$D$23="Yes"),Bonus_SP,1)))/IF(JointLife_Ind=0,1,(1+$AV50)))/(AW50/100000))) -> 5000000 | BB50: 5000000 | BC50: =(((($L$14*VLOOKUP(Payout_Mode,$X$3:$Z$6,3,0))/(VLOOKUP(Payout_Mode,'Modal Factors'!$C$4:$D$7,2,0))/(IF(OR(Input!$D$22="Yes",Input!$D$23="Yes"),Bonus_LP,1)))/IF(JointLife_Ind=0,1,(1+AV50)))-(50000*AW50)/100000)/(AX50/100000)+50000 -> 13736.7199 | BD50: =(((($L$14*VLOOKUP(Payout_Mode,$X$3:$Z$6,3,0))/(VLOOKUP(Payout_Mode,'Modal Factors'!$C$4:$D$7,2,0))/(IF(OR(Input!$D$22="Yes",Input!$D$23="Yes"),Bonus_LP,1)))/IF(JointLife_Ind=0,1,(1+AV50)))/(AW50/100000)) -> 12735.65089 | BE50: 12735.65089 | BF50: =MAX((AW50*0/100000)*IF(JointLife_Ind=1,(1+AV50),1)*(VLOOKUP(Payout_Mode,'Modal Factors'!$C$4:$D$7,2,0))*IF(OR(Input!$D$22="Yes",Input!$D$23="Yes"),Bonus_LP,1)/VLOOKUP(Payout_Mode,$X$3:$Z$6,3,0),IF(Payout_Mode=1,12000,IF(Payout_Mode=2,6000,IF(Payout_Mode=3,3000,1000)))) -> 12000 | BH50: =IF(OR(Age_1>75,AND(Calculator!$E$22="Joint Life",Age_2>75)),"Maximum entry age is 75 years","") ->  | BI50: =IF(Request=2, IF(Annuity_Input<Check!BF50,"Minimum Annuity amount should be "&ROUNDUP(BF50,0),""),"") -> 
AH51: 9 | AI51: Option 9 - Deferred Life Annuity with Return of Purchase Price | AN51: 7 | AO51: 14 | AP51: 1 | AQ51: 'Limited Pay'!$AE$9:$AP$85 | AS51: 11 | AT51: 'Limited Pay'!$AE$91:$AP$167 | AV51: =IF($J$12=0,0,VLOOKUP(Age_1,'Joint Life Factors'!$A$9:$L$12,12,TRUE)) -> 0.015 | AW51: 96824 | AX51: 99209 | AY51: =IF(Age_1+AO51>75,"NA",IF(Request=2,Annuity_Input,((AW51*MIN(50000,Premium_Input)/100000)+AX51*IF(Premium_Input>50000,(Premium_Input-50000)/100000,0))*IF(JointLife_Ind=1,(1+AV51),1)*(VLOOKUP(Payout_Mode,'Modal Factors'!$C$4:$D$7,2,0))*IF(OR(Input!$D$22="Yes",Input!$D$23="Yes"),Bonus_LP,1)/VLOOKUP(Payout_Mode,$X$3:$Z$6,3,0))) -> 5209823.985 | AZ51: =IF(Request=1,Premium_Input,((((AY51*VLOOKUP(Payout_Mode,$X$3:$Z$6,3,0))/(VLOOKUP(Payout_Mode,'Modal Factors'!$C$4:$D$7,2,0))/(IF(OR(Input!$D$22="Yes",Input!$D$23="Yes"),Bonus_SP,1)))/IF(JointLife_Ind=0,1,(1+$AV51)))-(200000*AW51)/100000)/(AX51/100000)+200000) -> 5000000 | BA51: =IF(Request=1,Premium_Input,((((AY51*VLOOKUP(Payout_Mode,$X$3:$Z$6,3,0))/(VLOOKUP(Payout_Mode,'Modal Factors'!$C$4:$D$7,2,0))/(IF(OR(Input!$D$22="Yes",Input!$D$23="Yes"),Bonus_SP,1)))/IF(JointLife_Ind=0,1,(1+$AV51)))/(AW51/100000))) -> 5000000 | BB51: 5000000 | BC51: =(((($L$14*VLOOKUP(Payout_Mode,$X$3:$Z$6,3,0))/(VLOOKUP(Payout_Mode,'Modal Factors'!$C$4:$D$7,2,0))/(IF(OR(Input!$D$22="Yes",Input!$D$23="Yes"),Bonus_LP,1)))/IF(JointLife_Ind=0,1,(1+AV51)))-(50000*AW51)/100000)/(AX51/100000)+50000 -> 12715.94311 | BD51: =(((($L$14*VLOOKUP(Payout_Mode,$X$3:$Z$6,3,0))/(VLOOKUP(Payout_Mode,'Modal Factors'!$C$4:$D$7,2,0))/(IF(OR(Input!$D$22="Yes",Input!$D$23="Yes"),Bonus_LP,1)))/IF(JointLife_Ind=0,1,(1+AV51)))/(AW51/100000)) -> 11797.55019 | BE51: 11797.55019 | BF51: =MAX((AW51*0/100000)*IF(JointLife_Ind=1,(1+AV51),1)*(VLOOKUP(Payout_Mode,'Modal Factors'!$C$4:$D$7,2,0))*IF(OR(Input!$D$22="Yes",Input!$D$23="Yes"),Bonus_LP,1)/VLOOKUP(Payout_Mode,$X$3:$Z$6,3,0),IF(Payout_Mode=1,12000,IF(Payout_Mode=2,6000,IF(Payout_Mode=3,3000,1000)))) -> 12000 | BH51: =IF(OR(Age_1>75,AND(Calculator!$E$22="Joint Life",Age_2>75)),"Maximum entry age is 75 years","") ->  | BI51: =IF(Request=2, IF(Annuity_Input<Check!BF51,"Minimum Annuity amount should be "&ROUNDUP(BF51,0),""),"") -> 
AH52: 9 | AI52: Option 9 - Deferred Life Annuity with Return of Purchase Price | AN52: =AN51 -> 7 | AO52: 15 | AP52: 1 | AQ52: 'Limited Pay'!$AE$9:$AP$85 | AS52: 12 | AT52: 'Limited Pay'!$AE$91:$AP$167 | AV52: =IF($J$12=0,0,VLOOKUP(Age_1,'Joint Life Factors'!$A$9:$L$12,12,TRUE)) -> 0.015 | AW52: 102269 | AX52: 104488 | AY52: =IF(Age_1+AO52>75,"NA",IF(Request=2,Annuity_Input,((AW52*MIN(50000,Premium_Input)/100000)+AX52*IF(Premium_Input>50000,(Premium_Input-50000)/100000,0))*IF(JointLife_Ind=1,(1+AV52),1)*(VLOOKUP(Payout_Mode,'Modal Factors'!$C$4:$D$7,2,0))*IF(OR(Input!$D$22="Yes",Input!$D$23="Yes"),Bonus_LP,1)/VLOOKUP(Payout_Mode,$X$3:$Z$6,3,0))) -> 5487197.253 | AZ52: =IF(Request=1,Premium_Input,((((AY52*VLOOKUP(Payout_Mode,$X$3:$Z$6,3,0))/(VLOOKUP(Payout_Mode,'Modal Factors'!$C$4:$D$7,2,0))/(IF(OR(Input!$D$22="Yes",Input!$D$23="Yes"),Bonus_SP,1)))/IF(JointLife_Ind=0,1,(1+$AV52)))-(200000*AW52)/100000)/(AX52/100000)+200000) -> 5000000 | BA52: =IF(Request=1,Premium_Input,((((AY52*VLOOKUP(Payout_Mode,$X$3:$Z$6,3,0))/(VLOOKUP(Payout_Mode,'Modal Factors'!$C$4:$D$7,2,0))/(IF(OR(Input!$D$22="Yes",Input!$D$23="Yes"),Bonus_SP,1)))/IF(JointLife_Ind=0,1,(1+$AV52)))/(AW52/100000))) -> 5000000 | BB52: 5000000 | BC52: =(((($L$14*VLOOKUP(Payout_Mode,$X$3:$Z$6,3,0))/(VLOOKUP(Payout_Mode,'Modal Factors'!$C$4:$D$7,2,0))/(IF(OR(Input!$D$22="Yes",Input!$D$23="Yes"),Bonus_LP,1)))/IF(JointLife_Ind=0,1,(1+AV52)))-(50000*AW52)/100000)/(AX52/100000)+50000 -> 11994.0663 | BD52: =(((($L$14*VLOOKUP(Payout_Mode,$X$3:$Z$6,3,0))/(VLOOKUP(Payout_Mode,'Modal Factors'!$C$4:$D$7,2,0))/(IF(OR(Input!$D$22="Yes",Input!$D$23="Yes"),Bonus_LP,1)))/IF(JointLife_Ind=0,1,(1+AV52)))/(AW52/100000)) -> 11169.42573 | BE52: 11169.42573 | BF52: =MAX((AW52*0/100000)*IF(JointLife_Ind=1,(1+AV52),1)*(VLOOKUP(Payout_Mode,'Modal Factors'!$C$4:$D$7,2,0))*IF(OR(Input!$D$22="Yes",Input!$D$23="Yes"),Bonus_LP,1)/VLOOKUP(Payout_Mode,$X$3:$Z$6,3,0),IF(Payout_Mode=1,12000,IF(Payout_Mode=2,6000,IF(Payout_Mode=3,3000,1000)))) -> 12000 | BH52: =IF(OR(Age_1>75,AND(Calculator!$E$22="Joint Life",Age_2>75)),"Maximum entry age is 75 years","") ->  | BI52: =IF(Request=2, IF(Annuity_Input<Check!BF52,"Minimum Annuity amount should be "&ROUNDUP(BF52,0),""),"") -> 
AH53: 9 | AI53: Option 9 - Deferred Life Annuity with Return of Purchase Price | AN53: 8 | AO53: =AN53+0 -> 8 | AP53: 1 | AQ53: 'Limited Pay'!$AR$9:$BB$85 | AS53: =AO53-4 -> 4 | AT53: 'Limited Pay'!$AR$91:$BB$167 | AV53: =IF($J$12=0,0,VLOOKUP(Age_1,'Joint Life Factors'!$A$9:$L$12,12,TRUE)) -> 0.015 | AW53: 67882 | AX53: 69157 | AY53: =IF(Age_1+AO53>77,"NA",IF(Request=2,Annuity_Input,((AW53*MIN(50000,Premium_Input)/100000)+AX53*IF(Premium_Input>50000,(Premium_Input-50000)/100000,0))*IF(JointLife_Ind=1,(1+AV53),1)*(VLOOKUP(Payout_Mode,'Modal Factors'!$C$4:$D$7,2,0))*IF(OR(Input!$D$22="Yes",Input!$D$23="Yes"),Bonus_LP,1)/VLOOKUP(Payout_Mode,$X$3:$Z$6,3,0))) -> 3631888.162 | AZ53: =IF(Request=1,Premium_Input,((((AY53*VLOOKUP(Payout_Mode,$X$3:$Z$6,3,0))/(VLOOKUP(Payout_Mode,'Modal Factors'!$C$4:$D$7,2,0))/(IF(OR(Input!$D$22="Yes",Input!$D$23="Yes"),Bonus_SP,1)))/IF(JointLife_Ind=0,1,(1+$AV53)))-(200000*AW53)/100000)/(AX53/100000)+200000) -> 5000000 | BA53: =IF(Request=1,Premium_Input,((((AY53*VLOOKUP(Payout_Mode,$X$3:$Z$6,3,0))/(VLOOKUP(Payout_Mode,'Modal Factors'!$C$4:$D$7,2,0))/(IF(OR(Input!$D$22="Yes",Input!$D$23="Yes"),Bonus_SP,1)))/IF(JointLife_Ind=0,1,(1+$AV53)))/(AW53/100000))) -> 5000000 | BB53: =IF(Age_1+AO53>77,"NA",IF(AZ53>50000,AZ53,BA53)) -> 5000000 | BC53: =(((($L$14*VLOOKUP(Payout_Mode,$X$3:$Z$6,3,0))/(VLOOKUP(Payout_Mode,'Modal Factors'!$C$4:$D$7,2,0))/(IF(OR(Input!$D$22="Yes",Input!$D$23="Yes"),Bonus_LP,1)))/IF(JointLife_Ind=0,1,(1+AV53)))-(50000*AW53)/100000)/(AX53/100000)+50000 -> 17439.10233 | BD53: =(((($L$14*VLOOKUP(Payout_Mode,$X$3:$Z$6,3,0))/(VLOOKUP(Payout_Mode,'Modal Factors'!$C$4:$D$7,2,0))/(IF(OR(Input!$D$22="Yes",Input!$D$23="Yes"),Bonus_LP,1)))/IF(JointLife_Ind=0,1,(1+AV53)))/(AW53/100000)) -> 16827.52423 | BE53: 16827.52423 | BF53: =MAX((AW53*0/100000)*IF(JointLife_Ind=1,(1+AV53),1)*(VLOOKUP(Payout_Mode,'Modal Factors'!$C$4:$D$7,2,0))*IF(OR(Input!$D$22="Yes",Input!$D$23="Yes"),Bonus_LP,1)/VLOOKUP(Payout_Mode,$X$3:$Z$6,3,0),IF(Payout_Mode=1,12000,IF(Payout_Mode=2,6000,IF(Payout_Mode=3,3000,1000)))) -> 12000 | BH53: =IF(OR(Age_1>75,AND(Calculator!$E$22="Joint Life",Age_2>75)),"Maximum entry age is 75 years","") ->  | BI53: =IF(Request=2, IF(Annuity_Input<Check!BF53,"Minimum Annuity amount should be "&ROUNDUP(BF53,0),""),"") -> 
AH54: 9 | AI54: Option 9 - Deferred Life Annuity with Return of Purchase Price | AN54: =AN53 -> 8 | AO54: =AO53+1 -> 9 | AP54: 1 | AQ54: 'Limited Pay'!$AR$9:$BB$85 | AS54: =AO54-4 -> 5 | AT54: 'Limited Pay'!$AR$91:$BB$167 | AV54: =IF($J$12=0,0,VLOOKUP(Age_1,'Joint Life Factors'!$A$9:$L$12,12,TRUE)) -> 0.015 | AW54: 73787 | AX54: 75170 | AY54: =IF(Age_1+AO54>75,"NA",IF(Request=2,Annuity_Input,((AW54*MIN(50000,Premium_Input)/100000)+AX54*IF(Premium_Input>50000,(Premium_Input-50000)/100000,0))*IF(JointLife_Ind=1,(1+AV54),1)*(VLOOKUP(Payout_Mode,'Modal Factors'!$C$4:$D$7,2,0))*IF(OR(Input!$D$22="Yes",Input!$D$23="Yes"),Bonus_LP,1)/VLOOKUP(Payout_Mode,$X$3:$Z$6,3,0))) -> 3947671.774 | AZ54: =IF(Request=1,Premium_Input,((((AY54*VLOOKUP(Payout_Mode,$X$3:$Z$6,3,0))/(VLOOKUP(Payout_Mode,'Modal Factors'!$C$4:$D$7,2,0))/(IF(OR(Input!$D$22="Yes",Input!$D$23="Yes"),Bonus_SP,1)))/IF(JointLife_Ind=0,1,(1+$AV54)))-(200000*AW54)/100000)/(AX54/100000)+200000) -> 5000000 | BA54: =IF(Request=1,Premium_Input,((((AY54*VLOOKUP(Payout_Mode,$X$3:$Z$6,3,0))/(VLOOKUP(Payout_Mode,'Modal Factors'!$C$4:$D$7,2,0))/(IF(OR(Input!$D$22="Yes",Input!$D$23="Yes"),Bonus_SP,1)))/IF(JointLife_Ind=0,1,(1+$AV54)))/(AW54/100000))) -> 5000000 | BB54: 5000000 | BC54: =(((($L$14*VLOOKUP(Payout_Mode,$X$3:$Z$6,3,0))/(VLOOKUP(Payout_Mode,'Modal Factors'!$C$4:$D$7,2,0))/(IF(OR(Input!$D$22="Yes",Input!$D$23="Yes"),Bonus_LP,1)))/IF(JointLife_Ind=0,1,(1+AV54)))-(50000*AW54)/100000)/(AX54/100000)+50000 -> 16115.95051 | BD54: =(((($L$14*VLOOKUP(Payout_Mode,$X$3:$Z$6,3,0))/(VLOOKUP(Payout_Mode,'Modal Factors'!$C$4:$D$7,2,0))/(IF(OR(Input!$D$22="Yes",Input!$D$23="Yes"),Bonus_LP,1)))/IF(JointLife_Ind=0,1,(1+AV54)))/(AW54/100000)) -> 15480.85706 | BE54: 15480.85706 | BF54: =MAX((AW54*0/100000)*IF(JointLife_Ind=1,(1+AV54),1)*(VLOOKUP(Payout_Mode,'Modal Factors'!$C$4:$D$7,2,0))*IF(OR(Input!$D$22="Yes",Input!$D$23="Yes"),Bonus_LP,1)/VLOOKUP(Payout_Mode,$X$3:$Z$6,3,0),IF(Payout_Mode=1,12000,IF(Payout_Mode=2,6000,IF(Payout_Mode=3,3000,1000)))) -> 12000 | BH54: =IF(OR(Age_1>75,AND(Calculator!$E$22="Joint Life",Age_2>75)),"Maximum entry age is 75 years","") ->  | BI54: =IF(Request=2, IF(Annuity_Input<Check!BF54,"Minimum Annuity amount should be "&ROUNDUP(BF54,0),""),"") -> 
AH55: 9 | AI55: Option 9 - Deferred Life Annuity with Return of Purchase Price | AN55: =AN54 -> 8 | AO55: 10 | AP55: 1 | AQ55: 'Limited Pay'!$AR$9:$BB$85 | AS55: 6 | AT55: 'Limited Pay'!$AR$91:$BB$167 | AV55: =IF($J$12=0,0,VLOOKUP(Age_1,'Joint Life Factors'!$A$9:$L$12,12,TRUE)) -> 0.015 | AW55: 79717 | AX55: 81206 | AY55: =IF(Age_1+AO55>75,"NA",IF(Request=2,Annuity_Input,((AW55*MIN(50000,Premium_Input)/100000)+AX55*IF(Premium_Input>50000,(Premium_Input-50000)/100000,0))*IF(JointLife_Ind=1,(1+AV55),1)*(VLOOKUP(Payout_Mode,'Modal Factors'!$C$4:$D$7,2,0))*IF(OR(Input!$D$22="Yes",Input!$D$23="Yes"),Bonus_LP,1)/VLOOKUP(Payout_Mode,$X$3:$Z$6,3,0))) -> 4264664.542 | AZ55: =IF(Request=1,Premium_Input,((((AY55*VLOOKUP(Payout_Mode,$X$3:$Z$6,3,0))/(VLOOKUP(Payout_Mode,'Modal Factors'!$C$4:$D$7,2,0))/(IF(OR(Input!$D$22="Yes",Input!$D$23="Yes"),Bonus_SP,1)))/IF(JointLife_Ind=0,1,(1+$AV55)))-(200000*AW55)/100000)/(AX55/100000)+200000) -> 5000000 | BA55: =IF(Request=1,Premium_Input,((((AY55*VLOOKUP(Payout_Mode,$X$3:$Z$6,3,0))/(VLOOKUP(Payout_Mode,'Modal Factors'!$C$4:$D$7,2,0))/(IF(OR(Input!$D$22="Yes",Input!$D$23="Yes"),Bonus_SP,1)))/IF(JointLife_Ind=0,1,(1+$AV55)))/(AW55/100000))) -> 5000000 | BB55: 5000000 | BC55: =(((($L$14*VLOOKUP(Payout_Mode,$X$3:$Z$6,3,0))/(VLOOKUP(Payout_Mode,'Modal Factors'!$C$4:$D$7,2,0))/(IF(OR(Input!$D$22="Yes",Input!$D$23="Yes"),Bonus_LP,1)))/IF(JointLife_Ind=0,1,(1+AV55)))-(50000*AW55)/100000)/(AX55/100000)+50000 -> 14983.32635 | BD55: =(((($L$14*VLOOKUP(Payout_Mode,$X$3:$Z$6,3,0))/(VLOOKUP(Payout_Mode,'Modal Factors'!$C$4:$D$7,2,0))/(IF(OR(Input!$D$22="Yes",Input!$D$23="Yes"),Bonus_LP,1)))/IF(JointLife_Ind=0,1,(1+AV55)))/(AW55/100000)) -> 14329.26477 | BE55: 14329.26477 | BF55: =MAX((AW55*0/100000)*IF(JointLife_Ind=1,(1+AV55),1)*(VLOOKUP(Payout_Mode,'Modal Factors'!$C$4:$D$7,2,0))*IF(OR(Input!$D$22="Yes",Input!$D$23="Yes"),Bonus_LP,1)/VLOOKUP(Payout_Mode,$X$3:$Z$6,3,0),IF(Payout_Mode=1,12000,IF(Payout_Mode=2,6000,IF(Payout_Mode=3,3000,1000)))) -> 12000 | BH55: =IF(OR(Age_1>75,AND(Calculator!$E$22="Joint Life",Age_2>75)),"Maximum entry age is 75 years","") ->  | BI55: =IF(Request=2, IF(Annuity_Input<Check!BF55,"Minimum Annuity amount should be "&ROUNDUP(BF55,0),""),"") -> 
AH56: 9 | AI56: Option 9 - Deferred Life Annuity with Return of Purchase Price | AN56: 8 | AO56: 11 | AP56: 1 | AQ56: 'Limited Pay'!$AR$9:$BB$85 | AS56: 7 | AT56: 'Limited Pay'!$AR$91:$BB$167 | AV56: =IF($J$12=0,0,VLOOKUP(Age_1,'Joint Life Factors'!$A$9:$L$12,12,TRUE)) -> 0.015 | AW56: 88464 | AX56: 90132 | AY56: =IF(Age_1+AO56>75,"NA",IF(Request=2,Annuity_Input,((AW56*MIN(50000,Premium_Input)/100000)+AX56*IF(Premium_Input>50000,(Premium_Input-50000)/100000,0))*IF(JointLife_Ind=1,(1+AV56),1)*(VLOOKUP(Payout_Mode,'Modal Factors'!$C$4:$D$7,2,0))*IF(OR(Input!$D$22="Yes",Input!$D$23="Yes"),Bonus_LP,1)/VLOOKUP(Payout_Mode,$X$3:$Z$6,3,0))) -> 4733419.827 | AZ56: =IF(Request=1,Premium_Input,((((AY56*VLOOKUP(Payout_Mode,$X$3:$Z$6,3,0))/(VLOOKUP(Payout_Mode,'Modal Factors'!$C$4:$D$7,2,0))/(IF(OR(Input!$D$22="Yes",Input!$D$23="Yes"),Bonus_SP,1)))/IF(JointLife_Ind=0,1,(1+$AV56)))-(200000*AW56)/100000)/(AX56/100000)+200000) -> 5000000 | BA56: =IF(Request=1,Premium_Input,((((AY56*VLOOKUP(Payout_Mode,$X$3:$Z$6,3,0))/(VLOOKUP(Payout_Mode,'Modal Factors'!$C$4:$D$7,2,0))/(IF(OR(Input!$D$22="Yes",Input!$D$23="Yes"),Bonus_SP,1)))/IF(JointLife_Ind=0,1,(1+$AV56)))/(AW56/100000))) -> 5000000 | BB56: =IF(Age_1+AO56>75,"NA",IF(AZ56>50000,AZ56,BA56)) -> 5000000 | BC56: =(((($L$14*VLOOKUP(Payout_Mode,$X$3:$Z$6,3,0))/(VLOOKUP(Payout_Mode,'Modal Factors'!$C$4:$D$7,2,0))/(IF(OR(Input!$D$22="Yes",Input!$D$23="Yes"),Bonus_LP,1)))/IF(JointLife_Ind=0,1,(1+AV56)))-(50000*AW56)/100000)/(AX56/100000)+50000 -> 13598.78844 | BD56: =(((($L$14*VLOOKUP(Payout_Mode,$X$3:$Z$6,3,0))/(VLOOKUP(Payout_Mode,'Modal Factors'!$C$4:$D$7,2,0))/(IF(OR(Input!$D$22="Yes",Input!$D$23="Yes"),Bonus_LP,1)))/IF(JointLife_Ind=0,1,(1+AV56)))/(AW56/100000)) -> 12912.43896 | BE56: 12912.43896 | BF56: =MAX((AW56*0/100000)*IF(JointLife_Ind=1,(1+AV56),1)*(VLOOKUP(Payout_Mode,'Modal Factors'!$C$4:$D$7,2,0))*IF(OR(Input!$D$22="Yes",Input!$D$23="Yes"),Bonus_LP,1)/VLOOKUP(Payout_Mode,$X$3:$Z$6,3,0),IF(Payout_Mode=1,12000,IF(Payout_Mode=2,6000,IF(Payout_Mode=3,3000,1000)))) -> 12000 | BH56: =IF(OR(Age_1>75,AND(Calculator!$E$22="Joint Life",Age_2>75)),"Maximum entry age is 75 years","") ->  | BI56: =IF(Request=2, IF(Annuity_Input<Check!BF56,"Minimum Annuity amount should be "&ROUNDUP(BF56,0),""),"") ->  | BK56: Deferment Period not allowed | BL56: Under Option 9, 8 Pay, only Deferment 8,9 and 10 are allowed.
AH57: 9 | AI57: Option 9 - Deferred Life Annuity with Return of Purchase Price | AN57: 8 | AO57: 12 | AP57: 1 | AQ57: 'Limited Pay'!$AR$9:$BB$85 | AS57: 8 | AT57: 'Limited Pay'!$AR$91:$BB$167 | AV57: =IF($J$12=0,0,VLOOKUP(Age_1,'Joint Life Factors'!$A$9:$L$12,12,TRUE)) -> 0.015 | AW57: 97656 | AX57: 99422 | AY57: =IF(Age_1+AO57>75,"NA",IF(Request=2,Annuity_Input,((AW57*MIN(50000,Premium_Input)/100000)+AX57*IF(Premium_Input>50000,(Premium_Input-50000)/100000,0))*IF(JointLife_Ind=1,(1+AV57),1)*(VLOOKUP(Payout_Mode,'Modal Factors'!$C$4:$D$7,2,0))*IF(OR(Input!$D$22="Yes",Input!$D$23="Yes"),Bonus_LP,1)/VLOOKUP(Payout_Mode,$X$3:$Z$6,3,0))) -> 5221337.214 | AZ57: =IF(Request=1,Premium_Input,((((AY57*VLOOKUP(Payout_Mode,$X$3:$Z$6,3,0))/(VLOOKUP(Payout_Mode,'Modal Factors'!$C$4:$D$7,2,0))/(IF(OR(Input!$D$22="Yes",Input!$D$23="Yes"),Bonus_SP,1)))/IF(JointLife_Ind=0,1,(1+$AV57)))-(200000*AW57)/100000)/(AX57/100000)+200000) -> 5000000 | BA57: =IF(Request=1,Premium_Input,((((AY57*VLOOKUP(Payout_Mode,$X$3:$Z$6,3,0))/(VLOOKUP(Payout_Mode,'Modal Factors'!$C$4:$D$7,2,0))/(IF(OR(Input!$D$22="Yes",Input!$D$23="Yes"),Bonus_SP,1)))/IF(JointLife_Ind=0,1,(1+$AV57)))/(AW57/100000))) -> 5000000 | BB57: 5000000 | BC57: =(((($L$14*VLOOKUP(Payout_Mode,$X$3:$Z$6,3,0))/(VLOOKUP(Payout_Mode,'Modal Factors'!$C$4:$D$7,2,0))/(IF(OR(Input!$D$22="Yes",Input!$D$23="Yes"),Bonus_LP,1)))/IF(JointLife_Ind=0,1,(1+AV57)))-(50000*AW57)/100000)/(AX57/100000)+50000 -> 12377.40138 | BD57: =(((($L$14*VLOOKUP(Payout_Mode,$X$3:$Z$6,3,0))/(VLOOKUP(Payout_Mode,'Modal Factors'!$C$4:$D$7,2,0))/(IF(OR(Input!$D$22="Yes",Input!$D$23="Yes"),Bonus_LP,1)))/IF(JointLife_Ind=0,1,(1+AV57)))/(AW57/100000)) -> 11697.03858 | BE57: 11697.03858 | BF57: =MAX((AW57*0/100000)*IF(JointLife_Ind=1,(1+AV57),1)*(VLOOKUP(Payout_Mode,'Modal Factors'!$C$4:$D$7,2,0))*IF(OR(Input!$D$22="Yes",Input!$D$23="Yes"),Bonus_LP,1)/VLOOKUP(Payout_Mode,$X$3:$Z$6,3,0),IF(Payout_Mode=1,12000,IF(Payout_Mode=2,6000,IF(Payout_Mode=3,3000,1000)))) -> 12000 | BH57: =IF(OR(Age_1>75,AND(Calculator!$E$22="Joint Life",Age_2>75)),"Maximum entry age is 75 years","") ->  | BI57: =IF(Request=2, IF(Annuity_Input<Check!BF57,"Minimum Annuity amount should be "&ROUNDUP(BF57,0),""),"") ->  | BK57: Deferment Period not allowed | BL57: Under Option 9, 8 Pay, only Deferment 8,9 and 10 are allowed.
AH58: 9 | AI58: Option 9 - Deferred Life Annuity with Return of Purchase Price | AN58: 8 | AO58: 13 | AP58: 1 | AQ58: 'Limited Pay'!$AR$9:$BB$85 | AS58: 9 | AT58: 'Limited Pay'!$AR$91:$BB$167 | AV58: =IF($J$12=0,0,VLOOKUP(Age_1,'Joint Life Factors'!$A$9:$L$12,12,TRUE)) -> 0.015 | AW58: 106212 | AX58: 108053 | AY58: =IF(Age_1+AO58>75,"NA",IF(Request=2,Annuity_Input,((AW58*MIN(50000,Premium_Input)/100000)+AX58*IF(Premium_Input>50000,(Premium_Input-50000)/100000,0))*IF(JointLife_Ind=1,(1+AV58),1)*(VLOOKUP(Payout_Mode,'Modal Factors'!$C$4:$D$7,2,0))*IF(OR(Input!$D$22="Yes",Input!$D$23="Yes"),Bonus_LP,1)/VLOOKUP(Payout_Mode,$X$3:$Z$6,3,0))) -> 5674651.883 | AZ58: =IF(Request=1,Premium_Input,((((AY58*VLOOKUP(Payout_Mode,$X$3:$Z$6,3,0))/(VLOOKUP(Payout_Mode,'Modal Factors'!$C$4:$D$7,2,0))/(IF(OR(Input!$D$22="Yes",Input!$D$23="Yes"),Bonus_SP,1)))/IF(JointLife_Ind=0,1,(1+$AV58)))-(200000*AW58)/100000)/(AX58/100000)+200000) -> 5000000 | BA58: =IF(Request=1,Premium_Input,((((AY58*VLOOKUP(Payout_Mode,$X$3:$Z$6,3,0))/(VLOOKUP(Payout_Mode,'Modal Factors'!$C$4:$D$7,2,0))/(IF(OR(Input!$D$22="Yes",Input!$D$23="Yes"),Bonus_SP,1)))/IF(JointLife_Ind=0,1,(1+$AV58)))/(AW58/100000))) -> 5000000 | BB58: 5000000 | BC58: =(((($L$14*VLOOKUP(Payout_Mode,$X$3:$Z$6,3,0))/(VLOOKUP(Payout_Mode,'Modal Factors'!$C$4:$D$7,2,0))/(IF(OR(Input!$D$22="Yes",Input!$D$23="Yes"),Bonus_LP,1)))/IF(JointLife_Ind=0,1,(1+AV58)))-(50000*AW58)/100000)/(AX58/100000)+50000 -> 11423.43109 | BD58: =(((($L$14*VLOOKUP(Payout_Mode,$X$3:$Z$6,3,0))/(VLOOKUP(Payout_Mode,'Modal Factors'!$C$4:$D$7,2,0))/(IF(OR(Input!$D$22="Yes",Input!$D$23="Yes"),Bonus_LP,1)))/IF(JointLife_Ind=0,1,(1+AV58)))/(AW58/100000)) -> 10754.77347 | BE58: 10754.77347 | BF58: =MAX((AW58*0/100000)*IF(JointLife_Ind=1,(1+AV58),1)*(VLOOKUP(Payout_Mode,'Modal Factors'!$C$4:$D$7,2,0))*IF(OR(Input!$D$22="Yes",Input!$D$23="Yes"),Bonus_LP,1)/VLOOKUP(Payout_Mode,$X$3:$Z$6,3,0),IF(Payout_Mode=1,12000,IF(Payout_Mode=2,6000,IF(Payout_Mode=3,3000,1000)))) -> 12000 | BH58: =IF(OR(Age_1>75,AND(Calculator!$E$22="Joint Life",Age_2>75)),"Maximum entry age is 75 years","") ->  | BI58: =IF(Request=2, IF(Annuity_Input<Check!BF58,"Minimum Annuity amount should be "&ROUNDUP(BF58,0),""),"") ->  | BK58: Deferment Period not allowed | BL58: Under Option 9, 8 Pay, only Deferment 8,9 and 10 are allowed.
AH59: 9 | AI59: Option 9 - Deferred Life Annuity with Return of Purchase Price | AN59: 8 | AO59: 14 | AP59: 1 | AQ59: 'Limited Pay'!$AR$9:$BB$85 | AS59: 10 | AT59: 'Limited Pay'!$AR$91:$BB$167 | AV59: =IF($J$12=0,0,VLOOKUP(Age_1,'Joint Life Factors'!$A$9:$L$12,12,TRUE)) -> 0.015 | AW59: 114164 | AX59: 116084 | AY59: =IF(Age_1+AO59>75,"NA",IF(Request=2,Annuity_Input,((AW59*MIN(50000,Premium_Input)/100000)+AX59*IF(Premium_Input>50000,(Premium_Input-50000)/100000,0))*IF(JointLife_Ind=1,(1+AV59),1)*(VLOOKUP(Payout_Mode,'Modal Factors'!$C$4:$D$7,2,0))*IF(OR(Input!$D$22="Yes",Input!$D$23="Yes"),Bonus_LP,1)/VLOOKUP(Payout_Mode,$X$3:$Z$6,3,0))) -> 6096448.701 | AZ59: =IF(Request=1,Premium_Input,((((AY59*VLOOKUP(Payout_Mode,$X$3:$Z$6,3,0))/(VLOOKUP(Payout_Mode,'Modal Factors'!$C$4:$D$7,2,0))/(IF(OR(Input!$D$22="Yes",Input!$D$23="Yes"),Bonus_SP,1)))/IF(JointLife_Ind=0,1,(1+$AV59)))-(200000*AW59)/100000)/(AX59/100000)+200000) -> 5000000 | BA59: =IF(Request=1,Premium_Input,((((AY59*VLOOKUP(Payout_Mode,$X$3:$Z$6,3,0))/(VLOOKUP(Payout_Mode,'Modal Factors'!$C$4:$D$7,2,0))/(IF(OR(Input!$D$22="Yes",Input!$D$23="Yes"),Bonus_SP,1)))/IF(JointLife_Ind=0,1,(1+$AV59)))/(AW59/100000))) -> 5000000 | BB59: 5000000 | BC59: =(((($L$14*VLOOKUP(Payout_Mode,$X$3:$Z$6,3,0))/(VLOOKUP(Payout_Mode,'Modal Factors'!$C$4:$D$7,2,0))/(IF(OR(Input!$D$22="Yes",Input!$D$23="Yes"),Bonus_LP,1)))/IF(JointLife_Ind=0,1,(1+AV59)))-(50000*AW59)/100000)/(AX59/100000)+50000 -> 10667.15482 | BD59: =(((($L$14*VLOOKUP(Payout_Mode,$X$3:$Z$6,3,0))/(VLOOKUP(Payout_Mode,'Modal Factors'!$C$4:$D$7,2,0))/(IF(OR(Input!$D$22="Yes",Input!$D$23="Yes"),Bonus_LP,1)))/IF(JointLife_Ind=0,1,(1+AV59)))/(AW59/100000)) -> 10005.65853 | BE59: 10005.65853 | BF59: =MAX((AW59*0/100000)*IF(JointLife_Ind=1,(1+AV59),1)*(VLOOKUP(Payout_Mode,'Modal Factors'!$C$4:$D$7,2,0))*IF(OR(Input!$D$22="Yes",Input!$D$23="Yes"),Bonus_LP,1)/VLOOKUP(Payout_Mode,$X$3:$Z$6,3,0),IF(Payout_Mode=1,12000,IF(Payout_Mode=2,6000,IF(Payout_Mode=3,3000,1000)))) -> 12000 | BH59: =IF(OR(Age_1>75,AND(Calculator!$E$22="Joint Life",Age_2>75)),"Maximum entry age is 75 years","") ->  | BI59: =IF(Request=2, IF(Annuity_Input<Check!BF59,"Minimum Annuity amount should be "&ROUNDUP(BF59,0),""),"") ->  | BK59: Deferment Period not allowed | BL59: Under Option 9, 8 Pay, only Deferment 8,9 and 10 are allowed.
AH60: 9 | AI60: Option 9 - Deferred Life Annuity with Return of Purchase Price | AN60: 8 | AO60: 15 | AP60: 1 | AQ60: 'Limited Pay'!$AR$9:$BB$85 | AS60: 11 | AT60: 'Limited Pay'!$AR$91:$BB$167 | AV60: =IF($J$12=0,0,VLOOKUP(Age_1,'Joint Life Factors'!$A$9:$L$12,12,TRUE)) -> 0.015 | AW60: 122836 | AX60: 125129 | AY60: =IF(Age_1+AO60>75,"NA",IF(Request=2,Annuity_Input,((AW60*MIN(50000,Premium_Input)/100000)+AX60*IF(Premium_Input>50000,(Premium_Input-50000)/100000,0))*IF(JointLife_Ind=1,(1+AV60),1)*(VLOOKUP(Payout_Mode,'Modal Factors'!$C$4:$D$7,2,0))*IF(OR(Input!$D$22="Yes",Input!$D$23="Yes"),Bonus_LP,1)/VLOOKUP(Payout_Mode,$X$3:$Z$6,3,0))) -> 6571352.709 | AZ60: =IF(Request=1,Premium_Input,((((AY60*VLOOKUP(Payout_Mode,$X$3:$Z$6,3,0))/(VLOOKUP(Payout_Mode,'Modal Factors'!$C$4:$D$7,2,0))/(IF(OR(Input!$D$22="Yes",Input!$D$23="Yes"),Bonus_SP,1)))/IF(JointLife_Ind=0,1,(1+$AV60)))-(200000*AW60)/100000)/(AX60/100000)+200000) -> 5000000 | BA60: =IF(Request=1,Premium_Input,((((AY60*VLOOKUP(Payout_Mode,$X$3:$Z$6,3,0))/(VLOOKUP(Payout_Mode,'Modal Factors'!$C$4:$D$7,2,0))/(IF(OR(Input!$D$22="Yes",Input!$D$23="Yes"),Bonus_SP,1)))/IF(JointLife_Ind=0,1,(1+$AV60)))/(AW60/100000))) -> 5000000 | BB60: 5000000 | BC60: =(((($L$14*VLOOKUP(Payout_Mode,$X$3:$Z$6,3,0))/(VLOOKUP(Payout_Mode,'Modal Factors'!$C$4:$D$7,2,0))/(IF(OR(Input!$D$22="Yes",Input!$D$23="Yes"),Bonus_LP,1)))/IF(JointLife_Ind=0,1,(1+AV60)))-(50000*AW60)/100000)/(AX60/100000)+50000 -> 10045.12143 | BD60: =(((($L$14*VLOOKUP(Payout_Mode,$X$3:$Z$6,3,0))/(VLOOKUP(Payout_Mode,'Modal Factors'!$C$4:$D$7,2,0))/(IF(OR(Input!$D$22="Yes",Input!$D$23="Yes"),Bonus_LP,1)))/IF(JointLife_Ind=0,1,(1+AV60)))/(AW60/100000)) -> 9299.277084 | BE60: 9299.277084 | BF60: =MAX((AW60*0/100000)*IF(JointLife_Ind=1,(1+AV60),1)*(VLOOKUP(Payout_Mode,'Modal Factors'!$C$4:$D$7,2,0))*IF(OR(Input!$D$22="Yes",Input!$D$23="Yes"),Bonus_LP,1)/VLOOKUP(Payout_Mode,$X$3:$Z$6,3,0),IF(Payout_Mode=1,12000,IF(Payout_Mode=2,6000,IF(Payout_Mode=3,3000,1000)))) -> 12000 | BH60: =IF(OR(Age_1>75,AND(Calculator!$E$22="Joint Life",Age_2>75)),"Maximum entry age is 75 years","") ->  | BI60: =IF(Request=2, IF(Annuity_Input<Check!BF60,"Minimum Annuity amount should be "&ROUNDUP(BF60,0),""),"") ->  | BK60: Deferment Period not allowed | BL60: Under Option 9, 8 Pay, only Deferment 8,9 and 10 are allowed.
AH61: 9 | AI61: Option 9 - Deferred Life Annuity with Return of Purchase Price | AN61: 9 | AO61: =AN61+0 -> 9 | AP61: 1 | AQ61: 'Limited Pay'!$BD$9:$BM$85 | AS61: =AO61-5 -> 4 | AT61: 'Limited Pay'!$BD$91:$BM$167 | AV61: =IF($J$12=0,0,VLOOKUP(Age_1,'Joint Life Factors'!$A$9:$L$12,12,TRUE)) -> 0.015 | AW61: 77698 | AX61: 79017 | AY61: =IF(Age_1+AO61>77,"NA",IF(Request=2,Annuity_Input,((AW61*MIN(50000,Premium_Input)/100000)+AX61*IF(Premium_Input>50000,(Premium_Input-50000)/100000,0))*IF(JointLife_Ind=1,(1+AV61),1)*(VLOOKUP(Payout_Mode,'Modal Factors'!$C$4:$D$7,2,0))*IF(OR(Input!$D$22="Yes",Input!$D$23="Yes"),Bonus_LP,1)/VLOOKUP(Payout_Mode,$X$3:$Z$6,3,0))) -> 4149773.875 | AZ61: =IF(Request=1,Premium_Input,((((AY61*VLOOKUP(Payout_Mode,$X$3:$Z$6,3,0))/(VLOOKUP(Payout_Mode,'Modal Factors'!$C$4:$D$7,2,0))/(IF(OR(Input!$D$22="Yes",Input!$D$23="Yes"),Bonus_SP,1)))/IF(JointLife_Ind=0,1,(1+$AV61)))-(200000*AW61)/100000)/(AX61/100000)+200000) -> 5000000 | BA61: =IF(Request=1,Premium_Input,((((AY61*VLOOKUP(Payout_Mode,$X$3:$Z$6,3,0))/(VLOOKUP(Payout_Mode,'Modal Factors'!$C$4:$D$7,2,0))/(IF(OR(Input!$D$22="Yes",Input!$D$23="Yes"),Bonus_SP,1)))/IF(JointLife_Ind=0,1,(1+$AV61)))/(AW61/100000))) -> 5000000 | BB61: =IF(Age_1+AO61>77,"NA",IF(AZ61>50000,AZ61,BA61)) -> 5000000 | BC61: =(((($L$14*VLOOKUP(Payout_Mode,$X$3:$Z$6,3,0))/(VLOOKUP(Payout_Mode,'Modal Factors'!$C$4:$D$7,2,0))/(IF(OR(Input!$D$22="Yes",Input!$D$23="Yes"),Bonus_LP,1)))/IF(JointLife_Ind=0,1,(1+AV61)))-(50000*AW61)/100000)/(AX61/100000)+50000 -> 15290.83615 | BD61: =(((($L$14*VLOOKUP(Payout_Mode,$X$3:$Z$6,3,0))/(VLOOKUP(Payout_Mode,'Modal Factors'!$C$4:$D$7,2,0))/(IF(OR(Input!$D$22="Yes",Input!$D$23="Yes"),Bonus_LP,1)))/IF(JointLife_Ind=0,1,(1+AV61)))/(AW61/100000)) -> 14701.61394 | BE61: 14701.61394 | BF61: =MAX((AW61*0/100000)*IF(JointLife_Ind=1,(1+AV61),1)*(VLOOKUP(Payout_Mode,'Modal Factors'!$C$4:$D$7,2,0))*IF(OR(Input!$D$22="Yes",Input!$D$23="Yes"),Bonus_LP,1)/VLOOKUP(Payout_Mode,$X$3:$Z$6,3,0),IF(Payout_Mode=1,12000,IF(Payout_Mode=2,6000,IF(Payout_Mode=3,3000,1000)))) -> 12000 | BH61: =IF(OR(Age_1>75,AND(Calculator!$E$22="Joint Life",Age_2>75)),"Maximum entry age is 75 years","") ->  | BI61: =IF(Request=2, IF(Annuity_Input<Check!BF61,"Minimum Annuity amount should be "&ROUNDUP(BF61,0),""),"") -> 
AH62: 9 | AI62: Option 9 - Deferred Life Annuity with Return of Purchase Price | AN62: =AN61 -> 9 | AO62: =AO61+1 -> 10 | AP62: 1 | AQ62: 'Limited Pay'!$BD$9:$BM$85 | AS62: =AO62-5 -> 5 | AT62: 'Limited Pay'!$BD$91:$BM$167 | AV62: =IF($J$12=0,0,VLOOKUP(Age_1,'Joint Life Factors'!$A$9:$L$12,12,TRUE)) -> 0.015 | AW62: 83968 | AX62: 85339 | AY62: =IF(Age_1+AO62>75,"NA",IF(Request=2,Annuity_Input,((AW62*MIN(50000,Premium_Input)/100000)+AX62*IF(Premium_Input>50000,(Premium_Input-50000)/100000,0))*IF(JointLife_Ind=1,(1+AV62),1)*(VLOOKUP(Payout_Mode,'Modal Factors'!$C$4:$D$7,2,0))*IF(OR(Input!$D$22="Yes",Input!$D$23="Yes"),Bonus_LP,1)/VLOOKUP(Payout_Mode,$X$3:$Z$6,3,0))) -> 4481817.514 | AZ62: =IF(Request=1,Premium_Input,((((AY62*VLOOKUP(Payout_Mode,$X$3:$Z$6,3,0))/(VLOOKUP(Payout_Mode,'Modal Factors'!$C$4:$D$7,2,0))/(IF(OR(Input!$D$22="Yes",Input!$D$23="Yes"),Bonus_SP,1)))/IF(JointLife_Ind=0,1,(1+$AV62)))-(200000*AW62)/100000)/(AX62/100000)+200000) -> 5000000 | BA62: =IF(Request=1,Premium_Input,((((AY62*VLOOKUP(Payout_Mode,$X$3:$Z$6,3,0))/(VLOOKUP(Payout_Mode,'Modal Factors'!$C$4:$D$7,2,0))/(IF(OR(Input!$D$22="Yes",Input!$D$23="Yes"),Bonus_SP,1)))/IF(JointLife_Ind=0,1,(1+$AV62)))/(AW62/100000))) -> 5000000 | BB62: 5000000 | BC62: =(((($L$14*VLOOKUP(Payout_Mode,$X$3:$Z$6,3,0))/(VLOOKUP(Payout_Mode,'Modal Factors'!$C$4:$D$7,2,0))/(IF(OR(Input!$D$22="Yes",Input!$D$23="Yes"),Bonus_LP,1)))/IF(JointLife_Ind=0,1,(1+AV62)))-(50000*AW62)/100000)/(AX62/100000)+50000 -> 14188.54217 | BD62: =(((($L$14*VLOOKUP(Payout_Mode,$X$3:$Z$6,3,0))/(VLOOKUP(Payout_Mode,'Modal Factors'!$C$4:$D$7,2,0))/(IF(OR(Input!$D$22="Yes",Input!$D$23="Yes"),Bonus_LP,1)))/IF(JointLife_Ind=0,1,(1+AV62)))/(AW62/100000)) -> 13603.82527 | BE62: 13603.82527 | BF62: =MAX((AW62*0/100000)*IF(JointLife_Ind=1,(1+AV62),1)*(VLOOKUP(Payout_Mode,'Modal Factors'!$C$4:$D$7,2,0))*IF(OR(Input!$D$22="Yes",Input!$D$23="Yes"),Bonus_LP,1)/VLOOKUP(Payout_Mode,$X$3:$Z$6,3,0),IF(Payout_Mode=1,12000,IF(Payout_Mode=2,6000,IF(Payout_Mode=3,3000,1000)))) -> 12000 | BH62: =IF(OR(Age_1>75,AND(Calculator!$E$22="Joint Life",Age_2>75)),"Maximum entry age is 75 years","") ->  | BI62: =IF(Request=2, IF(Annuity_Input<Check!BF62,"Minimum Annuity amount should be "&ROUNDUP(BF62,0),""),"") -> 
AH63: 9 | AI63: Option 9 - Deferred Life Annuity with Return of Purchase Price | AN63: =AN62 -> 9 | AO63: =AO62+1 -> 11 | AP63: 1 | AQ63: 'Limited Pay'!$BD$9:$BM$85 | AS63: 6 | AT63: 'Limited Pay'!$BD$91:$BM$167 | AV63: =IF($J$12=0,0,VLOOKUP(Age_1,'Joint Life Factors'!$A$9:$L$12,12,TRUE)) -> 0.015 | AW63: 93949 | AX63: 95579 | AY63: =IF(Age_1+AO63>75,"NA",IF(Request=2,Annuity_Input,((AW63*MIN(50000,Premium_Input)/100000)+AX63*IF(Premium_Input>50000,(Premium_Input-50000)/100000,0))*IF(JointLife_Ind=1,(1+AV63),1)*(VLOOKUP(Payout_Mode,'Modal Factors'!$C$4:$D$7,2,0))*IF(OR(Input!$D$22="Yes",Input!$D$23="Yes"),Bonus_LP,1)/VLOOKUP(Payout_Mode,$X$3:$Z$6,3,0))) -> 5019550.271 | AZ63: =IF(Request=1,Premium_Input,((((AY63*VLOOKUP(Payout_Mode,$X$3:$Z$6,3,0))/(VLOOKUP(Payout_Mode,'Modal Factors'!$C$4:$D$7,2,0))/(IF(OR(Input!$D$22="Yes",Input!$D$23="Yes"),Bonus_SP,1)))/IF(JointLife_Ind=0,1,(1+$AV63)))-(200000*AW63)/100000)/(AX63/100000)+200000) -> 5000000 | BA63: =IF(Request=1,Premium_Input,((((AY63*VLOOKUP(Payout_Mode,$X$3:$Z$6,3,0))/(VLOOKUP(Payout_Mode,'Modal Factors'!$C$4:$D$7,2,0))/(IF(OR(Input!$D$22="Yes",Input!$D$23="Yes"),Bonus_SP,1)))/IF(JointLife_Ind=0,1,(1+$AV63)))/(AW63/100000))) -> 5000000 | BB63: 5000000 | BC63: =(((($L$14*VLOOKUP(Payout_Mode,$X$3:$Z$6,3,0))/(VLOOKUP(Payout_Mode,'Modal Factors'!$C$4:$D$7,2,0))/(IF(OR(Input!$D$22="Yes",Input!$D$23="Yes"),Bonus_LP,1)))/IF(JointLife_Ind=0,1,(1+AV63)))-(50000*AW63)/100000)/(AX63/100000)+50000 -> 12803.92136 | BD63: =(((($L$14*VLOOKUP(Payout_Mode,$X$3:$Z$6,3,0))/(VLOOKUP(Payout_Mode,'Modal Factors'!$C$4:$D$7,2,0))/(IF(OR(Input!$D$22="Yes",Input!$D$23="Yes"),Bonus_LP,1)))/IF(JointLife_Ind=0,1,(1+AV63)))/(AW63/100000)) -> 12158.5754 | BE63: 12158.5754 | BF63: =MAX((AW63*0/100000)*IF(JointLife_Ind=1,(1+AV63),1)*(VLOOKUP(Payout_Mode,'Modal Factors'!$C$4:$D$7,2,0))*IF(OR(Input!$D$22="Yes",Input!$D$23="Yes"),Bonus_LP,1)/VLOOKUP(Payout_Mode,$X$3:$Z$6,3,0),IF(Payout_Mode=1,12000,IF(Payout_Mode=2,6000,IF(Payout_Mode=3,3000,1000)))) -> 12000 | BH63: =IF(OR(Age_1>75,AND(Calculator!$E$22="Joint Life",Age_2>75)),"Maximum entry age is 75 years","") ->  | BI63: =IF(Request=2, IF(Annuity_Input<Check!BF63,"Minimum Annuity amount should be "&ROUNDUP(BF63,0),""),"") ->  | BK63: Deferment Period not allowed | BL63: For 9 Pay, only Deferment 9 and 10 are allowed.
AH64: 9 | AI64: Option 9 - Deferred Life Annuity with Return of Purchase Price | AN64: 9 | AO64: 12 | AP64: 1 | AQ64: 'Limited Pay'!$BD$9:$BM$85 | AS64: 7 | AT64: 'Limited Pay'!$BD$91:$BM$167 | AV64: =IF($J$12=0,0,VLOOKUP(Age_1,'Joint Life Factors'!$A$9:$L$12,12,TRUE)) -> 0.015 | AW64: 106452 | AX64: 108386 | AY64: =IF(Age_1+AO64>75,"NA",IF(Request=2,Annuity_Input,((AW64*MIN(50000,Premium_Input)/100000)+AX64*IF(Premium_Input>50000,(Premium_Input-50000)/100000,0))*IF(JointLife_Ind=1,(1+AV64),1)*(VLOOKUP(Payout_Mode,'Modal Factors'!$C$4:$D$7,2,0))*IF(OR(Input!$D$22="Yes",Input!$D$23="Yes"),Bonus_LP,1)/VLOOKUP(Payout_Mode,$X$3:$Z$6,3,0))) -> 5692094.275 | AZ64: =IF(Request=1,Premium_Input,((((AY64*VLOOKUP(Payout_Mode,$X$3:$Z$6,3,0))/(VLOOKUP(Payout_Mode,'Modal Factors'!$C$4:$D$7,2,0))/(IF(OR(Input!$D$22="Yes",Input!$D$23="Yes"),Bonus_SP,1)))/IF(JointLife_Ind=0,1,(1+$AV64)))-(200000*AW64)/100000)/(AX64/100000)+200000) -> 5000000 | BA64: =IF(Request=1,Premium_Input,((((AY64*VLOOKUP(Payout_Mode,$X$3:$Z$6,3,0))/(VLOOKUP(Payout_Mode,'Modal Factors'!$C$4:$D$7,2,0))/(IF(OR(Input!$D$22="Yes",Input!$D$23="Yes"),Bonus_SP,1)))/IF(JointLife_Ind=0,1,(1+$AV64)))/(AW64/100000))) -> 5000000 | BB64: 5000000 | BC64: =(((($L$14*VLOOKUP(Payout_Mode,$X$3:$Z$6,3,0))/(VLOOKUP(Payout_Mode,'Modal Factors'!$C$4:$D$7,2,0))/(IF(OR(Input!$D$22="Yes",Input!$D$23="Yes"),Bonus_LP,1)))/IF(JointLife_Ind=0,1,(1+AV64)))-(50000*AW64)/100000)/(AX64/100000)+50000 -> 11431.23651 | BD64: =(((($L$14*VLOOKUP(Payout_Mode,$X$3:$Z$6,3,0))/(VLOOKUP(Payout_Mode,'Modal Factors'!$C$4:$D$7,2,0))/(IF(OR(Input!$D$22="Yes",Input!$D$23="Yes"),Bonus_LP,1)))/IF(JointLife_Ind=0,1,(1+AV64)))/(AW64/100000)) -> 10730.52643 | BE64: 10730.52643 | BF64: =MAX((AW64*0/100000)*IF(JointLife_Ind=1,(1+AV64),1)*(VLOOKUP(Payout_Mode,'Modal Factors'!$C$4:$D$7,2,0))*IF(OR(Input!$D$22="Yes",Input!$D$23="Yes"),Bonus_LP,1)/VLOOKUP(Payout_Mode,$X$3:$Z$6,3,0),IF(Payout_Mode=1,12000,IF(Payout_Mode=2,6000,IF(Payout_Mode=3,3000,1000)))) -> 12000 | BH64: =IF(OR(Age_1>75,AND(Calculator!$E$22="Joint Life",Age_2>75)),"Maximum entry age is 75 years","") ->  | BI64: =IF(Request=2, IF(Annuity_Input<Check!BF64,"Minimum Annuity amount should be "&ROUNDUP(BF64,0),""),"") ->  | BK64: Deferment Period not allowed | BL64: For 9 Pay, only Deferment 9 and 10 are allowed.
AH65: 9 | AI65: Option 9 - Deferred Life Annuity with Return of Purchase Price | AN65: 9 | AO65: 13 | AP65: 1 | AQ65: 'Limited Pay'!$BD$9:$BM$85 | AS65: 8 | AT65: 'Limited Pay'!$BD$91:$BM$167 | AV65: =IF($J$12=0,0,VLOOKUP(Age_1,'Joint Life Factors'!$A$9:$L$12,12,TRUE)) -> 0.015 | AW65: 118674 | AX65: 120750 | AY65: =IF(Age_1+AO65>75,"NA",IF(Request=2,Annuity_Input,((AW65*MIN(50000,Premium_Input)/100000)+AX65*IF(Premium_Input>50000,(Premium_Input-50000)/100000,0))*IF(JointLife_Ind=1,(1+AV65),1)*(VLOOKUP(Payout_Mode,'Modal Factors'!$C$4:$D$7,2,0))*IF(OR(Input!$D$22="Yes",Input!$D$23="Yes"),Bonus_LP,1)/VLOOKUP(Payout_Mode,$X$3:$Z$6,3,0))) -> 6341454.243 | AZ65: =IF(Request=1,Premium_Input,((((AY65*VLOOKUP(Payout_Mode,$X$3:$Z$6,3,0))/(VLOOKUP(Payout_Mode,'Modal Factors'!$C$4:$D$7,2,0))/(IF(OR(Input!$D$22="Yes",Input!$D$23="Yes"),Bonus_SP,1)))/IF(JointLife_Ind=0,1,(1+$AV65)))-(200000*AW65)/100000)/(AX65/100000)+200000) -> 5000000 | BA65: =IF(Request=1,Premium_Input,((((AY65*VLOOKUP(Payout_Mode,$X$3:$Z$6,3,0))/(VLOOKUP(Payout_Mode,'Modal Factors'!$C$4:$D$7,2,0))/(IF(OR(Input!$D$22="Yes",Input!$D$23="Yes"),Bonus_SP,1)))/IF(JointLife_Ind=0,1,(1+$AV65)))/(AW65/100000))) -> 5000000 | BB65: 5000000 | BC65: =(((($L$14*VLOOKUP(Payout_Mode,$X$3:$Z$6,3,0))/(VLOOKUP(Payout_Mode,'Modal Factors'!$C$4:$D$7,2,0))/(IF(OR(Input!$D$22="Yes",Input!$D$23="Yes"),Bonus_LP,1)))/IF(JointLife_Ind=0,1,(1+AV65)))-(50000*AW65)/100000)/(AX65/100000)+50000 -> 10319.55279 | BD65: =(((($L$14*VLOOKUP(Payout_Mode,$X$3:$Z$6,3,0))/(VLOOKUP(Payout_Mode,'Modal Factors'!$C$4:$D$7,2,0))/(IF(OR(Input!$D$22="Yes",Input!$D$23="Yes"),Bonus_LP,1)))/IF(JointLife_Ind=0,1,(1+AV65)))/(AW65/100000)) -> 9625.410788 | BE65: 9625.410788 | BF65: =MAX((AW65*0/100000)*IF(JointLife_Ind=1,(1+AV65),1)*(VLOOKUP(Payout_Mode,'Modal Factors'!$C$4:$D$7,2,0))*IF(OR(Input!$D$22="Yes",Input!$D$23="Yes"),Bonus_LP,1)/VLOOKUP(Payout_Mode,$X$3:$Z$6,3,0),IF(Payout_Mode=1,12000,IF(Payout_Mode=2,6000,IF(Payout_Mode=3,3000,1000)))) -> 12000 | BH65: =IF(OR(Age_1>75,AND(Calculator!$E$22="Joint Life",Age_2>75)),"Maximum entry age is 75 years","") ->  | BI65: =IF(Request=2, IF(Annuity_Input<Check!BF65,"Minimum Annuity amount should be "&ROUNDUP(BF65,0),""),"") ->  | BK65: Deferment Period not allowed | BL65: For 9 Pay, only Deferment 9 and 10 are allowed.
AH66: 9 | AI66: Option 9 - Deferred Life Annuity with Return of Purchase Price | AN66: 9 | AO66: 14 | AP66: 1 | AQ66: 'Limited Pay'!$BD$9:$BM$85 | AS66: 9 | AT66: 'Limited Pay'!$BD$91:$BM$167 | AV66: =IF($J$12=0,0,VLOOKUP(Age_1,'Joint Life Factors'!$A$9:$L$12,12,TRUE)) -> 0.015 | AW66: 127934 | AX66: 130095 | AY66: =IF(Age_1+AO66>75,"NA",IF(Request=2,Annuity_Input,((AW66*MIN(50000,Premium_Input)/100000)+AX66*IF(Premium_Input>50000,(Premium_Input-50000)/100000,0))*IF(JointLife_Ind=1,(1+AV66),1)*(VLOOKUP(Payout_Mode,'Modal Factors'!$C$4:$D$7,2,0))*IF(OR(Input!$D$22="Yes",Input!$D$23="Yes"),Bonus_LP,1)/VLOOKUP(Payout_Mode,$X$3:$Z$6,3,0))) -> 6832267.401 | AZ66: =IF(Request=1,Premium_Input,((((AY66*VLOOKUP(Payout_Mode,$X$3:$Z$6,3,0))/(VLOOKUP(Payout_Mode,'Modal Factors'!$C$4:$D$7,2,0))/(IF(OR(Input!$D$22="Yes",Input!$D$23="Yes"),Bonus_SP,1)))/IF(JointLife_Ind=0,1,(1+$AV66)))-(200000*AW66)/100000)/(AX66/100000)+200000) -> 5000000 | BA66: =IF(Request=1,Premium_Input,((((AY66*VLOOKUP(Payout_Mode,$X$3:$Z$6,3,0))/(VLOOKUP(Payout_Mode,'Modal Factors'!$C$4:$D$7,2,0))/(IF(OR(Input!$D$22="Yes",Input!$D$23="Yes"),Bonus_SP,1)))/IF(JointLife_Ind=0,1,(1+$AV66)))/(AW66/100000))) -> 5000000 | BB66: 5000000 | BC66: =(((($L$14*VLOOKUP(Payout_Mode,$X$3:$Z$6,3,0))/(VLOOKUP(Payout_Mode,'Modal Factors'!$C$4:$D$7,2,0))/(IF(OR(Input!$D$22="Yes",Input!$D$23="Yes"),Bonus_LP,1)))/IF(JointLife_Ind=0,1,(1+AV66)))-(50000*AW66)/100000)/(AX66/100000)+50000 -> 9610.945846 | BD66: =(((($L$14*VLOOKUP(Payout_Mode,$X$3:$Z$6,3,0))/(VLOOKUP(Payout_Mode,'Modal Factors'!$C$4:$D$7,2,0))/(IF(OR(Input!$D$22="Yes",Input!$D$23="Yes"),Bonus_LP,1)))/IF(JointLife_Ind=0,1,(1+AV66)))/(AW66/100000)) -> 8928.713242 | BE66: 8928.713242 | BF66: =MAX((AW66*0/100000)*IF(JointLife_Ind=1,(1+AV66),1)*(VLOOKUP(Payout_Mode,'Modal Factors'!$C$4:$D$7,2,0))*IF(OR(Input!$D$22="Yes",Input!$D$23="Yes"),Bonus_LP,1)/VLOOKUP(Payout_Mode,$X$3:$Z$6,3,0),IF(Payout_Mode=1,12000,IF(Payout_Mode=2,6000,IF(Payout_Mode=3,3000,1000)))) -> 12000 | BH66: =IF(OR(Age_1>75,AND(Calculator!$E$22="Joint Life",Age_2>75)),"Maximum entry age is 75 years","") ->  | BI66: =IF(Request=2, IF(Annuity_Input<Check!BF66,"Minimum Annuity amount should be "&ROUNDUP(BF66,0),""),"") ->  | BK66: Deferment Period not allowed | BL66: For 9 Pay, only Deferment 9 and 10 are allowed.
AH67: 9 | AI67: Option 9 - Deferred Life Annuity with Return of Purchase Price | AN67: 9 | AO67: 15 | AP67: 1 | AQ67: 'Limited Pay'!$BD$9:$BM$85 | AS67: 10 | AT67: 'Limited Pay'!$BD$91:$BM$167 | AV67: =IF($J$12=0,0,VLOOKUP(Age_1,'Joint Life Factors'!$A$9:$L$12,12,TRUE)) -> 0.015 | AW67: 137482 | AX67: 139942 | AY67: =IF(Age_1+AO67>75,"NA",IF(Request=2,Annuity_Input,((AW67*MIN(50000,Premium_Input)/100000)+AX67*IF(Premium_Input>50000,(Premium_Input-50000)/100000,0))*IF(JointLife_Ind=1,(1+AV67),1)*(VLOOKUP(Payout_Mode,'Modal Factors'!$C$4:$D$7,2,0))*IF(OR(Input!$D$22="Yes",Input!$D$23="Yes"),Bonus_LP,1)/VLOOKUP(Payout_Mode,$X$3:$Z$6,3,0))) -> 7349336.332 | AZ67: =IF(Request=1,Premium_Input,((((AY67*VLOOKUP(Payout_Mode,$X$3:$Z$6,3,0))/(VLOOKUP(Payout_Mode,'Modal Factors'!$C$4:$D$7,2,0))/(IF(OR(Input!$D$22="Yes",Input!$D$23="Yes"),Bonus_SP,1)))/IF(JointLife_Ind=0,1,(1+$AV67)))-(200000*AW67)/100000)/(AX67/100000)+200000) -> 5000000 | BA67: =IF(Request=1,Premium_Input,((((AY67*VLOOKUP(Payout_Mode,$X$3:$Z$6,3,0))/(VLOOKUP(Payout_Mode,'Modal Factors'!$C$4:$D$7,2,0))/(IF(OR(Input!$D$22="Yes",Input!$D$23="Yes"),Bonus_SP,1)))/IF(JointLife_Ind=0,1,(1+$AV67)))/(AW67/100000))) -> 5000000 | BB67: 5000000 | BC67: =(((($L$14*VLOOKUP(Payout_Mode,$X$3:$Z$6,3,0))/(VLOOKUP(Payout_Mode,'Modal Factors'!$C$4:$D$7,2,0))/(IF(OR(Input!$D$22="Yes",Input!$D$23="Yes"),Bonus_LP,1)))/IF(JointLife_Ind=0,1,(1+AV67)))-(50000*AW67)/100000)/(AX67/100000)+50000 -> 9041.502907 | BD67: =(((($L$14*VLOOKUP(Payout_Mode,$X$3:$Z$6,3,0))/(VLOOKUP(Payout_Mode,'Modal Factors'!$C$4:$D$7,2,0))/(IF(OR(Input!$D$22="Yes",Input!$D$23="Yes"),Bonus_LP,1)))/IF(JointLife_Ind=0,1,(1+AV67)))/(AW67/100000)) -> 8308.622219 | BE67: 8308.622219 | BF67: =MAX((AW67*0/100000)*IF(JointLife_Ind=1,(1+AV67),1)*(VLOOKUP(Payout_Mode,'Modal Factors'!$C$4:$D$7,2,0))*IF(OR(Input!$D$22="Yes",Input!$D$23="Yes"),Bonus_LP,1)/VLOOKUP(Payout_Mode,$X$3:$Z$6,3,0),IF(Payout_Mode=1,12000,IF(Payout_Mode=2,6000,IF(Payout_Mode=3,3000,1000)))) -> 12000 | BH67: =IF(OR(Age_1>75,AND(Calculator!$E$22="Joint Life",Age_2>75)),"Maximum entry age is 75 years","") ->  | BI67: =IF(Request=2, IF(Annuity_Input<Check!BF67,"Minimum Annuity amount should be "&ROUNDUP(BF67,0),""),"") ->  | BJ67: =IF(Request=1,IF($B$10<BE67,"Minimum premium should be Rs. "&ROUNDUP(BE67,0),IF(AND($B$10<100000,$AH67=9,OR($AN67=8,$AN67=9,$AN67=10)),"Minimum premium should be Rs. 1,00,000","")),"") ->  | BK67: Deferment Period not allowed | BL67: For 9 Pay, only Deferment 9 and 10 are allowed.
AH68: 9 | AI68: Option 9 - Deferred Life Annuity with Return of Purchase Price | AN68: 10 | AO68: =AN68+0 -> 10 | AP68: 1 | AQ68: 'Limited Pay'!$BO$9:$BW$85 | AS68: =AO68-6 -> 4 | AT68: 'Limited Pay'!$BO$91:$BW$167 | AV68: =IF($J$12=0,0,VLOOKUP(Age_1,'Joint Life Factors'!$A$9:$L$12,12,TRUE)) -> 0.015 | AW68: 89768 | AX68: 91405 | AY68: =IF(Age_1+AO68>77,"NA",IF(Request=2,Annuity_Input,((AW68*MIN(50000,Premium_Input)/100000)+AX68*IF(Premium_Input>50000,(Premium_Input-50000)/100000,0))*IF(JointLife_Ind=1,(1+AV68),1)*(VLOOKUP(Payout_Mode,'Modal Factors'!$C$4:$D$7,2,0))*IF(OR(Input!$D$22="Yes",Input!$D$23="Yes"),Bonus_LP,1)/VLOOKUP(Payout_Mode,$X$3:$Z$6,3,0))) -> 4800302.027 | AZ68: =IF(Request=1,Premium_Input,((((AY68*VLOOKUP(Payout_Mode,$X$3:$Z$6,3,0))/(VLOOKUP(Payout_Mode,'Modal Factors'!$C$4:$D$7,2,0))/(IF(OR(Input!$D$22="Yes",Input!$D$23="Yes"),Bonus_SP,1)))/IF(JointLife_Ind=0,1,(1+$AV68)))-(200000*AW68)/100000)/(AX68/100000)+200000) -> 5000000 | BA68: =IF(Request=1,Premium_Input,((((AY68*VLOOKUP(Payout_Mode,$X$3:$Z$6,3,0))/(VLOOKUP(Payout_Mode,'Modal Factors'!$C$4:$D$7,2,0))/(IF(OR(Input!$D$22="Yes",Input!$D$23="Yes"),Bonus_SP,1)))/IF(JointLife_Ind=0,1,(1+$AV68)))/(AW68/100000))) -> 5000000 | BB68: =IF(Age_1+AO68>77,"NA",IF(AZ68>50000,AZ68,BA68)) -> 5000000 | BC68: =(((($L$14*VLOOKUP(Payout_Mode,$X$3:$Z$6,3,0))/(VLOOKUP(Payout_Mode,'Modal Factors'!$C$4:$D$7,2,0))/(IF(OR(Input!$D$22="Yes",Input!$D$23="Yes"),Bonus_LP,1)))/IF(JointLife_Ind=0,1,(1+AV68)))-(50000*AW68)/100000)/(AX68/100000)+50000 -> 13392.44024 | BD68: =(((($L$14*VLOOKUP(Payout_Mode,$X$3:$Z$6,3,0))/(VLOOKUP(Payout_Mode,'Modal Factors'!$C$4:$D$7,2,0))/(IF(OR(Input!$D$22="Yes",Input!$D$23="Yes"),Bonus_LP,1)))/IF(JointLife_Ind=0,1,(1+AV68)))/(AW68/100000)) -> 12724.86855 | BE68: 12724.86855 | BF68: =MAX((AW68*0/100000)*IF(JointLife_Ind=1,(1+AV68),1)*(VLOOKUP(Payout_Mode,'Modal Factors'!$C$4:$D$7,2,0))*IF(OR(Input!$D$22="Yes",Input!$D$23="Yes"),Bonus_LP,1)/VLOOKUP(Payout_Mode,$X$3:$Z$6,3,0),IF(Payout_Mode=1,12000,IF(Payout_Mode=2,6000,IF(Payout_Mode=3,3000,1000)))) -> 12000 | BH68: =IF(OR(Age_1>75,AND(Calculator!$E$22="Joint Life",Age_2>75)),"Maximum entry age is 75 years","") ->  | BI68: =IF(Request=2, IF(Annuity_Input<Check!BF68,"Minimum Annuity amount should be "&ROUNDUP(BF68,0),""),"") ->  | BK68: =IF(AND(OR($AN68=8,$AN68=9),AO68>10),"Deferment Period not allowed",IF(AND($AN68=10,AO68>11),"Deferment Period not allowed","")) -> 
AH69: 9 | AI69: Option 9 - Deferred Life Annuity with Return of Purchase Price | AN69: =AN68 -> 10 | AO69: =AO68+1 -> 11 | AP69: 1 | AQ69: 'Limited Pay'!$BO$9:$BW$85 | AS69: =AO69-6 -> 5 | AT69: 'Limited Pay'!$BO$91:$BW$167 | AV69: =IF($J$12=0,0,VLOOKUP(Age_1,'Joint Life Factors'!$A$9:$L$12,12,TRUE)) -> 0.015 | AW69: 101450 | AX69: 103189 | AY69: =IF(Age_1+AO69>75,"NA",IF(Request=2,Annuity_Input,((AW69*MIN(50000,Premium_Input)/100000)+AX69*IF(Premium_Input>50000,(Premium_Input-50000)/100000,0))*IF(JointLife_Ind=1,(1+AV69),1)*(VLOOKUP(Payout_Mode,'Modal Factors'!$C$4:$D$7,2,0))*IF(OR(Input!$D$22="Yes",Input!$D$23="Yes"),Bonus_LP,1)/VLOOKUP(Payout_Mode,$X$3:$Z$6,3,0))) -> 5419217.78 | AZ69: =IF(Request=1,Premium_Input,((((AY69*VLOOKUP(Payout_Mode,$X$3:$Z$6,3,0))/(VLOOKUP(Payout_Mode,'Modal Factors'!$C$4:$D$7,2,0))/(IF(OR(Input!$D$22="Yes",Input!$D$23="Yes"),Bonus_SP,1)))/IF(JointLife_Ind=0,1,(1+$AV69)))-(200000*AW69)/100000)/(AX69/100000)+200000) -> 5000000 | BA69: =IF(Request=1,Premium_Input,((((AY69*VLOOKUP(Payout_Mode,$X$3:$Z$6,3,0))/(VLOOKUP(Payout_Mode,'Modal Factors'!$C$4:$D$7,2,0))/(IF(OR(Input!$D$22="Yes",Input!$D$23="Yes"),Bonus_SP,1)))/IF(JointLife_Ind=0,1,(1+$AV69)))/(AW69/100000))) -> 5000000 | BB69: 5000000 | BC69: =(((($L$14*VLOOKUP(Payout_Mode,$X$3:$Z$6,3,0))/(VLOOKUP(Payout_Mode,'Modal Factors'!$C$4:$D$7,2,0))/(IF(OR(Input!$D$22="Yes",Input!$D$23="Yes"),Bonus_LP,1)))/IF(JointLife_Ind=0,1,(1+AV69)))-(50000*AW69)/100000)/(AX69/100000)+50000 -> 11912.47129 | BD69: =(((($L$14*VLOOKUP(Payout_Mode,$X$3:$Z$6,3,0))/(VLOOKUP(Payout_Mode,'Modal Factors'!$C$4:$D$7,2,0))/(IF(OR(Input!$D$22="Yes",Input!$D$23="Yes"),Bonus_LP,1)))/IF(JointLife_Ind=0,1,(1+AV69)))/(AW69/100000)) -> 11259.59586 | BE69: 11259.59586 | BF69: =MAX((AW69*0/100000)*IF(JointLife_Ind=1,(1+AV69),1)*(VLOOKUP(Payout_Mode,'Modal Factors'!$C$4:$D$7,2,0))*IF(OR(Input!$D$22="Yes",Input!$D$23="Yes"),Bonus_LP,1)/VLOOKUP(Payout_Mode,$X$3:$Z$6,3,0),IF(Payout_Mode=1,12000,IF(Payout_Mode=2,6000,IF(Payout_Mode=3,3000,1000)))) -> 12000 | BH69: =IF(OR(Age_1>75,AND(Calculator!$E$22="Joint Life",Age_2>75)),"Maximum entry age is 75 years","") ->  | BI69: =IF(Request=2, IF(Annuity_Input<Check!BF69,"Minimum Annuity amount should be "&ROUNDUP(BF69,0),""),"") -> 
AH70: 9 | AI70: Option 9 - Deferred Life Annuity with Return of Purchase Price | AN70: =AN69 -> 10 | AO70: 12 | AP70: 1 | AQ70: 'Limited Pay'!$BO$9:$BW$85 | AS70: 6 | AT70: 'Limited Pay'!$BO$91:$BW$167 | AV70: =IF($J$12=0,0,VLOOKUP(Age_1,'Joint Life Factors'!$A$9:$L$12,12,TRUE)) -> 0.015 | AW70: 113583 | AX70: 115687 | AY70: =IF(Age_1+AO70>75,"NA",IF(Request=2,Annuity_Input,((AW70*MIN(50000,Premium_Input)/100000)+AX70*IF(Premium_Input>50000,(Premium_Input-50000)/100000,0))*IF(JointLife_Ind=1,(1+AV70),1)*(VLOOKUP(Payout_Mode,'Modal Factors'!$C$4:$D$7,2,0))*IF(OR(Input!$D$22="Yes",Input!$D$23="Yes"),Bonus_LP,1)/VLOOKUP(Payout_Mode,$X$3:$Z$6,3,0))) -> 6075499.131 | AZ70: =IF(Request=1,Premium_Input,((((AY70*VLOOKUP(Payout_Mode,$X$3:$Z$6,3,0))/(VLOOKUP(Payout_Mode,'Modal Factors'!$C$4:$D$7,2,0))/(IF(OR(Input!$D$22="Yes",Input!$D$23="Yes"),Bonus_SP,1)))/IF(JointLife_Ind=0,1,(1+$AV70)))-(200000*AW70)/100000)/(AX70/100000)+200000) -> 5000000 | BA70: =IF(Request=1,Premium_Input,((((AY70*VLOOKUP(Payout_Mode,$X$3:$Z$6,3,0))/(VLOOKUP(Payout_Mode,'Modal Factors'!$C$4:$D$7,2,0))/(IF(OR(Input!$D$22="Yes",Input!$D$23="Yes"),Bonus_SP,1)))/IF(JointLife_Ind=0,1,(1+$AV70)))/(AW70/100000))) -> 5000000 | BB70: 5000000 | BC70: =(((($L$14*VLOOKUP(Payout_Mode,$X$3:$Z$6,3,0))/(VLOOKUP(Payout_Mode,'Modal Factors'!$C$4:$D$7,2,0))/(IF(OR(Input!$D$22="Yes",Input!$D$23="Yes"),Bonus_LP,1)))/IF(JointLife_Ind=0,1,(1+AV70)))-(50000*AW70)/100000)/(AX70/100000)+50000 -> 10783.28593 | BD70: =(((($L$14*VLOOKUP(Payout_Mode,$X$3:$Z$6,3,0))/(VLOOKUP(Payout_Mode,'Modal Factors'!$C$4:$D$7,2,0))/(IF(OR(Input!$D$22="Yes",Input!$D$23="Yes"),Bonus_LP,1)))/IF(JointLife_Ind=0,1,(1+AV70)))/(AW70/100000)) -> 10056.83949 | BE70: 10056.83949 | BF70: =MAX((AW70*0/100000)*IF(JointLife_Ind=1,(1+AV70),1)*(VLOOKUP(Payout_Mode,'Modal Factors'!$C$4:$D$7,2,0))*IF(OR(Input!$D$22="Yes",Input!$D$23="Yes"),Bonus_LP,1)/VLOOKUP(Payout_Mode,$X$3:$Z$6,3,0),IF(Payout_Mode=1,12000,IF(Payout_Mode=2,6000,IF(Payout_Mode=3,3000,1000)))) -> 12000 | BH70: =IF(OR(Age_1>75,AND(Calculator!$E$22="Joint Life",Age_2>75)),"Maximum entry age is 75 years","") ->  | BI70: =IF(Request=2, IF(Annuity_Input<Check!BF70,"Minimum Annuity amount should be "&ROUNDUP(BF70,0),""),"") ->  | BK70: Deferment Period not allowed | BL70: For 10 Pay, only Deferment10 and 11 are allowed.
AH71: 9 | AI71: Option 9 - Deferred Life Annuity with Return of Purchase Price | AN71: 10 | AO71: 13 | AP71: 1 | AQ71: 'Limited Pay'!$BO$9:$BW$85 | AS71: 7 | AT71: 'Limited Pay'!$BO$91:$BW$167 | AV71: =IF($J$12=0,0,VLOOKUP(Age_1,'Joint Life Factors'!$A$9:$L$12,12,TRUE)) -> 0.015 | AW71: 127677 | AX71: 129942 | AY71: =IF(Age_1+AO71>75,"NA",IF(Request=2,Annuity_Input,((AW71*MIN(50000,Premium_Input)/100000)+AX71*IF(Premium_Input>50000,(Premium_Input-50000)/100000,0))*IF(JointLife_Ind=1,(1+AV71),1)*(VLOOKUP(Payout_Mode,'Modal Factors'!$C$4:$D$7,2,0))*IF(OR(Input!$D$22="Yes",Input!$D$23="Yes"),Bonus_LP,1)/VLOOKUP(Payout_Mode,$X$3:$Z$6,3,0))) -> 6824176.258 | AZ71: =IF(Request=1,Premium_Input,((((AY71*VLOOKUP(Payout_Mode,$X$3:$Z$6,3,0))/(VLOOKUP(Payout_Mode,'Modal Factors'!$C$4:$D$7,2,0))/(IF(OR(Input!$D$22="Yes",Input!$D$23="Yes"),Bonus_SP,1)))/IF(JointLife_Ind=0,1,(1+$AV71)))-(200000*AW71)/100000)/(AX71/100000)+200000) -> 5000000 | BA71: =IF(Request=1,Premium_Input,((((AY71*VLOOKUP(Payout_Mode,$X$3:$Z$6,3,0))/(VLOOKUP(Payout_Mode,'Modal Factors'!$C$4:$D$7,2,0))/(IF(OR(Input!$D$22="Yes",Input!$D$23="Yes"),Bonus_SP,1)))/IF(JointLife_Ind=0,1,(1+$AV71)))/(AW71/100000))) -> 5000000 | BB71: 5000000 | BC71: =(((($L$14*VLOOKUP(Payout_Mode,$X$3:$Z$6,3,0))/(VLOOKUP(Payout_Mode,'Modal Factors'!$C$4:$D$7,2,0))/(IF(OR(Input!$D$22="Yes",Input!$D$23="Yes"),Bonus_LP,1)))/IF(JointLife_Ind=0,1,(1+AV71)))-(50000*AW71)/100000)/(AX71/100000)+50000 -> 9662.280093 | BD71: =(((($L$14*VLOOKUP(Payout_Mode,$X$3:$Z$6,3,0))/(VLOOKUP(Payout_Mode,'Modal Factors'!$C$4:$D$7,2,0))/(IF(OR(Input!$D$22="Yes",Input!$D$23="Yes"),Bonus_LP,1)))/IF(JointLife_Ind=0,1,(1+AV71)))/(AW71/100000)) -> 8946.685776 | BE71: 8946.685776 | BF71: =MAX((AW71*0/100000)*IF(JointLife_Ind=1,(1+AV71),1)*(VLOOKUP(Payout_Mode,'Modal Factors'!$C$4:$D$7,2,0))*IF(OR(Input!$D$22="Yes",Input!$D$23="Yes"),Bonus_LP,1)/VLOOKUP(Payout_Mode,$X$3:$Z$6,3,0),IF(Payout_Mode=1,12000,IF(Payout_Mode=2,6000,IF(Payout_Mode=3,3000,1000)))) -> 12000 | BH71: =IF(OR(Age_1>75,AND(Calculator!$E$22="Joint Life",Age_2>75)),"Maximum entry age is 75 years","") ->  | BI71: =IF(Request=2, IF(Annuity_Input<Check!BF71,"Minimum Annuity amount should be "&ROUNDUP(BF71,0),""),"") ->  | BK71: Deferment Period not allowed | BL71: For 10 Pay, only Deferment10 and 11 are allowed.
AH72: 9 | AI72: Option 9 - Deferred Life Annuity with Return of Purchase Price | AN72: 10 | AO72: 14 | AP72: 1 | AQ72: 'Limited Pay'!$BO$9:$BW$85 | AS72: 8 | AT72: 'Limited Pay'!$BO$91:$BW$167 | AV72: =IF($J$12=0,0,VLOOKUP(Age_1,'Joint Life Factors'!$A$9:$L$12,12,TRUE)) -> 0.015 | AW72: 138286 | AX72: 140541 | AY72: =IF(Age_1+AO72>75,"NA",IF(Request=2,Annuity_Input,((AW72*MIN(50000,Premium_Input)/100000)+AX72*IF(Premium_Input>50000,(Premium_Input-50000)/100000,0))*IF(JointLife_Ind=1,(1+AV72),1)*(VLOOKUP(Payout_Mode,'Modal Factors'!$C$4:$D$7,2,0))*IF(OR(Input!$D$22="Yes",Input!$D$23="Yes"),Bonus_LP,1)/VLOOKUP(Payout_Mode,$X$3:$Z$6,3,0))) -> 7380907.234 | AZ72: =IF(Request=1,Premium_Input,((((AY72*VLOOKUP(Payout_Mode,$X$3:$Z$6,3,0))/(VLOOKUP(Payout_Mode,'Modal Factors'!$C$4:$D$7,2,0))/(IF(OR(Input!$D$22="Yes",Input!$D$23="Yes"),Bonus_SP,1)))/IF(JointLife_Ind=0,1,(1+$AV72)))-(200000*AW72)/100000)/(AX72/100000)+200000) -> 5000000 | BA72: =IF(Request=1,Premium_Input,((((AY72*VLOOKUP(Payout_Mode,$X$3:$Z$6,3,0))/(VLOOKUP(Payout_Mode,'Modal Factors'!$C$4:$D$7,2,0))/(IF(OR(Input!$D$22="Yes",Input!$D$23="Yes"),Bonus_SP,1)))/IF(JointLife_Ind=0,1,(1+$AV72)))/(AW72/100000))) -> 5000000 | BB72: 5000000 | BC72: =(((($L$14*VLOOKUP(Payout_Mode,$X$3:$Z$6,3,0))/(VLOOKUP(Payout_Mode,'Modal Factors'!$C$4:$D$7,2,0))/(IF(OR(Input!$D$22="Yes",Input!$D$23="Yes"),Bonus_LP,1)))/IF(JointLife_Ind=0,1,(1+AV72)))-(50000*AW72)/100000)/(AX72/100000)+50000 -> 8930.034651 | BD72: =(((($L$14*VLOOKUP(Payout_Mode,$X$3:$Z$6,3,0))/(VLOOKUP(Payout_Mode,'Modal Factors'!$C$4:$D$7,2,0))/(IF(OR(Input!$D$22="Yes",Input!$D$23="Yes"),Bonus_LP,1)))/IF(JointLife_Ind=0,1,(1+AV72)))/(AW72/100000)) -> 8260.315577 | BE72: 8260.315577 | BF72: =MAX((AW72*0/100000)*IF(JointLife_Ind=1,(1+AV72),1)*(VLOOKUP(Payout_Mode,'Modal Factors'!$C$4:$D$7,2,0))*IF(OR(Input!$D$22="Yes",Input!$D$23="Yes"),Bonus_LP,1)/VLOOKUP(Payout_Mode,$X$3:$Z$6,3,0),IF(Payout_Mode=1,12000,IF(Payout_Mode=2,6000,IF(Payout_Mode=3,3000,1000)))) -> 12000 | BH72: =IF(OR(Age_1>75,AND(Calculator!$E$22="Joint Life",Age_2>75)),"Maximum entry age is 75 years","") ->  | BI72: =IF(Request=2, IF(Annuity_Input<Check!BF72,"Minimum Annuity amount should be "&ROUNDUP(BF72,0),""),"") ->  | BK72: Deferment Period not allowed | BL72: For 10 Pay, only Deferment10 and 11 are allowed.
AH73: 9 | AI73: Option 9 - Deferred Life Annuity with Return of Purchase Price | AN73: 10 | AO73: 15 | AP73: 1 | AQ73: 'Limited Pay'!$BO$9:$BW$85 | AS73: 9 | AT73: 'Limited Pay'!$BO$91:$BW$167 | AV73: =IF($J$12=0,0,VLOOKUP(Age_1,'Joint Life Factors'!$A$9:$L$12,12,TRUE)) -> 0.015 | AW73: 150802 | AX73: 153529 | AY73: =IF(Age_1+AO73>75,"NA",IF(Request=2,Annuity_Input,((AW73*MIN(50000,Premium_Input)/100000)+AX73*IF(Premium_Input>50000,(Premium_Input-50000)/100000,0))*IF(JointLife_Ind=1,(1+AV73),1)*(VLOOKUP(Payout_Mode,'Modal Factors'!$C$4:$D$7,2,0))*IF(OR(Input!$D$22="Yes",Input!$D$23="Yes"),Bonus_LP,1)/VLOOKUP(Payout_Mode,$X$3:$Z$6,3,0))) -> 8062870.245 | AZ73: =IF(Request=1,Premium_Input,((((AY73*VLOOKUP(Payout_Mode,$X$3:$Z$6,3,0))/(VLOOKUP(Payout_Mode,'Modal Factors'!$C$4:$D$7,2,0))/(IF(OR(Input!$D$22="Yes",Input!$D$23="Yes"),Bonus_SP,1)))/IF(JointLife_Ind=0,1,(1+$AV73)))-(200000*AW73)/100000)/(AX73/100000)+200000) -> 5000000 | BA73: =IF(Request=1,Premium_Input,((((AY73*VLOOKUP(Payout_Mode,$X$3:$Z$6,3,0))/(VLOOKUP(Payout_Mode,'Modal Factors'!$C$4:$D$7,2,0))/(IF(OR(Input!$D$22="Yes",Input!$D$23="Yes"),Bonus_SP,1)))/IF(JointLife_Ind=0,1,(1+$AV73)))/(AW73/100000))) -> 5000000 | BB73: 5000000 | BC73: =(((($L$14*VLOOKUP(Payout_Mode,$X$3:$Z$6,3,0))/(VLOOKUP(Payout_Mode,'Modal Factors'!$C$4:$D$7,2,0))/(IF(OR(Input!$D$22="Yes",Input!$D$23="Yes"),Bonus_LP,1)))/IF(JointLife_Ind=0,1,(1+AV73)))-(50000*AW73)/100000)/(AX73/100000)+50000 -> 8328.302795 | BD73: =(((($L$14*VLOOKUP(Payout_Mode,$X$3:$Z$6,3,0))/(VLOOKUP(Payout_Mode,'Modal Factors'!$C$4:$D$7,2,0))/(IF(OR(Input!$D$22="Yes",Input!$D$23="Yes"),Bonus_LP,1)))/IF(JointLife_Ind=0,1,(1+AV73)))/(AW73/100000)) -> 7574.740387 | BE73: 7574.740387 | BF73: =MAX((AW73*0/100000)*IF(JointLife_Ind=1,(1+AV73),1)*(VLOOKUP(Payout_Mode,'Modal Factors'!$C$4:$D$7,2,0))*IF(OR(Input!$D$22="Yes",Input!$D$23="Yes"),Bonus_LP,1)/VLOOKUP(Payout_Mode,$X$3:$Z$6,3,0),IF(Payout_Mode=1,12000,IF(Payout_Mode=2,6000,IF(Payout_Mode=3,3000,1000)))) -> 12000 | BH73: =IF(OR(Age_1>75,AND(Calculator!$E$22="Joint Life",Age_2>75)),"Maximum entry age is 75 years","") ->  | BI73: =IF(Request=2, IF(Annuity_Input<Check!BF73,"Minimum Annuity amount should be "&ROUNDUP(BF73,0),""),"") ->  | BK73: Deferment Period not allowed | BL73: For 10 Pay, only Deferment10 and 11 are allowed.
AH74: 10 | AI74: Option 10- NPS - Family Income | AP74: 1 | AQ74: 'Single Life'!$B$9:$AR$110 | AS74: 43 | AT74: 'Single Life'!$B$116:$AR$217 | AV74: =IF($F$12=0,0,VLOOKUP(Age_1,'Joint Life Factors'!$A$9:$L$12,8,TRUE)) -> 0.03 | AW74: =IF($F$12=0,VLOOKUP(IF(AND(Gender=2,$F$7<>6,$F$7<>7),MAX(Age_1-3,0),Age_1),IF(AND(Gender=2,OR($F$7=6,$F$7=7)),INDIRECT($AR74),INDIRECT($AQ74)),$AS74,0),VLOOKUP(IF(Age_1=$F$4,IF(OR(Gender=2,$F$6=2),MAX(Age_1-3,0),Age_1),IF(Age_1<Age_2,IF(Gender=2,MAX(Age_1-3,0),Age_1),IF($F$6=2,MAX(Age_2-3,0),Age_2))),INDIRECT($AQ74),$AS74,0)) -> 6513 | AX74: =IF($F$12=0,VLOOKUP(IF(AND(Gender=2,$F$7<>6,$F$7<>7),MAX(Age_1-3,0),Age_1),IF(AND(Gender=2,OR($F$7=6,$F$7=7)),INDIRECT($AU74),INDIRECT($AT74)),$AS74,0),VLOOKUP(IF(Age_1=$F$4,IF(OR(Gender=2,$F$6=2),MAX(Age_1-3,0),Age_1),IF(Age_1<Age_2,IF(Gender=2,MAX(Age_1-3,0),Age_1),IF($F$6=2,MAX(Age_2-3,0),Age_2))),INDIRECT($AT74),$AS74,0)) -> 6840 | AY74: =IF(Request=2,Annuity_Input,((AW74*MIN(200000,Premium_Input)/100000)+AX74*IF(Premium_Input>200000,(Premium_Input-200000)/100000,0))*IF(JointLife_Ind=1,(1+AV74),1)*(VLOOKUP(Payout_Mode,'Modal Factors'!$C$4:$D$7,2,0))*IF(OR(Input!$D$22="Yes",Input!$D$23="Yes"),Bonus_SP,1)/VLOOKUP(Payout_Mode,$X$3:$Z$6,3,0)) -> 360376.0395 | AZ74: =IF(Request=1,Premium_Input,((((AY74*VLOOKUP(Payout_Mode,$X$3:$Z$6,3,0))/(VLOOKUP(Payout_Mode,'Modal Factors'!$C$4:$D$7,2,0))/(IF(OR(Input!$D$22="Yes",Input!$D$23="Yes"),Bonus_SP,1)))/IF(JointLife_Ind=0,1,(1+$AV74)))-(200000*AW74)/100000)/(AX74/100000)+200000) -> 5000000 | BA74: =IF(Request=1,Premium_Input,((((AY74*VLOOKUP(Payout_Mode,$X$3:$Z$6,3,0))/(VLOOKUP(Payout_Mode,'Modal Factors'!$C$4:$D$7,2,0))/(IF(OR(Input!$D$22="Yes",Input!$D$23="Yes"),Bonus_SP,1)))/IF(JointLife_Ind=0,1,(1+$AV74)))/(AW74/100000))) -> 5000000 | BB74: =IF(AZ74>200000,AZ74,BA74) -> 5000000 | BC74: =(((($L$14*VLOOKUP(Payout_Mode,$X$3:$Z$6,3,0))/(VLOOKUP(Payout_Mode,'Modal Factors'!$C$4:$D$7,2,0))/(IF(OR(Input!$D$22="Yes",Input!$D$23="Yes"),Bonus_SP,1)))/IF(JointLife_Ind=0,1,(1+AV74)))-(200000*AW74)/100000)/(AX74/100000)+200000 -> 175735.7786 | BD74: =(((($L$14*VLOOKUP(Payout_Mode,$X$3:$Z$6,3,0))/(VLOOKUP(Payout_Mode,'Modal Factors'!$C$4:$D$7,2,0))/(IF(OR(Input!$D$22="Yes",Input!$D$23="Yes"),Bonus_SP,1)))/IF(JointLife_Ind=0,1,(1+AV74)))/(AW74/100000)) -> 174517.5381 | BE74: =MAX(150000,0,IF(BC74>200000,BC74,BD74)) -> 174517.5381 | BF74: =MAX((AW74*150000/100000)*IF(JointLife_Ind=1,(1+AV74),1)*(VLOOKUP(Payout_Mode,'Modal Factors'!$C$4:$D$7,2,0))*IF(OR(Input!$D$22="Yes",Input!$D$23="Yes"),Bonus_SP,1)/VLOOKUP(Payout_Mode,$X$3:$Z$6,3,0), IF(Payout_Mode=1,12000,IF(Payout_Mode=2,6000,IF(Payout_Mode=3,3000,1000)))) -> 12000 | BH74: =IF(OR(Age_1>90,AND(Calculator!$E$22="Joint Life", Age_2>90)),"Maximum entry age is 90 years","") ->  | BI74: =IF(Request=2, IF(Annuity_Input<Check!BF74,"Minimum Annuity amount should be "&ROUNDUP(BF74,0),""),"") -> 
AM75: Lookup Table | AQ75: =VLOOKUP(1,$AP$3:$AQ$74,2,0) -> 'Single Life'!$B$9:$E$110 | AR75: =VLOOKUP(1,$AP$3:$AR$74,3,0) -> 0 | AS75: =VLOOKUP(1,$AP$3:$AS$74,4,0) -> 4 | AT75: =VLOOKUP(1,$AP$3:$AU$74,5,0) -> 'Single Life'!$B$116:$E$217 | AU75: =VLOOKUP(1,$AP$3:$AU$74,6,0) -> 0

Sheet Input (hidden)
C2: Aditya Birla Sun Life Insurance
C3: =IF(Check!P2>=1,"ERROR - "&Check!Q2,"ABSLI Guaranteed Annuity Plus") -> ABSLI Guaranteed Annuity Plus
C4: Your Policy Illustration
B7: Annuitant 1: | C7: Client 1 | E7: Date of Birth: | G7: Gender: | H7: =Calculator!F8 -> Male
B8: Annuitant 2: | C8: Client 2 | E8: Date of Birth: | G8: Gender: | H8: =Calculator!F9 -> Male
B10: Policy Details | D10: UIN: 109NXXXXXX
B11: Annuity Option | D11: Option 1 - Life Annuity | F11: New Proposal | G11: No
B12: Frequency of Annuity payment | D12: =Calculator!E13 -> Annual | F12: Individual/Group | G12: =Calculator!E23 -> Group
B13: Would you like to choose Premium or the Annuity | D13: =Calculator!E14 -> Premium
B14: =IF(D13="Premium","Premium / Vesting Amount (Before GST)","") -> Premium / Vesting Amount (Before GST) | D14: =Calculator!E18 -> 5000000
B15: =IF(D13="Annuity","Annuity Amount","") ->  | D15: =Calculator!E21 -> 32344.2
B16: =IF(OR(Annuity_Option=1,Annuity_Option=5,Annuity_Option=9,Annuity_Option=10),"Single Life/ Joint Life Annuity","") -> Single Life/ Joint Life Annuity | D16: =Calculator!E22 -> Joint Life
B17: =IF(OR(Annuity_Option=1,Annuity_Option=3),"Level or Increasing Annuity","") -> Level or Increasing Annuity | D17: Increasing
B18: =IF(AND(OR(Annuity_Option=1,Annuity_Option=3),D17="Increasing"),"Annuity Escalation Rate","") -> Annuity Escalation Rate | D18: 0.03
B19: =IF(Annuity_Option=2,"Annuity Certain Period","") ->  | D19: 5
B20: =IF(Annuity_Option=5,"RoP Percentage","") ->  | D20: 1
B21: =IF(Annuity_Option=9,"Deferment Period","") ->  | D21: 5
B22: ABG Employee | D22: No
B23: Sale without Agent | D23: =Calculator!D47 -> Yes
B24: =IF(Annuity_Option<>10,"<<Whether purchased through QROPs/ NPS proceeds>>","") -> <<Whether purchased through QROPs/ NPS proceeds>> | D24: None
B30: Annuity Types | C30: Lifetime Annuity with return of purchase price | G30: Options | J30: Modes
F31: 1 | G31: Annuity Amount | I31: 1 | J31: Annual
F32: 2 | G32: Premium Amount | I32: 2 | J32: Semi - Annual
B33: 1 | C33: Lifetime Annuity at Uniform Rate | I33: 3 | J33: Quaterly
B34: 2 | C34: Lifetime Annuity with return of purchase price | G34: Sales | I34: 4 | J34: Monthly
B35: 3 | C35: Annuity for term of 5 years | F35: 1 | G35: Yes
B36: 4 | C36: Annuity for term of 10 years | F36: 2 | G36: No
B37: 5 | C37: Annuity for term of 15 years
B38: 6 | C38: Annuity for term of 20 years
B39: 7 | C39: Lifetime Annuity at increasing rate of 3% annually
B40: 8 | C40: Joint Life with Last Survivor
B41: 9 | C41: Joint Life with RoP

Sheet Please read (hidden)
A1: Date | B1: UIN Version | C1: Sheet | D1: Cell | E1: Description | F1: Color
A2: 2025-05-08 | B2: V15 | C2: Single Pay | D2: Highlighted cells updated | E2: Updated annuity rates for Single Pay
A3: 2025-05-08 | B3: V15 | C3: Limited Pay | D3: Highlighted cells updated | E3: Updated specific annuity rates for Limited Pay
A4: 2025-05-08 | B4: V15 | C4: Input | D4: D10 | E4: Updated UIN to V15
A5: 2025-05-08 | B5: V15 | C5: Output | D5: C9 | E5: Updated UIN to V15
A6: 2025-05-08 | B6: V15 | C6: Surrender Factors | D6: C:K | E6: Updated SSF factors
A7: 2025-09-30 | B7: V16 | C7: Single Pay | D7: Column AR | E7: Updated Annuity Rates
A8: 2025-09-30 | B8: V16 | C8: Check | D8: B27:B28 | E8: GST rate updated to 0%

Sheet Output (hidden)
B2: Aditya Birla Sun Life Insurance
B3: ABSLI Guaranteed Annuity Plus
B4: A Non Linked Non Participating Single Premium General Annuity Plan
B5: Your Benefit Illustration
E6: This shall form a part of the policy contract
B8: Policy Details
B9: UIN | C9: 109Nxxxxxx | E9: Premium Payment Term: | G9: Single Pay
E10: Policy Term: | G10: Whole Life
B11: Name of the First Annuitant/ Policyholder: | C11: =Input!C7 -> Client 1 | E11: Purchase Price: | F11: Rs. | G11: =IF(Request=2,Check!B27,Input!D14) -> 5000000
B12: Age of the First Annuitant/ Policyholder: | C12: =Age_1&" "&"Years" -> 60 Years | E12: Frequency of Annuity payment: | G12: =Input!D12 -> Annual
B13: Gender of the First Annuitant/ Policyholder: | C13: =Input!H7 -> Male | E13: Annuity: | F13: Rs. | G13: =IF(Request=2,Input!D15,Check!B21) -> 391844.544
B14: Joint Life/ Single Life Annuity/Family Income | C14: =IF(OR(Annuity_Option=1,Annuity_Option=5,Annuity_Option=9),Input!D16,IF(OR(Annuity_Option=4,Annuity_Option=8),"Joint Life",IF(Annuity_Option=10,"Family Income","Single Life"))) -> Joint Life | E14: <<Whether purchased through NPS/ QROPs proceeds>> | G14: =IF(Annuity_Option=10,"NPS",Input!D24) -> None
B15: =IF(JointLife_Ind=1,"Name of the Second Annuitant, if any:","") -> Name of the Second Annuitant, if any: | C15: =IF(JointLife_Ind=1,Input!C8,"") -> Client 2
B16: =IF(JointLife_Ind=1,"Age of the Second Annuitant:","") -> Age of the Second Annuitant: | C16: =IF(JointLife_Ind=1,Age_2&" "&"Years","") -> 60 Years | E16: =IF(Input!D22="Yes","<<ABG/Partner Company Employee>>","") ->  | G16: =IF(Input!D22="No","",Input!D22) -> 
B17: =IF(JointLife_Ind=1,"Gender of the Second Annuitant","") -> Gender of the Second Annuitant | C17: =IF(JointLife_Ind=1,Input!H8,"") -> Male | E17: =IF(Input!D23="Yes","<<Eligible for Online Discount>>","") -> <<Eligible for Online Discount>> | G17: =IF(Input!D23="No","",Input!D23) -> Yes
E18: GST Rate: | G18: =Service_Tax -> 0
B20: How to read and understand this benefit illustration?
B21: This benefit illustration is intended to show year-wise premiums payable and benefits under the policy.
B23: Annuity Details
B24: Annuity Option: | C24: : | D24: =Input!D11 -> Option 1 - Life Annuity
B25: =Input!B17 -> Level or Increasing Annuity | C25: =IF(B25="","",":") -> : | D25: =IF(OR(Annuity_Option=1,Annuity_Option=3),Input!D17,"") -> Increasing
B26: =Input!B18 -> Annuity Escalation Rate | C26: =IF(B26="","",":") -> : | D26: =IF(AND(Input!D17="Increasing",OR(Annuity_Option=1,Annuity_Option=3)),Input!D18,"") -> 0.03
B27: =Input!B19 ->  | C27: =IF(B27="","",":") ->  | D27: =IF(Annuity_Option=2,Input!D19&" years","") -> 
B28: =Input!B20 ->  | C28: =IF(B28="","",":") ->  | D28: =IF(Annuity_Option=5,Input!D20,"") -> 
B29: =Input!B21 ->  | C29: =IF(B29="","",":") ->  | D29: =IF(Annuity_Option=9,Input!D21,"") ->  | E29: =IF(Annuity_Option=9,"years","") -> 
B31: Premium Summary (in Rs.)
D32: Base Plan
B33: Purchase Price without GST | C33: =G11 -> 5000000
B34: GST | C34: =C33*G18 -> 0
B35: Purchase Price with GST | C35: =SUM(C33:D34) -> 5000000
D38: Guaranteed | I38: Non Guaranteed
B39: Policy Year | C39: Single Premium* | D39: =IF(OR(Annuity_Option=2,Annuity_Option=4),"Survival Benefits#","Survival Benefits") -> Survival Benefits | E39: =IF(Annuity_Option=6,"Critical Illness / Accidental Permanent Disability Benefit#",IF(Annuity_Option=7,"Return of Purchase Price on attainment of Age 80 years",IF(Annuity_Option=9,"Guaranteed Additions","Other benefits if any"))) -> Other benefits if any | F39: Maturity Benefit | G39: =IF(Annuity_Option=8,"Death Benefit**","Death Benefit") -> Death Benefit | H39: Minimum Guaranteed Surrender Value | I39: Special Surrender Value
C40: BOY | D40: EOY | E40: EOY | G40: EOY | H40: EOY | I40: EOY
B41: (1) | C41: (2) | D41: (3) | E41: (4) | F41: (5) | G41: (6) | H41: (7) | I41: (8)
B42: 1 | C42: =C33 -> 5000000 | D42: =IFERROR(IF('Surrender Factors'!M11>120,"",IF(AND(Annuity_Option=9,B42<=$D$29),0,IF($D$25="Increasing",IF(B42=1,Check!$B$36,Check!$B$36*(1+Output!$D$26*('Surrender Factors'!N11-1))),Check!$B$36))),0) -> 391844.544 | E42: =IFERROR(IF('Surrender Factors'!M11>120,"",IF(OR(Annuity_Option=1,Annuity_Option=2,Annuity_Option=3,Annuity_Option=4,Annuity_Option=5,Annuity_Option=10),0,IF(Annuity_Option=6,D42*50%,IF(Annuity_Option=7,IF(80-'Surrender Factors'!M11-1=0,$C$33,0),IF(AND(Annuity_Option=9,B42<=$D$29),Check!$B$46*$G$13*VLOOKUP(Payout_Mode,Check!$X$3:$Z$6,3,0),0))))),0) -> 0 | F42: =IF('Surrender Factors'!M11>120,"",0) -> 0 | G42: =IF('Surrender Factors'!M11>120,"",IF(OR(Annuity_Option=1,Annuity_Option=2,Annuity_Option=4),0,IF(Annuity_Option=3,IF(B42=1,$C$33,MAX($C$33-SUM($D$41:D41),0)),IF(Annuity_Option=5,$C$33*$D$28,IF(Annuity_Option=7,IF('Surrender Factors'!M11<80,$C$33,0),IF(Annuity_Option=9,MAX(110%*$C$33,$C$33+SUM($E$42:E42)-SUM($D$41:D41)-E42/12),$C$33)))))) -> 0 | H42: =IF('Surrender Factors'!M11>120,"",IF(Annuity_Option=9,MAX($C$33*'Surrender Factors'!R11-SUM($D$42:D42),0),0)) -> 0 | I42: =IF('Surrender Factors'!M11>120,"",IF(OR(Annuity_Option=1,Annuity_Option=2,Annuity_Option=3,Annuity_Option=4),0,IF(OR(Annuity_Option=5,Annuity_Option=6,Annuity_Option=7,Annuity_Option=8,Annuity_Option=10),MIN('Surrender Factors'!O11*Annual_Ann+'Surrender Factors'!P11*Output!$C$33*IF(Annuity_Option=5,Output!$D$28,1),G42),IF(Annuity_Option=9,MIN('Surrender Factors'!Q11*('Surrender Factors'!O11*(Annual_Ann)+'Surrender Factors'!P11*Output!$C$33),G42),0)))*IF(AND(Annuity_Option=7,'Surrender Factors'!M11+1=80),0,1)) -> 0
B43: =IF('Surrender Factors'!M12=120,B42+1 & "+",IF('Surrender Factors'!M12>120,"",B42+1)) -> 2 | C43: =IF(B43="","",0) -> 0 | D43: =IFERROR(IF('Surrender Factors'!M12>120,"",IF(AND(Annuity_Option=9,B43<=$D$29),0,IF($D$25="Increasing",IF(B43=1,Check!$B$36,Check!$B$36*(1+Output!$D$26*('Surrender Factors'!N12-1))),Check!$B$36))),0) -> 403599.8803 | E43: =IFERROR(IF('Surrender Factors'!M12>120,"",IF(OR(Annuity_Option=1,Annuity_Option=2,Annuity_Option=3,Annuity_Option=4,Annuity_Option=5,Annuity_Option=10),0,IF(Annuity_Option=6,D43*50%,IF(Annuity_Option=7,IF(80-'Surrender Factors'!M12-1=0,$C$33,0),IF(AND(Annuity_Option=9,B43<=$D$29),Check!$B$46*$G$13*VLOOKUP(Payout_Mode,Check!$X$3:$Z$6,3,0),0))))),0) -> 0 | F43: =IF('Surrender Factors'!M12>120,"",0) -> 0 | G43: =IF('Surrender Factors'!M12>120,"",IF(OR(Annuity_Option=1,Annuity_Option=2,Annuity_Option=4),0,IF(Annuity_Option=3,IF(B43=1,$C$33,MAX($C$33-SUM($D$41:D42),0)),IF(Annuity_Option=5,$C$33*$D$28,IF(Annuity_Option=7,IF('Surrender Factors'!M12<80,$C$33,0),IF(Annuity_Option=9,MAX(110%*$C$33,$C$33+SUM($E$42:E43)-SUM($D$41:D42)-E43/12),$C$33)))))) -> 0 | H43: =IF('Surrender Factors'!M12>120,"",IF(Annuity_Option=9,MAX($C$33*'Surrender Factors'!R12-SUM($D$42:D43),0),0)) -> 0 | I43: =IF('Surrender Factors'!M12>120,"",IF(OR(Annuity_Option=1,Annuity_Option=2,Annuity_Option=3,Annuity_Option=4),0,IF(OR(Annuity_Option=5,Annuity_Option=6,Annuity_Option=7,Annuity_Option=8,Annuity_Option=10),MIN('Surrender Factors'!O12*Annual_Ann+'Surrender Factors'!P12*Output!$C$33*IF(Annuity_Option=5,Output!$D$28,1),G43),IF(Annuity_Option=9,MIN('Surrender Factors'!Q12*('Surrender Factors'!O12*(Annual_Ann)+'Surrender Factors'!P12*Output!$C$33),G43),0)))*IF(AND(Annuity_Option=7,'Surrender Factors'!M12+1=80),0,1)) -> 0
B44: =IF('Surrender Factors'!M13=120,B43+1 & "+",IF('Surrender Factors'!M13>120,"",B43+1)) -> 3 | C44: =IF(B44="","",0) -> 0 | D44: =IFERROR(IF('Surrender Factors'!M13>120,"",IF(AND(Annuity_Option=9,B44<=$D$29),0,IF($D$25="Increasing",IF(B44=1,Check!$B$36,Check!$B$36*(1+Output!$D$26*('Surrender Factors'!N13-1))),Check!$B$36))),0) -> 415355.2166 | E44: =IFERROR(IF('Surrender Factors'!M13>120,"",IF(OR(Annuity_Option=1,Annuity_Option=2,Annuity_Option=3,Annuity_Option=4,Annuity_Option=5,Annuity_Option=10),0,IF(Annuity_Option=6,D44*50%,IF(Annuity_Option=7,IF(80-'Surrender Factors'!M13-1=0,$C$33,0),IF(AND(Annuity_Option=9,B44<=$D$29),Check!$B$46*$G$13*VLOOKUP(Payout_Mode,Check!$X$3:$Z$6,3,0),0))))),0) -> 0 | F44: =IF('Surrender Factors'!M13>120,"",0) -> 0 | G44: =IF('Surrender Factors'!M13>120,"",IF(OR(Annuity_Option=1,Annuity_Option=2,Annuity_Option=4),0,IF(Annuity_Option=3,IF(B44=1,$C$33,MAX($C$33-SUM($D$41:D43),0)),IF(Annuity_Option=5,$C$33*$D$28,IF(Annuity_Option=7,IF('Surrender Factors'!M13<80,$C$33,0),IF(Annuity_Option=9,MAX(110%*$C$33,$C$33+SUM($E$42:E44)-SUM($D$41:D43)-E44/12),$C$33)))))) -> 0 | H44: =IF('Surrender Factors'!M13>120,"",IF(Annuity_Option=9,MAX($C$33*'Surrender Factors'!R13-SUM($D$42:D44),0),0)) -> 0 | I44: =IF('Surrender Factors'!M13>120,"",IF(OR(Annuity_Option=1,Annuity_Option=2,Annuity_Option=3,Annuity_Option=4),0,IF(OR(Annuity_Option=5,Annuity_Option=6,Annuity_Option=7,Annuity_Option=8,Annuity_Option=10),MIN('Surrender Factors'!O13*Annual_Ann+'Surrender Factors'!P13*Output!$C$33*IF(Annuity_Option=5,Output!$D$28,1),G44),IF(Annuity_Option=9,MIN('Surrender Factors'!Q13*('Surrender Factors'!O13*(Annual_Ann)+'Surrender Factors'!P13*Output!$C$33),G44),0)))*IF(AND(Annuity_Option=7,'Surrender Factors'!M13+1=80),0,1)) -> 0
B45: =IF('Surrender Factors'!M14=120,B44+1 & "+",IF('Surrender Factors'!M14>120,"",B44+1)) -> 4 | C45: 0 | D45: =IFERROR(IF('Surrender Factors'!M14>120,"",IF(AND(Annuity_Option=9,B45<=$D$29),0,IF($D$25="Increasing",IF(B45=1,Check!$B$36,Check!$B$36*(1+Output!$D$26*('Surrender Factors'!N14-1))),Check!$B$36))),0) -> 427110.553 | E45: =IFERROR(IF('Surrender Factors'!M14>120,"",IF(OR(Annuity_Option=1,Annuity_Option=2,Annuity_Option=3,Annuity_Option=4,Annuity_Option=5,Annuity_Option=10),0,IF(Annuity_Option=6,D45*50%,IF(Annuity_Option=7,IF(80-'Surrender Factors'!M14-1=0,$C$33,0),IF(AND(Annuity_Option=9,B45<=$D$29),Check!$B$46*$G$13*VLOOKUP(Payout_Mode,Check!$X$3:$Z$6,3,0),0))))),0) -> 0 | F45: =IF('Surrender Factors'!M14>120,"",0) -> 0 | G45: =IF('Surrender Factors'!M14>120,"",IF(OR(Annuity_Option=1,Annuity_Option=2,Annuity_Option=4),0,IF(Annuity_Option=3,IF(B45=1,$C$33,MAX($C$33-SUM($D$41:D44),0)),IF(Annuity_Option=5,$C$33*$D$28,IF(Annuity_Option=7,IF('Surrender Factors'!M14<80,$C$33,0),IF(Annuity_Option=9,MAX(110%*$C$33,$C$33+SUM($E$42:E45)-SUM($D$41:D44)-E45/12),$C$33)))))) -> 0 | H45: =IF('Surrender Factors'!M14>120,"",IF(Annuity_Option=9,MAX($C$33*'Surrender Factors'!R14-SUM($D$42:D45),0),0)) -> 0 | I45: =IF('Surrender Factors'!M14>120,"",IF(OR(Annuity_Option=1,Annuity_Option=2,Annuity_Option=3,Annuity_Option=4),0,IF(OR(Annuity_Option=5,Annuity_Option=6,Annuity_Option=7,Annuity_Option=8,Annuity_Option=10),MIN('Surrender Factors'!O14*Annual_Ann+'Surrender Factors'!P14*Output!$C$33*IF(Annuity_Option=5,Output!$D$28,1),G45),IF(Annuity_Option=9,MIN('Surrender Factors'!Q14*('Surrender Factors'!O14*(Annual_Ann)+'Surrender Factors'!P14*Output!$C$33),G45),0)))*IF(AND(Annuity_Option=7,'Surrender Factors'!M14+1=80),0,1)) -> 0
B46: =IF('Surrender Factors'!M15=120,B45+1 & "+",IF('Surrender Factors'!M15>120,"",B45+1)) -> 5 | C46: 0 | D46: =IFERROR(IF('Surrender Factors'!M15>120,"",IF(AND(Annuity_Option=9,B46<=$D$29),0,IF($D$25="Increasing",IF(B46=1,Check!$B$36,Check!$B$36*(1+Output!$D$26*('Surrender Factors'!N15-1))),Check!$B$36))),0) -> 438865.8893 | E46: =IFERROR(IF('Surrender Factors'!M15>120,"",IF(OR(Annuity_Option=1,Annuity_Option=2,Annuity_Option=3,Annuity_Option=4,Annuity_Option=5,Annuity_Option=10),0,IF(Annuity_Option=6,D46*50%,IF(Annuity_Option=7,IF(80-'Surrender Factors'!M15-1=0,$C$33,0),IF(AND(Annuity_Option=9,B46<=$D$29),Check!$B$46*$G$13*VLOOKUP(Payout_Mode,Check!$X$3:$Z$6,3,0),0))))),0) -> 0 | F46: =IF('Surrender Factors'!M15>120,"",0) -> 0 | G46: =IF('Surrender Factors'!M15>120,"",IF(OR(Annuity_Option=1,Annuity_Option=2,Annuity_Option=4),0,IF(Annuity_Option=3,IF(B46=1,$C$33,MAX($C$33-SUM($D$41:D45),0)),IF(Annuity_Option=5,$C$33*$D$28,IF(Annuity_Option=7,IF('Surrender Factors'!M15<80,$C$33,0),IF(Annuity_Option=9,MAX(110%*$C$33,$C$33+SUM($E$42:E46)-SUM($D$41:D45)-E46/12),$C$33)))))) -> 0 | H46: =IF('Surrender Factors'!M15>120,"",IF(Annuity_Option=9,MAX($C$33*'Surrender Factors'!R15-SUM($D$42:D46),0),0)) -> 0 | I46: =IF('Surrender Factors'!M15>120,"",IF(OR(Annuity_Option=1,Annuity_Option=2,Annuity_Option=3,Annuity_Option=4),0,IF(OR(Annuity_Option=5,Annuity_Option=6,Annuity_Option=7,Annuity_Option=8,Annuity_Option=10),MIN('Surrender Factors'!O15*Annual_Ann+'Surrender Factors'!P15*Output!$C$33*IF(Annuity_Option=5,Output!$D$28,1),G46),IF(Annuity_Option=9,MIN('Surrender Factors'!Q15*('Surrender Factors'!O15*(Annual_Ann)+'Surrender Factors'!P15*Output!$C$33),G46),0)))*IF(AND(Annuity_Option=7,'Surrender Factors'!M15+1=80),0,1)) -> 0
B47: =IF('Surrender Factors'!M16=120,B46+1 & "+",IF('Surrender Factors'!M16>120,"",B46+1)) -> 6 | C47: 0 | D47: =IFERROR(IF('Surrender Factors'!M16>120,"",IF(AND(Annuity_Option=9,B47<=$D$29),0,IF($D$25="Increasing",IF(B47=1,Check!$B$36,Check!$B$36*(1+Output!$D$26*('Surrender Factors'!N16-1))),Check!$B$36))),0) -> 450621.2256 | E47: =IFERROR(IF('Surrender Factors'!M16>120,"",IF(OR(Annuity_Option=1,Annuity_Option=2,Annuity_Option=3,Annuity_Option=4,Annuity_Option=5,Annuity_Option=10),0,IF(Annuity_Option=6,D47*50%,IF(Annuity_Option=7,IF(80-'Surrender Factors'!M16-1=0,$C$33,0),IF(AND(Annuity_Option=9,B47<=$D$29),Check!$B$46*$G$13*VLOOKUP(Payout_Mode,Check!$X$3:$Z$6,3,0),0))))),0) -> 0 | F47: =IF('Surrender Factors'!M16>120,"",0) -> 0 | G47: =IF('Surrender Factors'!M16>120,"",IF(OR(Annuity_Option=1,Annuity_Option=2,Annuity_Option=4),0,IF(Annuity_Option=3,IF(B47=1,$C$33,MAX($C$33-SUM($D$41:D46),0)),IF(Annuity_Option=5,$C$33*$D$28,IF(Annuity_Option=7,IF('Surrender Factors'!M16<80,$C$33,0),IF(Annuity_Option=9,MAX(110%*$C$33,$C$33+SUM($E$42:E47)-SUM($D$41:D46)-E47/12),$C$33)))))) -> 0 | H47: =IF('Surrender Factors'!M16>120,"",IF(Annuity_Option=9,MAX($C$33*'Surrender Factors'!R16-SUM($D$42:D47),0),0)) -> 0 | I47: =IF('Surrender Factors'!M16>120,"",IF(OR(Annuity_Option=1,Annuity_Option=2,Annuity_Option=3,Annuity_Option=4),0,IF(OR(Annuity_Option=5,Annuity_Option=6,Annuity_Option=7,Annuity_Option=8,Annuity_Option=10),MIN('Surrender Factors'!O16*Annual_Ann+'Surrender Factors'!P16*Output!$C$33*IF(Annuity_Option=5,Output!$D$28,1),G47),IF(Annuity_Option=9,MIN('Surrender Factors'!Q16*('Surrender Factors'!O16*(Annual_Ann)+'Surrender Factors'!P16*Output!$C$33),G47),0)))*IF(AND(Annuity_Option=7,'Surrender Factors'!M16+1=80),0,1)) -> 0
B48: =IF('Surrender Factors'!M17=120,B47+1 & "+",IF('Surrender Factors'!M17>120,"",B47+1)) -> 7 | C48: 0 | D48: =IFERROR(IF('Surrender Factors'!M17>120,"",IF(AND(Annuity_Option=9,B48<=$D$29),0,IF($D$25="Increasing",IF(B48=1,Check!$B$36,Check!$B$36*(1+Output!$D$26*('Surrender Factors'!N17-1))),Check!$B$36))),0) -> 462376.5619 | E48: =IFERROR(IF('Surrender Factors'!M17>120,"",IF(OR(Annuity_Option=1,Annuity_Option=2,Annuity_Option=3,Annuity_Option=4,Annuity_Option=5,Annuity_Option=10),0,IF(Annuity_Option=6,D48*50%,IF(Annuity_Option=7,IF(80-'Surrender Factors'!M17-1=0,$C$33,0),IF(AND(Annuity_Option=9,B48<=$D$29),Check!$B$46*$G$13*VLOOKUP(Payout_Mode,Check!$X$3:$Z$6,3,0),0))))),0) -> 0 | F48: =IF('Surrender Factors'!M17>120,"",0) -> 0 | G48: =IF('Surrender Factors'!M17>120,"",IF(OR(Annuity_Option=1,Annuity_Option=2,Annuity_Option=4),0,IF(Annuity_Option=3,IF(B48=1,$C$33,MAX($C$33-SUM($D$41:D47),0)),IF(Annuity_Option=5,$C$33*$D$28,IF(Annuity_Option=7,IF('Surrender Factors'!M17<80,$C$33,0),IF(Annuity_Option=9,MAX(110%*$C$33,$C$33+SUM($E$42:E48)-SUM($D$41:D47)-E48/12),$C$33)))))) -> 0 | H48: =IF('Surrender Factors'!M17>120,"",IF(Annuity_Option=9,MAX($C$33*'Surrender Factors'!R17-SUM($D$42:D48),0),0)) -> 0 | I48: =IF('Surrender Factors'!M17>120,"",IF(OR(Annuity_Option=1,Annuity_Option=2,Annuity_Option=3,Annuity_Option=4),0,IF(OR(Annuity_Option=5,Annuity_Option=6,Annuity_Option=7,Annuity_Option=8,Annuity_Option=10),MIN('Surrender Factors'!O17*Annual_Ann+'Surrender Factors'!P17*Output!$C$33*IF(Annuity_Option=5,Output!$D$28,1),G48),IF(Annuity_Option=9,MIN('Surrender Factors'!Q17*('Surrender Factors'!O17*(Annual_Ann)+'Surrender Factors'!P17*Output!$C$33),G48),0)))*IF(AND(Annuity_Option=7,'Surrender Factors'!M17+1=80),0,1)) -> 0
B49: =IF('Surrender Factors'!M18=120,B48+1 & "+",IF('Surrender Factors'!M18>120,"",B48+1)) -> 8 | C49: 0 | D49: =IFERROR(IF('Surrender Factors'!M18>120,"",IF(AND(Annuity_Option=9,B49<=$D$29),0,IF($D$25="Increasing",IF(B49=1,Check!$B$36,Check!$B$36*(1+Output!$D$26*('Surrender Factors'!N18-1))),Check!$B$36))),0) -> 474131.8982 | E49: =IFERROR(IF('Surrender Factors'!M18>120,"",IF(OR(Annuity_Option=1,Annuity_Option=2,Annuity_Option=3,Annuity_Option=4,Annuity_Option=5,Annuity_Option=10),0,IF(Annuity_Option=6,D49*50%,IF(Annuity_Option=7,IF(80-'Surrender Factors'!M18-1=0,$C$33,0),IF(AND(Annuity_Option=9,B49<=$D$29),Check!$B$46*$G$13*VLOOKUP(Payout_Mode,Check!$X$3:$Z$6,3,0),0))))),0) -> 0 | F49: =IF('Surrender Factors'!M18>120,"",0) -> 0 | G49: =IF('Surrender Factors'!M18>120,"",IF(OR(Annuity_Option=1,Annuity_Option=2,Annuity_Option=4),0,IF(Annuity_Option=3,IF(B49=1,$C$33,MAX($C$33-SUM($D$41:D48),0)),IF(Annuity_Option=5,$C$33*$D$28,IF(Annuity_Option=7,IF('Surrender Factors'!M18<80,$C$33,0),IF(Annuity_Option=9,MAX(110%*$C$33,$C$33+SUM($E$42:E49)-SUM($D$41:D48)-E49/12),$C$33)))))) -> 0 | H49: =IF('Surrender Factors'!M18>120,"",IF(Annuity_Option=9,MAX($C$33*'Surrender Factors'!R18-SUM($D$42:D49),0),0)) -> 0 | I49: =IF('Surrender Factors'!M18>120,"",IF(OR(Annuity_Option=1,Annuity_Option=2,Annuity_Option=3,Annuity_Option=4),0,IF(OR(Annuity_Option=5,Annuity_Option=6,Annuity_Option=7,Annuity_Option=8,Annuity_Option=10),MIN('Surrender Factors'!O18*Annual_Ann+'Surrender Factors'!P18*Output!$C$33*IF(Annuity_Option=5,Output!$D$28,1),G49),IF(Annuity_Option=9,MIN('Surrender Factors'!Q18*('Surrender Factors'!O18*(Annual_Ann)+'Surrender Factors'!P18*Output!$C$33),G49),0)))*IF(AND(Annuity_Option=7,'Surrender Factors'!M18+1=80),0,1)) -> 0
B50: =IF('Surrender Factors'!M19=120,B49+1 & "+",IF('Surrender Factors'!M19>120,"",B49+1)) -> 9 | C50: 0 | D50: =IFERROR(IF('Surrender Factors'!M19>120,"",IF(AND(Annuity_Option=9,B50<=$D$29),0,IF($D$25="Increasing",IF(B50=1,Check!$B$36,Check!$B$36*(1+Output!$D$26*('Surrender Factors'!N19-1))),Check!$B$36))),0) -> 485887.2346 | E50: =IFERROR(IF('Surrender Factors'!M19>120,"",IF(OR(Annuity_Option=1,Annuity_Option=2,Annuity_Option=3,Annuity_Option=4,Annuity_Option=5,Annuity_Option=10),0,IF(Annuity_Option=6,D50*50%,IF(Annuity_Option=7,IF(80-'Surrender Factors'!M19-1=0,$C$33,0),IF(AND(Annuity_Option=9,B50<=$D$29),Check!$B$46*$G$13*VLOOKUP(Payout_Mode,Check!$X$3:$Z$6,3,0),0))))),0) -> 0 | F50: =IF('Surrender Factors'!M19>120,"",0) -> 0 | G50: =IF('Surrender Factors'!M19>120,"",IF(OR(Annuity_Option=1,Annuity_Option=2,Annuity_Option=4),0,IF(Annuity_Option=3,IF(B50=1,$C$33,MAX($C$33-SUM($D$41:D49),0)),IF(Annuity_Option=5,$C$33*$D$28,IF(Annuity_Option=7,IF('Surrender Factors'!M19<80,$C$33,0),IF(Annuity_Option=9,MAX(110%*$C$33,$C$33+SUM($E$42:E50)-SUM($D$41:D49)-E50/12),$C$33)))))) -> 0 | H50: =IF('Surrender Factors'!M19>120,"",IF(Annuity_Option=9,MAX($C$33*'Surrender Factors'!R19-SUM($D$42:D50),0),0)) -> 0 | I50: =IF('Surrender Factors'!M19>120,"",IF(OR(Annuity_Option=1,Annuity_Option=2,Annuity_Option=3,Annuity_Option=4),0,IF(OR(Annuity_Option=5,Annuity_Option=6,Annuity_Option=7,Annuity_Option=8,Annuity_Option=10),MIN('Surrender Factors'!O19*Annual_Ann+'Surrender Factors'!P19*Output!$C$33*IF(Annuity_Option=5,Output!$D$28,1),G50),IF(Annuity_Option=9,MIN('Surrender Factors'!Q19*('Surrender Factors'!O19*(Annual_Ann)+'Surrender Factors'!P19*Output!$C$33),G50),0)))*IF(AND(Annuity_Option=7,'Surrender Factors'!M19+1=80),0,1)) -> 0
B51: =IF('Surrender Factors'!M20=120,B50+1 & "+",IF('Surrender Factors'!M20>120,"",B50+1)) -> 10 | C51: 0 | D51: =IFERROR(IF('Surrender Factors'!M20>120,"",IF(AND(Annuity_Option=9,B51<=$D$29),0,IF($D$25="Increasing",IF(B51=1,Check!$B$36,Check!$B$36*(1+Output!$D$26*('Surrender Factors'!N20-1))),Check!$B$36))),0) -> 497642.5709 | E51: =IFERROR(IF('Surrender Factors'!M20>120,"",IF(OR(Annuity_Option=1,Annuity_Option=2,Annuity_Option=3,Annuity_Option=4,Annuity_Option=5,Annuity_Option=10),0,IF(Annuity_Option=6,D51*50%,IF(Annuity_Option=7,IF(80-'Surrender Factors'!M20-1=0,$C$33,0),IF(AND(Annuity_Option=9,B51<=$D$29),Check!$B$46*$G$13*VLOOKUP(Payout_Mode,Check!$X$3:$Z$6,3,0),0))))),0) -> 0 | F51: =IF('Surrender Factors'!M20>120,"",0) -> 0 | G51: =IF('Surrender Factors'!M20>120,"",IF(OR(Annuity_Option=1,Annuity_Option=2,Annuity_Option=4),0,IF(Annuity_Option=3,IF(B51=1,$C$33,MAX($C$33-SUM($D$41:D50),0)),IF(Annuity_Option=5,$C$33*$D$28,IF(Annuity_Option=7,IF('Surrender Factors'!M20<80,$C$33,0),IF(Annuity_Option=9,MAX(110%*$C$33,$C$33+SUM($E$42:E51)-SUM($D$41:D50)-E51/12),$C$33)))))) -> 0 | H51: =IF('Surrender Factors'!M20>120,"",IF(Annuity_Option=9,MAX($C$33*'Surrender Factors'!R20-SUM($D$42:D51),0),0)) -> 0 | I51: =IF('Surrender Factors'!M20>120,"",IF(OR(Annuity_Option=1,Annuity_Option=2,Annuity_Option=3,Annuity_Option=4),0,IF(OR(Annuity_Option=5,Annuity_Option=6,Annuity_Option=7,Annuity_Option=8,Annuity_Option=10),MIN('Surrender Factors'!O20*Annual_Ann+'Surrender Factors'!P20*Output!$C$33*IF(Annuity_Option=5,Output!$D$28,1),G51),IF(Annuity_Option=9,MIN('Surrender Factors'!Q20*('Surrender Factors'!O20*(Annual_Ann)+'Surrender Factors'!P20*Output!$C$33),G51),0)))*IF(AND(Annuity_Option=7,'Surrender Factors'!M20+1=80),0,1)) -> 0
B52: =IF('Surrender Factors'!M21=120,B51+1 & "+",IF('Surrender Factors'!M21>120,"",B51+1)) -> 11 | C52: 0 | D52: =IFERROR(IF('Surrender Factors'!M21>120,"",IF(AND(Annuity_Option=9,B52<=$D$29),0,IF($D$25="Increasing",IF(B52=1,Check!$B$36,Check!$B$36*(1+Output!$D$26*('Surrender Factors'!N21-1))),Check!$B$36))),0) -> 509397.9072 | E52: =IFERROR(IF('Surrender Factors'!M21>120,"",IF(OR(Annuity_Option=1,Annuity_Option=2,Annuity_Option=3,Annuity_Option=4,Annuity_Option=5,Annuity_Option=10),0,IF(Annuity_Option=6,D52*50%,IF(Annuity_Option=7,IF(80-'Surrender Factors'!M21-1=0,$C$33,0),IF(AND(Annuity_Option=9,B52<=$D$29),Check!$B$46*$G$13*VLOOKUP(Payout_Mode,Check!$X$3:$Z$6,3,0),0))))),0) -> 0 | F52: =IF('Surrender Factors'!M21>120,"",0) -> 0 | G52: =IF('Surrender Factors'!M21>120,"",IF(OR(Annuity_Option=1,Annuity_Option=2,Annuity_Option=4),0,IF(Annuity_Option=3,IF(B52=1,$C$33,MAX($C$33-SUM($D$41:D51),0)),IF(Annuity_Option=5,$C$33*$D$28,IF(Annuity_Option=7,IF('Surrender Factors'!M21<80,$C$33,0),IF(Annuity_Option=9,MAX(110%*$C$33,$C$33+SUM($E$42:E52)-SUM($D$41:D51)-E52/12),$C$33)))))) -> 0 | H52: =IF('Surrender Factors'!M21>120,"",IF(Annuity_Option=9,MAX($C$33*'Surrender Factors'!R21-SUM($D$42:D52),0),0)) -> 0 | I52: =IF('Surrender Factors'!M21>120,"",IF(OR(Annuity_Option=1,Annuity_Option=2,Annuity_Option=3,Annuity_Option=4),0,IF(OR(Annuity_Option=5,Annuity_Option=6,Annuity_Option=7,Annuity_Option=8,Annuity_Option=10),MIN('Surrender Factors'!O21*Annual_Ann+'Surrender Factors'!P21*Output!$C$33*IF(Annuity_Option=5,Output!$D$28,1),G52),IF(Annuity_Option=9,MIN('Surrender Factors'!Q21*('Surrender Factors'!O21*(Annual_Ann)+'Surrender Factors'!P21*Output!$C$33),G52),0)))*IF(AND(Annuity_Option=7,'Surrender Factors'!M21+1=80),0,1)) -> 0
B53: =IF('Surrender Factors'!M22=120,B52+1 & "+",IF('Surrender Factors'!M22>120,"",B52+1)) -> 12 | C53: 0 | D53: =IFERROR(IF('Surrender Factors'!M22>120,"",IF(AND(Annuity_Option=9,B53<=$D$29),0,IF($D$25="Increasing",IF(B53=1,Check!$B$36,Check!$B$36*(1+Output!$D$26*('Surrender Factors'!N22-1))),Check!$B$36))),0) -> 521153.2435 | E53: =IFERROR(IF('Surrender Factors'!M22>120,"",IF(OR(Annuity_Option=1,Annuity_Option=2,Annuity_Option=3,Annuity_Option=4,Annuity_Option=5,Annuity_Option=10),0,IF(Annuity_Option=6,D53*50%,IF(Annuity_Option=7,IF(80-'Surrender Factors'!M22-1=0,$C$33,0),IF(AND(Annuity_Option=9,B53<=$D$29),Check!$B$46*$G$13*VLOOKUP(Payout_Mode,Check!$X$3:$Z$6,3,0),0))))),0) -> 0 | F53: =IF('Surrender Factors'!M22>120,"",0) -> 0 | G53: =IF('Surrender Factors'!M22>120,"",IF(OR(Annuity_Option=1,Annuity_Option=2,Annuity_Option=4),0,IF(Annuity_Option=3,IF(B53=1,$C$33,MAX($C$33-SUM($D$41:D52),0)),IF(Annuity_Option=5,$C$33*$D$28,IF(Annuity_Option=7,IF('Surrender Factors'!M22<80,$C$33,0),IF(Annuity_Option=9,MAX(110%*$C$33,$C$33+SUM($E$42:E53)-SUM($D$41:D52)-E53/12),$C$33)))))) -> 0 | H53: =IF('Surrender Factors'!M22>120,"",IF(Annuity_Option=9,MAX($C$33*'Surrender Factors'!R22-SUM($D$42:D53),0),0)) -> 0 | I53: =IF('Surrender Factors'!M22>120,"",IF(OR(Annuity_Option=1,Annuity_Option=2,Annuity_Option=3,Annuity_Option=4),0,IF(OR(Annuity_Option=5,Annuity_Option=6,Annuity_Option=7,Annuity_Option=8,Annuity_Option=10),MIN('Surrender Factors'!O22*Annual_Ann+'Surrender Factors'!P22*Output!$C$33*IF(Annuity_Option=5,Output!$D$28,1),G53),IF(Annuity_Option=9,MIN('Surrender Factors'!Q22*('Surrender Factors'!O22*(Annual_Ann)+'Surrender Factors'!P22*Output!$C$33),G53),0)))*IF(AND(Annuity_Option=7,'Surrender Factors'!M22+1=80),0,1)) -> 0
B54: =IF('Surrender Factors'!M23=120,B53+1 & "+",IF('Surrender Factors'!M23>120,"",B53+1)) -> 13 | C54: 0 | D54: =IFERROR(IF('Surrender Factors'!M23>120,"",IF(AND(Annuity_Option=9,B54<=$D$29),0,IF($D$25="Increasing",IF(B54=1,Check!$B$36,Check!$B$36*(1+Output!$D$26*('Surrender Factors'!N23-1))),Check!$B$36))),0) -> 532908.5798 | E54: =IFERROR(IF('Surrender Factors'!M23>120,"",IF(OR(Annuity_Option=1,Annuity_Option=2,Annuity_Option=3,Annuity_Option=4,Annuity_Option=5,Annuity_Option=10),0,IF(Annuity_Option=6,D54*50%,IF(Annuity_Option=7,IF(80-'Surrender Factors'!M23-1=0,$C$33,0),IF(AND(Annuity_Option=9,B54<=$D$29),Check!$B$46*$G$13*VLOOKUP(Payout_Mode,Check!$X$3:$Z$6,3,0),0))))),0) -> 0 | F54: =IF('Surrender Factors'!M23>120,"",0) -> 0 | G54: =IF('Surrender Factors'!M23>120,"",IF(OR(Annuity_Option=1,Annuity_Option=2,Annuity_Option=4),0,IF(Annuity_Option=3,IF(B54=1,$C$33,MAX($C$33-SUM($D$41:D53),0)),IF(Annuity_Option=5,$C$33*$D$28,IF(Annuity_Option=7,IF('Surrender Factors'!M23<80,$C$33,0),IF(Annuity_Option=9,MAX(110%*$C$33,$C$33+SUM($E$42:E54)-SUM($D$41:D53)-E54/12),$C$33)))))) -> 0 | H54: =IF('Surrender Factors'!M23>120,"",IF(Annuity_Option=9,MAX($C$33*'Surrender Factors'!R23-SUM($D$42:D54),0),0)) -> 0 | I54: =IF('Surrender Factors'!M23>120,"",IF(OR(Annuity_Option=1,Annuity_Option=2,Annuity_Option=3,Annuity_Option=4),0,IF(OR(Annuity_Option=5,Annuity_Option=6,Annuity_Option=7,Annuity_Option=8,Annuity_Option=10),MIN('Surrender Factors'!O23*Annual_Ann+'Surrender Factors'!P23*Output!$C$33*IF(Annuity_Option=5,Output!$D$28,1),G54),IF(Annuity_Option=9,MIN('Surrender Factors'!Q23*('Surrender Factors'!O23*(Annual_Ann)+'Surrender Factors'!P23*Output!$C$33),G54),0)))*IF(AND(Annuity_Option=7,'Surrender Factors'!M23+1=80),0,1)) -> 0
B55: =IF('Surrender Factors'!M24=120,B54+1 & "+",IF('Surrender Factors'!M24>120,"",B54+1)) -> 14 | C55: 0 | D55: =IFERROR(IF('Surrender Factors'!M24>120,"",IF(AND(Annuity_Option=9,B55<=$D$29),0,IF($D$25="Increasing",IF(B55=1,Check!$B$36,Check!$B$36*(1+Output!$D$26*('Surrender Factors'!N24-1))),Check!$B$36))),0) -> 544663.9162 | E55: =IFERROR(IF('Surrender Factors'!M24>120,"",IF(OR(Annuity_Option=1,Annuity_Option=2,Annuity_Option=3,Annuity_Option=4,Annuity_Option=5,Annuity_Option=10),0,IF(Annuity_Option=6,D55*50%,IF(Annuity_Option=7,IF(80-'Surrender Factors'!M24-1=0,$C$33,0),IF(AND(Annuity_Option=9,B55<=$D$29),Check!$B$46*$G$13*VLOOKUP(Payout_Mode,Check!$X$3:$Z$6,3,0),0))))),0) -> 0 | F55: =IF('Surrender Factors'!M24>120,"",0) -> 0 | G55: =IF('Surrender Factors'!M24>120,"",IF(OR(Annuity_Option=1,Annuity_Option=2,Annuity_Option=4),0,IF(Annuity_Option=3,IF(B55=1,$C$33,MAX($C$33-SUM($D$41:D54),0)),IF(Annuity_Option=5,$C$33*$D$28,IF(Annuity_Option=7,IF('Surrender Factors'!M24<80,$C$33,0),IF(Annuity_Option=9,MAX(110%*$C$33,$C$33+SUM($E$42:E55)-SUM($D$41:D54)-E55/12),$C$33)))))) -> 0 | H55: =IF('Surrender Factors'!M24>120,"",IF(Annuity_Option=9,MAX($C$33*'Surrender Factors'!R24-SUM($D$42:D55),0),0)) -> 0 | I55: =IF('Surrender Factors'!M24>120,"",IF(OR(Annuity_Option=1,Annuity_Option=2,Annuity_Option=3,Annuity_Option=4),0,IF(OR(Annuity_Option=5,Annuity_Option=6,Annuity_Option=7,Annuity_Option=8,Annuity_Option=10),MIN('Surrender Factors'!O24*Annual_Ann+'Surrender Factors'!P24*Output!$C$33*IF(Annuity_Option=5,Output!$D$28,1),G55),IF(Annuity_Option=9,MIN('Surrender Factors'!Q24*('Surrender Factors'!O24*(Annual_Ann)+'Surrender Factors'!P24*Output!$C$33),G55),0)))*IF(AND(Annuity_Option=7,'Surrender Factors'!M24+1=80),0,1)) -> 0
B56: =IF('Surrender Factors'!M25=120,B55+1 & "+",IF('Surrender Factors'!M25>120,"",B55+1)) -> 15 | C56: 0 | D56: =IFERROR(IF('Surrender Factors'!M25>120,"",IF(AND(Annuity_Option=9,B56<=$D$29),0,IF($D$25="Increasing",IF(B56=1,Check!$B$36,Check!$B$36*(1+Output!$D$26*('Surrender Factors'!N25-1))),Check!$B$36))),0) -> 556419.2525 | E56: =IFERROR(IF('Surrender Factors'!M25>120,"",IF(OR(Annuity_Option=1,Annuity_Option=2,Annuity_Option=3,Annuity_Option=4,Annuity_Option=5,Annuity_Option=10),0,IF(Annuity_Option=6,D56*50%,IF(Annuity_Option=7,IF(80-'Surrender Factors'!M25-1=0,$C$33,0),IF(AND(Annuity_Option=9,B56<=$D$29),Check!$B$46*$G$13*VLOOKUP(Payout_Mode,Check!$X$3:$Z$6,3,0),0))))),0) -> 0 | F56: =IF('Surrender Factors'!M25>120,"",0) -> 0 | G56: =IF('Surrender Factors'!M25>120,"",IF(OR(Annuity_Option=1,Annuity_Option=2,Annuity_Option=4),0,IF(Annuity_Option=3,IF(B56=1,$C$33,MAX($C$33-SUM($D$41:D55),0)),IF(Annuity_Option=5,$C$33*$D$28,IF(Annuity_Option=7,IF('Surrender Factors'!M25<80,$C$33,0),IF(Annuity_Option=9,MAX(110%*$C$33,$C$33+SUM($E$42:E56)-SUM($D$41:D55)-E56/12),$C$33)))))) -> 0 | H56: =IF('Surrender Factors'!M25>120,"",IF(Annuity_Option=9,MAX($C$33*'Surrender Factors'!R25-SUM($D$42:D56),0),0)) -> 0 | I56: =IF('Surrender Factors'!M25>120,"",IF(OR(Annuity_Option=1,Annuity_Option=2,Annuity_Option=3,Annuity_Option=4),0,IF(OR(Annuity_Option=5,Annuity_Option=6,Annuity_Option=7,Annuity_Option=8,Annuity_Option=10),MIN('Surrender Factors'!O25*Annual_Ann+'Surrender Factors'!P25*Output!$C$33*IF(Annuity_Option=5,Output!$D$28,1),G56),IF(Annuity_Option=9,MIN('Surrender Factors'!Q25*('Surrender Factors'!O25*(Annual_Ann)+'Surrender Factors'!P25*Output!$C$33),G56),0)))*IF(AND(Annuity_Option=7,'Surrender Factors'!M25+1=80),0,1)) -> 0
B57: =IF('Surrender Factors'!M26=120,B56+1 & "+",IF('Surrender Factors'!M26>120,"",B56+1)) -> 16 | C57: 0 | D57: =IFERROR(IF('Surrender Factors'!M26>120,"",IF(AND(Annuity_Option=9,B57<=$D$29),0,IF($D$25="Increasing",IF(B57=1,Check!$B$36,Check!$B$36*(1+Output!$D$26*('Surrender Factors'!N26-1))),Check!$B$36))),0) -> 568174.5888 | E57: =IFERROR(IF('Surrender Factors'!M26>120,"",IF(OR(Annuity_Option=1,Annuity_Option=2,Annuity_Option=3,Annuity_Option=4,Annuity_Option=5,Annuity_Option=10),0,IF(Annuity_Option=6,D57*50%,IF(Annuity_Option=7,IF(80-'Surrender Factors'!M26-1=0,$C$33,0),IF(AND(Annuity_Option=9,B57<=$D$29),Check!$B$46*$G$13*VLOOKUP(Payout_Mode,Check!$X$3:$Z$6,3,0),0))))),0) -> 0 | F57: =IF('Surrender Factors'!M26>120,"",0) -> 0 | G57: =IF('Surrender Factors'!M26>120,"",IF(OR(Annuity_Option=1,Annuity_Option=2,Annuity_Option=4),0,IF(Annuity_Option=3,IF(B57=1,$C$33,MAX($C$33-SUM($D$41:D56),0)),IF(Annuity_Option=5,$C$33*$D$28,IF(Annuity_Option=7,IF('Surrender Factors'!M26<80,$C$33,0),IF(Annuity_Option=9,MAX(110%*$C$33,$C$33+SUM($E$42:E57)-SUM($D$41:D56)-E57/12),$C$33)))))) -> 0 | H57: =IF('Surrender Factors'!M26>120,"",IF(Annuity_Option=9,MAX($C$33*'Surrender Factors'!R26-SUM($D$42:D57),0),0)) -> 0 | I57: =IF('Surrender Factors'!M26>120,"",IF(OR(Annuity_Option=1,Annuity_Option=2,Annuity_Option=3,Annuity_Option=4),0,IF(OR(Annuity_Option=5,Annuity_Option=6,Annuity_Option=7,Annuity_Option=8,Annuity_Option=10),MIN('Surrender Factors'!O26*Annual_Ann+'Surrender Factors'!P26*Output!$C$33*IF(Annuity_Option=5,Output!$D$28,1),G57),IF(Annuity_Option=9,MIN('Surrender Factors'!Q26*('Surrender Factors'!O26*(Annual_Ann)+'Surrender Factors'!P26*Output!$C$33),G57),0)))*IF(AND(Annuity_Option=7,'Surrender Factors'!M26+1=80),0,1)) -> 0
B58: =IF('Surrender Factors'!M27=120,B57+1 & "+",IF('Surrender Factors'!M27>120,"",B57+1)) -> 17 | C58: 0 | D58: =IFERROR(IF('Surrender Factors'!M27>120,"",IF(AND(Annuity_Option=9,B58<=$D$29),0,IF($D$25="Increasing",IF(B58=1,Check!$B$36,Check!$B$36*(1+Output!$D$26*('Surrender Factors'!N27-1))),Check!$B$36))),0) -> 579929.9251 | E58: =IFERROR(IF('Surrender Factors'!M27>120,"",IF(OR(Annuity_Option=1,Annuity_Option=2,Annuity_Option=3,Annuity_Option=4,Annuity_Option=5,Annuity_Option=10),0,IF(Annuity_Option=6,D58*50%,IF(Annuity_Option=7,IF(80-'Surrender Factors'!M27-1=0,$C$33,0),IF(AND(Annuity_Option=9,B58<=$D$29),Check!$B$46*$G$13*VLOOKUP(Payout_Mode,Check!$X$3:$Z$6,3,0),0))))),0) -> 0 | F58: =IF('Surrender Factors'!M27>120,"",0) -> 0 | G58: =IF('Surrender Factors'!M27>120,"",IF(OR(Annuity_Option=1,Annuity_Option=2,Annuity_Option=4),0,IF(Annuity_Option=3,IF(B58=1,$C$33,MAX($C$33-SUM($D$41:D57),0)),IF(Annuity_Option=5,$C$33*$D$28,IF(Annuity_Option=7,IF('Surrender Factors'!M27<80,$C$33,0),IF(Annuity_Option=9,MAX(110%*$C$33,$C$33+SUM($E$42:E58)-SUM($D$41:D57)-E58/12),$C$33)))))) -> 0 | H58: =IF('Surrender Factors'!M27>120,"",IF(Annuity_Option=9,MAX($C$33*'Surrender Factors'!R27-SUM($D$42:D58),0),0)) -> 0 | I58: =IF('Surrender Factors'!M27>120,"",IF(OR(Annuity_Option=1,Annuity_Option=2,Annuity_Option=3,Annuity_Option=4),0,IF(OR(Annuity_Option=5,Annuity_Option=6,Annuity_Option=7,Annuity_Option=8,Annuity_Option=10),MIN('Surrender Factors'!O27*Annual_Ann+'Surrender Factors'!P27*Output!$C$33*IF(Annuity_Option=5,Output!$D$28,1),G58),IF(Annuity_Option=9,MIN('Surrender Factors'!Q27*('Surrender Factors'!O27*(Annual_Ann)+'Surrender Factors'!P27*Output!$C$33),G58),0)))*IF(AND(Annuity_Option=7,'Surrender Factors'!M27+1=80),0,1)) -> 0
B59: =IF('Surrender Factors'!M28=120,B58+1 & "+",IF('Surrender Factors'!M28>120,"",B58+1)) -> 18 | C59: 0 | D59: =IFERROR(IF('Surrender Factors'!M28>120,"",IF(AND(Annuity_Option=9,B59<=$D$29),0,IF($D$25="Increasing",IF(B59=1,Check!$B$36,Check!$B$36*(1+Output!$D$26*('Surrender Factors'!N28-1))),Check!$B$36))),0) -> 591685.2614 | E59: =IFERROR(IF('Surrender Factors'!M28>120,"",IF(OR(Annuity_Option=1,Annuity_Option=2,Annuity_Option=3,Annuity_Option=4,Annuity_Option=5,Annuity_Option=10),0,IF(Annuity_Option=6,D59*50%,IF(Annuity_Option=7,IF(80-'Surrender Factors'!M28-1=0,$C$33,0),IF(AND(Annuity_Option=9,B59<=$D$29),Check!$B$46*$G$13*VLOOKUP(Payout_Mode,Check!$X$3:$Z$6,3,0),0))))),0) -> 0 | F59: =IF('Surrender Factors'!M28>120,"",0) -> 0 | G59: =IF('Surrender Factors'!M28>120,"",IF(OR(Annuity_Option=1,Annuity_Option=2,Annuity_Option=4),0,IF(Annuity_Option=3,IF(B59=1,$C$33,MAX($C$33-SUM($D$41:D58),0)),IF(Annuity_Option=5,$C$33*$D$28,IF(Annuity_Option=7,IF('Surrender Factors'!M28<80,$C$33,0),IF(Annuity_Option=9,MAX(110%*$C$33,$C$33+SUM($E$42:E59)-SUM($D$41:D58)-E59/12),$C$33)))))) -> 0 | H59: =IF('Surrender Factors'!M28>120,"",IF(Annuity_Option=9,MAX($C$33*'Surrender Factors'!R28-SUM($D$42:D59),0),0)) -> 0 | I59: =IF('Surrender Factors'!M28>120,"",IF(OR(Annuity_Option=1,Annuity_Option=2,Annuity_Option=3,Annuity_Option=4),0,IF(OR(Annuity_Option=5,Annuity_Option=6,Annuity_Option=7,Annuity_Option=8,Annuity_Option=10),MIN('Surrender Factors'!O28*Annual_Ann+'Surrender Factors'!P28*Output!$C$33*IF(Annuity_Option=5,Output!$D$28,1),G59),IF(Annuity_Option=9,MIN('Surrender Factors'!Q28*('Surrender Factors'!O28*(Annual_Ann)+'Surrender Factors'!P28*Output!$C$33),G59),0)))*IF(AND(Annuity_Option=7,'Surrender Factors'!M28+1=80),0,1)) -> 0
B60: =IF('Surrender Factors'!M29=120,B59+1 & "+",IF('Surrender Factors'!M29>120,"",B59+1)) -> 19 | C60: 0 | D60: =IFERROR(IF('Surrender Factors'!M29>120,"",IF(AND(Annuity_Option=9,B60<=$D$29),0,IF($D$25="Increasing",IF(B60=1,Check!$B$36,Check!$B$36*(1+Output!$D$26*('Surrender Factors'!N29-1))),Check!$B$36))),0) -> 603440.5978 | E60: =IFERROR(IF('Surrender Factors'!M29>120,"",IF(OR(Annuity_Option=1,Annuity_Option=2,Annuity_Option=3,Annuity_Option=4,Annuity_Option=5,Annuity_Option=10),0,IF(Annuity_Option=6,D60*50%,IF(Annuity_Option=7,IF(80-'Surrender Factors'!M29-1=0,$C$33,0),IF(AND(Annuity_Option=9,B60<=$D$29),Check!$B$46*$G$13*VLOOKUP(Payout_Mode,Check!$X$3:$Z$6,3,0),0))))),0) -> 0 | F60: =IF('Surrender Factors'!M29>120,"",0) -> 0 | G60: =IF('Surrender Factors'!M29>120,"",IF(OR(Annuity_Option=1,Annuity_Option=2,Annuity_Option=4),0,IF(Annuity_Option=3,IF(B60=1,$C$33,MAX($C$33-SUM($D$41:D59),0)),IF(Annuity_Option=5,$C$33*$D$28,IF(Annuity_Option=7,IF('Surrender Factors'!M29<80,$C$33,0),IF(Annuity_Option=9,MAX(110%*$C$33,$C$33+SUM($E$42:E60)-SUM($D$41:D59)-E60/12),$C$33)))))) -> 0 | H60: =IF('Surrender Factors'!M29>120,"",IF(Annuity_Option=9,MAX($C$33*'Surrender Factors'!R29-SUM($D$42:D60),0),0)) -> 0 | I60: =IF('Surrender Factors'!M29>120,"",IF(OR(Annuity_Option=1,Annuity_Option=2,Annuity_Option=3,Annuity_Option=4),0,IF(OR(Annuity_Option=5,Annuity_Option=6,Annuity_Option=7,Annuity_Option=8,Annuity_Option=10),MIN('Surrender Factors'!O29*Annual_Ann+'Surrender Factors'!P29*Output!$C$33*IF(Annuity_Option=5,Output!$D$28,1),G60),IF(Annuity_Option=9,MIN('Surrender Factors'!Q29*('Surrender Factors'!O29*(Annual_Ann)+'Surrender Factors'!P29*Output!$C$33),G60),0)))*IF(AND(Annuity_Option=7,'Surrender Factors'!M29+1=80),0,1)) -> 0
B61: =IF('Surrender Factors'!M30=120,B60+1 & "+",IF('Surrender Factors'!M30>120,"",B60+1)) -> 20 | C61: 0 | D61: =IFERROR(IF('Surrender Factors'!M30>120,"",IF(AND(Annuity_Option=9,B61<=$D$29),0,IF($D$25="Increasing",IF(B61=1,Check!$B$36,Check!$B$36*(1+Output!$D$26*('Surrender Factors'!N30-1))),Check!$B$36))),0) -> 615195.9341 | E61: =IFERROR(IF('Surrender Factors'!M30>120,"",IF(OR(Annuity_Option=1,Annuity_Option=2,Annuity_Option=3,Annuity_Option=4,Annuity_Option=5,Annuity_Option=10),0,IF(Annuity_Option=6,D61*50%,IF(Annuity_Option=7,IF(80-'Surrender Factors'!M30-1=0,$C$33,0),IF(AND(Annuity_Option=9,B61<=$D$29),Check!$B$46*$G$13*VLOOKUP(Payout_Mode,Check!$X$3:$Z$6,3,0),0))))),0) -> 0 | F61: =IF('Surrender Factors'!M30>120,"",0) -> 0 | G61: =IF('Surrender Factors'!M30>120,"",IF(OR(Annuity_Option=1,Annuity_Option=2,Annuity_Option=4),0,IF(Annuity_Option=3,IF(B61=1,$C$33,MAX($C$33-SUM($D$41:D60),0)),IF(Annuity_Option=5,$C$33*$D$28,IF(Annuity_Option=7,IF('Surrender Factors'!M30<80,$C$33,0),IF(Annuity_Option=9,MAX(110%*$C$33,$C$33+SUM($E$42:E61)-SUM($D$41:D60)-E61/12),$C$33)))))) -> 0 | H61: =IF('Surrender Factors'!M30>120,"",IF(Annuity_Option=9,MAX($C$33*'Surrender Factors'!R30-SUM($D$42:D61),0),0)) -> 0 | I61: =IF('Surrender Factors'!M30>120,"",IF(OR(Annuity_Option=1,Annuity_Option=2,Annuity_Option=3,Annuity_Option=4),0,IF(OR(Annuity_Option=5,Annuity_Option=6,Annuity_Option=7,Annuity_Option=8,Annuity_Option=10),MIN('Surrender Factors'!O30*Annual_Ann+'Surrender Factors'!P30*Output!$C$33*IF(Annuity_Option=5,Output!$D$28,1),G61),IF(Annuity_Option=9,MIN('Surrender Factors'!Q30*('Surrender Factors'!O30*(Annual_Ann)+'Surrender Factors'!P30*Output!$C$33),G61),0)))*IF(AND(Annuity_Option=7,'Surrender Factors'!M30+1=80),0,1)) -> 0
B62: =IF('Surrender Factors'!M31=120,B61+1 & "+",IF('Surrender Factors'!M31>120,"",B61+1)) -> 21 | C62: 0 | D62: =IFERROR(IF('Surrender Factors'!M31>120,"",IF(AND(Annuity_Option=9,B62<=$D$29),0,IF($D$25="Increasing",IF(B62=1,Check!$B$36,Check!$B$36*(1+Output!$D$26*('Surrender Factors'!N31-1))),Check!$B$36))),0) -> 626951.2704 | E62: =IFERROR(IF('Surrender Factors'!M31>120,"",IF(OR(Annuity_Option=1,Annuity_Option=2,Annuity_Option=3,Annuity_Option=4,Annuity_Option=5,Annuity_Option=10),0,IF(Annuity_Option=6,D62*50%,IF(Annuity_Option=7,IF(80-'Surrender Factors'!M31-1=0,$C$33,0),IF(AND(Annuity_Option=9,B62<=$D$29),Check!$B$46*$G$13*VLOOKUP(Payout_Mode,Check!$X$3:$Z$6,3,0),0))))),0) -> 0 | F62: =IF('Surrender Factors'!M31>120,"",0) -> 0 | G62: =IF('Surrender Factors'!M31>120,"",IF(OR(Annuity_Option=1,Annuity_Option=2,Annuity_Option=4),0,IF(Annuity_Option=3,IF(B62=1,$C$33,MAX($C$33-SUM($D$41:D61),0)),IF(Annuity_Option=5,$C$33*$D$28,IF(Annuity_Option=7,IF('Surrender Factors'!M31<80,$C$33,0),IF(Annuity_Option=9,MAX(110%*$C$33,$C$33+SUM($E$42:E62)-SUM($D$41:D61)-E62/12),$C$33)))))) -> 0 | H62: =IF('Surrender Factors'!M31>120,"",IF(Annuity_Option=9,MAX($C$33*'Surrender Factors'!R31-SUM($D$42:D62),0),0)) -> 0 | I62: =IF('Surrender Factors'!M31>120,"",IF(OR(Annuity_Option=1,Annuity_Option=2,Annuity_Option=3,Annuity_Option=4),0,IF(OR(Annuity_Option=5,Annuity_Option=6,Annuity_Option=7,Annuity_Option=8,Annuity_Option=10),MIN('Surrender Factors'!O31*Annual_Ann+'Surrender Factors'!P31*Output!$C$33*IF(Annuity_Option=5,Output!$D$28,1),G62),IF(Annuity_Option=9,MIN('Surrender Factors'!Q31*('Surrender Factors'!O31*(Annual_Ann)+'Surrender Factors'!P31*Output!$C$33),G62),0)))*IF(AND(Annuity_Option=7,'Surrender Factors'!M31+1=80),0,1)) -> 0
B63: =IF('Surrender Factors'!M32=120,B62+1 & "+",IF('Surrender Factors'!M32>120,"",B62+1)) -> 22 | C63: 0 | D63: =IFERROR(IF('Surrender Factors'!M32>120,"",IF(AND(Annuity_Option=9,B63<=$D$29),0,IF($D$25="Increasing",IF(B63=1,Check!$B$36,Check!$B$36*(1+Output!$D$26*('Surrender Factors'!N32-1))),Check!$B$36))),0) -> 638706.6067 | E63: =IFERROR(IF('Surrender Factors'!M32>120,"",IF(OR(Annuity_Option=1,Annuity_Option=2,Annuity_Option=3,Annuity_Option=4,Annuity_Option=5,Annuity_Option=10),0,IF(Annuity_Option=6,D63*50%,IF(Annuity_Option=7,IF(80-'Surrender Factors'!M32-1=0,$C$33,0),IF(AND(Annuity_Option=9,B63<=$D$29),Check!$B$46*$G$13*VLOOKUP(Payout_Mode,Check!$X$3:$Z$6,3,0),0))))),0) -> 0 | F63: =IF('Surrender Factors'!M32>120,"",0) -> 0 | G63: =IF('Surrender Factors'!M32>120,"",IF(OR(Annuity_Option=1,Annuity_Option=2,Annuity_Option=4),0,IF(Annuity_Option=3,IF(B63=1,$C$33,MAX($C$33-SUM($D$41:D62),0)),IF(Annuity_Option=5,$C$33*$D$28,IF(Annuity_Option=7,IF('Surrender Factors'!M32<80,$C$33,0),IF(Annuity_Option=9,MAX(110%*$C$33,$C$33+SUM($E$42:E63)-SUM($D$41:D62)-E63/12),$C$33)))))) -> 0 | H63: =IF('Surrender Factors'!M32>120,"",IF(Annuity_Option=9,MAX($C$33*'Surrender Factors'!R32-SUM($D$42:D63),0),0)) -> 0 | I63: =IF('Surrender Factors'!M32>120,"",IF(OR(Annuity_Option=1,Annuity_Option=2,Annuity_Option=3,Annuity_Option=4),0,IF(OR(Annuity_Option=5,Annuity_Option=6,Annuity_Option=7,Annuity_Option=8,Annuity_Option=10),MIN('Surrender Factors'!O32*Annual_Ann+'Surrender Factors'!P32*Output!$C$33*IF(Annuity_Option=5,Output!$D$28,1),G63),IF(Annuity_Option=9,MIN('Surrender Factors'!Q32*('Surrender Factors'!O32*(Annual_Ann)+'Surrender Factors'!P32*Output!$C$33),G63),0)))*IF(AND(Annuity_Option=7,'Surrender Factors'!M32+1=80),0,1)) -> 0
B64: =IF('Surrender Factors'!M33=120,B63+1 & "+",IF('Surrender Factors'!M33>120,"",B63+1)) -> 23 | C64: 0 | D64: =IFERROR(IF('Surrender Factors'!M33>120,"",IF(AND(Annuity_Option=9,B64<=$D$29),0,IF($D$25="Increasing",IF(B64=1,Check!$B$36,Check!$B$36*(1+Output!$D$26*('Surrender Factors'!N33-1))),Check!$B$36))),0) -> 650461.943 | E64: =IFERROR(IF('Surrender Factors'!M33>120,"",IF(OR(Annuity_Option=1,Annuity_Option=2,Annuity_Option=3,Annuity_Option=4,Annuity_Option=5,Annuity_Option=10),0,IF(Annuity_Option=6,D64*50%,IF(Annuity_Option=7,IF(80-'Surrender Factors'!M33-1=0,$C$33,0),IF(AND(Annuity_Option=9,B64<=$D$29),Check!$B$46*$G$13*VLOOKUP(Payout_Mode,Check!$X$3:$Z$6,3,0),0))))),0) -> 0 | F64: =IF('Surrender Factors'!M33>120,"",0) -> 0 | G64: =IF('Surrender Factors'!M33>120,"",IF(OR(Annuity_Option=1,Annuity_Option=2,Annuity_Option=4),0,IF(Annuity_Option=3,IF(B64=1,$C$33,MAX($C$33-SUM($D$41:D63),0)),IF(Annuity_Option=5,$C$33*$D$28,IF(Annuity_Option=7,IF('Surrender Factors'!M33<80,$C$33,0),IF(Annuity_Option=9,MAX(110%*$C$33,$C$33+SUM($E$42:E64)-SUM($D$41:D63)-E64/12),$C$33)))))) -> 0 | H64: =IF('Surrender Factors'!M33>120,"",IF(Annuity_Option=9,MAX($C$33*'Surrender Factors'!R33-SUM($D$42:D64),0),0)) -> 0 | I64: =IF('Surrender Factors'!M33>120,"",IF(OR(Annuity_Option=1,Annuity_Option=2,Annuity_Option=3,Annuity_Option=4),0,IF(OR(Annuity_Option=5,Annuity_Option=6,Annuity_Option=7,Annuity_Option=8,Annuity_Option=10),MIN('Surrender Factors'!O33*Annual_Ann+'Surrender Factors'!P33*Output!$C$33*IF(Annuity_Option=5,Output!$D$28,1),G64),IF(Annuity_Option=9,MIN('Surrender Factors'!Q33*('Surrender Factors'!O33*(Annual_Ann)+'Surrender Factors'!P33*Output!$C$33),G64),0)))*IF(AND(Annuity_Option=7,'Surrender Factors'!M33+1=80),0,1)) -> 0
B65: =IF('Surrender Factors'!M34=120,B64+1 & "+",IF('Surrender Factors'!M34>120,"",B64+1)) -> 24 | C65: 0 | D65: =IFERROR(IF('Surrender Factors'!M34>120,"",IF(AND(Annuity_Option=9,B65<=$D$29),0,IF($D$25="Increasing",IF(B65=1,Check!$B$36,Check!$B$36*(1+Output!$D$26*('Surrender Factors'!N34-1))),Check!$B$36))),0) -> 662217.2794 | E65: =IFERROR(IF('Surrender Factors'!M34>120,"",IF(OR(Annuity_Option=1,Annuity_Option=2,Annuity_Option=3,Annuity_Option=4,Annuity_Option=5,Annuity_Option=10),0,IF(Annuity_Option=6,D65*50%,IF(Annuity_Option=7,IF(80-'Surrender Factors'!M34-1=0,$C$33,0),IF(AND(Annuity_Option=9,B65<=$D$29),Check!$B$46*$G$13*VLOOKUP(Payout_Mode,Check!$X$3:$Z$6,3,0),0))))),0) -> 0 | F65: =IF('Surrender Factors'!M34>120,"",0) -> 0 | G65: =IF('Surrender Factors'!M34>120,"",IF(OR(Annuity_Option=1,Annuity_Option=2,Annuity_Option=4),0,IF(Annuity_Option=3,IF(B65=1,$C$33,MAX($C$33-SUM($D$41:D64),0)),IF(Annuity_Option=5,$C$33*$D$28,IF(Annuity_Option=7,IF('Surrender Factors'!M34<80,$C$33,0),IF(Annuity_Option=9,MAX(110%*$C$33,$C$33+SUM($E$42:E65)-SUM($D$41:D64)-E65/12),$C$33)))))) -> 0 | H65: =IF('Surrender Factors'!M34>120,"",IF(Annuity_Option=9,MAX($C$33*'Surrender Factors'!R34-SUM($D$42:D65),0),0)) -> 0 | I65: =IF('Surrender Factors'!M34>120,"",IF(OR(Annuity_Option=1,Annuity_Option=2,Annuity_Option=3,Annuity_Option=4),0,IF(OR(Annuity_Option=5,Annuity_Option=6,Annuity_Option=7,Annuity_Option=8,Annuity_Option=10),MIN('Surrender Factors'!O34*Annual_Ann+'Surrender Factors'!P34*Output!$C$33*IF(Annuity_Option=5,Output!$D$28,1),G65),IF(Annuity_Option=9,MIN('Surrender Factors'!Q34*('Surrender Factors'!O34*(Annual_Ann)+'Surrender Factors'!P34*Output!$C$33),G65),0)))*IF(AND(Annuity_Option=7,'Surrender Factors'!M34+1=80),0,1)) -> 0
B66: =IF('Surrender Factors'!M35=120,B65+1 & "+",IF('Surrender Factors'!M35>120,"",B65+1)) -> 25 | C66: 0 | D66: =IFERROR(IF('Surrender Factors'!M35>120,"",IF(AND(Annuity_Option=9,B66<=$D$29),0,IF($D$25="Increasing",IF(B66=1,Check!$B$36,Check!$B$36*(1+Output!$D$26*('Surrender Factors'!N35-1))),Check!$B$36))),0) -> 673972.6157 | E66: =IFERROR(IF('Surrender Factors'!M35>120,"",IF(OR(Annuity_Option=1,Annuity_Option=2,Annuity_Option=3,Annuity_Option=4,Annuity_Option=5,Annuity_Option=10),0,IF(Annuity_Option=6,D66*50%,IF(Annuity_Option=7,IF(80-'Surrender Factors'!M35-1=0,$C$33,0),IF(AND(Annuity_Option=9,B66<=$D$29),Check!$B$46*$G$13*VLOOKUP(Payout_Mode,Check!$X$3:$Z$6,3,0),0))))),0) -> 0 | F66: =IF('Surrender Factors'!M35>120,"",0) -> 0 | G66: =IF('Surrender Factors'!M35>120,"",IF(OR(Annuity_Option=1,Annuity_Option=2,Annuity_Option=4),0,IF(Annuity_Option=3,IF(B66=1,$C$33,MAX($C$33-SUM($D$41:D65),0)),IF(Annuity_Option=5,$C$33*$D$28,IF(Annuity_Option=7,IF('Surrender Factors'!M35<80,$C$33,0),IF(Annuity_Option=9,MAX(110%*$C$33,$C$33+SUM($E$42:E66)-SUM($D$41:D65)-E66/12),$C$33)))))) -> 0 | H66: =IF('Surrender Factors'!M35>120,"",IF(Annuity_Option=9,MAX($C$33*'Surrender Factors'!R35-SUM($D$42:D66),0),0)) -> 0 | I66: =IF('Surrender Factors'!M35>120,"",IF(OR(Annuity_Option=1,Annuity_Option=2,Annuity_Option=3,Annuity_Option=4),0,IF(OR(Annuity_Option=5,Annuity_Option=6,Annuity_Option=7,Annuity_Option=8,Annuity_Option=10),MIN('Surrender Factors'!O35*Annual_Ann+'Surrender Factors'!P35*Output!$C$33*IF(Annuity_Option=5,Output!$D$28,1),G66),IF(Annuity_Option=9,MIN('Surrender Factors'!Q35*('Surrender Factors'!O35*(Annual_Ann)+'Surrender Factors'!P35*Output!$C$33),G66),0)))*IF(AND(Annuity_Option=7,'Surrender Factors'!M35+1=80),0,1)) -> 0
B67: =IF('Surrender Factors'!M36=120,B66+1 & "+",IF('Surrender Factors'!M36>120,"",B66+1)) -> 26 | C67: 0 | D67: =IFERROR(IF('Surrender Factors'!M36>120,"",IF(AND(Annuity_Option=9,B67<=$D$29),0,IF($D$25="Increasing",IF(B67=1,Check!$B$36,Check!$B$36*(1+Output!$D$26*('Surrender Factors'!N36-1))),Check!$B$36))),0) -> 685727.952 | E67: =IFERROR(IF('Surrender Factors'!M36>120,"",IF(OR(Annuity_Option=1,Annuity_Option=2,Annuity_Option=3,Annuity_Option=4,Annuity_Option=5,Annuity_Option=10),0,IF(Annuity_Option=6,D67*50%,IF(Annuity_Option=7,IF(80-'Surrender Factors'!M36-1=0,$C$33,0),IF(AND(Annuity_Option=9,B67<=$D$29),Check!$B$46*$G$13*VLOOKUP(Payout_Mode,Check!$X$3:$Z$6,3,0),0))))),0) -> 0 | F67: =IF('Surrender Factors'!M36>120,"",0) -> 0 | G67: =IF('Surrender Factors'!M36>120,"",IF(OR(Annuity_Option=1,Annuity_Option=2,Annuity_Option=4),0,IF(Annuity_Option=3,IF(B67=1,$C$33,MAX($C$33-SUM($D$41:D66),0)),IF(Annuity_Option=5,$C$33*$D$28,IF(Annuity_Option=7,IF('Surrender Factors'!M36<80,$C$33,0),IF(Annuity_Option=9,MAX(110%*$C$33,$C$33+SUM($E$42:E67)-SUM($D$41:D66)-E67/12),$C$33)))))) -> 0 | H67: =IF('Surrender Factors'!M36>120,"",IF(Annuity_Option=9,MAX($C$33*'Surrender Factors'!R36-SUM($D$42:D67),0),0)) -> 0 | I67: =IF('Surrender Factors'!M36>120,"",IF(OR(Annuity_Option=1,Annuity_Option=2,Annuity_Option=3,Annuity_Option=4),0,IF(OR(Annuity_Option=5,Annuity_Option=6,Annuity_Option=7,Annuity_Option=8,Annuity_Option=10),MIN('Surrender Factors'!O36*Annual_Ann+'Surrender Factors'!P36*Output!$C$33*IF(Annuity_Option=5,Output!$D$28,1),G67),IF(Annuity_Option=9,MIN('Surrender Factors'!Q36*('Surrender Factors'!O36*(Annual_Ann)+'Surrender Factors'!P36*Output!$C$33),G67),0)))*IF(AND(Annuity_Option=7,'Surrender Factors'!M36+1=80),0,1)) -> 0
B68: =IF('Surrender Factors'!M37=120,B67+1 & "+",IF('Surrender Factors'!M37>120,"",B67+1)) -> 27 | C68: 0 | D68: =IFERROR(IF('Surrender Factors'!M37>120,"",IF(AND(Annuity_Option=9,B68<=$D$29),0,IF($D$25="Increasing",IF(B68=1,Check!$B$36,Check!$B$36*(1+Output!$D$26*('Surrender Factors'!N37-1))),Check!$B$36))),0) -> 697483.2883 | E68: =IFERROR(IF('Surrender Factors'!M37>120,"",IF(OR(Annuity_Option=1,Annuity_Option=2,Annuity_Option=3,Annuity_Option=4,Annuity_Option=5,Annuity_Option=10),0,IF(Annuity_Option=6,D68*50%,IF(Annuity_Option=7,IF(80-'Surrender Factors'!M37-1=0,$C$33,0),IF(AND(Annuity_Option=9,B68<=$D$29),Check!$B$46*$G$13*VLOOKUP(Payout_Mode,Check!$X$3:$Z$6,3,0),0))))),0) -> 0 | F68: =IF('Surrender Factors'!M37>120,"",0) -> 0 | G68: =IF('Surrender Factors'!M37>120,"",IF(OR(Annuity_Option=1,Annuity_Option=2,Annuity_Option=4),0,IF(Annuity_Option=3,IF(B68=1,$C$33,MAX($C$33-SUM($D$41:D67),0)),IF(Annuity_Option=5,$C$33*$D$28,IF(Annuity_Option=7,IF('Surrender Factors'!M37<80,$C$33,0),IF(Annuity_Option=9,MAX(110%*$C$33,$C$33+SUM($E$42:E68)-SUM($D$41:D67)-E68/12),$C$33)))))) -> 0 | H68: =IF('Surrender Factors'!M37>120,"",IF(Annuity_Option=9,MAX($C$33*'Surrender Factors'!R37-SUM($D$42:D68),0),0)) -> 0 | I68: =IF('Surrender Factors'!M37>120,"",IF(OR(Annuity_Option=1,Annuity_Option=2,Annuity_Option=3,Annuity_Option=4),0,IF(OR(Annuity_Option=5,Annuity_Option=6,Annuity_Option=7,Annuity_Option=8,Annuity_Option=10),MIN('Surrender Factors'!O37*Annual_Ann+'Surrender Factors'!P37*Output!$C$33*IF(Annuity_Option=5,Output!$D$28,1),G68),IF(Annuity_Option=9,MIN('Surrender Factors'!Q37*('Surrender Factors'!O37*(Annual_Ann)+'Surrender Factors'!P37*Output!$C$33),G68),0)))*IF(AND(Annuity_Option=7,'Surrender Factors'!M37+1=80),0,1)) -> 0
B69: =IF('Surrender Factors'!M38=120,B68+1 & "+",IF('Surrender Factors'!M38>120,"",B68+1)) -> 28 | C69: 0 | D69: =IFERROR(IF('Surrender Factors'!M38>120,"",IF(AND(Annuity_Option=9,B69<=$D$29),0,IF($D$25="Increasing",IF(B69=1,Check!$B$36,Check!$B$36*(1+Output!$D$26*('Surrender Factors'!N38-1))),Check!$B$36))),0) -> 709238.6246 | E69: =IFERROR(IF('Surrender Factors'!M38>120,"",IF(OR(Annuity_Option=1,Annuity_Option=2,Annuity_Option=3,Annuity_Option=4,Annuity_Option=5,Annuity_Option=10),0,IF(Annuity_Option=6,D69*50%,IF(Annuity_Option=7,IF(80-'Surrender Factors'!M38-1=0,$C$33,0),IF(AND(Annuity_Option=9,B69<=$D$29),Check!$B$46*$G$13*VLOOKUP(Payout_Mode,Check!$X$3:$Z$6,3,0),0))))),0) -> 0 | F69: =IF('Surrender Factors'!M38>120,"",0) -> 0 | G69: =IF('Surrender Factors'!M38>120,"",IF(OR(Annuity_Option=1,Annuity_Option=2,Annuity_Option=4),0,IF(Annuity_Option=3,IF(B69=1,$C$33,MAX($C$33-SUM($D$41:D68),0)),IF(Annuity_Option=5,$C$33*$D$28,IF(Annuity_Option=7,IF('Surrender Factors'!M38<80,$C$33,0),IF(Annuity_Option=9,MAX(110%*$C$33,$C$33+SUM($E$42:E69)-SUM($D$41:D68)-E69/12),$C$33)))))) -> 0 | H69: =IF('Surrender Factors'!M38>120,"",IF(Annuity_Option=9,MAX($C$33*'Surrender Factors'!R38-SUM($D$42:D69),0),0)) -> 0 | I69: =IF('Surrender Factors'!M38>120,"",IF(OR(Annuity_Option=1,Annuity_Option=2,Annuity_Option=3,Annuity_Option=4),0,IF(OR(Annuity_Option=5,Annuity_Option=6,Annuity_Option=7,Annuity_Option=8,Annuity_Option=10),MIN('Surrender Factors'!O38*Annual_Ann+'Surrender Factors'!P38*Output!$C$33*IF(Annuity_Option=5,Output!$D$28,1),G69),IF(Annuity_Option=9,MIN('Surrender Factors'!Q38*('Surrender Factors'!O38*(Annual_Ann)+'Surrender Factors'!P38*Output!$C$33),G69),0)))*IF(AND(Annuity_Option=7,'Surrender Factors'!M38+1=80),0,1)) -> 0
B70: =IF('Surrender Factors'!M39=120,B69+1 & "+",IF('Surrender Factors'!M39>120,"",B69+1)) -> 29 | C70: 0 | D70: =IFERROR(IF('Surrender Factors'!M39>120,"",IF(AND(Annuity_Option=9,B70<=$D$29),0,IF($D$25="Increasing",IF(B70=1,Check!$B$36,Check!$B$36*(1+Output!$D$26*('Surrender Factors'!N39-1))),Check!$B$36))),0) -> 720993.961 | E70: =IFERROR(IF('Surrender Factors'!M39>120,"",IF(OR(Annuity_Option=1,Annuity_Option=2,Annuity_Option=3,Annuity_Option=4,Annuity_Option=5,Annuity_Option=10),0,IF(Annuity_Option=6,D70*50%,IF(Annuity_Option=7,IF(80-'Surrender Factors'!M39-1=0,$C$33,0),IF(AND(Annuity_Option=9,B70<=$D$29),Check!$B$46*$G$13*VLOOKUP(Payout_Mode,Check!$X$3:$Z$6,3,0),0))))),0) -> 0 | F70: =IF('Surrender Factors'!M39>120,"",0) -> 0 | G70: =IF('Surrender Factors'!M39>120,"",IF(OR(Annuity_Option=1,Annuity_Option=2,Annuity_Option=4),0,IF(Annuity_Option=3,IF(B70=1,$C$33,MAX($C$33-SUM($D$41:D69),0)),IF(Annuity_Option=5,$C$33*$D$28,IF(Annuity_Option=7,IF('Surrender Factors'!M39<80,$C$33,0),IF(Annuity_Option=9,MAX(110%*$C$33,$C$33+SUM($E$42:E70)-SUM($D$41:D69)-E70/12),$C$33)))))) -> 0 | H70: =IF('Surrender Factors'!M39>120,"",IF(Annuity_Option=9,MAX($C$33*'Surrender Factors'!R39-SUM($D$42:D70),0),0)) -> 0 | I70: =IF('Surrender Factors'!M39>120,"",IF(OR(Annuity_Option=1,Annuity_Option=2,Annuity_Option=3,Annuity_Option=4),0,IF(OR(Annuity_Option=5,Annuity_Option=6,Annuity_Option=7,Annuity_Option=8,Annuity_Option=10),MIN('Surrender Factors'!O39*Annual_Ann+'Surrender Factors'!P39*Output!$C$33*IF(Annuity_Option=5,Output!$D$28,1),G70),IF(Annuity_Option=9,MIN('Surrender Factors'!Q39*('Surrender Factors'!O39*(Annual_Ann)+'Surrender Factors'!P39*Output!$C$33),G70),0)))*IF(AND(Annuity_Option=7,'Surrender Factors'!M39+1=80),0,1)) -> 0
B71: =IF('Surrender Factors'!M40=120,B70+1 & "+",IF('Surrender Factors'!M40>120,"",B70+1)) -> 30 | C71: 0 | D71: =IFERROR(IF('Surrender Factors'!M40>120,"",IF(AND(Annuity_Option=9,B71<=$D$29),0,IF($D$25="Increasing",IF(B71=1,Check!$B$36,Check!$B$36*(1+Output!$D$26*('Surrender Factors'!N40-1))),Check!$B$36))),0) -> 732749.2973 | E71: =IFERROR(IF('Surrender Factors'!M40>120,"",IF(OR(Annuity_Option=1,Annuity_Option=2,Annuity_Option=3,Annuity_Option=4,Annuity_Option=5,Annuity_Option=10),0,IF(Annuity_Option=6,D71*50%,IF(Annuity_Option=7,IF(80-'Surrender Factors'!M40-1=0,$C$33,0),IF(AND(Annuity_Option=9,B71<=$D$29),Check!$B$46*$G$13*VLOOKUP(Payout_Mode,Check!$X$3:$Z$6,3,0),0))))),0) -> 0 | F71: =IF('Surrender Factors'!M40>120,"",0) -> 0 | G71: =IF('Surrender Factors'!M40>120,"",IF(OR(Annuity_Option=1,Annuity_Option=2,Annuity_Option=4),0,IF(Annuity_Option=3,IF(B71=1,$C$33,MAX($C$33-SUM($D$41:D70),0)),IF(Annuity_Option=5,$C$33*$D$28,IF(Annuity_Option=7,IF('Surrender Factors'!M40<80,$C$33,0),IF(Annuity_Option=9,MAX(110%*$C$33,$C$33+SUM($E$42:E71)-SUM($D$41:D70)-E71/12),$C$33)))))) -> 0 | H71: =IF('Surrender Factors'!M40>120,"",IF(Annuity_Option=9,MAX($C$33*'Surrender Factors'!R40-SUM($D$42:D71),0),0)) -> 0 | I71: =IF('Surrender Factors'!M40>120,"",IF(OR(Annuity_Option=1,Annuity_Option=2,Annuity_Option=3,Annuity_Option=4),0,IF(OR(Annuity_Option=5,Annuity_Option=6,Annuity_Option=7,Annuity_Option=8,Annuity_Option=10),MIN('Surrender Factors'!O40*Annual_Ann+'Surrender Factors'!P40*Output!$C$33*IF(Annuity_Option=5,Output!$D$28,1),G71),IF(Annuity_Option=9,MIN('Surrender Factors'!Q40*('Surrender Factors'!O40*(Annual_Ann)+'Surrender Factors'!P40*Output!$C$33),G71),0)))*IF(AND(Annuity_Option=7,'Surrender Factors'!M40+1=80),0,1)) -> 0
B72: =IF('Surrender Factors'!M41=120,B71+1 & "+",IF('Surrender Factors'!M41>120,"",B71+1)) -> 31 | C72: 0 | D72: =IFERROR(IF('Surrender Factors'!M41>120,"",IF(AND(Annuity_Option=9,B72<=$D$29),0,IF($D$25="Increasing",IF(B72=1,Check!$B$36,Check!$B$36*(1+Output!$D$26*('Surrender Factors'!N41-1))),Check!$B$36))),0) -> 744504.6336 | E72: =IFERROR(IF('Surrender Factors'!M41>120,"",IF(OR(Annuity_Option=1,Annuity_Option=2,Annuity_Option=3,Annuity_Option=4,Annuity_Option=5,Annuity_Option=10),0,IF(Annuity_Option=6,D72*50%,IF(Annuity_Option=7,IF(80-'Surrender Factors'!M41-1=0,$C$33,0),IF(AND(Annuity_Option=9,B72<=$D$29),Check!$B$46*$G$13*VLOOKUP(Payout_Mode,Check!$X$3:$Z$6,3,0),0))))),0) -> 0 | F72: =IF('Surrender Factors'!M41>120,"",0) -> 0 | G72: =IF('Surrender Factors'!M41>120,"",IF(OR(Annuity_Option=1,Annuity_Option=2,Annuity_Option=4),0,IF(Annuity_Option=3,IF(B72=1,$C$33,MAX($C$33-SUM($D$41:D71),0)),IF(Annuity_Option=5,$C$33*$D$28,IF(Annuity_Option=7,IF('Surrender Factors'!M41<80,$C$33,0),IF(Annuity_Option=9,MAX(110%*$C$33,$C$33+SUM($E$42:E72)-SUM($D$41:D71)-E72/12),$C$33)))))) -> 0 | H72: =IF('Surrender Factors'!M41>120,"",IF(Annuity_Option=9,MAX($C$33*'Surrender Factors'!R41-SUM($D$42:D72),0),0)) -> 0 | I72: =IF('Surrender Factors'!M41>120,"",IF(OR(Annuity_Option=1,Annuity_Option=2,Annuity_Option=3,Annuity_Option=4),0,IF(OR(Annuity_Option=5,Annuity_Option=6,Annuity_Option=7,Annuity_Option=8,Annuity_Option=10),MIN('Surrender Factors'!O41*Annual_Ann+'Surrender Factors'!P41*Output!$C$33*IF(Annuity_Option=5,Output!$D$28,1),G72),IF(Annuity_Option=9,MIN('Surrender Factors'!Q41*('Surrender Factors'!O41*(Annual_Ann)+'Surrender Factors'!P41*Output!$C$33),G72),0)))*IF(AND(Annuity_Option=7,'Surrender Factors'!M41+1=80),0,1)) -> 0
B73: =IF('Surrender Factors'!M42=120,B72+1 & "+",IF('Surrender Factors'!M42>120,"",B72+1)) -> 32 | C73: 0 | D73: =IFERROR(IF('Surrender Factors'!M42>120,"",IF(AND(Annuity_Option=9,B73<=$D$29),0,IF($D$25="Increasing",IF(B73=1,Check!$B$36,Check!$B$36*(1+Output!$D$26*('Surrender Factors'!N42-1))),Check!$B$36))),0) -> 756259.9699 | E73: =IFERROR(IF('Surrender Factors'!M42>120,"",IF(OR(Annuity_Option=1,Annuity_Option=2,Annuity_Option=3,Annuity_Option=4,Annuity_Option=5,Annuity_Option=10),0,IF(Annuity_Option=6,D73*50%,IF(Annuity_Option=7,IF(80-'Surrender Factors'!M42-1=0,$C$33,0),IF(AND(Annuity_Option=9,B73<=$D$29),Check!$B$46*$G$13*VLOOKUP(Payout_Mode,Check!$X$3:$Z$6,3,0),0))))),0) -> 0 | F73: =IF('Surrender Factors'!M42>120,"",0) -> 0 | G73: =IF('Surrender Factors'!M42>120,"",IF(OR(Annuity_Option=1,Annuity_Option=2,Annuity_Option=4),0,IF(Annuity_Option=3,IF(B73=1,$C$33,MAX($C$33-SUM($D$41:D72),0)),IF(Annuity_Option=5,$C$33*$D$28,IF(Annuity_Option=7,IF('Surrender Factors'!M42<80,$C$33,0),IF(Annuity_Option=9,MAX(110%*$C$33,$C$33+SUM($E$42:E73)-SUM($D$41:D72)-E73/12),$C$33)))))) -> 0 | H73: =IF('Surrender Factors'!M42>120,"",IF(Annuity_Option=9,MAX($C$33*'Surrender Factors'!R42-SUM($D$42:D73),0),0)) -> 0 | I73: =IF('Surrender Factors'!M42>120,"",IF(OR(Annuity_Option=1,Annuity_Option=2,Annuity_Option=3,Annuity_Option=4),0,IF(OR(Annuity_Option=5,Annuity_Option=6,Annuity_Option=7,Annuity_Option=8,Annuity_Option=10),MIN('Surrender Factors'!O42*Annual_Ann+'Surrender Factors'!P42*Output!$C$33*IF(Annuity_Option=5,Output!$D$28,1),G73),IF(Annuity_Option=9,MIN('Surrender Factors'!Q42*('Surrender Factors'!O42*(Annual_Ann)+'Surrender Factors'!P42*Output!$C$33),G73),0)))*IF(AND(Annuity_Option=7,'Surrender Factors'!M42+1=80),0,1)) -> 0
B74: =IF('Surrender Factors'!M43=120,B73+1 & "+",IF('Surrender Factors'!M43>120,"",B73+1)) -> 33 | C74: 0 | D74: =IFERROR(IF('Surrender Factors'!M43>120,"",IF(AND(Annuity_Option=9,B74<=$D$29),0,IF($D$25="Increasing",IF(B74=1,Check!$B$36,Check!$B$36*(1+Output!$D$26*('Surrender Factors'!N43-1))),Check!$B$36))),0) -> 768015.3062 | E74: =IFERROR(IF('Surrender Factors'!M43>120,"",IF(OR(Annuity_Option=1,Annuity_Option=2,Annuity_Option=3,Annuity_Option=4,Annuity_Option=5,Annuity_Option=10),0,IF(Annuity_Option=6,D74*50%,IF(Annuity_Option=7,IF(80-'Surrender Factors'!M43-1=0,$C$33,0),IF(AND(Annuity_Option=9,B74<=$D$29),Check!$B$46*$G$13*VLOOKUP(Payout_Mode,Check!$X$3:$Z$6,3,0),0))))),0) -> 0 | F74: =IF('Surrender Factors'!M43>120,"",0) -> 0 | G74: =IF('Surrender Factors'!M43>120,"",IF(OR(Annuity_Option=1,Annuity_Option=2,Annuity_Option=4),0,IF(Annuity_Option=3,IF(B74=1,$C$33,MAX($C$33-SUM($D$41:D73),0)),IF(Annuity_Option=5,$C$33*$D$28,IF(Annuity_Option=7,IF('Surrender Factors'!M43<80,$C$33,0),IF(Annuity_Option=9,MAX(110%*$C$33,$C$33+SUM($E$42:E74)-SUM($D$41:D73)-E74/12),$C$33)))))) -> 0 | H74: =IF('Surrender Factors'!M43>120,"",IF(Annuity_Option=9,MAX($C$33*'Surrender Factors'!R43-SUM($D$42:D74),0),0)) -> 0 | I74: =IF('Surrender Factors'!M43>120,"",IF(OR(Annuity_Option=1,Annuity_Option=2,Annuity_Option=3,Annuity_Option=4),0,IF(OR(Annuity_Option=5,Annuity_Option=6,Annuity_Option=7,Annuity_Option=8,Annuity_Option=10),MIN('Surrender Factors'!O43*Annual_Ann+'Surrender Factors'!P43*Output!$C$33*IF(Annuity_Option=5,Output!$D$28,1),G74),IF(Annuity_Option=9,MIN('Surrender Factors'!Q43*('Surrender Factors'!O43*(Annual_Ann)+'Surrender Factors'!P43*Output!$C$33),G74),0)))*IF(AND(Annuity_Option=7,'Surrender Factors'!M43+1=80),0,1)) -> 0
B75: =IF('Surrender Factors'!M44=120,B74+1 & "+",IF('Surrender Factors'!M44>120,"",B74+1)) -> 34 | C75: 0 | D75: =IFERROR(IF('Surrender Factors'!M44>120,"",IF(AND(Annuity_Option=9,B75<=$D$29),0,IF($D$25="Increasing",IF(B75=1,Check!$B$36,Check!$B$36*(1+Output!$D$26*('Surrender Factors'!N44-1))),Check!$B$36))),0) -> 779770.6426 | E75: =IFERROR(IF('Surrender Factors'!M44>120,"",IF(OR(Annuity_Option=1,Annuity_Option=2,Annuity_Option=3,Annuity_Option=4,Annuity_Option=5,Annuity_Option=10),0,IF(Annuity_Option=6,D75*50%,IF(Annuity_Option=7,IF(80-'Surrender Factors'!M44-1=0,$C$33,0),IF(AND(Annuity_Option=9,B75<=$D$29),Check!$B$46*$G$13*VLOOKUP(Payout_Mode,Check!$X$3:$Z$6,3,0),0))))),0) -> 0 | F75: =IF('Surrender Factors'!M44>120,"",0) -> 0 | G75: =IF('Surrender Factors'!M44>120,"",IF(OR(Annuity_Option=1,Annuity_Option=2,Annuity_Option=4),0,IF(Annuity_Option=3,IF(B75=1,$C$33,MAX($C$33-SUM($D$41:D74),0)),IF(Annuity_Option=5,$C$33*$D$28,IF(Annuity_Option=7,IF('Surrender Factors'!M44<80,$C$33,0),IF(Annuity_Option=9,MAX(110%*$C$33,$C$33+SUM($E$42:E75)-SUM($D$41:D74)-E75/12),$C$33)))))) -> 0 | H75: =IF('Surrender Factors'!M44>120,"",IF(Annuity_Option=9,MAX($C$33*'Surrender Factors'!R44-SUM($D$42:D75),0),0)) -> 0 | I75: =IF('Surrender Factors'!M44>120,"",IF(OR(Annuity_Option=1,Annuity_Option=2,Annuity_Option=3,Annuity_Option=4),0,IF(OR(Annuity_Option=5,Annuity_Option=6,Annuity_Option=7,Annuity_Option=8,Annuity_Option=10),MIN('Surrender Factors'!O44*Annual_Ann+'Surrender Factors'!P44*Output!$C$33*IF(Annuity_Option=5,Output!$D$28,1),G75),IF(Annuity_Option=9,MIN('Surrender Factors'!Q44*('Surrender Factors'!O44*(Annual_Ann)+'Surrender Factors'!P44*Output!$C$33),G75),0)))*IF(AND(Annuity_Option=7,'Surrender Factors'!M44+1=80),0,1)) -> 0
B76: =IF('Surrender Factors'!M45=120,B75+1 & "+",IF('Surrender Factors'!M45>120,"",B75+1)) -> 35 | C76: 0 | D76: =IFERROR(IF('Surrender Factors'!M45>120,"",IF(AND(Annuity_Option=9,B76<=$D$29),0,IF($D$25="Increasing",IF(B76=1,Check!$B$36,Check!$B$36*(1+Output!$D$26*('Surrender Factors'!N45-1))),Check!$B$36))),0) -> 791525.9789 | E76: =IFERROR(IF('Surrender Factors'!M45>120,"",IF(OR(Annuity_Option=1,Annuity_Option=2,Annuity_Option=3,Annuity_Option=4,Annuity_Option=5,Annuity_Option=10),0,IF(Annuity_Option=6,D76*50%,IF(Annuity_Option=7,IF(80-'Surrender Factors'!M45-1=0,$C$33,0),IF(AND(Annuity_Option=9,B76<=$D$29),Check!$B$46*$G$13*VLOOKUP(Payout_Mode,Check!$X$3:$Z$6,3,0),0))))),0) -> 0 | F76: =IF('Surrender Factors'!M45>120,"",0) -> 0 | G76: =IF('Surrender Factors'!M45>120,"",IF(OR(Annuity_Option=1,Annuity_Option=2,Annuity_Option=4),0,IF(Annuity_Option=3,IF(B76=1,$C$33,MAX($C$33-SUM($D$41:D75),0)),IF(Annuity_Option=5,$C$33*$D$28,IF(Annuity_Option=7,IF('Surrender Factors'!M45<80,$C$33,0),IF(Annuity_Option=9,MAX(110%*$C$33,$C$33+SUM($E$42:E76)-SUM($D$41:D75)-E76/12),$C$33)))))) -> 0 | H76: =IF('Surrender Factors'!M45>120,"",IF(Annuity_Option=9,MAX($C$33*'Surrender Factors'!R45-SUM($D$42:D76),0),0)) -> 0 | I76: =IF('Surrender Factors'!M45>120,"",IF(OR(Annuity_Option=1,Annuity_Option=2,Annuity_Option=3,Annuity_Option=4),0,IF(OR(Annuity_Option=5,Annuity_Option=6,Annuity_Option=7,Annuity_Option=8,Annuity_Option=10),MIN('Surrender Factors'!O45*Annual_Ann+'Surrender Factors'!P45*Output!$C$33*IF(Annuity_Option=5,Output!$D$28,1),G76),IF(Annuity_Option=9,MIN('Surrender Factors'!Q45*('Surrender Factors'!O45*(Annual_Ann)+'Surrender Factors'!P45*Output!$C$33),G76),0)))*IF(AND(Annuity_Option=7,'Surrender Factors'!M45+1=80),0,1)) -> 0
B77: =IF('Surrender Factors'!M46=120,B76+1 & "+",IF('Surrender Factors'!M46>120,"",B76+1)) -> 36 | C77: 0 | D77: =IFERROR(IF('Surrender Factors'!M46>120,"",IF(AND(Annuity_Option=9,B77<=$D$29),0,IF($D$25="Increasing",IF(B77=1,Check!$B$36,Check!$B$36*(1+Output!$D$26*('Surrender Factors'!N46-1))),Check!$B$36))),0) -> 803281.3152 | E77: =IFERROR(IF('Surrender Factors'!M46>120,"",IF(OR(Annuity_Option=1,Annuity_Option=2,Annuity_Option=3,Annuity_Option=4,Annuity_Option=5,Annuity_Option=10),0,IF(Annuity_Option=6,D77*50%,IF(Annuity_Option=7,IF(80-'Surrender Factors'!M46-1=0,$C$33,0),IF(AND(Annuity_Option=9,B77<=$D$29),Check!$B$46*$G$13*VLOOKUP(Payout_Mode,Check!$X$3:$Z$6,3,0),0))))),0) -> 0 | F77: =IF('Surrender Factors'!M46>120,"",0) -> 0 | G77: =IF('Surrender Factors'!M46>120,"",IF(OR(Annuity_Option=1,Annuity_Option=2,Annuity_Option=4),0,IF(Annuity_Option=3,IF(B77=1,$C$33,MAX($C$33-SUM($D$41:D76),0)),IF(Annuity_Option=5,$C$33*$D$28,IF(Annuity_Option=7,IF('Surrender Factors'!M46<80,$C$33,0),IF(Annuity_Option=9,MAX(110%*$C$33,$C$33+SUM($E$42:E77)-SUM($D$41:D76)-E77/12),$C$33)))))) -> 0 | H77: =IF('Surrender Factors'!M46>120,"",IF(Annuity_Option=9,MAX($C$33*'Surrender Factors'!R46-SUM($D$42:D77),0),0)) -> 0 | I77: =IF('Surrender Factors'!M46>120,"",IF(OR(Annuity_Option=1,Annuity_Option=2,Annuity_Option=3,Annuity_Option=4),0,IF(OR(Annuity_Option=5,Annuity_Option=6,Annuity_Option=7,Annuity_Option=8,Annuity_Option=10),MIN('Surrender Factors'!O46*Annual_Ann+'Surrender Factors'!P46*Output!$C$33*IF(Annuity_Option=5,Output!$D$28,1),G77),IF(Annuity_Option=9,MIN('Surrender Factors'!Q46*('Surrender Factors'!O46*(Annual_Ann)+'Surrender Factors'!P46*Output!$C$33),G77),0)))*IF(AND(Annuity_Option=7,'Surrender Factors'!M46+1=80),0,1)) -> 0
B78: =IF('Surrender Factors'!M47=120,B77+1 & "+",IF('Surrender Factors'!M47>120,"",B77+1)) -> 37 | C78: 0 | D78: =IFERROR(IF('Surrender Factors'!M47>120,"",IF(AND(Annuity_Option=9,B78<=$D$29),0,IF($D$25="Increasing",IF(B78=1,Check!$B$36,Check!$B$36*(1+Output!$D$26*('Surrender Factors'!N47-1))),Check!$B$36))),0) -> 815036.6515 | E78: =IFERROR(IF('Surrender Factors'!M47>120,"",IF(OR(Annuity_Option=1,Annuity_Option=2,Annuity_Option=3,Annuity_Option=4,Annuity_Option=5,Annuity_Option=10),0,IF(Annuity_Option=6,D78*50%,IF(Annuity_Option=7,IF(80-'Surrender Factors'!M47-1=0,$C$33,0),IF(AND(Annuity_Option=9,B78<=$D$29),Check!$B$46*$G$13*VLOOKUP(Payout_Mode,Check!$X$3:$Z$6,3,0),0))))),0) -> 0 | F78: =IF('Surrender Factors'!M47>120,"",0) -> 0 | G78: =IF('Surrender Factors'!M47>120,"",IF(OR(Annuity_Option=1,Annuity_Option=2,Annuity_Option=4),0,IF(Annuity_Option=3,IF(B78=1,$C$33,MAX($C$33-SUM($D$41:D77),0)),IF(Annuity_Option=5,$C$33*$D$28,IF(Annuity_Option=7,IF('Surrender Factors'!M47<80,$C$33,0),IF(Annuity_Option=9,MAX(110%*$C$33,$C$33+SUM($E$42:E78)-SUM($D$41:D77)-E78/12),$C$33)))))) -> 0 | H78: =IF('Surrender Factors'!M47>120,"",IF(Annuity_Option=9,MAX($C$33*'Surrender Factors'!R47-SUM($D$42:D78),0),0)) -> 0 | I78: =IF('Surrender Factors'!M47>120,"",IF(OR(Annuity_Option=1,Annuity_Option=2,Annuity_Option=3,Annuity_Option=4),0,IF(OR(Annuity_Option=5,Annuity_Option=6,Annuity_Option=7,Annuity_Option=8,Annuity_Option=10),MIN('Surrender Factors'!O47*Annual_Ann+'Surrender Factors'!P47*Output!$C$33*IF(Annuity_Option=5,Output!$D$28,1),G78),IF(Annuity_Option=9,MIN('Surrender Factors'!Q47*('Surrender Factors'!O47*(Annual_Ann)+'Surrender Factors'!P47*Output!$C$33),G78),0)))*IF(AND(Annuity_Option=7,'Surrender Factors'!M47+1=80),0,1)) -> 0
B79: =IF('Surrender Factors'!M48=120,B78+1 & "+",IF('Surrender Factors'!M48>120,"",B78+1)) -> 38 | C79: 0 | D79: =IFERROR(IF('Surrender Factors'!M48>120,"",IF(AND(Annuity_Option=9,B79<=$D$29),0,IF($D$25="Increasing",IF(B79=1,Check!$B$36,Check!$B$36*(1+Output!$D$26*('Surrender Factors'!N48-1))),Check!$B$36))),0) -> 826791.9878 | E79: =IFERROR(IF('Surrender Factors'!M48>120,"",IF(OR(Annuity_Option=1,Annuity_Option=2,Annuity_Option=3,Annuity_Option=4,Annuity_Option=5,Annuity_Option=10),0,IF(Annuity_Option=6,D79*50%,IF(Annuity_Option=7,IF(80-'Surrender Factors'!M48-1=0,$C$33,0),IF(AND(Annuity_Option=9,B79<=$D$29),Check!$B$46*$G$13*VLOOKUP(Payout_Mode,Check!$X$3:$Z$6,3,0),0))))),0) -> 0 | F79: =IF('Surrender Factors'!M48>120,"",0) -> 0 | G79: =IF('Surrender Factors'!M48>120,"",IF(OR(Annuity_Option=1,Annuity_Option=2,Annuity_Option=4),0,IF(Annuity_Option=3,IF(B79=1,$C$33,MAX($C$33-SUM($D$41:D78),0)),IF(Annuity_Option=5,$C$33*$D$28,IF(Annuity_Option=7,IF('Surrender Factors'!M48<80,$C$33,0),IF(Annuity_Option=9,MAX(110%*$C$33,$C$33+SUM($E$42:E79)-SUM($D$41:D78)-E79/12),$C$33)))))) -> 0 | H79: =IF('Surrender Factors'!M48>120,"",IF(Annuity_Option=9,MAX($C$33*'Surrender Factors'!R48-SUM($D$42:D79),0),0)) -> 0 | I79: =IF('Surrender Factors'!M48>120,"",IF(OR(Annuity_Option=1,Annuity_Option=2,Annuity_Option=3,Annuity_Option=4),0,IF(OR(Annuity_Option=5,Annuity_Option=6,Annuity_Option=7,Annuity_Option=8,Annuity_Option=10),MIN('Surrender Factors'!O48*Annual_Ann+'Surrender Factors'!P48*Output!$C$33*IF(Annuity_Option=5,Output!$D$28,1),G79),IF(Annuity_Option=9,MIN('Surrender Factors'!Q48*('Surrender Factors'!O48*(Annual_Ann)+'Surrender Factors'!P48*Output!$C$33),G79),0)))*IF(AND(Annuity_Option=7,'Surrender Factors'!M48+1=80),0,1)) -> 0
B80: =IF('Surrender Factors'!M49=120,B79+1 & "+",IF('Surrender Factors'!M49>120,"",B79+1)) -> 39 | C80: 0 | D80: =IFERROR(IF('Surrender Factors'!M49>120,"",IF(AND(Annuity_Option=9,B80<=$D$29),0,IF($D$25="Increasing",IF(B80=1,Check!$B$36,Check!$B$36*(1+Output!$D$26*('Surrender Factors'!N49-1))),Check!$B$36))),0) -> 838547.3242 | E80: =IFERROR(IF('Surrender Factors'!M49>120,"",IF(OR(Annuity_Option=1,Annuity_Option=2,Annuity_Option=3,Annuity_Option=4,Annuity_Option=5,Annuity_Option=10),0,IF(Annuity_Option=6,D80*50%,IF(Annuity_Option=7,IF(80-'Surrender Factors'!M49-1=0,$C$33,0),IF(AND(Annuity_Option=9,B80<=$D$29),Check!$B$46*$G$13*VLOOKUP(Payout_Mode,Check!$X$3:$Z$6,3,0),0))))),0) -> 0 | F80: =IF('Surrender Factors'!M49>120,"",0) -> 0 | G80: =IF('Surrender Factors'!M49>120,"",IF(OR(Annuity_Option=1,Annuity_Option=2,Annuity_Option=4),0,IF(Annuity_Option=3,IF(B80=1,$C$33,MAX($C$33-SUM($D$41:D79),0)),IF(Annuity_Option=5,$C$33*$D$28,IF(Annuity_Option=7,IF('Surrender Factors'!M49<80,$C$33,0),IF(Annuity_Option=9,MAX(110%*$C$33,$C$33+SUM($E$42:E80)-SUM($D$41:D79)-E80/12),$C$33)))))) -> 0 | H80: =IF('Surrender Factors'!M49>120,"",IF(Annuity_Option=9,MAX($C$33*'Surrender Factors'!R49-SUM($D$42:D80),0),0)) -> 0 | I80: =IF('Surrender Factors'!M49>120,"",IF(OR(Annuity_Option=1,Annuity_Option=2,Annuity_Option=3,Annuity_Option=4),0,IF(OR(Annuity_Option=5,Annuity_Option=6,Annuity_Option=7,Annuity_Option=8,Annuity_Option=10),MIN('Surrender Factors'!O49*Annual_Ann+'Surrender Factors'!P49*Output!$C$33*IF(Annuity_Option=5,Output!$D$28,1),G80),IF(Annuity_Option=9,MIN('Surrender Factors'!Q49*('Surrender Factors'!O49*(Annual_Ann)+'Surrender Factors'!P49*Output!$C$33),G80),0)))*IF(AND(Annuity_Option=7,'Surrender Factors'!M49+1=80),0,1)) -> 0
B81: =IF('Surrender Factors'!M50=120,B80+1 & "+",IF('Surrender Factors'!M50>120,"",B80+1)) -> 40 | C81: 0 | D81: =IFERROR(IF('Surrender Factors'!M50>120,"",IF(AND(Annuity_Option=9,B81<=$D$29),0,IF($D$25="Increasing",IF(B81=1,Check!$B$36,Check!$B$36*(1+Output!$D$26*('Surrender Factors'!N50-1))),Check!$B$36))),0) -> 850302.6605 | E81: =IFERROR(IF('Surrender Factors'!M50>120,"",IF(OR(Annuity_Option=1,Annuity_Option=2,Annuity_Option=3,Annuity_Option=4,Annuity_Option=5,Annuity_Option=10),0,IF(Annuity_Option=6,D81*50%,IF(Annuity_Option=7,IF(80-'Surrender Factors'!M50-1=0,$C$33,0),IF(AND(Annuity_Option=9,B81<=$D$29),Check!$B$46*$G$13*VLOOKUP(Payout_Mode,Check!$X$3:$Z$6,3,0),0))))),0) -> 0 | F81: =IF('Surrender Factors'!M50>120,"",0) -> 0 | G81: =IF('Surrender Factors'!M50>120,"",IF(OR(Annuity_Option=1,Annuity_Option=2,Annuity_Option=4),0,IF(Annuity_Option=3,IF(B81=1,$C$33,MAX($C$33-SUM($D$41:D80),0)),IF(Annuity_Option=5,$C$33*$D$28,IF(Annuity_Option=7,IF('Surrender Factors'!M50<80,$C$33,0),IF(Annuity_Option=9,MAX(110%*$C$33,$C$33+SUM($E$42:E81)-SUM($D$41:D80)-E81/12),$C$33)))))) -> 0 | H81: =IF('Surrender Factors'!M50>120,"",IF(Annuity_Option=9,MAX($C$33*'Surrender Factors'!R50-SUM($D$42:D81),0),0)) -> 0 | I81: =IF('Surrender Factors'!M50>120,"",IF(OR(Annuity_Option=1,Annuity_Option=2,Annuity_Option=3,Annuity_Option=4),0,IF(OR(Annuity_Option=5,Annuity_Option=6,Annuity_Option=7,Annuity_Option=8,Annuity_Option=10),MIN('Surrender Factors'!O50*Annual_Ann+'Surrender Factors'!P50*Output!$C$33*IF(Annuity_Option=5,Output!$D$28,1),G81),IF(Annuity_Option=9,MIN('Surrender Factors'!Q50*('Surrender Factors'!O50*(Annual_Ann)+'Surrender Factors'!P50*Output!$C$33),G81),0)))*IF(AND(Annuity_Option=7,'Surrender Factors'!M50+1=80),0,1)) -> 0
B82: =IF('Surrender Factors'!M51=120,B81+1 & "+",IF('Surrender Factors'!M51>120,"",B81+1)) -> 41 | C82: 0 | D82: =IFERROR(IF('Surrender Factors'!M51>120,"",IF(AND(Annuity_Option=9,B82<=$D$29),0,IF($D$25="Increasing",IF(B82=1,Check!$B$36,Check!$B$36*(1+Output!$D$26*('Surrender Factors'!N51-1))),Check!$B$36))),0) -> 862057.9968 | E82: =IFERROR(IF('Surrender Factors'!M51>120,"",IF(OR(Annuity_Option=1,Annuity_Option=2,Annuity_Option=3,Annuity_Option=4,Annuity_Option=5,Annuity_Option=10),0,IF(Annuity_Option=6,D82*50%,IF(Annuity_Option=7,IF(80-'Surrender Factors'!M51-1=0,$C$33,0),IF(AND(Annuity_Option=9,B82<=$D$29),Check!$B$46*$G$13*VLOOKUP(Payout_Mode,Check!$X$3:$Z$6,3,0),0))))),0) -> 0 | F82: =IF('Surrender Factors'!M51>120,"",0) -> 0 | G82: =IF('Surrender Factors'!M51>120,"",IF(OR(Annuity_Option=1,Annuity_Option=2,Annuity_Option=4),0,IF(Annuity_Option=3,IF(B82=1,$C$33,MAX($C$33-SUM($D$41:D81),0)),IF(Annuity_Option=5,$C$33*$D$28,IF(Annuity_Option=7,IF('Surrender Factors'!M51<80,$C$33,0),IF(Annuity_Option=9,MAX(110%*$C$33,$C$33+SUM($E$42:E82)-SUM($D$41:D81)-E82/12),$C$33)))))) -> 0 | H82: =IF('Surrender Factors'!M51>120,"",IF(Annuity_Option=9,MAX($C$33*'Surrender Factors'!R51-SUM($D$42:D82),0),0)) -> 0 | I82: =IF('Surrender Factors'!M51>120,"",IF(OR(Annuity_Option=1,Annuity_Option=2,Annuity_Option=3,Annuity_Option=4),0,IF(OR(Annuity_Option=5,Annuity_Option=6,Annuity_Option=7,Annuity_Option=8,Annuity_Option=10),MIN('Surrender Factors'!O51*Annual_Ann+'Surrender Factors'!P51*Output!$C$33*IF(Annuity_Option=5,Output!$D$28,1),G82),IF(Annuity_Option=9,MIN('Surrender Factors'!Q51*('Surrender Factors'!O51*(Annual_Ann)+'Surrender Factors'!P51*Output!$C$33),G82),0)))*IF(AND(Annuity_Option=7,'Surrender Factors'!M51+1=80),0,1)) -> 0
B83: =IF('Surrender Factors'!M52=120,B82+1 & "+",IF('Surrender Factors'!M52>120,"",B82+1)) -> 42 | C83: 0 | D83: =IFERROR(IF('Surrender Factors'!M52>120,"",IF(AND(Annuity_Option=9,B83<=$D$29),0,IF($D$25="Increasing",IF(B83=1,Check!$B$36,Check!$B$36*(1+Output!$D$26*('Surrender Factors'!N52-1))),Check!$B$36))),0) -> 873813.3331 | E83: =IFERROR(IF('Surrender Factors'!M52>120,"",IF(OR(Annuity_Option=1,Annuity_Option=2,Annuity_Option=3,Annuity_Option=4,Annuity_Option=5,Annuity_Option=10),0,IF(Annuity_Option=6,D83*50%,IF(Annuity_Option=7,IF(80-'Surrender Factors'!M52-1=0,$C$33,0),IF(AND(Annuity_Option=9,B83<=$D$29),Check!$B$46*$G$13*VLOOKUP(Payout_Mode,Check!$X$3:$Z$6,3,0),0))))),0) -> 0 | F83: =IF('Surrender Factors'!M52>120,"",0) -> 0 | G83: =IF('Surrender Factors'!M52>120,"",IF(OR(Annuity_Option=1,Annuity_Option=2,Annuity_Option=4),0,IF(Annuity_Option=3,IF(B83=1,$C$33,MAX($C$33-SUM($D$41:D82),0)),IF(Annuity_Option=5,$C$33*$D$28,IF(Annuity_Option=7,IF('Surrender Factors'!M52<80,$C$33,0),IF(Annuity_Option=9,MAX(110%*$C$33,$C$33+SUM($E$42:E83)-SUM($D$41:D82)-E83/12),$C$33)))))) -> 0 | H83: =IF('Surrender Factors'!M52>120,"",IF(Annuity_Option=9,MAX($C$33*'Surrender Factors'!R52-SUM($D$42:D83),0),0)) -> 0 | I83: =IF('Surrender Factors'!M52>120,"",IF(OR(Annuity_Option=1,Annuity_Option=2,Annuity_Option=3,Annuity_Option=4),0,IF(OR(Annuity_Option=5,Annuity_Option=6,Annuity_Option=7,Annuity_Option=8,Annuity_Option=10),MIN('Surrender Factors'!O52*Annual_Ann+'Surrender Factors'!P52*Output!$C$33*IF(Annuity_Option=5,Output!$D$28,1),G83),IF(Annuity_Option=9,MIN('Surrender Factors'!Q52*('Surrender Factors'!O52*(Annual_Ann)+'Surrender Factors'!P52*Output!$C$33),G83),0)))*IF(AND(Annuity_Option=7,'Surrender Factors'!M52+1=80),0,1)) -> 0
B84: =IF('Surrender Factors'!M53=120,B83+1 & "+",IF('Surrender Factors'!M53>120,"",B83+1)) -> 43 | C84: 0 | D84: =IFERROR(IF('Surrender Factors'!M53>120,"",IF(AND(Annuity_Option=9,B84<=$D$29),0,IF($D$25="Increasing",IF(B84=1,Check!$B$36,Check!$B$36*(1+Output!$D$26*('Surrender Factors'!N53-1))),Check!$B$36))),0) -> 885568.6694 | E84: =IFERROR(IF('Surrender Factors'!M53>120,"",IF(OR(Annuity_Option=1,Annuity_Option=2,Annuity_Option=3,Annuity_Option=4,Annuity_Option=5,Annuity_Option=10),0,IF(Annuity_Option=6,D84*50%,IF(Annuity_Option=7,IF(80-'Surrender Factors'!M53-1=0,$C$33,0),IF(AND(Annuity_Option=9,B84<=$D$29),Check!$B$46*$G$13*VLOOKUP(Payout_Mode,Check!$X$3:$Z$6,3,0),0))))),0) -> 0 | F84: =IF('Surrender Factors'!M53>120,"",0) -> 0 | G84: =IF('Surrender Factors'!M53>120,"",IF(OR(Annuity_Option=1,Annuity_Option=2,Annuity_Option=4),0,IF(Annuity_Option=3,IF(B84=1,$C$33,MAX($C$33-SUM($D$41:D83),0)),IF(Annuity_Option=5,$C$33*$D$28,IF(Annuity_Option=7,IF('Surrender Factors'!M53<80,$C$33,0),IF(Annuity_Option=9,MAX(110%*$C$33,$C$33+SUM($E$42:E84)-SUM($D$41:D83)-E84/12),$C$33)))))) -> 0 | H84: =IF('Surrender Factors'!M53>120,"",IF(Annuity_Option=9,MAX($C$33*'Surrender Factors'!R53-SUM($D$42:D84),0),0)) -> 0 | I84: =IF('Surrender Factors'!M53>120,"",IF(OR(Annuity_Option=1,Annuity_Option=2,Annuity_Option=3,Annuity_Option=4),0,IF(OR(Annuity_Option=5,Annuity_Option=6,Annuity_Option=7,Annuity_Option=8,Annuity_Option=10),MIN('Surrender Factors'!O53*Annual_Ann+'Surrender Factors'!P53*Output!$C$33*IF(Annuity_Option=5,Output!$D$28,1),G84),IF(Annuity_Option=9,MIN('Surrender Factors'!Q53*('Surrender Factors'!O53*(Annual_Ann)+'Surrender Factors'!P53*Output!$C$33),G84),0)))*IF(AND(Annuity_Option=7,'Surrender Factors'!M53+1=80),0,1)) -> 0
B85: =IF('Surrender Factors'!M54=120,B84+1 & "+",IF('Surrender Factors'!M54>120,"",B84+1)) -> 44 | C85: 0 | D85: =IFERROR(IF('Surrender Factors'!M54>120,"",IF(AND(Annuity_Option=9,B85<=$D$29),0,IF($D$25="Increasing",IF(B85=1,Check!$B$36,Check!$B$36*(1+Output!$D$26*('Surrender Factors'!N54-1))),Check!$B$36))),0) -> 897324.0058 | E85: =IFERROR(IF('Surrender Factors'!M54>120,"",IF(OR(Annuity_Option=1,Annuity_Option=2,Annuity_Option=3,Annuity_Option=4,Annuity_Option=5,Annuity_Option=10),0,IF(Annuity_Option=6,D85*50%,IF(Annuity_Option=7,IF(80-'Surrender Factors'!M54-1=0,$C$33,0),IF(AND(Annuity_Option=9,B85<=$D$29),Check!$B$46*$G$13*VLOOKUP(Payout_Mode,Check!$X$3:$Z$6,3,0),0))))),0) -> 0 | F85: =IF('Surrender Factors'!M54>120,"",0) -> 0 | G85: =IF('Surrender Factors'!M54>120,"",IF(OR(Annuity_Option=1,Annuity_Option=2,Annuity_Option=4),0,IF(Annuity_Option=3,IF(B85=1,$C$33,MAX($C$33-SUM($D$41:D84),0)),IF(Annuity_Option=5,$C$33*$D$28,IF(Annuity_Option=7,IF('Surrender Factors'!M54<80,$C$33,0),IF(Annuity_Option=9,MAX(110%*$C$33,$C$33+SUM($E$42:E85)-SUM($D$41:D84)-E85/12),$C$33)))))) -> 0 | H85: =IF('Surrender Factors'!M54>120,"",IF(Annuity_Option=9,MAX($C$33*'Surrender Factors'!R54-SUM($D$42:D85),0),0)) -> 0 | I85: =IF('Surrender Factors'!M54>120,"",IF(OR(Annuity_Option=1,Annuity_Option=2,Annuity_Option=3,Annuity_Option=4),0,IF(OR(Annuity_Option=5,Annuity_Option=6,Annuity_Option=7,Annuity_Option=8,Annuity_Option=10),MIN('Surrender Factors'!O54*Annual_Ann+'Surrender Factors'!P54*Output!$C$33*IF(Annuity_Option=5,Output!$D$28,1),G85),IF(Annuity_Option=9,MIN('Surrender Factors'!Q54*('Surrender Factors'!O54*(Annual_Ann)+'Surrender Factors'!P54*Output!$C$33),G85),0)))*IF(AND(Annuity_Option=7,'Surrender Factors'!M54+1=80),0,1)) -> 0
B86: =IF('Surrender Factors'!M55=120,B85+1 & "+",IF('Surrender Factors'!M55>120,"",B85+1)) -> 45 | C86: 0 | D86: =IFERROR(IF('Surrender Factors'!M55>120,"",IF(AND(Annuity_Option=9,B86<=$D$29),0,IF($D$25="Increasing",IF(B86=1,Check!$B$36,Check!$B$36*(1+Output!$D$26*('Surrender Factors'!N55-1))),Check!$B$36))),0) -> 909079.3421 | E86: =IFERROR(IF('Surrender Factors'!M55>120,"",IF(OR(Annuity_Option=1,Annuity_Option=2,Annuity_Option=3,Annuity_Option=4,Annuity_Option=5,Annuity_Option=10),0,IF(Annuity_Option=6,D86*50%,IF(Annuity_Option=7,IF(80-'Surrender Factors'!M55-1=0,$C$33,0),IF(AND(Annuity_Option=9,B86<=$D$29),Check!$B$46*$G$13*VLOOKUP(Payout_Mode,Check!$X$3:$Z$6,3,0),0))))),0) -> 0 | F86: =IF('Surrender Factors'!M55>120,"",0) -> 0 | G86: =IF('Surrender Factors'!M55>120,"",IF(OR(Annuity_Option=1,Annuity_Option=2,Annuity_Option=4),0,IF(Annuity_Option=3,IF(B86=1,$C$33,MAX($C$33-SUM($D$41:D85),0)),IF(Annuity_Option=5,$C$33*$D$28,IF(Annuity_Option=7,IF('Surrender Factors'!M55<80,$C$33,0),IF(Annuity_Option=9,MAX(110%*$C$33,$C$33+SUM($E$42:E86)-SUM($D$41:D85)-E86/12),$C$33)))))) -> 0 | H86: =IF('Surrender Factors'!M55>120,"",IF(Annuity_Option=9,MAX($C$33*'Surrender Factors'!R55-SUM($D$42:D86),0),0)) -> 0 | I86: =IF('Surrender Factors'!M55>120,"",IF(OR(Annuity_Option=1,Annuity_Option=2,Annuity_Option=3,Annuity_Option=4),0,IF(OR(Annuity_Option=5,Annuity_Option=6,Annuity_Option=7,Annuity_Option=8,Annuity_Option=10),MIN('Surrender Factors'!O55*Annual_Ann+'Surrender Factors'!P55*Output!$C$33*IF(Annuity_Option=5,Output!$D$28,1),G86),IF(Annuity_Option=9,MIN('Surrender Factors'!Q55*('Surrender Factors'!O55*(Annual_Ann)+'Surrender Factors'!P55*Output!$C$33),G86),0)))*IF(AND(Annuity_Option=7,'Surrender Factors'!M55+1=80),0,1)) -> 0
B87: =IF('Surrender Factors'!M56=120,B86+1 & "+",IF('Surrender Factors'!M56>120,"",B86+1)) -> 46 | C87: 0 | D87: =IFERROR(IF('Surrender Factors'!M56>120,"",IF(AND(Annuity_Option=9,B87<=$D$29),0,IF($D$25="Increasing",IF(B87=1,Check!$B$36,Check!$B$36*(1+Output!$D$26*('Surrender Factors'!N56-1))),Check!$B$36))),0) -> 920834.6784 | E87: =IFERROR(IF('Surrender Factors'!M56>120,"",IF(OR(Annuity_Option=1,Annuity_Option=2,Annuity_Option=3,Annuity_Option=4,Annuity_Option=5,Annuity_Option=10),0,IF(Annuity_Option=6,D87*50%,IF(Annuity_Option=7,IF(80-'Surrender Factors'!M56-1=0,$C$33,0),IF(AND(Annuity_Option=9,B87<=$D$29),Check!$B$46*$G$13*VLOOKUP(Payout_Mode,Check!$X$3:$Z$6,3,0),0))))),0) -> 0 | F87: =IF('Surrender Factors'!M56>120,"",0) -> 0 | G87: =IF('Surrender Factors'!M56>120,"",IF(OR(Annuity_Option=1,Annuity_Option=2,Annuity_Option=4),0,IF(Annuity_Option=3,IF(B87=1,$C$33,MAX($C$33-SUM($D$41:D86),0)),IF(Annuity_Option=5,$C$33*$D$28,IF(Annuity_Option=7,IF('Surrender Factors'!M56<80,$C$33,0),IF(Annuity_Option=9,MAX(110%*$C$33,$C$33+SUM($E$42:E87)-SUM($D$41:D86)-E87/12),$C$33)))))) -> 0 | H87: =IF('Surrender Factors'!M56>120,"",IF(Annuity_Option=9,MAX($C$33*'Surrender Factors'!R56-SUM($D$42:D87),0),0)) -> 0 | I87: =IF('Surrender Factors'!M56>120,"",IF(OR(Annuity_Option=1,Annuity_Option=2,Annuity_Option=3,Annuity_Option=4),0,IF(OR(Annuity_Option=5,Annuity_Option=6,Annuity_Option=7,Annuity_Option=8,Annuity_Option=10),MIN('Surrender Factors'!O56*Annual_Ann+'Surrender Factors'!P56*Output!$C$33*IF(Annuity_Option=5,Output!$D$28,1),G87),IF(Annuity_Option=9,MIN('Surrender Factors'!Q56*('Surrender Factors'!O56*(Annual_Ann)+'Surrender Factors'!P56*Output!$C$33),G87),0)))*IF(AND(Annuity_Option=7,'Surrender Factors'!M56+1=80),0,1)) -> 0
B88: =IF('Surrender Factors'!M57=120,B87+1 & "+",IF('Surrender Factors'!M57>120,"",B87+1)) -> 47 | C88: 0 | D88: =IFERROR(IF('Surrender Factors'!M57>120,"",IF(AND(Annuity_Option=9,B88<=$D$29),0,IF($D$25="Increasing",IF(B88=1,Check!$B$36,Check!$B$36*(1+Output!$D$26*('Surrender Factors'!N57-1))),Check!$B$36))),0) -> 932590.0147 | E88: =IFERROR(IF('Surrender Factors'!M57>120,"",IF(OR(Annuity_Option=1,Annuity_Option=2,Annuity_Option=3,Annuity_Option=4,Annuity_Option=5,Annuity_Option=10),0,IF(Annuity_Option=6,D88*50%,IF(Annuity_Option=7,IF(80-'Surrender Factors'!M57-1=0,$C$33,0),IF(AND(Annuity_Option=9,B88<=$D$29),Check!$B$46*$G$13*VLOOKUP(Payout_Mode,Check!$X$3:$Z$6,3,0),0))))),0) -> 0 | F88: =IF('Surrender Factors'!M57>120,"",0) -> 0 | G88: =IF('Surrender Factors'!M57>120,"",IF(OR(Annuity_Option=1,Annuity_Option=2,Annuity_Option=4),0,IF(Annuity_Option=3,IF(B88=1,$C$33,MAX($C$33-SUM($D$41:D87),0)),IF(Annuity_Option=5,$C$33*$D$28,IF(Annuity_Option=7,IF('Surrender Factors'!M57<80,$C$33,0),IF(Annuity_Option=9,MAX(110%*$C$33,$C$33+SUM($E$42:E88)-SUM($D$41:D87)-E88/12),$C$33)))))) -> 0 | H88: =IF('Surrender Factors'!M57>120,"",IF(Annuity_Option=9,MAX($C$33*'Surrender Factors'!R57-SUM($D$42:D88),0),0)) -> 0 | I88: =IF('Surrender Factors'!M57>120,"",IF(OR(Annuity_Option=1,Annuity_Option=2,Annuity_Option=3,Annuity_Option=4),0,IF(OR(Annuity_Option=5,Annuity_Option=6,Annuity_Option=7,Annuity_Option=8,Annuity_Option=10),MIN('Surrender Factors'!O57*Annual_Ann+'Surrender Factors'!P57*Output!$C$33*IF(Annuity_Option=5,Output!$D$28,1),G88),IF(Annuity_Option=9,MIN('Surrender Factors'!Q57*('Surrender Factors'!O57*(Annual_Ann)+'Surrender Factors'!P57*Output!$C$33),G88),0)))*IF(AND(Annuity_Option=7,'Surrender Factors'!M57+1=80),0,1)) -> 0
B89: =IF('Surrender Factors'!M58=120,B88+1 & "+",IF('Surrender Factors'!M58>120,"",B88+1)) -> 48 | C89: 0 | D89: =IFERROR(IF('Surrender Factors'!M58>120,"",IF(AND(Annuity_Option=9,B89<=$D$29),0,IF($D$25="Increasing",IF(B89=1,Check!$B$36,Check!$B$36*(1+Output!$D$26*('Surrender Factors'!N58-1))),Check!$B$36))),0) -> 944345.351 | E89: =IFERROR(IF('Surrender Factors'!M58>120,"",IF(OR(Annuity_Option=1,Annuity_Option=2,Annuity_Option=3,Annuity_Option=4,Annuity_Option=5,Annuity_Option=10),0,IF(Annuity_Option=6,D89*50%,IF(Annuity_Option=7,IF(80-'Surrender Factors'!M58-1=0,$C$33,0),IF(AND(Annuity_Option=9,B89<=$D$29),Check!$B$46*$G$13*VLOOKUP(Payout_Mode,Check!$X$3:$Z$6,3,0),0))))),0) -> 0 | F89: =IF('Surrender Factors'!M58>120,"",0) -> 0 | G89: =IF('Surrender Factors'!M58>120,"",IF(OR(Annuity_Option=1,Annuity_Option=2,Annuity_Option=4),0,IF(Annuity_Option=3,IF(B89=1,$C$33,MAX($C$33-SUM($D$41:D88),0)),IF(Annuity_Option=5,$C$33*$D$28,IF(Annuity_Option=7,IF('Surrender Factors'!M58<80,$C$33,0),IF(Annuity_Option=9,MAX(110%*$C$33,$C$33+SUM($E$42:E89)-SUM($D$41:D88)-E89/12),$C$33)))))) -> 0 | H89: =IF('Surrender Factors'!M58>120,"",IF(Annuity_Option=9,MAX($C$33*'Surrender Factors'!R58-SUM($D$42:D89),0),0)) -> 0 | I89: =IF('Surrender Factors'!M58>120,"",IF(OR(Annuity_Option=1,Annuity_Option=2,Annuity_Option=3,Annuity_Option=4),0,IF(OR(Annuity_Option=5,Annuity_Option=6,Annuity_Option=7,Annuity_Option=8,Annuity_Option=10),MIN('Surrender Factors'!O58*Annual_Ann+'Surrender Factors'!P58*Output!$C$33*IF(Annuity_Option=5,Output!$D$28,1),G89),IF(Annuity_Option=9,MIN('Surrender Factors'!Q58*('Surrender Factors'!O58*(Annual_Ann)+'Surrender Factors'!P58*Output!$C$33),G89),0)))*IF(AND(Annuity_Option=7,'Surrender Factors'!M58+1=80),0,1)) -> 0
B90: =IF('Surrender Factors'!M59=120,B89+1 & "+",IF('Surrender Factors'!M59>120,"",B89+1)) -> 49 | C90: 0 | D90: =IFERROR(IF('Surrender Factors'!M59>120,"",IF(AND(Annuity_Option=9,B90<=$D$29),0,IF($D$25="Increasing",IF(B90=1,Check!$B$36,Check!$B$36*(1+Output!$D$26*('Surrender Factors'!N59-1))),Check!$B$36))),0) -> 956100.6874 | E90: =IFERROR(IF('Surrender Factors'!M59>120,"",IF(OR(Annuity_Option=1,Annuity_Option=2,Annuity_Option=3,Annuity_Option=4,Annuity_Option=5,Annuity_Option=10),0,IF(Annuity_Option=6,D90*50%,IF(Annuity_Option=7,IF(80-'Surrender Factors'!M59-1=0,$C$33,0),IF(AND(Annuity_Option=9,B90<=$D$29),Check!$B$46*$G$13*VLOOKUP(Payout_Mode,Check!$X$3:$Z$6,3,0),0))))),0) -> 0 | F90: =IF('Surrender Factors'!M59>120,"",0) -> 0 | G90: =IF('Surrender Factors'!M59>120,"",IF(OR(Annuity_Option=1,Annuity_Option=2,Annuity_Option=4),0,IF(Annuity_Option=3,IF(B90=1,$C$33,MAX($C$33-SUM($D$41:D89),0)),IF(Annuity_Option=5,$C$33*$D$28,IF(Annuity_Option=7,IF('Surrender Factors'!M59<80,$C$33,0),IF(Annuity_Option=9,MAX(110%*$C$33,$C$33+SUM($E$42:E90)-SUM($D$41:D89)-E90/12),$C$33)))))) -> 0 | H90: =IF('Surrender Factors'!M59>120,"",IF(Annuity_Option=9,MAX($C$33*'Surrender Factors'!R59-SUM($D$42:D90),0),0)) -> 0 | I90: =IF('Surrender Factors'!M59>120,"",IF(OR(Annuity_Option=1,Annuity_Option=2,Annuity_Option=3,Annuity_Option=4),0,IF(OR(Annuity_Option=5,Annuity_Option=6,Annuity_Option=7,Annuity_Option=8,Annuity_Option=10),MIN('Surrender Factors'!O59*Annual_Ann+'Surrender Factors'!P59*Output!$C$33*IF(Annuity_Option=5,Output!$D$28,1),G90),IF(Annuity_Option=9,MIN('Surrender Factors'!Q59*('Surrender Factors'!O59*(Annual_Ann)+'Surrender Factors'!P59*Output!$C$33),G90),0)))*IF(AND(Annuity_Option=7,'Surrender Factors'!M59+1=80),0,1)) -> 0
B91: =IF('Surrender Factors'!M60=120,B90+1 & "+",IF('Surrender Factors'!M60>120,"",B90+1)) -> 50 | C91: 0 | D91: =IFERROR(IF('Surrender Factors'!M60>120,"",IF(AND(Annuity_Option=9,B91<=$D$29),0,IF($D$25="Increasing",IF(B91=1,Check!$B$36,Check!$B$36*(1+Output!$D$26*('Surrender Factors'!N60-1))),Check!$B$36))),0) -> 967856.0237 | E91: =IFERROR(IF('Surrender Factors'!M60>120,"",IF(OR(Annuity_Option=1,Annuity_Option=2,Annuity_Option=3,Annuity_Option=4,Annuity_Option=5,Annuity_Option=10),0,IF(Annuity_Option=6,D91*50%,IF(Annuity_Option=7,IF(80-'Surrender Factors'!M60-1=0,$C$33,0),IF(AND(Annuity_Option=9,B91<=$D$29),Check!$B$46*$G$13*VLOOKUP(Payout_Mode,Check!$X$3:$Z$6,3,0),0))))),0) -> 0 | F91: =IF('Surrender Factors'!M60>120,"",0) -> 0 | G91: =IF('Surrender Factors'!M60>120,"",IF(OR(Annuity_Option=1,Annuity_Option=2,Annuity_Option=4),0,IF(Annuity_Option=3,IF(B91=1,$C$33,MAX($C$33-SUM($D$41:D90),0)),IF(Annuity_Option=5,$C$33*$D$28,IF(Annuity_Option=7,IF('Surrender Factors'!M60<80,$C$33,0),IF(Annuity_Option=9,MAX(110%*$C$33,$C$33+SUM($E$42:E91)-SUM($D$41:D90)-E91/12),$C$33)))))) -> 0 | H91: =IF('Surrender Factors'!M60>120,"",IF(Annuity_Option=9,MAX($C$33*'Surrender Factors'!R60-SUM($D$42:D91),0),0)) -> 0 | I91: =IF('Surrender Factors'!M60>120,"",IF(OR(Annuity_Option=1,Annuity_Option=2,Annuity_Option=3,Annuity_Option=4),0,IF(OR(Annuity_Option=5,Annuity_Option=6,Annuity_Option=7,Annuity_Option=8,Annuity_Option=10),MIN('Surrender Factors'!O60*Annual_Ann+'Surrender Factors'!P60*Output!$C$33*IF(Annuity_Option=5,Output!$D$28,1),G91),IF(Annuity_Option=9,MIN('Surrender Factors'!Q60*('Surrender Factors'!O60*(Annual_Ann)+'Surrender Factors'!P60*Output!$C$33),G91),0)))*IF(AND(Annuity_Option=7,'Surrender Factors'!M60+1=80),0,1)) -> 0
B92: =IF('Surrender Factors'!M61=120,B91+1 & "+",IF('Surrender Factors'!M61>120,"",B91+1)) -> 51 | C92: 0 | D92: =IFERROR(IF('Surrender Factors'!M61>120,"",IF(AND(Annuity_Option=9,B92<=$D$29),0,IF($D$25="Increasing",IF(B92=1,Check!$B$36,Check!$B$36*(1+Output!$D$26*('Surrender Factors'!N61-1))),Check!$B$36))),0) -> 979611.36 | E92: =IFERROR(IF('Surrender Factors'!M61>120,"",IF(OR(Annuity_Option=1,Annuity_Option=2,Annuity_Option=3,Annuity_Option=4,Annuity_Option=5,Annuity_Option=10),0,IF(Annuity_Option=6,D92*50%,IF(Annuity_Option=7,IF(80-'Surrender Factors'!M61-1=0,$C$33,0),IF(AND(Annuity_Option=9,B92<=$D$29),Check!$B$46*$G$13*VLOOKUP(Payout_Mode,Check!$X$3:$Z$6,3,0),0))))),0) -> 0 | F92: =IF('Surrender Factors'!M61>120,"",0) -> 0 | G92: =IF('Surrender Factors'!M61>120,"",IF(OR(Annuity_Option=1,Annuity_Option=2,Annuity_Option=4),0,IF(Annuity_Option=3,IF(B92=1,$C$33,MAX($C$33-SUM($D$41:D91),0)),IF(Annuity_Option=5,$C$33*$D$28,IF(Annuity_Option=7,IF('Surrender Factors'!M61<80,$C$33,0),IF(Annuity_Option=9,MAX(110%*$C$33,$C$33+SUM($E$42:E92)-SUM($D$41:D91)-E92/12),$C$33)))))) -> 0 | H92: =IF('Surrender Factors'!M61>120,"",IF(Annuity_Option=9,MAX($C$33*'Surrender Factors'!R61-SUM($D$42:D92),0),0)) -> 0 | I92: =IF('Surrender Factors'!M61>120,"",IF(OR(Annuity_Option=1,Annuity_Option=2,Annuity_Option=3,Annuity_Option=4),0,IF(OR(Annuity_Option=5,Annuity_Option=6,Annuity_Option=7,Annuity_Option=8,Annuity_Option=10),MIN('Surrender Factors'!O61*Annual_Ann+'Surrender Factors'!P61*Output!$C$33*IF(Annuity_Option=5,Output!$D$28,1),G92),IF(Annuity_Option=9,MIN('Surrender Factors'!Q61*('Surrender Factors'!O61*(Annual_Ann)+'Surrender Factors'!P61*Output!$C$33),G92),0)))*IF(AND(Annuity_Option=7,'Surrender Factors'!M61+1=80),0,1)) -> 0
B93: =IF('Surrender Factors'!M62=120,B92+1 & "+",IF('Surrender Factors'!M62>120,"",B92+1)) -> 52 | C93: 0 | D93: =IFERROR(IF('Surrender Factors'!M62>120,"",IF(AND(Annuity_Option=9,B93<=$D$29),0,IF($D$25="Increasing",IF(B93=1,Check!$B$36,Check!$B$36*(1+Output!$D$26*('Surrender Factors'!N62-1))),Check!$B$36))),0) -> 991366.6963 | E93: =IFERROR(IF('Surrender Factors'!M62>120,"",IF(OR(Annuity_Option=1,Annuity_Option=2,Annuity_Option=3,Annuity_Option=4,Annuity_Option=5,Annuity_Option=10),0,IF(Annuity_Option=6,D93*50%,IF(Annuity_Option=7,IF(80-'Surrender Factors'!M62-1=0,$C$33,0),IF(AND(Annuity_Option=9,B93<=$D$29),Check!$B$46*$G$13*VLOOKUP(Payout_Mode,Check!$X$3:$Z$6,3,0),0))))),0) -> 0 | F93: =IF('Surrender Factors'!M62>120,"",0) -> 0 | G93: =IF('Surrender Factors'!M62>120,"",IF(OR(Annuity_Option=1,Annuity_Option=2,Annuity_Option=4),0,IF(Annuity_Option=3,IF(B93=1,$C$33,MAX($C$33-SUM($D$41:D92),0)),IF(Annuity_Option=5,$C$33*$D$28,IF(Annuity_Option=7,IF('Surrender Factors'!M62<80,$C$33,0),IF(Annuity_Option=9,MAX(110%*$C$33,$C$33+SUM($E$42:E93)-SUM($D$41:D92)-E93/12),$C$33)))))) -> 0 | H93: =IF('Surrender Factors'!M62>120,"",IF(Annuity_Option=9,MAX($C$33*'Surrender Factors'!R62-SUM($D$42:D93),0),0)) -> 0 | I93: =IF('Surrender Factors'!M62>120,"",IF(OR(Annuity_Option=1,Annuity_Option=2,Annuity_Option=3,Annuity_Option=4),0,IF(OR(Annuity_Option=5,Annuity_Option=6,Annuity_Option=7,Annuity_Option=8,Annuity_Option=10),MIN('Surrender Factors'!O62*Annual_Ann+'Surrender Factors'!P62*Output!$C$33*IF(Annuity_Option=5,Output!$D$28,1),G93),IF(Annuity_Option=9,MIN('Surrender Factors'!Q62*('Surrender Factors'!O62*(Annual_Ann)+'Surrender Factors'!P62*Output!$C$33),G93),0)))*IF(AND(Annuity_Option=7,'Surrender Factors'!M62+1=80),0,1)) -> 0
B94: =IF('Surrender Factors'!M63=120,B93+1 & "+",IF('Surrender Factors'!M63>120,"",B93+1)) -> 53 | C94: 0 | D94: =IFERROR(IF('Surrender Factors'!M63>120,"",IF(AND(Annuity_Option=9,B94<=$D$29),0,IF($D$25="Increasing",IF(B94=1,Check!$B$36,Check!$B$36*(1+Output!$D$26*('Surrender Factors'!N63-1))),Check!$B$36))),0) -> 1003122.033 | E94: =IFERROR(IF('Surrender Factors'!M63>120,"",IF(OR(Annuity_Option=1,Annuity_Option=2,Annuity_Option=3,Annuity_Option=4,Annuity_Option=5,Annuity_Option=10),0,IF(Annuity_Option=6,D94*50%,IF(Annuity_Option=7,IF(80-'Surrender Factors'!M63-1=0,$C$33,0),IF(AND(Annuity_Option=9,B94<=$D$29),Check!$B$46*$G$13*VLOOKUP(Payout_Mode,Check!$X$3:$Z$6,3,0),0))))),0) -> 0 | F94: =IF('Surrender Factors'!M63>120,"",0) -> 0 | G94: =IF('Surrender Factors'!M63>120,"",IF(OR(Annuity_Option=1,Annuity_Option=2,Annuity_Option=4),0,IF(Annuity_Option=3,IF(B94=1,$C$33,MAX($C$33-SUM($D$41:D93),0)),IF(Annuity_Option=5,$C$33*$D$28,IF(Annuity_Option=7,IF('Surrender Factors'!M63<80,$C$33,0),IF(Annuity_Option=9,MAX(110%*$C$33,$C$33+SUM($E$42:E94)-SUM($D$41:D93)-E94/12),$C$33)))))) -> 0 | H94: =IF('Surrender Factors'!M63>120,"",IF(Annuity_Option=9,MAX($C$33*'Surrender Factors'!R63-SUM($D$42:D94),0),0)) -> 0 | I94: =IF('Surrender Factors'!M63>120,"",IF(OR(Annuity_Option=1,Annuity_Option=2,Annuity_Option=3,Annuity_Option=4),0,IF(OR(Annuity_Option=5,Annuity_Option=6,Annuity_Option=7,Annuity_Option=8,Annuity_Option=10),MIN('Surrender Factors'!O63*Annual_Ann+'Surrender Factors'!P63*Output!$C$33*IF(Annuity_Option=5,Output!$D$28,1),G94),IF(Annuity_Option=9,MIN('Surrender Factors'!Q63*('Surrender Factors'!O63*(Annual_Ann)+'Surrender Factors'!P63*Output!$C$33),G94),0)))*IF(AND(Annuity_Option=7,'Surrender Factors'!M63+1=80),0,1)) -> 0
B95: =IF('Surrender Factors'!M64=120,B94+1 & "+",IF('Surrender Factors'!M64>120,"",B94+1)) -> 54 | C95: 0 | D95: =IFERROR(IF('Surrender Factors'!M64>120,"",IF(AND(Annuity_Option=9,B95<=$D$29),0,IF($D$25="Increasing",IF(B95=1,Check!$B$36,Check!$B$36*(1+Output!$D$26*('Surrender Factors'!N64-1))),Check!$B$36))),0) -> 1014877.369 | E95: =IFERROR(IF('Surrender Factors'!M64>120,"",IF(OR(Annuity_Option=1,Annuity_Option=2,Annuity_Option=3,Annuity_Option=4,Annuity_Option=5,Annuity_Option=10),0,IF(Annuity_Option=6,D95*50%,IF(Annuity_Option=7,IF(80-'Surrender Factors'!M64-1=0,$C$33,0),IF(AND(Annuity_Option=9,B95<=$D$29),Check!$B$46*$G$13*VLOOKUP(Payout_Mode,Check!$X$3:$Z$6,3,0),0))))),0) -> 0 | F95: =IF('Surrender Factors'!M64>120,"",0) -> 0 | G95: =IF('Surrender Factors'!M64>120,"",IF(OR(Annuity_Option=1,Annuity_Option=2,Annuity_Option=4),0,IF(Annuity_Option=3,IF(B95=1,$C$33,MAX($C$33-SUM($D$41:D94),0)),IF(Annuity_Option=5,$C$33*$D$28,IF(Annuity_Option=7,IF('Surrender Factors'!M64<80,$C$33,0),IF(Annuity_Option=9,MAX(110%*$C$33,$C$33+SUM($E$42:E95)-SUM($D$41:D94)-E95/12),$C$33)))))) -> 0 | H95: =IF('Surrender Factors'!M64>120,"",IF(Annuity_Option=9,MAX($C$33*'Surrender Factors'!R64-SUM($D$42:D95),0),0)) -> 0 | I95: =IF('Surrender Factors'!M64>120,"",IF(OR(Annuity_Option=1,Annuity_Option=2,Annuity_Option=3,Annuity_Option=4),0,IF(OR(Annuity_Option=5,Annuity_Option=6,Annuity_Option=7,Annuity_Option=8,Annuity_Option=10),MIN('Surrender Factors'!O64*Annual_Ann+'Surrender Factors'!P64*Output!$C$33*IF(Annuity_Option=5,Output!$D$28,1),G95),IF(Annuity_Option=9,MIN('Surrender Factors'!Q64*('Surrender Factors'!O64*(Annual_Ann)+'Surrender Factors'!P64*Output!$C$33),G95),0)))*IF(AND(Annuity_Option=7,'Surrender Factors'!M64+1=80),0,1)) -> 0
B96: =IF('Surrender Factors'!M65=120,B95+1 & "+",IF('Surrender Factors'!M65>120,"",B95+1)) -> 55 | C96: 0 | D96: =IFERROR(IF('Surrender Factors'!M65>120,"",IF(AND(Annuity_Option=9,B96<=$D$29),0,IF($D$25="Increasing",IF(B96=1,Check!$B$36,Check!$B$36*(1+Output!$D$26*('Surrender Factors'!N65-1))),Check!$B$36))),0) -> 1026632.705 | E96: =IFERROR(IF('Surrender Factors'!M65>120,"",IF(OR(Annuity_Option=1,Annuity_Option=2,Annuity_Option=3,Annuity_Option=4,Annuity_Option=5,Annuity_Option=10),0,IF(Annuity_Option=6,D96*50%,IF(Annuity_Option=7,IF(80-'Surrender Factors'!M65-1=0,$C$33,0),IF(AND(Annuity_Option=9,B96<=$D$29),Check!$B$46*$G$13*VLOOKUP(Payout_Mode,Check!$X$3:$Z$6,3,0),0))))),0) -> 0 | F96: =IF('Surrender Factors'!M65>120,"",0) -> 0 | G96: =IF('Surrender Factors'!M65>120,"",IF(OR(Annuity_Option=1,Annuity_Option=2,Annuity_Option=4),0,IF(Annuity_Option=3,IF(B96=1,$C$33,MAX($C$33-SUM($D$41:D95),0)),IF(Annuity_Option=5,$C$33*$D$28,IF(Annuity_Option=7,IF('Surrender Factors'!M65<80,$C$33,0),IF(Annuity_Option=9,MAX(110%*$C$33,$C$33+SUM($E$42:E96)-SUM($D$41:D95)-E96/12),$C$33)))))) -> 0 | H96: =IF('Surrender Factors'!M65>120,"",IF(Annuity_Option=9,MAX($C$33*'Surrender Factors'!R65-SUM($D$42:D96),0),0)) -> 0 | I96: =IF('Surrender Factors'!M65>120,"",IF(OR(Annuity_Option=1,Annuity_Option=2,Annuity_Option=3,Annuity_Option=4),0,IF(OR(Annuity_Option=5,Annuity_Option=6,Annuity_Option=7,Annuity_Option=8,Annuity_Option=10),MIN('Surrender Factors'!O65*Annual_Ann+'Surrender Factors'!P65*Output!$C$33*IF(Annuity_Option=5,Output!$D$28,1),G96),IF(Annuity_Option=9,MIN('Surrender Factors'!Q65*('Surrender Factors'!O65*(Annual_Ann)+'Surrender Factors'!P65*Output!$C$33),G96),0)))*IF(AND(Annuity_Option=7,'Surrender Factors'!M65+1=80),0,1)) -> 0
B97: =IF('Surrender Factors'!M66=120,B96+1 & "+",IF('Surrender Factors'!M66>120,"",B96+1)) -> 56 | C97: 0 | D97: =IFERROR(IF('Surrender Factors'!M66>120,"",IF(AND(Annuity_Option=9,B97<=$D$29),0,IF($D$25="Increasing",IF(B97=1,Check!$B$36,Check!$B$36*(1+Output!$D$26*('Surrender Factors'!N66-1))),Check!$B$36))),0) -> 1038388.042 | E97: =IFERROR(IF('Surrender Factors'!M66>120,"",IF(OR(Annuity_Option=1,Annuity_Option=2,Annuity_Option=3,Annuity_Option=4,Annuity_Option=5,Annuity_Option=10),0,IF(Annuity_Option=6,D97*50%,IF(Annuity_Option=7,IF(80-'Surrender Factors'!M66-1=0,$C$33,0),IF(AND(Annuity_Option=9,B97<=$D$29),Check!$B$46*$G$13*VLOOKUP(Payout_Mode,Check!$X$3:$Z$6,3,0),0))))),0) -> 0 | F97: =IF('Surrender Factors'!M66>120,"",0) -> 0 | G97: =IF('Surrender Factors'!M66>120,"",IF(OR(Annuity_Option=1,Annuity_Option=2,Annuity_Option=4),0,IF(Annuity_Option=3,IF(B97=1,$C$33,MAX($C$33-SUM($D$41:D96),0)),IF(Annuity_Option=5,$C$33*$D$28,IF(Annuity_Option=7,IF('Surrender Factors'!M66<80,$C$33,0),IF(Annuity_Option=9,MAX(110%*$C$33,$C$33+SUM($E$42:E97)-SUM($D$41:D96)-E97/12),$C$33)))))) -> 0 | H97: =IF('Surrender Factors'!M66>120,"",IF(Annuity_Option=9,MAX($C$33*'Surrender Factors'!R66-SUM($D$42:D97),0),0)) -> 0 | I97: =IF('Surrender Factors'!M66>120,"",IF(OR(Annuity_Option=1,Annuity_Option=2,Annuity_Option=3,Annuity_Option=4),0,IF(OR(Annuity_Option=5,Annuity_Option=6,Annuity_Option=7,Annuity_Option=8,Annuity_Option=10),MIN('Surrender Factors'!O66*Annual_Ann+'Surrender Factors'!P66*Output!$C$33*IF(Annuity_Option=5,Output!$D$28,1),G97),IF(Annuity_Option=9,MIN('Surrender Factors'!Q66*('Surrender Factors'!O66*(Annual_Ann)+'Surrender Factors'!P66*Output!$C$33),G97),0)))*IF(AND(Annuity_Option=7,'Surrender Factors'!M66+1=80),0,1)) -> 0
B98: =IF('Surrender Factors'!M67=120,B97+1 & "+",IF('Surrender Factors'!M67>120,"",B97+1)) -> 57 | C98: 0 | D98: =IFERROR(IF('Surrender Factors'!M67>120,"",IF(AND(Annuity_Option=9,B98<=$D$29),0,IF($D$25="Increasing",IF(B98=1,Check!$B$36,Check!$B$36*(1+Output!$D$26*('Surrender Factors'!N67-1))),Check!$B$36))),0) -> 1050143.378 | E98: =IFERROR(IF('Surrender Factors'!M67>120,"",IF(OR(Annuity_Option=1,Annuity_Option=2,Annuity_Option=3,Annuity_Option=4,Annuity_Option=5,Annuity_Option=10),0,IF(Annuity_Option=6,D98*50%,IF(Annuity_Option=7,IF(80-'Surrender Factors'!M67-1=0,$C$33,0),IF(AND(Annuity_Option=9,B98<=$D$29),Check!$B$46*$G$13*VLOOKUP(Payout_Mode,Check!$X$3:$Z$6,3,0),0))))),0) -> 0 | F98: =IF('Surrender Factors'!M67>120,"",0) -> 0 | G98: =IF('Surrender Factors'!M67>120,"",IF(OR(Annuity_Option=1,Annuity_Option=2,Annuity_Option=4),0,IF(Annuity_Option=3,IF(B98=1,$C$33,MAX($C$33-SUM($D$41:D97),0)),IF(Annuity_Option=5,$C$33*$D$28,IF(Annuity_Option=7,IF('Surrender Factors'!M67<80,$C$33,0),IF(Annuity_Option=9,MAX(110%*$C$33,$C$33+SUM($E$42:E98)-SUM($D$41:D97)-E98/12),$C$33)))))) -> 0 | H98: =IF('Surrender Factors'!M67>120,"",IF(Annuity_Option=9,MAX($C$33*'Surrender Factors'!R67-SUM($D$42:D98),0),0)) -> 0 | I98: =IF('Surrender Factors'!M67>120,"",IF(OR(Annuity_Option=1,Annuity_Option=2,Annuity_Option=3,Annuity_Option=4),0,IF(OR(Annuity_Option=5,Annuity_Option=6,Annuity_Option=7,Annuity_Option=8,Annuity_Option=10),MIN('Surrender Factors'!O67*Annual_Ann+'Surrender Factors'!P67*Output!$C$33*IF(Annuity_Option=5,Output!$D$28,1),G98),IF(Annuity_Option=9,MIN('Surrender Factors'!Q67*('Surrender Factors'!O67*(Annual_Ann)+'Surrender Factors'!P67*Output!$C$33),G98),0)))*IF(AND(Annuity_Option=7,'Surrender Factors'!M67+1=80),0,1)) -> 0
